Workbook

Sheet Formler (hidden)
A2: Tillvägagånssätt:
A3: 1. | B3: Hämta månadsvärden för direktstrålning och globalstrålning från SMHI http://strang.smhi.se/
A4: 2. | B4: Beräkna direktstrålningen för varje timme vid aktuella solhöjder enligt medel Brown Isfält nedan för ett dygn omkring den 20:e i varje månad.
A5: 3. | B5: Bestäm dygninstrålningens fördelning per timme
A6: 4. | B6: Fördela SMHIs månadsinstrålning på timmar enligt den beräknade fördelningen (hela månadsinstrålningen kommer på ett dygn)
A7: 5. | B7: Gör samma sak för diffusstrålningen, dvs. globalstrålning minus diffusstrålning och bestäm fördelningen enligt Plejels formel nedan
A9: Solens läge
B10: Ex
A11: H | B11: 90 | C11: Timvinkel -antal timmar fr S mot V ggr 15
A12: δ | B12: -19.9 | C12: deklination
A13: φ | B13: 65.35 | C13: latitud
A15: h | B15: =ASIN(SIN(B13*PI()/180)*SIN(B12*PI()/180)+COS(B13*PI()/180)*COS(B12*PI()/180)*COS(B11*15*PI()/180))*180/PI() -> -18.02076231 | C15: eq 21
A16: A | B16: =ASIN((SIN(B11*15*PI()/180)*COS(B12*PI()/180))/COS(B15*PI()/180))*180/PI() -> -81.41440007 | C16: eq 19
H17: Månad | I17: Dag | J17: Deklination
A18: Formler | H18: dec | I18: 22 | J18: -23.45
A19: Brown, Isfält | H19: jan | I19: 21 | J19: -19.9
H20: feb | I20: 20 | J20: -10.9
A21: IDN | B21: direktstrålning | C21: okt-apr | D21: 1071*EXP(-0,109/SIN(h*PI()/180)) | H21: mar | I21: 20 | J21: 0
A22: IDN | B22: direktstrålning | C22: maj-sept | D22: 1071*EXP(-0,139/SIN(C9*PI()/180)) | H22: apr | I22: 19 | J22: 11.1
A23: IDN | B23: direktstrålning | C23: ~medel | D23: 1071*EXP(-0,129/SIN(C9*PI()/180)) | H23: maj | I23: 20 | J23: 20
H24: jun | I24: 21 | J24: 23.45
A25: Pleijel | H25: jul | I25: 23 | J25: 19.9
A26: IdH | B26: diffusstrålning | D26: 244*SIN(h*PI()/180) | H26: aug | I26: 23 | J26: 11.1
H27: sep | I27: 22 | J27: 0
H28: okt | I28: 21 | J28: -11
H29: nov | I29: 20 | J29: -19.9
H30: dec | I30: 21 | J30: -23.45

Sheet Luleå (hidden)
A1: Direktstrålning | B1: Ort | C1: Luleå | E1: Latitud | F1: 65.35 | G1: Longitud | H1: 22.09
J2: Medel direktstrålning år 2000-2011 | S2: Medel globalstrålning år 2000-2011
A3: Wh/m2 | B3: Direktstrålning vinkelrät mot strålningsriktningen | K3: Wh/m2 | L3: Standardav | M3: % | O3: Globalstrålning | T3: Wh/m2 | U3: Standardav | V3: %
A4: 1 | B4: 2000 | C4: 1 | D4: 31 | E4: 23 | G4: 30729.9 | J4: Januari | K4: =(G4+G16+G28+G40+G52+G64+G76+G88+G100+G112+G124)/11 -> 13427.75455 | L4: =STDEV(G4,G16,G28,G40,G52,G64,G76,G88,G100,G112,G124) -> 7997.803846 | M4: =L4/K4 -> 0.5956173699 | O4: 2000 01 31 | P4: 23 | Q4: 4325.8 | S4: Januari | T4: =(Q4+Q16+Q28+Q40+Q52+Q64+Q76+Q88+Q100+Q112+Q124)/11 -> 3112.881818 | U4: =STDEV(Q4,Q16,Q28,Q40,Q52,Q64,Q76,Q88,Q100,Q112,Q124) -> 841.4842528 | V4: =U4/T4 -> 0.2703232252
A5: 2 | B5: 2000 | C5: 2 | D5: 29 | E5: 23 | G5: 44638.2 | J5: Februari | K5: =(G5+G17+G29+G41+G53+G65+G77+G89+G101+G113+G125)/11 -> 40916.81818 | L5: =STDEV(G5,G17,G29,G41,G53,G65,G77,G89,G101,G113,G125) -> 7802.418893 | M5: =L5/K5 -> 0.190689776 | O5: 2000 02 29 | P5: 23 | Q5: 18343.7 | S5: Februari | T5: =(Q5+Q17+Q29+Q41+Q53+Q65+Q77+Q89+Q101+Q113+Q125)/11 -> 17350.13636 | U5: =STDEV(Q5,Q17,Q29,Q41,Q53,Q65,Q77,Q89,Q101,Q113,Q125) -> 1963.359097 | V5: =U5/T5 -> 0.1131610182
A6: 3 | B6: 2000 | C6: 3 | D6: 31 | E6: 23 | G6: 137652.2 | J6: Mars | K6: =(G6+G18+G30+G42+G54+G66+G78+G90+G102+G114+G126)/11 -> 97093.4 | L6: 24360.76063 | M6: 0.2509002736 | O6: 2000 03 31 | P6: 23 | Q6: 72993.6 | S6: Mars | T6: 59094.30909 | U6: 7901.451355 | V6: 0.1337091757
A7: 4 | B7: 2000 | C7: 4 | D7: 30 | E7: 23 | G7: 123351.7 | J7: April | K7: 131469.9182 | L7: 26795.4568 | M7: 0.2038143567 | O7: 2000 04 30 | P7: 23 | Q7: 100734.3 | S7: April | T7: 106810.6182 | U7: 11986.80265 | V7: 0.1122248224
A8: 5 | B8: 2000 | C8: 5 | D8: 31 | E8: 23 | G8: 195624.6 | J8: Maj | K8: 180616.8182 | L8: 24193.60837 | M8: 0.1339499202 | O8: 2000 05 31 | P8: 23 | Q8: 167976 | S8: Maj | T8: 160524.6727 | U8: 14000.99078 | V8: 0.08722017955
A9: 6 | B9: 2000 | C9: 6 | D9: 30 | E9: 23 | G9: 201917.5 | J9: Juni | K9: 181603.7818 | L9: 33717.40846 | M9: 0.1856646823 | O9: 2000 06 30 | P9: 23 | Q9: 180413.6 | S9: Juni | T9: 173202.4818 | U9: 16808.42478 | V9: 0.09704494186
A10: 7 | B10: 2000 | C10: 7 | D10: 31 | E10: 23 | G10: 165385 | J10: Juli | K10: 179199.4636 | L10: 34559.00045 | M10: 0.1928521423 | O10: 2000 07 31 | P10: 23 | Q10: 155663 | S10: Juli | T10: 161557.0182 | U10: 18291.86826 | V10: 0.1132223686
A11: 8 | B11: 2000 | C11: 8 | D11: 31 | E11: 23 | G11: 127283.2 | J11: Augusti | K11: 132035.1636 | L11: 37676.98634 | M11: 0.2853556984 | O11: 2000 08 31 | P11: 23 | Q11: 118903.1 | S11: Augusti | T11: 117808.8545 | U11: 16372.4505 | V11: 0.1389747024
A12: 9 | B12: 2000 | C12: 9 | D12: 30 | E12: 23 | G12: 115650.8 | J12: September | K12: 89387.13636 | L12: 17951.52397 | M12: 0.2008289414 | O12: 2000 09 30 | P12: 23 | Q12: 75501 | S12: September | T12: 65753.35455 | U12: 7501.120889 | V12: 0.1140796685
A13: 10 | B13: 2000 | C13: 10 | D13: 31 | E13: 23 | G13: 29916.1 | I13: Summa 99 | J13: Oktober | K13: 46067.93636 | L13: 13934.15018 | M13: 0.3024695977 | O13: 2000 10 31 | P13: 23 | Q13: 19836.5 | S13: Oktober | T13: 24347.97273 | U13: 3433.898096 | V13: 0.141034251
A14: 11 | B14: 2000 | C14: 11 | D14: 30 | E14: 23 | G14: 3218.6 | I14: =SUM(#REF!) ->  | J14: November | K14: 15623.86364 | L14: 7093.897946 | M14: 0.4540424898 | O14: 2000 11 30 | P14: 23 | Q14: 2996.6 | S14: November | T14: 5034.418182 | U14: 1285.785438 | V14: 0.2553990136
A15: 12 | B15: 2000 | C15: 12 | D15: 31 | E15: 23 | G15: 2877.8 | H15: ? | J15: December | K15: 6541.418182 | L15: 3202.854485 | M15: 0.4896269273 | O15: 2000 12 31 | P15: 23 | Q15: 708.5 | S15: December | T15: 920.2727273 | U15: 190.9875917 | V15: 0.2075336865
B16: 2001 | C16: 1 | D16: 31 | E16: 23 | G16: 5128.6 | J16: Summa | K16: =SUM(K4:K15) -> 1113983.473 | O16: 2001 01 31 | P16: 23 | Q16: 3704.6 | S16: Summa | T16: =SUM(T4:T15) -> 895516.9909 | U16: stdav | V16: %
B17: 2001 | C17: 2 | D17: 28 | E17: 23 | G17: 53868.1 | O17: 2001 02 28 | P17: 23 | Q17: 21610.9
B18: 2001 | C18: 3 | D18: 31 | E18: 23 | G18: 116266.1 | O18: 2001 03 31 | P18: 23 | Q18: 67665.7
B19: 2001 | C19: 4 | D19: 30 | E19: 23 | G19: 138409.7 | O19: 2001 04 30 | P19: 23 | Q19: 106064.2
B20: 2001 | C20: 5 | D20: 31 | E20: 23 | G20: 183605.5 | O20: 2001 05 31 | P20: 23 | Q20: 169443
B21: 2001 | C21: 6 | D21: 30 | E21: 23 | G21: 172165.5 | O21: 2001 06 30 | P21: 23 | Q21: 177036.2
B22: 2001 | C22: 7 | D22: 31 | E22: 23 | G22: 174231.5 | O22: 2001 07 31 | P22: 23 | Q22: 168661.6
B23: 2001 | C23: 8 | D23: 31 | E23: 23 | G23: 129328.4 | O23: 2001 08 31 | P23: 23 | Q23: 118757.9
B24: 2001 | C24: 9 | D24: 30 | E24: 23 | G24: 64731.3 | O24: 2001 09 30 | P24: 23 | Q24: 57954
B25: 2001 | C25: 10 | D25: 31 | E25: 23 | G25: 35258.3 | O25: 2001 10 31 | P25: 23 | Q25: 21431.4
B26: 2001 | C26: 11 | D26: 30 | E26: 23 | G26: 28005.1 | H26: =SUM(G4:G15) -> 1178245.6 | I26: summa 2000 | O26: 2001 11 30 | P26: 23 | Q26: 7327.8
B27: 2001 | C27: 12 | D27: 31 | E27: 23 | G27: 7162.7 | O27: 2001 12 31 | P27: 23 | Q27: 1047.2
B28: 2002 | C28: 1 | D28: 31 | E28: 23 | G28: 19638.7 | O28: 2002 01 31 | P28: 23 | Q28: 4138.4
B29: 2002 | C29: 2 | D29: 28 | E29: 23 | G29: 34689.7 | O29: 2002 02 28 | P29: 23 | Q29: 15467
B30: 2002 | C30: 3 | D30: 31 | E30: 23 | G30: 105276.2 | O30: 2002 03 31 | P30: 23 | Q30: 60645.2
B31: 2002 | C31: 4 | D31: 30 | E31: 23 | G31: 129750.3 | O31: 2002 04 30 | P31: 23 | Q31: 109492.5
B32: 2002 | C32: 5 | D32: 31 | E32: 23 | G32: 220425.6 | O32: 2002 05 31 | P32: 23 | Q32: 180869.2
B33: 2002 | C33: 6 | D33: 30 | E33: 23 | G33: 213647.1 | O33: 2002 06 30 | P33: 23 | Q33: 188964.1
B34: 2002 | C34: 7 | D34: 31 | E34: 23 | G34: 203166.2 | O34: 2002 07 31 | P34: 23 | Q34: 179024.6
B35: 2002 | C35: 8 | D35: 31 | E35: 23 | G35: 199520.4 | O35: 2002 08 31 | P35: 23 | Q35: 145409
B36: 2002 | C36: 9 | D36: 30 | E36: 23 | G36: 102796.9 | O36: 2002 09 30 | P36: 23 | Q36: 72465.6
B37: 2002 | C37: 10 | D37: 31 | E37: 23 | G37: 41995.3 | O37: 2002 10 31 | P37: 23 | Q37: 26995.4
B38: 2002 | C38: 11 | D38: 30 | E38: 23 | G38: 18174.3 | H38: =SUM(G16:G27) -> 1108160.8 | I38: summa 2001 | O38: 2002 11 30 | P38: 23 | Q38: 5934.4
B39: 2002 | C39: 12 | D39: 31 | E39: 23 | G39: 9645.8 | O39: 2002 12 31 | P39: 23 | Q39: 1093.1
B40: 2003 | C40: 1 | D40: 31 | E40: 23 | G40: 17069.7 | O40: 2003 01 31 | P40: 23 | Q40: 3687.1
B41: 2003 | C41: 2 | D41: 28 | E41: 23 | G41: 37368.8 | O41: 2003 02 28 | P41: 23 | Q41: 17572.7
B42: 2003 | C42: 3 | D42: 31 | E42: 23 | G42: 75240.4 | O42: 2003 03 31 | P42: 23 | Q42: 55069.7
B43: 2003 | C43: 4 | D43: 30 | E43: 23 | G43: 167636.2 | O43: 2003 04 30 | P43: 23 | Q43: 124601.9
B44: 2003 | C44: 5 | D44: 31 | E44: 23 | G44: 174933.9 | O44: 2003 05 31 | P44: 23 | Q44: 161065.5
B45: 2003 | C45: 6 | D45: 30 | E45: 23 | G45: 207268.3 | O45: 2003 06 30 | P45: 23 | Q45: 192750.4
B46: 2003 | C46: 7 | D46: 31 | E46: 23 | G46: 233735 | O46: 2003 07 31 | P46: 23 | Q46: 184401.5
B47: 2003 | C47: 8 | D47: 31 | E47: 23 | G47: 112285.3 | O47: 2003 08 31 | P47: 23 | Q47: 115957.1
B48: 2003 | C48: 9 | D48: 30 | E48: 23 | G48: 116060.6 | O48: 2003 09 30 | P48: 23 | Q48: 76699.5
B49: 2003 | C49: 10 | D49: 31 | E49: 23 | G49: 65340.5 | O49: 2003 10 31 | P49: 23 | Q49: 28342.8
B50: 2003 | C50: 11 | D50: 30 | E50: 23 | G50: 17234.9 | H50: =SUM(G28:G39) -> 1298726.5 | I50: summa 2002 | O50: 2003 11 30 | P50: 23 | Q50: 5148.9
B51: 2003 | C51: 12 | D51: 31 | E51: 23 | G51: 12479.5 | O51: 2003 12 31 | P51: 23 | Q51: 1242.2
B52: 2004 | C52: 1 | D52: 31 | E52: 23 | G52: 7498.1 | O52: 2004 01 31 | P52: 23 | Q52: 2539
B53: 2004 | C53: 2 | D53: 29 | E53: 23 | G53: 47924.8 | O53: 2004 02 29 | P53: 23 | Q53: 18603.7
B54: 2004 | C54: 3 | D54: 31 | E54: 23 | G54: 78947.7 | O54: 2004 03 31 | P54: 23 | Q54: 53541.4
B55: 2004 | C55: 4 | D55: 30 | E55: 23 | G55: 164253.9 | O55: 2004 04 30 | P55: 23 | Q55: 121985.1
B56: 2004 | C56: 5 | D56: 31 | E56: 23 | G56: 153317.2 | O56: 2004 05 31 | P56: 23 | Q56: 152249.1
B57: 2004 | C57: 6 | D57: 30 | E57: 23 | G57: 176663.6 | O57: 2004 06 30 | P57: 23 | Q57: 175990
B58: 2004 | C58: 7 | D58: 31 | E58: 23 | G58: 164813.4 | O58: 2004 07 31 | P58: 23 | Q58: 153410.6
B59: 2004 | C59: 8 | D59: 31 | E59: 23 | G59: 128134.5 | O59: 2004 08 31 | P59: 23 | Q59: 117365.9
B60: 2004 | C60: 9 | D60: 30 | E60: 23 | G60: 72066.7 | O60: 2004 09 30 | P60: 23 | Q60: 55566.5
B61: 2004 | C61: 10 | D61: 31 | E61: 23 | G61: 56130.8 | O61: 2004 10 31 | P61: 23 | Q61: 25739.3
B62: 2004 | C62: 11 | D62: 30 | E62: 23 | G62: 23679.4 | H62: =SUM(G40:G51) -> 1236653.1 | I62: Summa 2003 | O62: 2004 11 30 | P62: 23 | Q62: 6516.7
B63: 2004 | C63: 12 | D63: 31 | E63: 23 | G63: 10005.1 | O63: 2004 12 31 | P63: 23 | Q63: 1110
B64: 2005 | C64: 1 | D64: 31 | E64: 23 | G64: 7985.1 | O64: 2005 01 31 | P64: 23 | Q64: 2279.4
B65: 2005 | C65: 2 | D65: 28 | E65: 23 | G65: 47858 | O65: 2005 02 28 | P65: 23 | Q65: 17408.4
B66: 2005 | C66: 3 | D66: 31 | E66: 23 | G66: 115499.9 | O66: 2005 03 31 | P66: 23 | Q66: 63980.9
B67: 2005 | C67: 4 | D67: 30 | E67: 23 | G67: 160983.7 | O67: 2005 04 30 | P67: 23 | Q67: 115525.2
B68: 2005 | C68: 5 | D68: 31 | E68: 23 | G68: 165397.9 | O68: 2005 05 31 | P68: 23 | Q68: 155514.8
B69: 2005 | C69: 6 | D69: 30 | E69: 23 | G69: 108566.2 | O69: 2005 06 30 | P69: 23 | Q69: 144112.4
B70: 2005 | C70: 7 | D70: 31 | E70: 23 | G70: 181683.9 | O70: 2005 07 31 | P70: 23 | Q70: 169296.9
B71: 2005 | C71: 8 | D71: 31 | E71: 23 | G71: 105775.4 | O71: 2005 08 31 | P71: 23 | Q71: 114646.9
B72: 2005 | C72: 9 | D72: 30 | E72: 23 | G72: 103668 | O72: 2005 09 30 | P72: 23 | Q72: 72127.2
B73: 2005 | C73: 10 | D73: 31 | E73: 23 | G73: 46792 | O73: 2005 10 31 | P73: 23 | Q73: 26408.4
B74: 2005 | C74: 11 | D74: 30 | E74: 23 | G74: 13540.5 | H74: =SUM(G52:G63) -> 1083435.2 | I74: Summa 2004 | O74: 2005 11 30 | P74: 23 | Q74: 4156.5
B75: 2005 | C75: 12 | D75: 31 | E75: 23 | G75: 4183.7 | O75: 2005 12 31 | P75: 23 | Q75: 760.9
B76: 2006 | C76: 1 | D76: 31 | E76: 23 | G76: 12044 | O76: 2006 01 31 | P76: 23 | Q76: 2895.1
B77: 2006 | C77: 2 | D77: 28 | E77: 23 | G77: 44412.2 | O77: 2006 02 28 | P77: 23 | Q77: 18133.8
B78: 2006 | C78: 3 | D78: 31 | E78: 23 | G78: 110268.3 | O78: 2006 03 31 | P78: 23 | Q78: 63558.1
B79: 2006 | C79: 4 | D79: 30 | E79: 23 | G79: 96390.3 | O79: 2006 04 30 | P79: 23 | Q79: 89002.9
B80: 2006 | C80: 5 | D80: 31 | E80: 23 | G80: 176732.5 | O80: 2006 05 31 | P80: 23 | Q80: 161877.4
B81: 2006 | C81: 6 | D81: 30 | E81: 23 | G81: 201138.6 | O81: 2006 06 30 | P81: 23 | Q81: 178910.3
B82: 2006 | C82: 7 | D82: 31 | E82: 23 | G82: 239802.6 | O82: 2006 07 31 | P82: 23 | Q82: 188727.8
B83: 2006 | C83: 8 | D83: 31 | E83: 23 | G83: 200527 | O83: 2006 08 31 | P83: 23 | Q83: 142603.2
B84: 2006 | C84: 9 | D84: 30 | E84: 23 | G84: 73689.6 | O84: 2006 09 30 | P84: 23 | Q84: 58062
B85: 2006 | C85: 10 | D85: 31 | E85: 23 | G85: 34831.4 | O85: 2006 10 31 | P85: 23 | Q85: 18963.9
B86: 2006 | C86: 11 | D86: 30 | E86: 23 | G86: 13208.3 | H86: =SUM(G64:G75) -> 1061934.3 | I86: Summa 2005 | O86: 2006 11 30 | P86: 23 | Q86: 4678.3
B87: 2006 | C87: 12 | D87: 31 | E87: 23 | G87: 7974.3 | O87: 2006 12 31 | P87: 23 | Q87: 963.9
B88: 2007 | C88: 1 | D88: 31 | E88: 23 | G88: 20723.2 | O88: 2007 01 31 | P88: 23 | Q88: 3713.6
B89: 2007 | C89: 2 | D89: 28 | E89: 23 | G89: 29505.9 | O89: 2007 02 28 | P89: 23 | Q89: 14328.6
B90: 2007 | C90: 3 | D90: 31 | E90: 23 | G90: 114337.7 | O90: 2007 03 31 | P90: 23 | Q90: 59915.5
B91: 2007 | C91: 4 | D91: 30 | E91: 23 | G91: 139236 | O91: 2007 04 30 | P91: 23 | Q91: 112582.1
B92: 2007 | C92: 5 | D92: 31 | E92: 23 | G92: 139104.3 | O92: 2007 05 31 | P92: 23 | Q92: 134467.8
B93: 2007 | C93: 6 | D93: 30 | E93: 23 | G93: 216726.1 | O93: 2007 06 30 | P93: 23 | Q93: 184131.2
B94: 2007 | C94: 7 | D94: 31 | E94: 23 | G94: 160364.7 | O94: 2007 07 31 | P94: 23 | Q94: 144184.8
B95: 2007 | C95: 8 | D95: 31 | E95: 23 | G95: 118611.8 | O95: 2007 08 31 | P95: 23 | Q95: 109525.2
B96: 2007 | C96: 9 | D96: 30 | E96: 23 | G96: 79398 | O96: 2007 09 30 | P96: 23 | Q96: 60689.3
B97: 2007 | C97: 10 | D97: 31 | E97: 23 | G97: 53734.3 | O97: 2007 10 31 | P97: 23 | Q97: 24658.9
B98: 2007 | C98: 11 | D98: 30 | E98: 23 | G98: 11664.5 | H98: =SUM(G76:G87) -> 1211019.1 | I98: Summa 2006 | O98: 2007 11 30 | P98: 23 | Q98: 4606.3
B99: 2007 | C99: 12 | D99: 31 | E99: 23 | G99: 5822.2 | O99: 2007 12 31 | P99: 23 | Q99: 856.2
B100: 2008 | C100: 1 | D100: 31 | E100: 23 | G100: 13941.5 | O100: 2008 01 31 | P100: 23 | Q100: 2905.4
B101: 2008 | C101: 2 | D101: 29 | E101: 23 | G101: 31825.3 | O101: 2008 02 29 | P101: 23 | Q101: 15379.6
B102: 2008 | C102: 3 | D102: 31 | E102: 23 | G102: 57968.4 | O102: 2008 03 31 | P102: 23 | Q102: 44475.6
B103: 2008 | C103: 4 | D103: 30 | E103: 23 | G103: 93499.5 | O103: 2008 04 30 | P103: 23 | Q103: 94838.5
B104: 2008 | C104: 5 | D104: 31 | E104: 23 | G104: 209531.4 | O104: 2008 05 31 | P104: 23 | Q104: 174279.3
B105: 2008 | C105: 6 | D105: 30 | E105: 23 | G105: 164583.6 | O105: 2008 06 30 | P105: 23 | Q105: 165313.3
B106: 2008 | C106: 7 | D106: 31 | E106: 23 | G106: 175324.2 | O106: 2008 07 31 | P106: 23 | Q106: 160905.5
B107: 2008 | C107: 8 | D107: 31 | E107: 23 | G107: 99358.6 | O107: 2008 08 31 | P107: 23 | Q107: 105144
B108: 2008 | C108: 9 | D108: 30 | E108: 23 | G108: 75990.8 | O108: 2008 09 30 | P108: 23 | Q108: 64118.2
B109: 2008 | C109: 10 | D109: 31 | E109: 23 | G109: 51296.3 | O109: 2008 10 31 | P109: 23 | Q109: 25817.5
B110: 2008 | C110: 11 | D110: 30 | E110: 23 | G110: 20755.2 | H110: =SUM(G88:G99) -> 1089228.7 | I110: summa 2007 | O110: 2008 11 30 | P110: 23 | Q110: 5807.9
B111: 2008 | C111: 12 | D111: 31 | E111: 23 | G111: 3039.9 | O111: 2008 12 31 | P111: 23 | Q111: 657.6
B112: 2009 | C112: 1 | D112: 31 | E112: 23 | G112: 7625 | O112: 2009 01 31 | P112: 23 | Q112: 2173.4
B113: 2009 | C113: 2 | D113: 28 | E113: 23 | G113: 43797.1 | O113: 2009 02 28 | P113: 23 | Q113: 17429.4
B114: 2009 | C114: 3 | D114: 31 | E114: 23 | G114: 78087.9 | O114: 2009 03 31 | P114: 23 | Q114: 54293.8
B115: 2009 | C115: 4 | D115: 30 | E115: 23 | G115: 133906.5 | O115: 2009 04 30 | P115: 23 | Q115: 109639.9
B116: 2009 | C116: 5 | D116: 31 | E116: 23 | G116: 198670 | O116: 2009 05 31 | P116: 23 | Q116: 167481.3
B117: 2009 | C117: 6 | D117: 30 | E117: 23 | G117: 195040.5 | O117: 2009 06 30 | P117: 23 | Q117: 176761.6
B118: 2009 | C118: 7 | D118: 31 | E118: 23 | G118: 125155.8 | O118: 2009 07 31 | P118: 23 | Q118: 137802.4
B119: 2009 | C119: 8 | D119: 31 | E119: 23 | G119: 147789.5 | O119: 2009 08 31 | P119: 23 | Q119: 122046.2
B120: 2009 | C120: 9 | D120: 30 | E120: 23 | G120: 88207.3 | O120: 2009 09 30 | P120: 23 | Q120: 67183.9
B121: 2009 | C121: 10 | D121: 31 | E121: 23 | G121: 66480.3 | O121: 2009 10 31 | P121: 23 | Q121: 28573.4
B122: 2009 | C122: 11 | D122: 30 | E122: 23 | G122: 7281.2 | H122: =SUM(G100:G111) -> 997114.7 | I122: summa 2008 | O122: 2009 11 30 | P122: 23 | Q122: 3517.7
B123: 2009 | C123: 12 | D123: 31 | E123: 23 | G123: 3341.6 | O123: 2009 12 31 | P123: 23 | Q123: 737.9
A124: 1 | B124: 2010 | C124: 1 | D124: 31 | E124: 23 | G124: 5321.5 | O124: 2010 01 31 | P124: 23 | Q124: 1879.9
A125: 2 | B125: 2010 | C125: 2 | D125: 28 | E125: 23 | G125: 34196.9 | O125: 2010 02 28 | P125: 23 | Q125: 16573.7
A126: 3 | B126: 2010 | C126: 3 | D126: 31 | E126: 23 | G126: 78482.6 | O126: 2010 03 31 | P126: 23 | Q126: 53897.9
A127: 4 | B127: 2010 | C127: 4 | D127: 30 | E127: 23 | G127: 98751.3 | O127: 2010 04 30 | P127: 23 | Q127: 90450.2
A128: 5 | B128: 2010 | C128: 5 | D128: 31 | E128: 23 | G128: 169442.1 | O128: 2010 05 31 | P128: 23 | Q128: 140548
A129: 6 | B129: 2010 | C129: 6 | D129: 30 | E129: 23 | G129: 139924.6 | O129: 2010 06 30 | P129: 23 | Q129: 140844.2
A130: 7 | B130: 2010 | C130: 7 | D130: 31 | E130: 23 | G130: 147531.8 | O130: 2010 07 31 | P130: 23 | Q130: 135048.5
A131: 8 | B131: 2010 | C131: 8 | D131: 31 | E131: 23 | G131: 83772.7 | O131: 2010 08 31 | P131: 23 | Q131: 85538.9
A132: 9 | B132: 2010 | C132: 9 | D132: 30 | E132: 23 | G132: 90998.5 | O132: 2010 09 30 | P132: 23 | Q132: 62919.7
A133: 10 | B133: 2010 | C133: 10 | D133: 31 | E133: 23 | G133: 24972 | O133: 2010 10 31 | P133: 23 | Q133: 21060.2
A134: 11 | B134: 2010 | C134: 11 | D134: 30 | E134: 23 | G134: 15100.5 | H134: =SUM(G112:G123) -> 1095382.7 | I134: summa 2009 | O134: 2010 11 30 | P134: 23 | Q134: 4687.5
A135: 12 | B135: 2010 | C135: 12 | D135: 31 | E135: 23 | G135: 5423 | O135: 2010 12 31 | P135: 23 | Q135: 945.5
B136: 2011 | C136: 1 | D136: 31 | E136: 23 | G136: 8254.9 | H136: =SUM(G124:G135) -> 893917.5 | I136: summa 2010
B137: 2011 | C137: 2 | D137: 28 | E137: 23 | G137: 34791
G138: Medel | H138: =AVERAGE(H26:H137) -> 1113983.473 | O138: 20 | Q138: =IF(O138>6,IF(O138<18,1,-1),-1) -> -1
G139: Stadardav | H139: =STDEV(H26:H137) -> 113774.2081 | O139: 5 | Q139: =IF(O139<=6,,IF(O139<=18,180,-360)) -> 0
A141: Solhöjd | B141: h | C141: ARCSIN(SIN(C154*PI()/180)*SIN(C155*PI()/180)+COS(C154*PI()/180)*COS(C155*PI()/180)*COS((B156+12)*15*PI()/180))*180/PI()
B142: A | C142: ARCSIN((SIN((b156+12)*15*PI()/180)*COS(C156*PI()/180))/COS(b158*PI()/180))*180/PI()
B143: IDN | C143: 1071*EXP(-0,129/SIN(b158*PI()/180))
B144: IdH | C144: 244*SIN(K148*PI()/180)
B145: Lat | C145: 65.35
A146: Januari | B146: dekl | C146: -19.9 | H146: 180+ | T146: 360-
A147: Kl | B147: 1 | C147: 2 | D147: 3 | E147: 4 | F147: 5 | G147: 6 | H147: 7 | I147: 8 | J147: 9 | K147: 10 | L147: 11 | M147: 12 | N147: 13 | O147: 14 | P147: 15 | Q147: 16 | R147: 17 | S147: 18 | T147: 19 | U147: 20 | V147: 21 | W147: 22 | X147: 23 | Y147: 24
A148: solhöjd | B148: =ASIN(SIN($C$145*PI()/180)*SIN($C146*PI()/180)+COS($C$145*PI()/180)*COS($C146*PI()/180)*COS((B147+12)*15*PI()/180))*180/PI() -> -43.48530906 | C148: =ASIN(SIN($C145*PI()/180)*SIN($C146*PI()/180)+COS($C145*PI()/180)*COS($C146*PI()/180)*COS((C147+12)*15*PI()/180))*180/PI() -> -40.46554308 | D148: -35.92088204 | E148: -30.36099767 | F148: -24.25903518 | G148: -18.02076231 | H148: -11.99700684 | I148: -6.504237756 | J148: -1.836969431 | K148: 1.734460015 | L148: 3.982130304 | M148: 4.75 | N148: 3.982130304 | O148: 1.734460015 | P148: -1.836969431 | Q148: -6.504237756 | R148: -11.99700684 | S148: -18.02076231 | T148: -24.25903518 | U148: -30.36099767 | V148: -35.92088204 | W148: -40.46554308 | X148: -43.48530906 | Y148: -44.55
A149: azimut | B149: =(ASIN((SIN((B147+12)*15*PI()/180)*COS($C146*PI()/180))/COS(B148*PI()/180)))*180/PI() -> -19.59809761 | C149: =(ASIN((SIN((C147+12)*15*PI()/180)*COS($C146*PI()/180))/COS(C148*PI()/180)))*180/PI() -> -38.16753782 | D149: -55.18693461 | E149: =(ASIN((SIN((E147+12)*15*PI()/180)*COS($C146*PI()/180))/COS(E148*PI()/180)))*180/PI() -> -70.68940774 | F149: =(ASIN((SIN((F147+12)*15*PI()/180)*COS($C146*PI()/180))/COS(F148*PI()/180)))*180/PI() -> -85.0148796 | G149: -81.41440007 | H149: =(ASIN((SIN((H147+12)*15*PI()/180)*COS($C146*PI()/180))/COS(H148*PI()/180)))*180/PI() -> -68.20667583 | I149: -55.0436426 | J149: -41.69966434 | K149: -28.0576392 | L149: -14.1199936 | M149: -1.324635676e-14 | N149: 14.1199936 | O149: 28.0576392 | P149: 41.69966434 | Q149: 55.0436426 | R149: 68.20667583 | S149: 81.41440007 | T149: 85.0148796 | U149: 70.68940774 | V149: 55.18693461 | W149: 38.16753782 | X149: 19.59809761 | Y149: 2.778588688e-14 | Z149: Summa
A150: direktstr, IDN | K150: =1071*EXP(-0.129/SIN(K148*PI()/180)) -> 15.09462718 | L150: =1071*EXP(-0.129/SIN(L148*PI()/180)) -> 167.1300348 | M150: 225.5476565 | N150: 167.1300348 | O150: 15.09462718 | Z150: =SUM(B150:Y150) -> 589.9969805
A151: andel,% | K151: =K150/$Z150 -> 0.0255842448 | L151: =L150/$Z150 -> 0.2832726952 | M151: 0.3822861201 | N151: 0.2832726952 | O151: 0.0255842448 | Z151: =SUM(B151:Y151) -> 1
A152: Uppmätt IDN förd | K152: =K151*$K4 -> 343.5389594 | L152: =L151*$K4 -> 3803.71622 | M152: =M151*$K4 -> 5133.244186 | N152: =N151*$K4 -> 3803.71622 | O152: =O151*$K4 -> 343.5389594 | Z152: =SUM(B152:Y152) -> 13427.75455
A153: Direktstr, IDH | K153: =K152*SIN(K148*PI()/180) -> 10.39803614 | L153: =L152*SIN(L148*PI()/180) -> 264.1503854 | M153: 425.0747498 | N153: 264.1503854 | O153: 10.39803614 | Z153: =SUM(B153:Y153) -> 974.1715929
A154: Global IDN + IdH | K154: =244*SIN(K148*PI()/180) -> 7.385249182 | L154: =244*SIN(L148*PI()/180) -> 16.94466419 | M154: 20.20520263 | N154: 16.94466419 | O154: 7.385249182 | Z154: 68.86502938
A155: andel,% | K155: =K154/$Z154 -> 0.1072423732 | L155: =L154/$Z154 -> 0.2460561528 | M155: 0.293402948 | N155: 0.2460561528 | O155: 0.1072423732 | Z155: 1
A156: Global IDH + IdH förd | K156: =K155*$T4 -> 333.8328337 | L156: =L155*$T4 -> 765.9437243 | M156: 913.3287021 | N156: 765.9437243 | O156: 333.8328337 | Z156: 3112.881818 | AB156: =Z153+Z157 -> 3112.881818
A157: Diffusstrål IdH förd | K157: =K156-K153 -> 323.4347975 | L157: =L156-L153 -> 501.7933389 | M157: 488.2539523 | N157: 501.7933389 | O157: 323.4347975 | Z157: =SUM(B157:Y157) -> 2138.710225
A159: Februari | B159: deklination | C159: -10.9
A160: Kl | B160: 1 | C160: 2 | D160: 3 | E160: 4 | F160: 5 | G160: 6 | H160: 7 | I160: 8 | J160: 9 | K160: 10 | L160: 11 | M160: 12 | N160: 13 | O160: 14 | P160: 15 | Q160: 16 | R160: 17 | S160: 18 | T160: 19 | U160: 20 | V160: 21 | W160: 22 | X160: 23 | Y160: 24
A161: solhöjd | B161: =ASIN(SIN($C$145*PI()/180)*SIN($C159*PI()/180)+COS($C$145*PI()/180)*COS($C159*PI()/180)*COS((B160+12)*15*PI()/180))*180/PI() -> -34.57316241 | C161: -31.7722395 | D161: -27.4812879 | E161: -22.12561315 | F161: -16.13269522 | G161: -9.89619308 | H161: -3.776487446 | I161: 1.88600903 | J161: 6.761205346 | K161: 10.53386536 | L161: 12.92825764 | M161: 13.75 | N161: 12.92825764 | O161: 10.53386536 | P161: 6.761205346 | Q161: 1.88600903 | R161: -3.776487446 | S161: -9.89619308 | T161: -16.13269522 | U161: -22.12561315 | V161: -27.4812879 | W161: -31.7722395 | X161: -34.57316241 | Y161: -35.55
A162: azimut | B162: =(ASIN((SIN((B160+12)*15*PI()/180)*COS($C159*PI()/180))/COS(B161*PI()/180)))*180/PI() -> -17.97836824 | C162: =(ASIN((SIN((C160+12)*15*PI()/180)*COS($C159*PI()/180))/COS(C161*PI()/180)))*180/PI() -> -35.27646081 | D162: -51.50516371 | E162: =(ASIN((SIN((E160+12)*15*PI()/180)*COS($C159*PI()/180))/COS(E161*PI()/180)))*180/PI() -> -66.63579717 | F162: =(ASIN((SIN((F160+12)*15*PI()/180)*COS($C159*PI()/180))/COS(F161*PI()/180)))*180/PI() -> -80.88834996 | G162: -85.40809964 | H162: =(ASIN((SIN((H160+12)*15*PI()/180)*COS($C159*PI()/180))/COS(H161*PI()/180)))*180/PI() -> -71.90878435 | I162: -58.30556223 | J162: -44.36384654 | K162: -29.96002522 | L162: -15.11514004 | M162: -1.419261343e-14 | N162: 15.11514004 | O162: 29.96002522 | P162: 44.36384654 | Q162: 58.30556223 | R162: 71.90878435 | S162: 85.40809964 | T162: 80.88834996 | U162: 66.63579717 | V162: 51.50516371 | W162: 35.27646081 | X162: 17.97836824 | Y162: 2.541618608e-14 | Z162: Summa
A163: direktstr, IDN | I163: =1071*EXP(-0.129/SIN(I161*PI()/180)) -> 21.25730541 | J163: 358.0367163 | K163: 528.8596555 | L163: 601.7020316 | M163: 622.4199187 | N163: 601.7020316 | O163: 528.8596555 | P163: 358.0367163 | Q163: 21.25730541 | Z163: =SUM(B163:Y163) -> 3642.131336
A164: andel,% | I164: =I163/$Z163 -> 0.00583650161 | J164: 0.09830417501 | K164: =K163/$Z163 -> 0.1452060913 | L164: =L163/$Z163 -> 0.1652060225 | M164: 0.170894419 | N164: 0.1652060225 | O164: 0.1452060913 | P164: 0.09830417501 | Q164: 0.00583650161 | Z164: =SUM(B164:Y164) -> 1
A165: Uppmätt IDN förd | I165: =I164*$K5 -> 238.8110752 | J165: 4022.294055 | K165: 5941.371238 | L165: 6759.704786 | M165: 6992.455871 | N165: 6759.704786 | O165: 5941.371238 | P165: 4022.294055 | Q165: 238.8110752 | Z165: =SUM(B165:Y165) -> 40916.81818
A166: Direktstr, IDH | F166: ggr sin h | I166: =I165*SIN(I161*PI()/180) -> 7.859540708 | J166: 473.5511542 | K166: =K165*SIN(K161*PI()/180) -> 1086.181636 | L166: =L165*SIN(L161*PI()/180) -> 1512.354364 | M166: =M165*SIN(M161*PI()/180) -> 1662.008113 | N166: 1512.354364 | O166: =O165*SIN(O161*PI()/180) -> 1086.181636 | P166: =P165*SIN(P161*PI()/180) -> 473.5511542 | Q166: 7.859540708 | Z166: 7821.901502
A167: Global IdH | I167: =244*SIN(I161*PI()/180) -> 8.030314052 | J167: =244*SIN(J161*PI()/180) -> 28.72651279 | K167: 44.60726462 | L167: 54.59032257 | M167: 57.99535773 | N167: 54.59032257 | O167: 44.60726462 | P167: 28.72651279 | Q167: 8.030314052 | Z167: 329.9041858
A168: andel,% | I168: =I167/$Z167 -> 0.02434135242 | J168: =J167/$Z167 -> 0.08707532072 | K168: 0.1352127877 | L168: 0.1654732644 | M168: 0.1757945495 | N168: 0.1654732644 | O168: 0.1352127877 | P168: 0.08707532072 | Q168: 0.02434135242 | Z168: 1
A169: Global IDH + IdH förd | I169: =I168*$T5 -> 422.3257838 | J169: =J168*$T5 -> 1510.768688 | K169: 2345.960304 | L169: 2870.983702 | M169: 3050.059406 | N169: 2870.983702 | O169: 2345.960304 | P169: 1510.768688 | Q169: 422.3257838 | Z169: 17350.13636 | AB169: =Z166+Z170 -> 17350.13636
A170: Diffusstrål IdH | I170: =I169-I166 -> 414.4662431 | J170: =J169-J166 -> 1037.217534 | K170: 1259.778669 | L170: 1358.629338 | M170: 1388.051293 | N170: 1358.629338 | O170: 1259.778669 | P170: 1037.217534 | Q170: 414.4662431 | Z170: 9528.234862
A172: Mars | B172: deklination | C172: 0
A173: Kl | B173: 1 | C173: 2 | D173: 3 | E173: 4 | F173: 5 | G173: 6 | H173: 7 | I173: 8 | J173: 9 | K173: 10 | L173: 11 | M173: 12 | N173: 13 | O173: 14 | P173: 15 | Q173: 16 | R173: 17 | S173: 18 | T173: 19 | U173: 20 | V173: 21 | W173: 22 | X173: 23 | Y173: 24
A174: solhöjd | B174: =ASIN(SIN($C$145*PI()/180)*SIN($C172*PI()/180)+COS($C$145*PI()/180)*COS($C172*PI()/180)*COS((B173+12)*15*PI()/180))*180/PI() -> -23.75725814 | C174: -21.17371128 | D174: -17.15249555 | E174: -12.03663317 | F174: -6.196966357 | G174: -4.391529667e-15 | H174: 6.196966357 | I174: 12.03663317 | J174: 17.15249555 | K174: 21.17371128 | L174: 23.75725814 | M174: 24.65 | N174: 23.75725814 | O174: 21.17371128 | P174: 17.15249555 | Q174: 12.03663317 | R174: 6.196966357 | S174: 7.319216111e-15 | T174: -6.196966357 | U174: -12.03663317 | V174: -17.15249555 | W174: -21.17371128 | X174: -23.75725814 | Y174: -24.65
A175: azimut | B175: =(ASIN((SIN((B173+12)*15*PI()/180)*COS($C172*PI()/180))/COS(B174*PI()/180)))*180/PI() -> -16.42630468 | C175: =(ASIN((SIN((C173+12)*15*PI()/180)*COS($C172*PI()/180))/COS(C174*PI()/180)))*180/PI() -> -32.42526089 | D175: -47.73316358 | E175: =(ASIN((SIN((E173+12)*15*PI()/180)*COS($C172*PI()/180))/COS(E174*PI()/180)))*180/PI() -> -62.31230646 | F175: =(ASIN((SIN((F173+12)*15*PI()/180)*COS($C172*PI()/180))/COS(F174*PI()/180)))*180/PI() -> -76.31309253 | G175: -90 | H175: =(ASIN((SIN((H173+12)*15*PI()/180)*COS($C172*PI()/180))/COS(H174*PI()/180)))*180/PI() -> -76.31309253 | I175: -62.31230646 | J175: -47.73316358 | K175: -32.42526089 | L175: -16.42630468 | M175: -1.544679514e-14 | N175: 16.42630468 | O175: 32.42526089 | P175: 47.73316358 | Q175: 62.31230646 | R175: 76.31309253 | S175: 90 | T175: 76.31309253 | U175: 62.31230646 | V175: 47.73316358 | W175: 32.42526089 | X175: 16.42630468 | Y175: 2.317019271e-14 | Z175: Summa
A176: direktstr, IDN | H176: =1071*EXP(-0.129/SIN(H174*PI()/180)) -> 324.1849077 | I176: 576.948464 | J176: 691.549867 | K176: 749.346886 | L176: 777.5435624 | M176: 786.0736638 | N176: 777.5435624 | O176: 749.346886 | P176: 691.549867 | Q176: 576.948464 | R176: 324.1849077 | S176: 0 | Z176: =SUM(B176:Y176) -> 7025.221038
A177: andel,% | H177: =H176/$Z176 -> 0.04614586587 | I177: 0.0821253112 | J177: =J176/$Z176 -> 0.0984381649 | K177: =K176/$Z176 -> 0.1066652397 | L177: =L176/$Z176 -> 0.1106788752 | M177: 0.1118930863 | N177: 0.1106788752 | O177: 0.1066652397 | P177: 0.0984381649 | Q177: 0.0821253112 | R177: 0.04614586587 | S177: 0 | Z177: =SUM(B177:Y177) -> 1
A178: Uppmätt IDN förd | H178: =H177*$K6 -> 4480.459013 | I178: 7973.825691 | J178: 9557.69612 | K178: 10356.49078 | L178: 10746.1883 | M178: 10864.08018 | N178: 10746.1883 | O178: 10356.49078 | P178: 9557.69612 | Q178: 7973.825691 | R178: 4480.459013 | S178: 0 | Z178: 97093.4
A179: Direktstr, IDH | F179: ggr sin h | H179: =H178*SIN(H174*PI()/180) -> 483.6508464 | I179: 1662.838054 | J179: =J178*SIN(J174*PI()/180) -> 2818.716731 | K179: =K178*SIN(K174*PI()/180) -> 3740.730904 | L179: =L178*SIN(L174*PI()/180) -> 4329.237754 | M179: =M178*SIN(M174*PI()/180) -> 4531.126377 | N179: =N178*SIN(N174*PI()/180) -> 4329.237754 | O179: =O178*SIN(O174*PI()/180) -> 3740.730904 | P179: =P178*SIN(P174*PI()/180) -> 2818.716731 | Q179: =Q178*SIN(Q174*PI()/180) -> 1662.838054 | R179: 483.6508464 | Z179: 30601.47495
A180: Global IdH | H180: =244*SIN(H174*PI()/180) -> 26.33899924 | I180: =244*SIN(I174*PI()/180) -> 50.8830392 | J180: 71.95948414 | K180: 88.13200915 | L180: 98.29848338 | M180: 101.7660784 | N180: 98.29848338 | O180: 88.13200915 | P180: 71.95948414 | Q180: 50.8830392 | R180: 26.33899924 | Z180: 772.9901086
A181: andel,% | H181: =H180/$Z180 -> 0.03407417371 | I181: =I180/$Z180 -> 0.06582624879 | J181: 0.0930923738 | K181: 0.1140144074 | L181: 0.1271665475 | M181: 0.1316524976 | N181: 0.1271665475 | O181: 0.1140144074 | P181: 0.0930923738 | Q181: 0.06582624879 | R181: 0.03407417371 | Z181: 1
A182: Global IDH + IdH förd | H182: =H181*$T6 -> 2013.589753 | I182: =I181*$T6 -> 3889.956693 | J182: 5501.229512 | K182: 6737.602631 | L182: 7514.819265 | M182: 7779.913385 | N182: 7514.819265 | O182: 6737.602631 | P182: 5501.229512 | Q182: 3889.956693 | R182: 2013.589753 | Z182: 59094.30909 | AB182: =Z179+Z183 -> 59094.30909
A183: Diffusstrål IdH | H183: =H182-H179 -> 1529.938907 | I183: =I182-I179 -> 2227.118638 | J183: 2682.512781 | K183: 2996.871727 | L183: 3185.581511 | M183: 3248.787008 | N183: 3185.581511 | O183: 2996.871727 | P183: 2682.512781 | Q183: 2227.118638 | R183: 1529.938907 | Z183: 28492.83414
A185: April | B185: deklination | C185: 10.9
A186: Kl | B186: 1 | C186: 2 | D186: 3 | E186: 4 | F186: 5 | G186: 6 | H186: 7 | I186: 8 | J186: 9 | K186: 10 | L186: 11 | M186: 12 | N186: 13 | O186: 14 | P186: 15 | Q186: 16 | R186: 17 | S186: 18 | T186: 19 | U186: 20 | V186: 21 | W186: 22 | X186: 23 | Y186: 24
A187: solhöjd | B187: =ASIN(SIN($C$145*PI()/180)*SIN($C185*PI()/180)+COS($C$145*PI()/180)*COS($C185*PI()/180)*COS((B186+12)*15*PI()/180))*180/PI() -> -12.92825764 | C187: -10.53386536 | D187: -6.761205346 | E187: -1.88600903 | F187: 3.776487446 | G187: 9.89619308 | H187: 16.13269522 | I187: 22.12561315 | J187: 27.4812879 | K187: 31.7722395 | L187: 34.57316241 | M187: 35.55 | N187: 34.57316241 | O187: 31.7722395 | P187: 27.4812879 | Q187: 22.12561315 | R187: 16.13269522 | S187: 9.89619308 | T187: 3.776487446 | U187: -1.88600903 | V187: -6.761205346 | W187: -10.53386536 | X187: -12.92825764 | Y187: -13.75
A188: azimut | B188: =(ASIN((SIN((B186+12)*15*PI()/180)*COS($C185*PI()/180))/COS(B187*PI()/180)))*180/PI() -> -15.11514004 | C188: =(ASIN((SIN((C186+12)*15*PI()/180)*COS($C185*PI()/180))/COS(C187*PI()/180)))*180/PI() -> -29.96002522 | D188: -44.36384654 | E188: =(ASIN((SIN((E186+12)*15*PI()/180)*COS($C185*PI()/180))/COS(E187*PI()/180)))*180/PI() -> -58.30556223 | F188: =(ASIN((SIN((F186+12)*15*PI()/180)*COS($C185*PI()/180))/COS(F187*PI()/180)))*180/PI() -> -71.90878435 | G188: -85.40809964 | H188: =(ASIN((SIN((H186+12)*15*PI()/180)*COS($C185*PI()/180))/COS(H187*PI()/180)))*180/PI() -> -80.88834996 | I188: -66.63579717 | J188: -51.50516371 | K188: -35.27646081 | L188: -17.97836824 | M188: -1.694412406e-14 | N188: 17.97836824 | O188: 35.27646081 | P188: 51.50516371 | Q188: 66.63579717 | R188: 80.88834996 | S188: 85.40809964 | T188: 71.90878435 | U188: 58.30556223 | V188: 44.36384654 | W188: 29.96002522 | X188: 15.11514004 | Y188: 2.128892014e-14 | Z188: Summa
A189: direktstr, IDN | F189: =1071*EXP(-0.129/SIN(F187*PI()/180)) -> 151.0754538 | G189: 505.6036348 | H189: 673.2321926 | I189: 760.3999198 | J189: 809.8101861 | K189: 838.281763 | L189: 853.2209319 | M189: 857.8891341 | N189: 853.2209319 | O189: 838.281763 | P189: 809.8101861 | Q189: 760.3999198 | R189: 673.2321926 | S189: 505.6036348 | T189: 151.0754538 | Z189: =SUM(B189:Y189) -> 10041.1373
A190: andel,% | F190: =F189/$Z189 -> 0.01504565164 | G190: =G189/$Z189 -> 0.05035322392 | H190: =H189/$Z189 -> 0.06704740436 | I190: =I189/$Z189 -> 0.07572846554 | J190: =J189/$Z189 -> 0.08064924939 | K190: =K189/$Z189 -> 0.08348474262 | L190: =L189/$Z189 -> 0.08497253912 | M190: 0.08543744684 | N190: 0.08497253912 | O190: 0.08348474262 | P190: 0.08064924939 | Q190: 0.07572846554 | R190: 0.06704740436 | S190: 0.05035322392 | T190: 0.01504565164 | Z190: =SUM(B190:Y190) -> 1
A191: Uppmätt IDN förd | F191: =F190*$K7 -> 1978.05059 | G191: 6619.934229 | H191: 8814.716765 | I191: 9956.015168 | J191: 10602.95022 | K191: 10975.73228 | L191: 11171.33277 | M191: 11232.45415 | N191: 11171.33277 | O191: 10975.73228 | P191: 10602.95022 | Q191: 9956.015168 | R191: 8814.716765 | S191: 6619.934229 | T191: 1978.05059 | Z191: =SUM(B191:Y191) -> 131469.9182
A192: Direktstr, IDH | C192: ggr sin h | F192: =F191*SIN(F187*PI()/180) -> 130.2831658 | G192: =G191*SIN(G187*PI()/180) -> 1137.726033 | H192: =H191*SIN(H187*PI()/180) -> 2449.282467 | I192: =I191*SIN(I187*PI()/180) -> 3749.817774 | J192: =J191*SIN(J187*PI()/180) -> 4892.825763 | K192: =K191*SIN(K187*PI()/180) -> 5779.205433 | L192: =L191*SIN(L187*PI()/180) -> 6339.263514 | M192: =M191*SIN(M187*PI()/180) -> 6530.696933 | N192: =N191*SIN(N187*PI()/180) -> 6339.263514 | O192: =O191*SIN(O187*PI()/180) -> 5779.205433 | P192: =P191*SIN(P187*PI()/180) -> 4892.825763 | Q192: =Q191*SIN(Q187*PI()/180) -> 3749.817774 | R192: =R191*SIN(R187*PI()/180) -> 2449.282467 | S192: =S191*SIN(S187*PI()/180) -> 1137.726033 | T192: =T191*SIN(T187*PI()/180) -> 130.2831658 | Z192: =SUM(B192:Y192) -> 55487.50523
A193: Global IdH | F193: =244*SIN(F187*PI()/180) -> 16.07091984 | G193: =244*SIN(G187*PI()/180) -> 41.93472962 | H193: 67.79853941 | I193: 91.8997733 | J193: 112.595972 | K193: 128.4767239 | L193: 138.4597818 | M193: 141.864817 | N193: 138.4597818 | O193: 128.4767239 | P193: 112.595972 | Q193: 91.8997733 | R193: 67.79853941 | S193: 41.93472962 | T193: 16.07091984 | Z193: 1336.337697
A194: andel,% | F194: =F193/$Z193 -> 0.01202609182 | G194: =G193/$Z193 -> 0.03138033876 | H194: 0.05073458571 | I194: 0.06876987271 | J194: 0.08425712476 | K194: 0.09614091123 | L194: 0.1036113717 | M194: 0.1061594067 | N194: 0.1036113717 | O194: 0.09614091123 | P194: 0.08425712476 | Q194: 0.06876987271 | R194: 0.05073458571 | S194: 0.03138033876 | T194: 0.01202609182 | Z194: 1
A195: Global IDH + IdH förd | F195: =F194*$T7 -> 1284.514301 | G195: =G194*$T7 -> 3351.753382 | H195: 5418.992462 | I195: 7345.352616 | J195: 8999.555582 | K195: 10268.87016 | L195: 11066.79466 | M195: 11338.95185 | N195: 11066.79466 | O195: 10268.87016 | P195: 8999.555582 | Q195: 7345.352616 | R195: 5418.992462 | S195: 3351.753382 | T195: 1284.514301 | Z195: 106810.6182 | AB195: =Z192+Z196 -> 106810.6182
A196: Diffusstrål IdH | F196: =F195-F192 -> 1154.231135 | G196: =G195-G192 -> 2214.027349 | H196: 2969.709995 | I196: 3595.534842 | J196: 4106.729818 | K196: 4489.664728 | L196: 4727.531148 | M196: 4808.254918 | N196: 4727.531148 | O196: 4489.664728 | P196: 4106.729818 | Q196: 3595.534842 | R196: 2969.709995 | S196: 2214.027349 | T196: 1154.231135 | Z196: 51323.11295
A198: Maj | B198: deklination | C198: 19.9
A199: Kl | B199: 1 | C199: 2 | D199: 3 | E199: 4 | F199: 5 | G199: 6 | H199: 7 | I199: 8 | J199: 9 | K199: 10 | L199: 11 | M199: 12 | N199: 13 | O199: 14 | P199: 15 | Q199: 16 | R199: 17 | S199: 18 | T199: 19 | U199: 20 | V199: 21 | W199: 22 | X199: 23 | Y199: 24
A200: solhöjd | B200: =ASIN(SIN($C$145*PI()/180)*SIN($C198*PI()/180)+COS($C$145*PI()/180)*COS($C198*PI()/180)*COS((B199+12)*15*PI()/180))*180/PI() -> -3.982130304 | C200: -1.734460015 | D200: 1.836969431 | E200: 6.504237756 | F200: 11.99700684 | G200: 18.02076231 | H200: 24.25903518 | I200: 30.36099767 | J200: 35.92088204 | K200: 40.46554308 | L200: 43.48530906 | M200: 44.55 | N200: 43.48530906 | O200: 40.46554308 | P200: 35.92088204 | Q200: 30.36099767 | R200: 24.25903518 | S200: 18.02076231 | T200: 11.99700684 | U200: 6.504237756 | V200: 1.836969431 | W200: -1.734460015 | X200: -3.982130304 | Y200: -4.75
A201: azimut | B201: =(ASIN((SIN((B199+12)*15*PI()/180)*COS($C198*PI()/180))/COS(B200*PI()/180)))*180/PI() -> -14.1199936 | C201: =(ASIN((SIN((C199+12)*15*PI()/180)*COS($C198*PI()/180))/COS(C200*PI()/180)))*180/PI() -> -28.0576392 | D201: -41.69966434 | E201: =(ASIN((SIN((E199+12)*15*PI()/180)*COS($C198*PI()/180))/COS(E200*PI()/180)))*180/PI() -> -55.0436426 | F201: =(ASIN((SIN((F199+12)*15*PI()/180)*COS($C198*PI()/180))/COS(F200*PI()/180)))*180/PI() -> -68.20667583 | G201: -81.41440007 | H201: =(ASIN((SIN((H199+12)*15*PI()/180)*COS($C198*PI()/180))/COS(H200*PI()/180)))*180/PI() -> -85.0148796 | I201: -70.68940774 | J201: -55.18693461 | K201: -38.16753782 | L201: -19.59809761 | M201: -1.852392459e-14 | N201: 19.59809761 | O201: 38.16753782 | P201: 55.18693461 | Q201: 70.68940774 | R201: 85.0148796 | S201: 81.41440007 | T201: 68.20667583 | U201: 55.0436426 | V201: 41.69966434 | W201: 28.0576392 | X201: 14.1199936 | Y201: 1.986953514e-14 | Z201: Summa
A202: direktstr, IDN | D202: =1071*EXP(-0.129/SIN(D200*PI()/180)) -> 19.14610514 | E202: 342.9359576 | F202: 575.7881575 | G202: 705.8200545 | H202: 782.4065687 | I202: 829.7531024 | J202: 859.5955916 | K202: 877.9396603 | L202: 887.9309648 | M202: 891.1071223 | N202: 887.9309648 | O202: 877.9396603 | P202: 859.5955916 | Q202: 829.7531024 | R202: 782.4065687 | S202: 705.8200545 | T202: 575.7881575 | U202: 342.9359576 | V202: 19.14610514 | Z202: =SUM(B202:Y202) -> 12653.73945
A203: andel,% | D203: =D202/$Z202 -> 0.001513078819 | E203: =E202/$Z202 -> 0.02710155042 | F203: =F202/$Z202 -> 0.04550339921 | G203: =G202/$Z202 -> 0.05577956283 | H203: =H202/$Z202 -> 0.06183204356 | I203: =I202/$Z202 -> 0.06557374647 | J203: =J202/$Z202 -> 0.06793213936 | K203: =K202/$Z202 -> 0.06938183483 | L203: =L202/$Z202 -> 0.07017142786 | M203: =M202/$Z202 -> 0.07042243331 | N203: =N202/$Z202 -> 0.07017142786 | O203: =O202/$Z202 -> 0.06938183483 | P203: =P202/$Z202 -> 0.06793213936 | Q203: =Q202/$Z202 -> 0.06557374647 | R203: =R202/$Z202 -> 0.06183204356 | S203: =S202/$Z202 -> 0.05577956283 | T203: =T202/$Z202 -> 0.04550339921 | U203: =U202/$Z202 -> 0.02710155042 | V203: =V202/$Z202 -> 0.001513078819 | Z203: =SUM(B203:Y203) -> 1
A204: Uppmätt IDN förd | D204: =D203*$K8 -> 273.287482 | E204: 4894.995804 | F204: 8218.679181 | G204: 10074.72716 | H204: 11167.90697 | I204: 11843.72144 | J204: 12269.68686 | K204: 12531.52625 | L204: 12674.14003 | M204: 12719.47583 | N204: 12674.14003 | O204: 12531.52625 | P204: 12269.68686 | Q204: 11843.72144 | R204: 11167.90697 | S204: 10074.72716 | T204: 8218.679181 | U204: 4894.995804 | V204: 273.287482 | Z204: 180616.8182
A205: Direktstr, IDH | C205: ggr sin h | D205: =D204*SIN(D200*PI()/180) -> 8.760413996 | E205: =E204*SIN(E200*PI()/180) -> 554.4889752 | F205: =F204*SIN(F200*PI()/180) -> 1708.339517 | G205: =G204*SIN(G200*PI()/180) -> 3116.733805 | H205: =H204*SIN(H200*PI()/180) -> 4588.475591 | I205: =I204*SIN(I200*PI()/180) -> 5986.367757 | J205: =J204*SIN(J200*PI()/180) -> 7198.227081 | K205: =K204*SIN(K200*PI()/180) -> 8132.84315 | L205: =L204*SIN(L200*PI()/180) -> 8721.944734 | M205: =M204*SIN(M200*PI()/180) -> 8923.112016 | N205: =N204*SIN(N200*PI()/180) -> 8721.944734 | O205: =O204*SIN(O200*PI()/180) -> 8132.84315 | P205: =P204*SIN(P200*PI()/180) -> 7198.227081 | Q205: =Q204*SIN(Q200*PI()/180) -> 5986.367757 | R205: =R204*SIN(R200*PI()/180) -> 4588.475591 | S205: =S204*SIN(S200*PI()/180) -> 3116.733805 | T205: =T204*SIN(T200*PI()/180) -> 1708.339517 | U205: =U204*SIN(U200*PI()/180) -> 554.4889752 | V205: =V204*SIN(V200*PI()/180) -> 8.760413996 | Z205: 88955.47406
... 89 more rows

Sheet Deklinatio (hidden)
C1: Day no | D1: Declination
A2: 14 | B2: Januari | C2: 14
A3: 15 | C3: 15
A4: 16 | C4: 16
A5: 17 | C5: 17
A6: 18 | C6: 18
A7: 19 | C7: 19
A8: 20 | C8: 20
A9: 21 | C9: 21 | D9: -19.924
A10: 22 | C10: 22 | D10: -19.699
A11: 23 | C11: 23 | D11: -19.468
A12: 24 | C12: 24 | D12: -19.231
A13: 25 | C13: 25 | D13: -18.988
A14: 26 | C14: 26 | D14: -18.739
A15: 27 | C15: 27 | D15: -18.484
A16: 28 | C16: 28 | D16: -18.224
A17: 29 | C17: 29 | D17: -17.958
A18: 30 | C18: 30 | D18: -17.687
A19: 31 | C19: 31 | D19: -17.411
A20: 1 | B20: Februari | C20: 32 | D20: -17.129
A21: 2 | C21: 33 | D21: -16.843
A22: 3 | C22: 34 | D22: -16.551
A23: 4 | C23: 35 | D23: -16.255
A24: 5 | C24: 36 | D24: -15.954
A25: 6 | C25: 37 | D25: -15.648
A26: 7 | C26: 38 | D26: -15.338
A27: 8 | C27: 39 | D27: -15.024
A28: 9 | C28: 40 | D28: -14.706
A29: 10 | C29: 41 | D29: -14.383
A30: 11 | C30: 42 | D30: -14.057
A31: 12 | C31: 43 | D31: -13.726
A32: 13 | C32: 44 | D32: -13.392
A33: 14 | C33: 45 | D33: -13.054
A34: 15 | C34: 46 | D34: -12.713
A35: 16 | C35: 47 | D35: -12.368
A36: 17 | C36: 48 | D36: -12.02
A37: 18 | C37: 49 | D37: -11.669
A38: 19 | C38: 50 | D38: -11.315
A39: 20 | C39: 51 | D39: -10.958
A40: 21 | C40: 52 | D40: -10.598
A41: 22 | C41: 53 | D41: -10.235
A42: 23 | C42: 54 | D42: -9.869
A43: 24 | C43: 55 | D43: -9.501
A44: 25 | C44: 56 | D44: -9.131
A45: 26 | C45: 57 | D45: -8.758
A46: 27 | C46: 58 | D46: -8.383
A47: 28 | C47: 59 | D47: -8.006
A48: 1 | B48: mars | C48: 60 | D48: -7.627
A49: 2 | C49: 61 | D49: -7.246
A50: 3 | C50: 62 | D50: -6.864
A51: 4 | C51: 63 | D51: -6.48
A52: 5 | C52: 64 | D52: -6.094
A53: 6 | C53: 65 | D53: -5.707
A54: 7 | C54: 66 | D54: -5.319
A55: 8 | C55: 67 | D55: -4.929
A56: 9 | C56: 68 | D56: -4.539
A57: 10 | C57: 69 | D57: -4.147
A58: 11 | C58: 70 | D58: -3.755
A59: 12 | C59: 71 | D59: -3.362
A60: 13 | C60: 72 | D60: -2.968
A61: 14 | C61: 73 | D61: -2.574
A62: 15 | C62: 74 | D62: -2.179
A63: 16 | C63: 75 | D63: -1.784
A64: 17 | C64: 76 | D64: -1.389
A65: 18 | C65: 77 | D65: -0.994
A66: 19 | C66: 78 | D66: -0.599
A67: 20 | C67: 79 | D67: -0.203
A68: 21 | C68: 80 | D68: 0.192
A69: 22 | C69: 81 | D69: 0.587
A70: 23 | C70: 82 | D70: 0.981
A71: 24 | C71: 83 | D71: 1.375
A72: 25 | C72: 84 | D72: 1.769
A73: 26 | C73: 85 | D73: 2.161
A74: 27 | C74: 86 | D74: 2.554
A75: 28 | C75: 87 | D75: 2.945
A76: 29 | C76: 88 | D76: 3.335
A77: 30 | C77: 89 | D77: 3.724
A78: 31 | C78: 90 | D78: 4.113
A79: 1 | B79: april | C79: 91 | D79: 4.5
A80: 2 | C80: 92 | D80: 4.885
A81: 3 | C81: 93 | D81: 5.269
A82: 4 | C82: 94 | D82: 5.652
A83: 5 | C83: 95 | D83: 6.033
A84: 6 | C84: 96 | D84: 6.412
A85: 7 | C85: 97 | D85: 6.789
A86: 8 | C86: 98 | D86: 7.164
A87: 9 | C87: 99 | D87: 7.538
A88: 10 | C88: 100 | D88: 7.909
A89: 11 | C89: 101 | D89: 8.278
A90: 12 | C90: 102 | D90: 8.644
A91: 13 | C91: 103 | D91: 9.008
A92: 14 | C92: 104 | D92: 9.37
A93: 15 | C93: 105 | D93: 9.729
A94: 16 | C94: 106 | D94: 10.085
A95: 17 | C95: 107 | D95: 10.438
A96: 18 | C96: 108 | D96: 10.789
A97: 19 | C97: 109 | D97: 11.137
A98: 20 | C98: 110 | D98: 11.481
A99: 21 | C99: 111 | D99: 11.823
A100: 22 | C100: 112 | D100: 12.161
A101: 23 | C101: 113 | D101: 12.496
A102: 24 | C102: 114 | D102: 12.828
A103: 25 | C103: 115 | D103: 13.156
A104: 26 | C104: 116 | D104: 13.48
A105: 27 | C105: 117 | D105: 13.801
A106: 28 | C106: 118 | D106: 14.118
A107: 29 | C107: 119 | D107: 14.431
A108: 30 | C108: 120 | D108: 14.74
A109: 1 | B109: maj | C109: 121 | D109: 15.045
A110: 2 | C110: 122 | D110: 15.346
A111: 3 | C111: 123 | D111: 15.643
A112: 4 | C112: 124 | D112: 15.935
A113: 5 | C113: 125 | D113: 16.223
A114: 6 | C114: 126 | D114: 16.507
A115: 7 | C115: 127 | D115: 16.786
A116: 8 | C116: 128 | D116: 17.06
A117: 9 | C117: 129 | D117: 17.33
A118: 10 | C118: 130 | D118: 17.594
A119: 11 | C119: 131 | D119: 17.854
A120: 12 | C120: 132 | D120: 18.109
A121: 13 | C121: 133 | D121: 18.358
A122: 14 | C122: 134 | D122: 18.603
A123: 15 | C123: 135 | D123: 18.842
A124: 16 | C124: 136 | D124: 19.076
A125: 17 | C125: 137 | D125: 19.304
A126: 18 | C126: 138 | D126: 19.527
A127: 19 | C127: 139 | D127: 19.745
A128: 20 | C128: 140 | D128: 19.957
A129: 21 | C129: 141 | D129: 20.163
A130: 22 | C130: 142 | D130: 20.363
A131: 23 | C131: 143 | D131: 20.558
A132: 24 | C132: 144 | D132: 20.747
A133: 25 | C133: 145 | D133: 20.93
A134: 26 | C134: 146 | D134: 21.107
A135: 27 | C135: 147 | D135: 21.278
A136: 28 | C136: 148 | D136: 21.442
A137: 29 | C137: 149 | D137: 21.601
A138: 30 | C138: 150 | D138: 21.753
A139: 31 | C139: 151 | D139: 21.899
A140: 1 | B140: juni | C140: 152 | D140: 22.039
A141: 2 | C141: 153 | D141: 22.172
A142: 3 | C142: 154 | D142: 22.299
A143: 4 | C143: 155 | D143: 22.419
A144: 5 | C144: 156 | D144: 22.533
A145: 6 | C145: 157 | D145: 22.64
A146: 7 | C146: 158 | D146: 22.74
A147: 8 | C147: 159 | D147: 22.834
A148: 9 | C148: 160 | D148: 22.921
A149: 10 | C149: 161 | D149: 23.002
A150: 11 | C150: 162 | D150: 23.075
A151: 12 | C151: 163 | D151: 23.142
A152: 13 | C152: 164 | D152: 23.203
A153: 14 | C153: 165 | D153: 23.256
A154: 15 | C154: 166 | D154: 23.302
A155: 16 | C155: 167 | D155: 23.342
A156: 17 | C156: 168 | D156: 23.375
A157: 18 | C157: 169 | D157: 23.401
A158: 19 | C158: 170 | D158: 23.42
A159: 20 | C159: 171 | D159: 23.432
A160: 21 | C160: 172 | D160: 23.437
A161: 22 | C161: 173 | D161: 23.436
A162: 23 | C162: 174 | D162: 23.427
A163: 24 | C163: 175 | D163: 23.412
A164: 25 | C164: 176 | D164: 23.389
A165: 26 | C165: 177 | D165: 23.36
A166: 27 | C166: 178 | D166: 23.324
A167: 28 | C167: 179 | D167: 23.281
A168: 29 | C168: 180 | D168: 23.232
A169: 30 | C169: 181 | D169: 23.175
A170: 31 | C170: 182 | D170: 23.112
A171: 1 | B171: juli | C171: 183 | D171: 23.042
A172: 2 | C172: 184 | D172: 22.965
A173: 3 | C173: 185 | D173: 22.882
A174: 4 | C174: 186 | D174: 22.792
A175: 5 | C175: 187 | D175: 22.695
A176: 6 | C176: 188 | D176: 22.592
A177: 7 | C177: 189 | D177: 22.482
A178: 8 | C178: 190 | D178: 22.366
A179: 9 | C179: 191 | D179: 22.244
A180: 10 | C180: 192 | D180: 22.115
A181: 11 | C181: 193 | D181: 21.98
A182: 12 | C182: 194 | D182: 21.838
A183: 13 | C183: 195 | D183: 21.691
A184: 14 | C184: 196 | D184: 21.537
A185: 15 | C185: 197 | D185: 21.377
A186: 16 | C186: 198 | D186: 21.211
A187: 17 | C187: 199 | D187: 21.039
A188: 18 | C188: 200 | D188: 20.861
A189: 19 | C189: 201 | D189: 20.677
A190: 20 | C190: 202 | D190: 20.488
A191: 21 | C191: 203 | D191: 20.292
A192: 22 | C192: 204 | D192: 20.091
A193: 23 | C193: 205 | D193: 19.885
A194: 24 | C194: 206 | D194: 19.672
A195: 25 | C195: 207 | D195: 19.455
A196: 26 | C196: 208 | D196: 19.232
A197: 27 | C197: 209 | D197: 19.003
A198: 28 | C198: 210 | D198: 18.77
A199: 29 | C199: 211 | D199: 18.531
A200: 30 | C200: 212 | D200: 18.287
... 173 more rows

Sheet Sammanst (hidden)
B1: Lutande yta
B2: Plats | C2: Luleå
B3: Period | O3: Model
B4: kWh/m2, år
B5: Orientering | C5: Lutning | D5: 0 | E5: 10 | F5: 20 | G5: 30 | H5: 40 | I5: 50 | J5: 60 | K5: 70 | L5: 80 | M5: 90
B6: S | C6: Januari | D6: 3.112881818 | E6: 5.364776868 | F6: 7.508901971 | G6: 9.480108972 | H6: 11.21850374 | I6: 12.67126604 | J6: 13.79425441 | K6: 14.55334742 | L6: 14.92548043 | M6: 14.89934634 | O6: ='Lutande yta'!Z$27 -> 20.04180442
B7: 180o | C7: Februari | D7: 17.35013636 | E7: 23.39082363 | F7: 28.96687655 | G7: 33.9088696 | H7: 38.06664281 | I7: 41.31386434 | J7: 43.55186902 | K7: 44.7126562 | L7: 44.76095596 | M7: 43.69530072 | O7: ='Lutande yta'!Z$39 -> 37.0388663
C8: Mars | D8: 59.09430909 | E8: 70.14430742 | F8: 79.79888577 | G8: 87.76469464 | H8: 93.79969697 | I8: 97.72052227 | J8: 99.40803825 | K8: 98.81097058 | L8: 95.94746086 | M8: 90.9045154 | O8: ='Lutande yta'!Z$51 -> 101.9730039
C9: April | D9: 106.8106182 | E9: 116.8159024 | F9: 124.8578737 | G9: 130.4316144 | H9: 133.3677693 | I9: 133.5771249 | J9: 131.0533199 | K9: 125.8730388 | L9: 118.193682 | M9: 108.2485828 | O9: ='Lutande yta'!Z$63 -> 144.7378095
C10: Maj | D10: 160.5246727 | E10: 167.7260091 | F10: 171.0933027 | G10: 172.8949936 | H10: 170.748114 | I10: 164.7178957 | J10: 154.9875638 | K10: 141.8527695 | L10: 125.712607 | M10: 107.0574868 | O10: ='Lutande yta'!Z$75 -> 164.7338037
C11: Juni | D11: 173.2024818 | E11: 176.9484917 | F11: 177.658907 | G11: 177.7294736 | H11: 173.8640961 | I11: 166.1802219 | J11: 154.9113217 | K11: 140.3997953 | L11: 123.0865682 | M11: 103.4976939 | O11: ='Lutande yta'!Z$87 -> 171.5425433
C12: Juli | D12: 161.5570182 | E12: 168.6879151 | F12: 171.9874223 | G12: 173.7074359 | H12: 171.4857397 | I12: 165.3898389 | J12: 155.6049544 | K12: 142.428395 | L12: 126.2605236 | M12: 107.592593 | O12: ='Lutande yta'!Z$99 -> 174.3878773
C13: Augusti | D13: 117.8088545 | E13: 127.5973448 | F13: 134.9023534 | G13: 139.2402346 | H13: 140.4791841 | I13: 138.5815571 | J13: 133.605012 | K13: 125.7007586 | L13: 115.1089637 | M13: 102.1514536 | O13: ='Lutande yta'!Z$111 -> 154.6830718
C14: September | D14: 65.75335455 | E14: 75.75772188 | F14: 84.14535161 | G14: 90.66138986 | H14: 95.1078501 | I14: 97.34962888 | J14: 97.3186109 | K14: 95.01573861 | L14: 90.51098364 | M14: 83.94122067 | O14: ='Lutande yta'!Z$123 -> 116.9155483
C15: Oktober | D15: 24.34797273 | E15: 31.13816749 | F15: 37.38362851 | G15: 42.89459061 | H15: 47.50360601 | I15: 51.07063211 | J15: 53.48728661 | K15: 54.6801407 | L15: 54.6129501 | M15: 53.28775638 | O15: ='Lutande yta'!Z$135 -> 66.75433088
C16: November | D16: 5.034418182 | E16: 7.651391954 | F16: 10.13663043 | G16: 12.41462091 | H16: 14.41614778 | I16: 16.08039569 | J16: 17.35679728 | K16: 18.20656976 | L16: 18.6038932 | M16: 18.53669515 | O16: ='Lutande yta'!Z$147 -> 26.72402821
C17: December | D17: 0.9202727273 | E17: 0.7815012204 | F17: 0.7762005113 | G17: 0.7675451341 | H17: 0.7557980781 | I17: 0.7413162715 | J17: 0.7245397369 | K17: 0.7059782206 | L17: 0.6861957049 | M17: 0.6657932717 | O17: ='Lutande yta'!Z$159 -> 17.30307704
C18: Summa | D18: =SUM(D6:D17) -> 895.5169909 | E18: =SUM(E6:E17) -> 972.0043535 | F18: 1029.216334 | G18: 1071.895572 | H18: 1090.813149 | I18: 1085.394264 | J18: 1055.803568 | K18: 1002.940159 | L18: 928.4102644 | M18: 834.478438 | O18: =SUM(O6:O17) -> 1196.835765
B20: SO | C20: Lutning | D20: 0 | E20: 10 | F20: 20 | G20: 30 | H20: 40 | I20: 50 | J20: 60 | K20: 70 | L20: 80 | M20: 90
B21: 135o | C21: Januari | D21: 3.112881818 | E21: 4.699449806 | F21: 6.198463474 | G21: 7.564376049 | H21: 8.75568497 | I21: 9.736192917 | J21: 10.47610765 | K21: 10.95294724 | L21: 11.15222316 | M21: 11.0678805 | O21: ='Lutande yta'!Z$27 -> 20.04180442
C22: Februari | D22: 17.35013636 | E22: 21.58218102 | F22: 25.41240557 | G22: 28.71657104 | H22: 31.39428204 | I22: 33.36417767 | J22: 34.56640365 | K22: 34.96443096 | L22: 34.54616572 | M22: 33.32431673 | O22: ='Lutande yta'!Z$39 -> 37.0388663
C23: Mars | D23: 59.09430909 | E23: 66.67833671 | F23: 70.18728753 | G23: 76.23437899 | H23: 80.70100672 | I23: 83.4514545 | J23: 84.40215135 | K23: 83.52421084 | L23: 80.84430874 | M23: 76.44387253 | O23: ='Lutande yta'!Z$51 -> 101.9730039
C24: April | D24: 106.8106182 | E24: 113.4261569 | F24: 118.5849584 | G24: 117.764607 | H24: 121.2854452 | I24: 122.4465993 | J24: 121.2127883 | K24: 117.6215008 | L24: 111.7818563 | M24: 103.8712895 | O24: ='Lutande yta'!Z$63 -> 144.7378095
C25: Maj | D25: 160.5246727 | E25: 165.4619954 | F25: 167.1867433 | G25: 166.9171527 | H25: 158.8304659 | I25: 155.5470472 | J25: 148.8421666 | K25: 138.9195485 | L25: 126.0806864 | M25: 110.7156829 | O25: ='Lutande yta'!Z$75 -> 164.7338037
C26: Juni | D26: 173.2024818 | E26: 175.7395408 | F26: 176.6623833 | G26: 173.0051703 | H26: 163.2288981 | I26: 158.4731485 | J26: 150.3665485 | K26: 139.155413 | L26: 125.1803866 | M26: 108.8660934 | O26: ='Lutande yta'!Z$87 -> 171.5425433
C27: Juli | D27: 161.5570182 | E27: 166.4416678 | F27: 168.111519 | G27: 167.7765049 | H27: 159.6616129 | I27: 156.2909569 | J27: 149.5077821 | K27: 139.5181918 | L27: 126.6257147 | M27: 111.2220821 | O27: ='Lutande yta'!Z$99 -> 174.3878773
C28: Augusti | D28: 117.8088545 | E28: 124.1930253 | F28: 128.6024682 | G28: 126.5187662 | H28: 128.3449128 | I28: 127.4031766 | J28: 123.7221718 | K28: 117.4137437 | L28: 108.6695709 | M28: 97.7553405 | O28: ='Lutande yta'!Z$111 -> 154.6830718
C29: September | D29: 65.75335455 | E29: 72.56684385 | F29: 75.29662201 | G29: 80.04623067 | H29: 83.04879756 | I29: 84.21309121 | J29: 83.50373514 | K29: 80.94228277 | L29: 76.60656255 | M29: 70.62831314 | O29: ='Lutande yta'!Z$123 -> 116.9155483
C30: Oktober | D30: 24.34797273 | E30: 29.10183044 | F30: 33.38167649 | G30: 37.04862091 | H30: 39.99124545 | I30: 42.12013996 | J30: 43.37061906 | K30: 43.70468756 | L30: 43.11219497 | M30: 41.61114388 | O30: ='Lutande yta'!Z$135 -> 66.75433088
C31: November | D31: 5.034418182 | E31: 6.87725066 | F31: 8.611869736 | G31: 10.18556989 | H31: 11.55053503 | I31: 12.6652914 | J31: 13.49596767 | K31: 14.01732417 | L31: 14.21351975 | M31: 14.07859311 | O31: ='Lutande yta'!Z$147 -> 26.72402821
C32: December | D32: 0.9202727273 | E32: 0.7815012204 | F32: 0.7762005113 | G32: 0.7675451341 | H32: 0.7557980781 | I32: 0.7413162715 | J32: 0.7245397369 | K32: 0.7059782206 | L32: 0.6861957049 | M32: 0.6657932717 | O32: ='Lutande yta'!Z$159 -> 17.30307704
C33: Summa | D33: =SUM(D20:D32) -> 895.5169909 | E33: =SUM(E20:E32) -> 957.54978 | F33: 999.0125976 | G33: 1022.545494 | H33: 1027.548685 | I33: 1036.452593 | J33: 1024.190982 | K33: 991.4402595 | L33: 939.4993855 | M33: 870.2504016 | O33: =SUM(O21:O32) -> 1196.835765
B35: O | C35: Lutning | D35: 0 | E35: 10 | F35: 20 | G35: 30 | H35: 40 | I35: 50 | J35: 60 | K35: 70 | L35: 80 | M35: 90
B36: 90o | C36: Januari | D36: 3.112881818 | E36: 3.011621458 | F36: 3.148639009 | G36: 3.245222841 | H36: 3.298438303 | I36: 3.306668469 | J36: 3.269663272 | K36: 3.188547094 | L36: 3.06578461 | M36: 2.905105895 | O36: ='Lutande yta'!Z$27 -> 20.04180442
C37: Februari | D37: 17.35013636 | E37: 17.25573747 | F37: 16.5079876 | G37: 17.25892235 | H37: 17.73153749 | I37: 17.91147283 | J37: 17.79326114 | K37: 17.38049422 | L37: 16.68571379 | M37: 15.73003039 | O37: ='Lutande yta'!Z$39 -> 37.0388663
C38: Mars | D38: 59.09430909 | E38: 58.83968333 | F38: 58.47880077 | G38: 56.10870038 | H38: 57.63060373 | I38: 58.13730964 | J38: 57.61342211 | K38: 56.0748592 | L38: 53.56836937 | M38: 50.17011103 | O38: ='Lutande yta'!Z$51 -> 101.9730039
C39: April | D39: 106.8106182 | E39: 106.0565315 | F39: 105.2314659 | G39: 103.9243833 | H39: 99.49839809 | I39: 99.75559518 | J39: 98.30728179 | K39: 95.19746418 | L39: 90.52063258 | M39: 84.41889016 | O39: ='Lutande yta'!Z$63 -> 144.7378095
C40: Maj | D40: 160.5246727 | E40: 158.9073529 | F40: 155.5886852 | G40: 151.7557319 | H40: 146.8022696 | I40: 137.2520452 | J40: 131.9780608 | K40: 123.9987462 | L40: 113.5565487 | M40: 100.9687493 | O40: ='Lutande yta'!Z$75 -> 164.7338037
C41: Juni | D41: 173.2024818 | E41: 171.1953083 | F41: 167.3659492 | G41: 162.703587 | H41: 156.3869744 | I41: 145.7613783 | J41: 139.6930815 | K41: 130.844557 | L41: 119.4846628 | M41: 105.9585635 | O41: ='Lutande yta'!Z$87 -> 171.5425433
C42: Juli | D42: 161.5570182 | E42: 159.9384615 | F42: 156.6044743 | G42: 152.7340603 | H42: 147.7278056 | I42: 138.1395212 | J42: 132.7760139 | K42: 124.7144775 | L42: 114.1998576 | M42: 101.5516356 | O42: ='Lutande yta'!Z$99 -> 174.3878773
C43: Augusti | D43: 117.8088545 | E43: 116.7917148 | F43: 115.1915633 | G43: 112.6190375 | H43: 106.4641939 | I43: 104.6146142 | J43: 100.7181847 | K43: 94.89329654 | L43: 87.316936 | M43: 78.21930694 | O43: ='Lutande yta'!Z$111 -> 154.6830718
C44: September | D44: 65.75335455 | E44: 65.3503412 | F44: 64.51743309 | G44: 61.51791897 | H44: 61.80948306 | I44: 60.90811972 | J44: 58.84121643 | K44: 55.671575 | L44: 51.49550338 | M44: 46.43988939 | O44: ='Lutande yta'!Z$123 -> 116.9155483
C45: Oktober | D45: 24.34797273 | E45: 24.23072035 | F45: 23.3562596 | G45: 24.14854084 | H45: 24.60846461 | I45: 24.72205637 | J45: 24.48586467 | K45: 23.90706609 | L45: 23.00324712 | M45: 21.80186986 | O45: ='Lutande yta'!Z$135 -> 66.75433088
C46: November | D46: 5.034418182 | E46: 4.913378005 | F46: 5.063246517 | G46: 5.160019225 | H46: 5.20075574 | I46: 5.184218303 | J46: 5.110909397 | K46: 4.983056474 | L46: 4.804544282 | M46: 4.580796822 | O46: ='Lutande yta'!Z$147 -> 26.72402821
C47: December | D47: 0.9202727273 | E47: 0.9164150795 | F47: 0.904944416 | G47: 0.886207266 | H47: 0.8607729483 | I47: 0.8294142719 | J47: 0.7930840541 | K47: 0.7528861703 | L47: 0.7100420128 | M47: 0.6658533798 | O47: ='Lutande yta'!Z$159 -> 17.30307704
C48: Summa | D48: =SUM(D36:D47) -> 895.5169909 | E48: =SUM(E36:E47) -> 887.4072658 | F48: 871.9594487 | G48: 852.062332 | H48: 828.0196975 | I48: 796.5224137 | J48: 771.3800438 | K48: 731.6070256 | L48: 678.4118422 | M48: 613.4108023 | O48: =SUM(O36:O47) -> 1196.835765
B50: NO | C50: Lutning | D50: 0 | E50: 10 | F50: 20 | G50: 30 | H50: 40 | I50: 50 | J50: 60 | K50: 70 | L50: 80 | M50: 90
B51: 45o | C51: Januari | D51: 3.112881818 | E51: 2.133836453 | F51: 2.119363224 | G51: 2.095730299 | H51: 2.063655754 | I51: 2.024114157 | J51: 1.978306958 | K51: 1.927625988 | L51: 1.873611161 | M51: 1.817903692 | O51: ='Lutande yta'!Z$27 -> 20.04180442
C52: Februari | D52: 17.35013636 | E52: 12.63994412 | F52: 9.468214565 | G52: 9.371025818 | H52: 9.235187199 | I52: 9.064826095 | J52: 8.865118844 | K52: 8.642133448 | L52: 8.402645205 | M52: 8.153930846 | O52: ='Lutande yta'!Z$39 -> 37.0388663
C53: Mars | D53: 59.09430909 | E53: 50.5608038 | F53: 43.16567557 | G53: 34.75579047 | H53: 34.55614627 | I53: 34.04241034 | J53: 33.2301923 | K53: 32.14417097 | L53: 30.81734457 | M53: 29.29002805 | O53: ='Lutande yta'!Z$51 -> 101.9730039
C54: April | D54: 106.8106182 | E54: 97.8348238 | F54: 88.52461564 | G54: 80.54574164 | H54: 68.90039206 | I54: 68.32835777 | J54: 67.00571369 | K54: 64.9726477 | L54: 62.29093349 | M54: 59.04205357 | O54: ='Lutande yta'!Z$63 -> 144.7378095
C55: Maj | D55: 160.5246727 | E55: 151.9228655 | F55: 139.7592671 | G55: 127.4420397 | H55: 116.3079254 | I55: 99.87997599 | J55: 95.57171881 | K55: 89.66431965 | L55: 82.33727184 | M55: 73.81320402 | O55: ='Lutande yta'!Z$75 -> 164.7338037
C56: Juni | D56: 173.2024818 | E56: 165.6316479 | F56: 154.8571602 | G56: 142.4898804 | H56: 130.8104103 | I56: 112.127942 | J56: 107.4238493 | K56: 100.9200133 | L56: 92.81404968 | M56: 83.3522541 | O56: ='Lutande yta'!Z$87 -> 171.5425433
C57: Juli | D57: 161.5570182 | E57: 153.0087834 | F57: 140.8992744 | G57: 128.6111649 | H57: 117.4727596 | I57: 101.0607219 | J57: 96.65536347 | K57: 90.64948357 | L57: 83.22556781 | M57: 74.60918812 | O57: ='Lutande yta'!Z$99 -> 174.3878773
C58: Augusti | D58: 117.8088545 | E58: 108.5346584 | F58: 98.41288312 | G58: 89.13988108 | H58: 75.73463396 | I58: 73.05225759 | J58: 69.28203775 | K58: 64.53853064 | L58: 58.96586534 | M58: 52.73336446 | O58: ='Lutande yta'!Z$111 -> 154.6830718
C59: September | D59: 65.75335455 | E59: 57.72855297 | F59: 50.41970439 | G59: 41.85978084 | H59: 40.5664359 | I59: 38.72562278 | J59: 36.39327365 | K59: 33.64025576 | L59: 30.55021817 | M59: 27.2170501 | O59: ='Lutande yta'!Z$123 -> 116.9155483
C60: Oktober | D60: 24.34797273 | E60: 19.0338335 | F60: 15.43023233 | G60: 15.26761774 | H60: 15.04248804 | I60: 14.76168366 | J60: 14.43373673 | K60: 14.06861173 | L60: 13.6774028 | M60: 13.27199664 | O60: ='Lutande yta'!Z$135 -> 66.75433088
C61: November | D61: 5.034418182 | E61: 3.892031274 | F61: 3.86563269 | G61: 3.822527193 | H61: 3.764024521 | I61: 3.691902248 | J61: 3.608351774 | K61: 3.515911737 | L61: 3.417390881 | M61: 3.315782711 | O61: ='Lutande yta'!Z$147 -> 26.72402821
C62: December | D62: 0.9202727273 | E62: 1.719435063 | F62: 2.486583027 | G62: 3.198407215 | H62: 3.833279209 | I62: 4.371908747 | J62: 4.797929841 | K62: 5.098398057 | L62: 5.264183819 | M62: 5.290249811 | O62: ='Lutande yta'!Z$159 -> 17.30307704
C63: Summa | D63: =SUM(D51:D62) -> 895.5169909 | E63: =SUM(E51:E62) -> 824.6412162 | F63: 749.4086063 | G63: 678.5995873 | H63: 618.2873381 | I63: 561.1317233 | J63: 539.2455931 | K63: 509.7821025 | L63: 473.6364848 | M63: 431.9070061 | O63: =SUM(O51:O62) -> 1196.835765
B65: N | C65: Lutning | D65: 0 | E65: 10 | F65: 20 | G65: 30 | H65: 40 | I65: 50 | J65: 60 | K65: 70 | L65: 80 | M65: 90
B66: 0o | C66: Januari | D66: 3.112881818 | E66: 2.133836453 | F66: 2.119363224 | G66: 2.095730299 | H66: 2.063655754 | I66: 2.024114157 | J66: 1.978306958 | K66: 1.927625988 | L66: 1.873611161 | M66: 1.817903692 | O66: ='Lutande yta'!Z$27 -> 20.04180442
C67: Februari | D67: 17.35013636 | E67: 11.11545332 | F67: 9.442041431 | G67: 9.336753649 | H67: 9.193857338 | I67: 9.017694329 | J67: 8.813617247 | K67: 8.587826871 | L67: 8.347183726 | M67: 8.098999633 | O67: ='Lutande yta'!Z$39 -> 37.0388663
C68: Mars | D68: 59.09430909 | E68: 46.39806759 | F68: 32.25302147 | G68: 27.92023674 | H68: 27.4929256 | I68: 26.96613513 | J68: 26.35587158 | K68: 25.6806775 | L68: 24.96106832 | M68: 24.21890902 | O68: ='Lutande yta'!Z$51 -> 101.9730039
C69: April | D69: 106.8106182 | E69: 92.54741774 | F69: 75.51755635 | G69: 56.42018431 | H69: 50.01578853 | I69: 49.12638713 | J69: 48.06981811 | K69: 46.87818479 | L69: 45.58769433 | M69: 44.23755765 | O69: ='Lutande yta'!Z$63 -> 144.7378095
C70: Maj | D70: 160.5246727 | E70: 148.6058479 | F70: 126.5344018 | G70: 102.7030279 | H70: 76.51133909 | I70: 67.38038591 | J70: 63.56575048 | K70: 59.12445822 | L70: 54.19145555 | M70: 48.91662925 | O70: ='Lutande yta'!Z$75 -> 164.7338037
C71: Juni | D71: 173.2024818 | E71: 162.5633956 | F71: 146.651609 | G71: 118.1091912 | H71: 91.1319676 | I71: 78.74468861 | J71: 74.61490778 | K71: 69.68226669 | L71: 64.09664115 | M71: 58.02774756 | O71: ='Lutande yta'!Z$87 -> 171.5425433
C72: Juli | D72: 161.5570182 | E72: 149.7177955 | F72: 127.7781885 | G72: 104.0662876 | H72: 77.98846912 | I72: 68.81616589 | J72: 64.90055561 | K72: 60.34927762 | L72: 55.30062021 | M72: 49.90798427 | O72: ='Lutande yta'!Z$99 -> 174.3878773
C73: Augusti | D73: 117.8088545 | E73: 103.2245196 | F73: 85.3499009 | G73: 64.91059764 | H73: 56.76883744 | I73: 53.76772947 | J73: 50.26472865 | K73: 46.36627189 | L73: 42.19081182 | M73: 37.86521768 | O73: ='Lutande yta'!Z$111 -> 154.6830718
C74: September | D74: 65.75335455 | E74: 53.89621143 | F74: 40.37318321 | G74: 35.56676223 | H74: 34.06382018 | I74: 32.21098864 | J74: 30.06456496 | K74: 27.68976713 | L74: 25.15875218 | M74: 22.54842372 | O74: ='Lutande yta'!Z$123 -> 116.9155483
C75: Oktober | D75: 24.34797273 | E75: 17.31742083 | F75: 15.4007642 | G75: 15.22903097 | H75: 14.99595506 | I75: 14.70861837 | J75: 14.37575147 | K75: 14.00746836 | L75: 13.61495914 | M75: 13.21015 | O75: ='Lutande yta'!Z$135 -> 66.75433088
C76: November | D76: 5.034418182 | E76: 3.892031274 | F76: 3.86563269 | G76: 3.822527193 | H76: 3.764024521 | I76: 3.691902248 | J76: 3.608351774 | K76: 3.515911737 | L76: 3.417390881 | M76: 3.315782711 | O76: ='Lutande yta'!Z$147 -> 26.72402821
C77: December | D77: 0.9202727273 | E77: 2.052060339 | F77: 3.141726926 | G77: 4.156163523 | H77: 5.064546986 | I77: 5.839276543 | J77: 6.456812429 | K77: 6.898391128 | L77: 7.150595495 | M77: 7.205762428 | O77: ='Lutande yta'!Z$159 -> 17.30307704
C78: Summa | D78: =SUM(D66:D77) -> 895.5169909 | E78: =SUM(E66:E77) -> 793.4640575 | F78: 668.4273897 | G78: 544.3364932 | H78: 449.0551872 | I78: 412.2940864 | J78: 393.0690371 | K78: 370.7081279 | L78: 345.890784 | M78: 319.3710676 | O78: =SUM(O66:O77) -> 1196.835765

Sheet Omslag
B2: Version 2016-02-19
B4: Mauritz Glaumann
B5: email: mga@hig.se
B19: Solar Irradiation towards Inclined Surfaces (SITIS)
B20: Solinstrålning mot olika ytor
B21: Timvärden för ett genomsnittsdygn per månad
B23: Utgångsdata hämtas från SMHI som har en modell att generera timmedelvärden mot horisontalplanet för en godtycklick plats i norra Europa
B41: © EcoEffect
B42: © M Glaumann

Sheet Instruktion
A1: INSTRUKTION
C2: Välj ort - klicka i rutan
A3: 1 | B3: Välj plats/ort. Det finns ett antal orter redan inlagda i rullgardinsmenyn här intill. Välj någon av dem och fortsätt till punkt 4 eller gå vidare till punkt 2 och ta fram strålningsdata för en egen plats. | C3: Stockholm | H3: Gävle
A4: 2 | B4: Bestäm koordinaterna för platsen, lat, long. | H4: Göteborg
B5: a) Hämta koordinaterna för platsen t.ex. från http://www.eniro.se Välj kartor och högerklicka på platsen och sen GPS-koordinater, WSG 84 decimal. Observera att du måste använda komma, inte punkt. | H5: Jönköping
A6: 3 | B6: Bestäm direkt och globalstrålning på platsen, flik Ort. | H6: Kalmar
B7: a) Gå in på http://strang.smhi.se/ | H7: Kiruna
B8: b) Välj "Data extraction" - Extract historical (1999 - ) data . | H8: Ljusdal
B9: c) Välj "Time series" och "Monthly". | H9: Luleå
B10: d) Hämta data för direktstrålning - Direct irradiation. | H10: Malmö
B11: e) Välj data från den senaste 10-årsperioden (tex Jan 2006- Dec 2015). | H11: Stockholm
B12: f) Skriv in Latitud och Longitud längst ner. | H12: Östersund
B13: g) "Send request"
B14: h) Kopeiera data (ctrl A, ctrl C) och klistra in som värden under fliken Ort, från cell B6 och nedåt.
B15: i) Markera de inkopierade data i Excelbladet (de är markerade direkt efter kopieringen). Gå till Data och sedan Text till kolumner.
B16: j)Välj "Med fast bredd".
B17: k) Skilj av data från tid genom att flytta strecken med pil så att de hamnar i var sin kolumn, dvs. 2 kolumner (de tre första strecken med pilar dras nedåt för att tas bort). Månadsmedelvärdena blir felmarkerade.
B18: l) Sök och byt ut alla punkter mot komma i kolumnen med strålningsdata.
B19: m) Gör samma sak med globalstrålningen "Global irradiation". Klistra in på cell E6, flik Ort.
A20: 4 | B20: Gå till flik "Lutande yta"
B21: a) Skriv in ytans lutning och orientering i de blåa rutorna.
B22: b) Välj markreflektion (titta på tabellen till höger).
A23: 5 | B23: Avläs den årliga instrålningen i gula rutan till höger. Värden för enskilda tidpunkter kan avläsas i tabellerna under. Men tänk då på att timvärden representerar hela månaden så vill man se medelinstrålningen en viss timme måste man dela med antalet dagar i månaden.

Sheet Ort
B1: Stockholm Bromma
B2: Lat | C2: 59.353265 | H2: Direktstrålning = vinkelrät mot strålningsriktningen
B3: Long | C3: 17.947934 | H3: Globalstrålning = instrålning mot horisontell yta, Wh/m2
B4: SMHI nr | C4: 9720
B5: Direktstrålning | E5: Globalstrålning | H5: Medel direktstrålning år | N5: Medel globalstrålning år
B6: 2006 01 31 23 | C6: 18975.8 | E6: 2006 01 31 23 | F6: 10386.9 | I6: kWh/m2 | J6: Standardav | K6: % | L6: Årsandel | O6: kWh/m2 | P6: Standardav | Q6: % | R6: Årsandel
B7: 2006 02 28 23 | C7: 29310.2 | E7: 2006 02 28 23 | F7: 22437.2 | H7: Januari | I7: =(C6+C18+C30+C42+C54+C66+C78+C90+C102+C114)/10000 -> 18.59649 | J7: =STDEV(C6,C18,C30,C42,C54,C66,C78,C90,C102,C114) -> 7025.631919 | K7: =J7/I7 -> 377.7934395 | L7: =I7/I$19 -> 0.01595799783 | N7: Januari | O7: =(F6+F18+F30+F42+F54+F66+F78+F90+F102+F114)/10000 -> 9.22101 | P7: =STDEV(F6,F18,F30,F42,F54,F66,F78,F90,F102,F114)/10000 -> 0.1339369434 | Q7: =P7/O7 -> 0.0145251923 | R7: =O7/O$19 -> 0.009263377074
B8: 2006 03 31 23 | C8: 85283.7 | E8: 2006 03 31 23 | F8: 67249.7 | H8: Februari | I8: 29.9346 | J8: =STDEV(C7,C19,C31,C43,C55,C67,C79,C91,C103,C115)/10000 -> 1.191493246 | K8: 0.03980321254 | L8: 0.02568744327 | N8: Februari | O8: 21.96149 | P8: 0.4319326325 | Q8: 0.01966772894 | R8: 0.02206239479
B9: 2006 04 30 23 | C9: 115860.5 | E9: 2006 04 30 23 | F9: 109405.7 | H9: Mars | I9: 93.81512 | J9: 3.130601744 | K9: 0.03336990608 | L9: 0.08050451894 | N9: Mars | O9: 68.04129 | P9: 1.095359329 | Q9: 0.01609845036 | R9: 0.06835391415
B10: 2006 05 31 23 | C10: 166018.9 | E10: 2006 05 31 23 | F10: 159499.3 | H10: April | I10: 134.66256 | J10: 3.685229589 | K10: 0.02736640079 | L10: 0.1155564755 | N10: April | O10: 117.98346 | P10: 1.325382365 | Q10: 0.01123362855 | R10: 0.1185255496
B11: 2006 06 30 23 | C11: 223001.7 | E11: 2006 06 30 23 | F11: 192116 | H11: Maj | I11: 168.87091 | J11: 4.910866727 | K11: 0.0290805961 | L11: 0.144911304 | N11: Maj | O11: 160.61618 | P11: 2.205565919 | Q11: 0.01373190372 | R11: 0.161354151
B12: 2006 07 31 23 | C12: 246615.9 | E12: 2006 07 31 23 | F12: 198293.3 | H12: Juni | I12: 186.51541 | J12: 4.689386132 | K12: 0.02514208414 | L12: 0.1600523813 | N12: Juni | O12: 176.14683 | P12: 1.645720618 | Q12: 0.009342890914 | R12: 0.1769561585
B13: 2006 08 31 23 | C13: 157487 | E13: 2006 08 31 23 | F13: 133792.1 | H13: Juli | I13: 182.90095 | J13: 4.562936286 | K13: 0.02494758111 | L13: 0.1569507452 | N13: Juli | O13: 169.63237 | P13: 2.079484545 | Q13: 0.01225877198 | R13: 0.170411767
B14: 2006 09 30 23 | C14: 126836.4 | E14: 2006 09 30 23 | F14: 86163.4 | H14: Augusti | I14: 144.06262 | J14: 3.819763857 | K14: 0.02651460772 | L14: 0.1236228437 | N14: Augusti | O14: 132.00164 | P14: 1.872236337 | Q14: 0.01418343239 | R14: 0.1326081379
B15: 2006 10 31 23 | C15: 38526.3 | E15: 2006 10 31 23 | F15: 31337.4 | H15: September | I15: 105.03949 | J15: 2.250111909 | K15: 0.02142158067 | L15: 0.09013636194 | N15: September | O15: 82.71777 | P15: 0.9045956915 | Q15: 0.01093592938 | R15: 0.08309782705
B16: 2006 11 30 23 | C16: 39080.6 | E16: 2006 11 30 23 | F16: 14773.5 | H16: Oktober | I16: 58.67504 | J16: 1.690207071 | K16: 0.02880623637 | L16: 0.05035015538 | N16: Oktober | O16: 38.80218 | P16: 0.5673667542 | Q16: 0.01462203294 | R16: 0.03898046143
B17: 2006 12 31 23 | C17: 25657 | E17: 2006 12 31 23 | F17: 7941.5 | H17: November | I17: 25.10462 | J17: 1.126145474 | K17: 0.04485809679 | L17: 0.02154274659 | N17: November | O17: 12.10803 | P17: 0.26497591 | Q17: 0.02188431231 | R17: 0.01216366185
B18: 2007 01 31 23 | C18: 28575.6 | E18: 2007 01 31 23 | F18: 11470.2 | H18: December | I18: 17.16199 | J18: 0.6853462639 | K18: 0.03993396243 | L18: 0.0147270264 | N18: December | O18: 6.19414 | P18: =STDEV(F17,F29,F41,F53,F65,F77,F89,F101,F113,L125)/10000 -> 0.1135683312 | Q18: 0.01833480212 | R18: 0.006222599744
B19: 2007 02 28 23 | C19: 19235 | E19: 2007 02 28 23 | F19: 18116.1 | H19: Summa | I19: =SUM(I7:I18) -> 1165.3398 | J19: kWh/m2,år | L19: =SUM(L7:L18) -> 1 | N19: Summa | O19: =SUM(O7:O18) -> 995.42639 | P19: kWh/m2,år | R19: =SUM(R7:R18) -> 1
B20: 2007 03 31 23 | C20: 94179.2 | E20: 2007 03 31 23 | F20: 65166
B21: 2007 04 30 23 | C21: 180654.8 | E21: 2007 04 30 23 | F21: 134188.7
B22: 2007 05 31 23 | C22: 152124.1 | E22: 2007 05 31 23 | F22: 148099.6
B23: 2007 06 30 23 | C23: 218131.4 | E23: 2007 06 30 23 | F23: 189149.8
B24: 2007 07 31 23 | C24: 157687.4 | E24: 2007 07 31 23 | F24: 156511.7
B25: 2007 08 31 23 | C25: 158528.8 | E25: 2007 08 31 23 | F25: 139566.4
B26: 2007 09 30 23 | C26: 91242.3 | E26: 2007 09 30 23 | F26: 77121.2
B27: 2007 10 31 23 | C27: 54889.4 | E27: 2007 10 31 23 | F27: 37617.1
B28: 2007 11 30 23 | C28: 29824.7 | E28: 2007 11 30 23 | F28: 13671.6
B29: 2007 12 31 23 | C29: 12818.2 | E29: 2007 12 31 23 | F29: 4965.6
B30: 2008 01 31 23 | C30: 18163.8 | E30: 2008 01 31 23 | F30: 9060.3
B31: 2008 02 29 23 | C31: 50808.9 | E31: 2008 02 29 23 | F31: 27987.9
B32: 2008 03 31 23 | C32: 85670.2 | E32: 2008 03 31 23 | F32: 65700.2
B33: 2008 04 30 23 | C33: 142046.9 | E33: 2008 04 30 23 | F33: 122150.1
B34: 2008 05 31 23 | C34: 226856.9 | E34: 2008 05 31 23 | F34: 186913.7
B35: 2008 06 30 23 | C35: 234001.9 | E35: 2008 06 30 23 | F35: 201102.7
B36: 2008 07 31 23 | C36: 230234.8 | E36: 2008 07 31 23 | F36: 195097.1
B37: 2008 08 31 23 | C37: 90458.2 | E37: 2008 08 31 23 | F37: 107786.7
B38: 2008 09 30 23 | C38: 74317.6 | E38: 2008 09 30 23 | F38: 69718.5
B39: 2008 10 31 23 | C39: 61510.5 | E39: 2008 10 31 23 | F39: 38147.4
B40: 2008 11 30 23 | C40: 29746.1 | E40: 2008 11 30 23 | F40: 13117
B41: 2008 12 31 23 | C41: 15319.7 | E41: 2008 12 31 23 | F41: 5508.6
B42: 2009 01 31 23 | C42: 26353.8 | E42: 2009 01 31 23 | F42: 8935.8
B43: 2009 02 28 23 | C43: 32397.1 | E43: 2009 02 28 23 | F43: 23452.2
B44: 2009 03 31 23 | C44: 52923.6 | E44: 2009 03 31 23 | F44: 53558.5
B45: 2009 04 30 23 | C45: 179783.4 | E45: 2009 04 30 23 | F45: 137932.9
B46: 2009 05 31 23 | C46: 210142.8 | E46: 2009 05 31 23 | F46: 180200.9
B47: 2009 06 30 23 | C47: 187553.4 | E47: 2009 06 30 23 | F47: 161519.8
B48: 2009 07 31 23 | C48: 159847.8 | E48: 2009 07 31 23 | F48: 139994.7
B49: 2009 08 31 23 | C49: 190541.3 | E49: 2009 08 31 23 | F49: 136979.8
B50: 2009 09 30 23 | C50: 135731.7 | E50: 2009 09 30 23 | F50: 90516
B51: 2009 10 31 23 | C51: 59006.9 | E51: 2009 10 31 23 | F51: 38087.8
B52: 2009 11 30 23 | C52: 8480.1 | E52: 2009 11 30 23 | F52: 8330.5
B53: 2009 12 31 23 | C53: 6430.5 | E53: 2009 12 31 23 | F53: 4500.2
B54: 2010 01 31 23 | C54: 8293.1 | E54: 2010 01 31 23 | F54: 7929.4
B55: 2010 02 28 23 | C55: 14766.8 | E55: 2010 02 28 23 | F55: 15107
B56: 2010 03 31 23 | C56: 89442.6 | E56: 2010 03 31 23 | F56: 61953.3
B57: 2010 04 30 23 | C57: 126819.7 | E57: 2010 04 30 23 | F57: 105986.6
B58: 2010 05 31 23 | C58: 181758 | E58: 2010 05 31 23 | F58: 142654.2
B59: 2010 06 30 23 | C59: 232195.8 | E59: 2010 06 30 23 | F59: 172782.2
B60: 2010 07 31 23 | C60: 237361.6 | E60: 2010 07 31 23 | F60: 165411.2
B61: 2010 08 31 23 | C61: 105044.7 | E61: 2010 08 31 23 | F61: 98978.3
B62: 2010 09 30 23 | C62: 84555.6 | E62: 2010 09 30 23 | F62: 71922.3
B63: 2010 10 31 23 | C63: 71069.1 | E63: 2010 10 31 23 | F63: 43017.6
B64: 2010 11 30 23 | C64: 29965.6 | E64: 2010 11 30 23 | F64: 12546.6
B65: 2010 12 31 23 | C65: 15804.9 | E65: 2010 12 31 23 | F65: 5868.2
B66: 2011 01 31 23 | C66: 25932.2 | E66: 2011 01 31 23 | F66: 10140.1
B67: 2011 02 28 23 | C67: 36246.2 | E67: 2011 02 28 23 | F67: 24862.9
B68: 2011 03 31 23 | C68: 127534.7 | E68: 2011 03 31 23 | F68: 75087.5
B69: 2011 04 30 23 | C69: 156321 | E69: 2011 04 30 23 | F69: 122238
B70: 2011 05 31 23 | C70: 196110.2 | E70: 2011 05 31 23 | F70: 171476.3
B71: 2011 06 30 23 | C71: 205238 | E71: 2011 06 30 23 | F71: 182317.3
B72: 2011 07 31 23 | C72: 151726.8 | E72: 2011 07 31 23 | F72: 156572.2
B73: 2011 08 31 23 | C73: 133618.7 | E73: 2011 08 31 23 | F73: 127037
B74: 2011 09 30 23 | C74: 102338.1 | E74: 2011 09 30 23 | F74: 81127.1
B75: 2011 10 31 23 | C75: 81175.6 | E75: 2011 10 31 23 | F75: 44489.6
B76: 2011 11 30 23 | C76: 27729 | E76: 2011 11 30 23 | F76: 11447.2
B77: 2011 12 31 23 | C77: 23283.1 | E77: 2011 12 31 23 | F77: 6967.2
B78: 2012 01 31 23 | C78: 16645.3 | E78: 2012 01 31 23 | F78: 8829.8
B79: 2012 02 29 23 | C79: 44247.5 | E79: 2012 02 29 23 | F79: 27302.4
B80: 2012 03 31 23 | C80: 95754.1 | E80: 2012 03 31 23 | F80: 67336.7
B81: 2012 04 30 23 | C81: 105207.1 | E81: 2012 04 30 23 | F81: 104550.6
B82: 2012 05 31 23 | C82: 192898.3 | E82: 2012 05 31 23 | F82: 185015.3
B83: 2012 06 30 23 | C83: 144037.7 | E83: 2012 06 30 23 | F83: 163217
B84: 2012 07 31 23 | C84: 150705.7 | E84: 2012 07 31 23 | F84: 169353.8
B85: 2012 08 31 23 | C85: 115475.1 | E85: 2012 08 31 23 | F85: 133264.6
B86: 2012 09 30 23 | C86: 95790.8 | E86: 2012 09 30 23 | F86: 83429.1
B87: 2012 10 31 23 | C87: 60129.3 | E87: 2012 10 31 23 | F87: 41341.2
B88: 2012 11 30 23 | C88: 24577.3 | E88: 2012 11 30 23 | F88: 12785.8
B89: 2012 12 31 23 | C89: 7629.8 | E89: 2012 12 31 23 | F89: 5028.1
B90: 2013 01 31 23 | C90: 20713.1 | E90: 2013 01 31 23 | F90: 9488.8
B91: 2013 02 28 23 | C91: 27799.1 | E91: 2013 02 28 23 | F91: 21540.1
B92: 2013 03 31 23 | C92: 157188.5 | E92: 2013 03 31 23 | F92: 95207.7
B93: 2013 04 30 23 | C93: 156570.9 | E93: 2013 04 30 23 | F93: 125333.3
B94: 2013 05 31 23 | C94: 188827.1 | E94: 2013 05 31 23 | F94: 172843.7
B95: 2013 06 30 23 | C95: 188691.5 | E95: 2013 06 30 23 | F95: 185070.1
B96: 2013 07 31 23 | C96: 202552.2 | E96: 2013 07 31 23 | F96: 186488.9
B97: 2013 08 31 23 | C97: 176030.4 | E97: 2013 08 31 23 | F97: 153276.4
B98: 2013 09 30 23 | C98: 127912 | E98: 2013 09 30 23 | F98: 96968.2
B99: 2013 10 31 23 | C99: 62348.6 | E99: 2013 10 31 23 | F99: 41368.2
B100: 2013 11 30 23 | C100: 35264.9 | E100: 2013 11 30 23 | F100: 15687.8
B101: 2013 12 31 23 | C101: 18227 | E101: 2013 12 31 23 | F101: 6705.9
B102: 2014 01 31 23 | C102: 12763.5 | E102: 2014 01 31 23 | F102: 9367.1
B103: 2014 02 28 23 | C103: 14389.3 | E103: 2014 02 28 23 | F103: 16474.1
B104: 2014 03 31 23 | C104: 51299.8 | E104: 2014 03 31 23 | F104: 62777.4
B105: 2014 04 30 23 | C105: 59350.2 | E105: 2014 04 30 23 | F105: 97353.3
B106: 2014 05 31 23 | C106: 63998.9 | E106: 2014 05 31 23 | F106: 124647.8
B107: 2014 06 30 23 | C107: 93174 | E107: 2014 06 30 23 | F107: 148301.7
B108: 2014 07 31 23 | C108: 186186.5 | E108: 2014 07 31 23 | F108: 184817.7
B109: 2014 08 31 23 | C109: 112464.8 | E109: 2014 08 31 23 | F109: 127449.6
B110: 2014 09 30 23 | C110: 127841.4 | E110: 2014 09 30 23 | F110: 93150.1
B111: 2014 10 31 23 | C111: 23731.5 | E111: 2014 10 31 23 | F111: 27474.4
B112: 2014 11 30 23 | C112: 2994.2 | E112: 2014 11 30 23 | F112: 7198.1
B113: 2014 12 31 23 | C113: 21186 | E113: 2014 12 31 23 | F113: 6774.4
B114: 2015 01 31 23 | C114: 9548.7 | E114: 2015 01 31 23 | F114: 6601.7
B115: 2015 02 28 23 | C115: 30145.9 | E115: 2015 02 28 23 | F115: 22335
B116: 2015 03 31 23 | C116: 98874.8 | E116: 2015 03 31 23 | F116: 66375.9
B117: 2015 04 30 23 | C117: 124011.1 | E117: 2015 04 30 23 | F117: 120695.4
B118: 2015 05 31 23 | C118: 109973.9 | E118: 2015 05 31 23 | F118: 134811
B119: 2015 06 30 23 | C119: 139128.7 | E119: 2015 06 30 23 | F119: 165891.7
B120: 2015 07 31 23 | C120: 106090.8 | E120: 2015 07 31 23 | F120: 143783.1
B121: 2015 08 31 23 | C121: 200977.2 | E121: 2015 08 31 23 | F121: 161885.5
B122: 2015 09 30 23 | C122: 83829 | E122: 2015 09 30 23 | F122: 77061.8
B123: 2015 10 31 23 | C123: 74363.2 | E123: 2015 10 31 23 | F123: 45141.1
B124: 2015 11 30 23 | C124: 23383.7 | E124: 2015 11 30 23 | F124: 11522.2
B125: 2015 12 31 23 | C125: 25263.7 | E125: 2015 12 31 23 | F125: 7681.7

Sheet Mot marken
A1: SOLINSTRÅLNING MOT MARKEN | G1: PLATS | H1: =Ort!B1 -> Stockholm Bromma | K1: Latitud | L1: =Ort!C2 -> 59.353265 | M1: Longitud | N1: =Ort!C3 -> 17.947934
A3: Solhöjd | B3: h | C3: ARCSIN(SIN(C154*PI()/180)*SIN(C155*PI()/180)+COS(C154*PI()/180)*COS(C155*PI()/180)*COS((B156+12)*15*PI()/180))*180/PI()
A4: Solazimut | B4: A | C4: ARCSIN((SIN((b156+12)*15*PI()/180)*COS(C156*PI()/180))/COS(b158*PI()/180))*180/PI()
A5: Direktinstrålning | B5: IDN | C5: 1071*EXP(-0,129/SIN(h*PI()/180)) (Brown & Isfält 1974) Wh
A6: Globalstrålning | B6: IDH | C6: IDN * sin h Wh | J6: sin (h) = sin (d)sin(l) - cos (d) cos (l)cos(t)
A7: Diffusstrålning mot mark | B7: IdH | C7: 244*SIN(h*PI()/180) (Ångström) | J7: sin (As) = cos(d)sin(t)/cos(h)
A8: Latitud | B8: Lat | C8: =Ort!C2 -> 59.353265
J9: Solen under horisonten
A11: Januari | B11: deklination | C11: -19.9 | G11: 180+ | T11: 180- | Z11: kWh/m2
A12: Kl | B12: 1 | C12: 2 | D12: 3 | E12: 4 | F12: 5 | G12: 6 | H12: 7 | I12: 8 | J12: 9 | K12: 10 | L12: 11 | M12: 12 | N12: 13 | O12: 14 | P12: 15 | Q12: 16 | R12: 17 | S12: 18 | T12: 19 | U12: 20 | V12: 21 | W12: 22 | X12: 23 | Y12: 24
A13: solhöjd | B13: =ASIN(SIN($C$8*PI()/180)*SIN($C11*PI()/180)+COS($C$8*PI()/180)*COS($C11*PI()/180)*COS((B12+12)*15*PI()/180))*180/PI() -> -49.09630297 | C13: -45.06661224 | D13: -39.17992928 | E13: -32.17387331 | F13: -24.63845678 | G13: -17.02791296 | H13: -9.717133714 | I13: -3.04870028 | J13: 2.641278984 | K13: 7.022163423 | L13: 9.79573277 | M13: 10.746735 | N13: 9.79573277 | O13: 7.022163423 | P13: 2.641278984 | Q13: -3.04870028 | R13: -9.717133714 | S13: -17.02791296 | T13: -24.63845678 | U13: -32.17387331 | V13: -39.17992928 | W13: -45.06661224 | X13: -49.09630297 | Y13: -50.546735
A14: azimut | B14: =-(180+ASIN((SIN((B12*15-180)*PI()/180)*(COS($C11*PI()/180))/(COS(B13*PI()/180))))*180/PI()) -> -158.1814628 | C14: =-(180+ASIN((SIN((C12*15-180)*PI()/180)*(COS($C11*PI()/180))/(COS(C13*PI()/180))))*180/PI()) -> -138.2671397 | D14: =-(180+ASIN((SIN((D12*15-180)*PI()/180)*(COS($C11*PI()/180))/(COS(D13*PI()/180))))*180/PI()) -> -120.9371849 | E14: =-(180+ASIN((SIN((E12*15-180)*PI()/180)*(COS($C11*PI()/180))/(COS(E13*PI()/180))))*180/PI()) -> -105.8354151 | F14: =-(180+ASIN((SIN((F12*15-180)*PI()/180)*(COS($C11*PI()/180))/(COS(F13*PI()/180))))*180/PI()) -> -92.26143335 | G14: =(ASIN((SIN((G12*15-180)*PI()/180)*(COS($C11*PI()/180))/(COS(G13*PI()/180))))*180/PI()) -> -79.54512602 | H14: -67.14177317 | I14: -54.63361791 | J14: -41.72769787 | K14: -28.27456505 | L14: -14.29799392 | M14: 0 | N14: 14.29799392 | O14: 28.27456505 | P14: 41.72769787 | Q14: 54.63361791 | R14: 67.14177317 | S14: 79.54512602 | T14: =(180-ASIN((SIN((T12*15-180)*PI()/180)*(COS($C11*PI()/180))/(COS(T13*PI()/180))))*180/PI()) -> 92.26143335 | U14: 105.8354151 | V14: 120.9371849 | W14: 138.2671397 | X14: 158.1814628 | Y14: 180 | Z14: Summa
A15: Direktstrålning, IDN | B15: =IF(B13<0,0,1071*EXP(-0.129/SIN(B13*PI()/180))) -> 0 | C15: 0 | D15: 0 | E15: 0 | F15: 0 | G15: 0 | H15: 0 | I15: 0 | J15: 65.17215108 | K15: 372.8445661 | L15: 501.7648567 | M15: 536.2178683 | N15: 501.7648567 | O15: 372.8445661 | P15: 65.17215108 | Q15: 0 | R15: 0 | S15: 0 | T15: 0 | U15: 0 | V15: 0 | W15: 0 | X15: 0 | Y15: 0 | Z15: =SUM(B15:Y15) -> 2415.781016 | AA15: dygnssumma, Wh
A16: andel,% | B16: =B15/$Z15 -> 0 | C16: 0 | D16: 0 | E16: 0 | F16: 0 | G16: 0 | H16: 0 | I16: 0 | J16: 0.02697767333 | K16: 0.1543370709 | L16: 0.2077029554 | M16: 0.2219646006 | N16: 0.2077029554 | O16: 0.1543370709 | P16: 0.02697767333 | Q16: 0 | R16: 0 | S16: 0 | T16: 0 | U16: 0 | V16: 0 | W16: 0 | X16: 0 | Y16: 0 | Z16: 1
A17: Uppmätt IDN fördelad | B17: =B16*Ort!$I7 -> 0 | C17: =C16*Ort!$I7 -> 0 | D17: =D16*Ort!$I7 -> 0 | E17: =E16*Ort!$I7 -> 0 | F17: =F16*Ort!$I7 -> 0 | G17: =G16*Ort!$I7 -> 0 | H17: =H16*Ort!$I7 -> 0 | I17: =I16*Ort!$I7 -> 0 | J17: =J16*Ort!$I7 -> 0.5016900323 | K17: =K16*Ort!$I7 -> 2.870127797 | L17: =L16*Ort!$I7 -> 3.862545934 | M17: =M16*Ort!$I7 -> 4.127762475 | N17: =N16*Ort!$I7 -> 3.862545934 | O17: =O16*Ort!$I7 -> 2.870127797 | P17: =P16*Ort!$I7 -> 0.5016900323 | Q17: =Q16*Ort!$I7 -> 0 | R17: =R16*Ort!$I7 -> 0 | S17: =S16*Ort!$I7 -> 0 | T17: =T16*Ort!$I7 -> 0 | U17: =U16*Ort!$I7 -> 0 | V17: =V16*Ort!$I7 -> 0 | W17: =W16*Ort!$I7 -> 0 | X17: =X16*Ort!$I7 -> 0 | Y17: =Y16*Ort!$I7 -> 0 | Z17: 18.59649
A18: Direktstr, IDH | B18: =IF(B13<0,0,B17*SIN(B13*PI()/180)) -> 0 | C18: 0 | D18: 0 | E18: 0 | F18: 0 | G18: 0 | H18: 0 | I18: 0 | J18: 0.02311922564 | K18: 0.3508825246 | L18: 0.6571585332 | M18: 0.7696958227 | N18: 0.6571585332 | O18: 0.3508825246 | P18: 0.02311922564 | Q18: 0 | R18: 0 | S18: 0 | T18: 0 | U18: 0 | V18: 0 | W18: 0 | X18: 0 | Y18: 0 | Z18: 2.83201639
A19: Diffusstrålning, IdH | B19: =IF(B13<0,0,244*SIN(B13*PI()/180)) -> 0 | C19: 0 | D19: 0 | E19: 0 | F19: 0 | G19: 0 | H19: 0 | I19: 0 | J19: 11.24417607 | K19: 29.82979926 | L19: 41.51321042 | M19: 45.49820439 | N19: 41.51321042 | O19: 29.82979926 | P19: 11.24417607 | Q19: 0 | R19: 0 | S19: 0 | T19: 0 | U19: 0 | V19: 0 | W19: 0 | X19: 0 | Y19: 0 | Z19: 210.6725759
A20: andel,% | B20: =B19/$Z19 -> 0 | C20: 0 | D20: 0 | E20: 0 | F20: 0 | G20: 0 | H20: 0 | I20: 0 | J20: 0.0533727564 | K20: 0.1415931767 | L20: 0.1970508513 | M20: 0.2159664313 | N20: 0.1970508513 | O20: 0.1415931767 | P20: 0.0533727564 | Q20: 0 | R20: 0 | S20: 0 | T20: 0 | U20: 0 | V20: 0 | W20: 0 | X20: 0 | Y20: 0 | Z20: 1
A21: Global, IDH + IdH fördelad | B21: =B20*Ort!$O7 -> 0 | C21: =C20*Ort!$O7 -> 0 | D21: =D20*Ort!$O7 -> 0 | E21: =E20*Ort!$O7 -> 0 | F21: =F20*Ort!$O7 -> 0 | G21: =G20*Ort!$O7 -> 0 | H21: =H20*Ort!$O7 -> 0 | I21: =I20*Ort!$O7 -> 0 | J21: =J20*Ort!$O7 -> 0.4921507205 | K21: =K20*Ort!$O7 -> 1.305632098 | L21: =L20*Ort!$O7 -> 1.81700787 | M21: =M20*Ort!$O7 -> 1.991428623 | N21: =N20*Ort!$O7 -> 1.81700787 | O21: =O20*Ort!$O7 -> 1.305632098 | P21: =P20*Ort!$O7 -> 0.4921507205 | Q21: =Q20*Ort!$O7 -> 0 | R21: =R20*Ort!$O7 -> 0 | S21: =S20*Ort!$O7 -> 0 | T21: =T20*Ort!$O7 -> 0 | U21: =U20*Ort!$O7 -> 0 | V21: =V20*Ort!$O7 -> 0 | W21: =W20*Ort!$O7 -> 0 | X21: =X20*Ort!$O7 -> 0 | Y21: =Y20*Ort!$O7 -> 0 | Z21: 9.22101
A22: Diffusstrål, IdH fördelad | B22: =B21-B18 -> 0 | C22: 0 | D22: 0 | E22: 0 | F22: 0 | G22: 0 | H22: 0 | I22: 0 | J22: 0.4690314948 | K22: 0.9547495734 | L22: 1.159849337 | M22: 1.2217328 | N22: 1.159849337 | O22: 0.9547495734 | P22: 0.4690314948 | Q22: 0 | R22: 0 | S22: 0 | T22: 0 | U22: 0 | V22: 0 | W22: 0 | X22: 0 | Y22: 0 | Z22: 6.38899361
A24: Februari | B24: deklination | C24: -10.9
A25: Kl | B25: 1 | C25: 2 | D25: 3 | E25: 4 | F25: 5 | G25: 6 | H25: 7 | I25: 8 | J25: 9 | K25: 10 | L25: 11 | M25: 12 | N25: 13 | O25: 14 | P25: 15 | Q25: 16 | R25: 17 | S25: 18 | T25: 19 | U25: 20 | V25: 21 | W25: 22 | X25: 23 | Y25: 24
A26: solhöjd | B26: =ASIN(SIN($C$8*PI()/180)*SIN($C24*PI()/180)+COS($C$8*PI()/180)*COS($C24*PI()/180)*COS((B25+12)*15*PI()/180))*180/PI() -> -40.2538312 | C26: -36.59609557 | D26: -31.10606329 | E26: -24.39074243 | F26: -16.99180363 | G26: -9.362709527 | H26: -1.898714371 | I26: 5.024955316 | J26: 11.02610886 | K26: 15.7120267 | L26: 18.71175775 | M26: 19.746735 | N26: 18.71175775 | O26: 15.7120267 | P26: 11.02610886 | Q26: 5.024955316 | R26: -1.898714371 | S26: -9.362709527 | T26: -16.99180363 | U26: -24.39074243 | V26: -31.10606329 | W26: -36.59609557 | X26: -40.2538312 | Y26: -41.546735
A27: azimut | B27: =-(180+ASIN((SIN((B25*15-180)*PI()/180)*(COS($C24*PI()/180))/(COS(B26*PI()/180))))*180/PI()) -> -160.5484308 | C27: =-(180+ASIN((SIN((C25*15-180)*PI()/180)*(COS($C24*PI()/180))/(COS(C26*PI()/180))))*180/PI()) -> -142.2991055 | D27: =-(180+ASIN((SIN((D25*15-180)*PI()/180)*(COS($C24*PI()/180))/(COS(D26*PI()/180))))*180/PI()) -> -125.8106661 | E27: =-(180+ASIN((SIN((E25*15-180)*PI()/180)*(COS($C24*PI()/180))/(COS(E26*PI()/180))))*180/PI()) -> -110.9749795 | F27: =-(180+ASIN((SIN((F25*15-180)*PI()/180)*(COS($C24*PI()/180))/(COS(F26*PI()/180))))*180/PI()) -> -97.34492297 | G27: =(ASIN((SIN((G25*15-180)*PI()/180)*(COS($C24*PI()/180))/(COS(G26*PI()/180))))*180/PI()) -> -84.39374409 | H27: -71.62621457 | I27: -58.61445303 | J27: -45.02443913 | K27: -30.66628929 | L27: -15.56506334 | M27: 0 | N27: 15.56506334 | O27: 30.66628929 | P27: 45.02443913 | Q27: 58.61445303 | R27: 71.62621457 | S27: 84.39374409 | T27: =(180-ASIN((SIN((T25*15-180)*PI()/180)*(COS($C24*PI()/180))/(COS(T26*PI()/180))))*180/PI()) -> 97.34492297 | U27: 110.9749795 | V27: 125.8106661 | W27: 142.2991055 | X27: 160.5484308 | Y27: 180 | Z27: Summa
A28: Direktstr, IDN | B28: =IF(B26<0,0,1071*EXP(-0.129/SIN(B26*PI()/180))) -> 0 | C28: 0 | D28: 0 | E28: 0 | F28: 0 | G28: 0 | H28: 0 | I28: 245.5672834 | J28: 545.5859996 | K28: 665.1324352 | L28: 716.3992318 | M28: 731.0900235 | N28: 716.3992318 | O28: 665.1324352 | P28: 545.5859996 | Q28: 245.5672834 | R28: 0 | S28: 0 | T28: 0 | U28: 0 | V28: 0 | W28: 0 | X28: 0 | Y28: 0 | Z28: =SUM(B28:Y28) -> 5076.459923
A29: andel,% | B29: =B28/$Z28 -> 0 | C29: 0 | D29: 0 | E29: 0 | F29: 0 | G29: 0 | H29: 0 | I29: 0.04837372639 | J29: 0.1074737135 | K29: 0.131022887 | L29: 0.1411218137 | M29: 0.1440157185 | N29: 0.1411218137 | O29: 0.131022887 | P29: 0.1074737135 | Q29: 0.04837372639 | R29: 0 | S29: 0 | T29: 0 | U29: 0 | V29: 0 | W29: 0 | X29: 0 | Y29: 0 | Z29: 1 | AB29: =-(180+ASIN((SIN((B38*15-180)*PI()/180)*(COS($C37*PI()/180))/(COS(B39*PI()/180))))*180/PI()) -> -162.7007698
A30: Uppmätt IDN fördelad | B30: =B29*Ort!$I8 -> 0 | C30: =C29*Ort!$I8 -> 0 | D30: =D29*Ort!$I8 -> 0 | E30: =E29*Ort!$I8 -> 0 | F30: =F29*Ort!$I8 -> 0 | G30: =G29*Ort!$I8 -> 0 | H30: =H29*Ort!$I8 -> 0 | I30: =I29*Ort!$I8 -> 1.44804815 | J30: =J29*Ort!$I8 -> 3.217182625 | K30: =K29*Ort!$I8 -> 3.922117715 | L30: =L29*Ort!$I8 -> 4.224425046 | M30: =M29*Ort!$I8 -> 4.311052928 | N30: =N29*Ort!$I8 -> 4.224425046 | O30: =O29*Ort!$I8 -> 3.922117715 | P30: =P29*Ort!$I8 -> 3.217182625 | Q30: =Q29*Ort!$I8 -> 1.44804815 | R30: =R29*Ort!$I8 -> 0 | S30: =S29*Ort!$I8 -> 0 | T30: =T29*Ort!$I8 -> 0 | U30: =U29*Ort!$I8 -> 0 | V30: =V29*Ort!$I8 -> 0 | W30: =W29*Ort!$I8 -> 0 | X30: =X29*Ort!$I8 -> 0 | Y30: =Y29*Ort!$I8 -> 0 | Z30: 29.9346
A31: Direktstr, IDH | B31: =IF(B26<0,0,B30*SIN(B26*PI()/180)) -> 0 | C31: 0 | D31: 0 | E31: 0 | F31: 0 | G31: 0 | H31: 0 | I31: 0.1268340009 | J31: 0.6153064096 | K31: 1.062119339 | L31: 1.355226656 | M31: 1.45654564 | N31: 1.355226656 | O31: 1.062119339 | P31: 0.6153064096 | Q31: 0.1268340009 | R31: 0 | S31: 0 | T31: 0 | U31: 0 | V31: 0 | W31: 0 | X31: 0 | Y31: 0 | Z31: 7.77551845 | AB31: =-(180+ASIN((SIN((D38*15-180)*PI()/180)))) -> -179.2146018
A32: Global, IdH | B32: =IF(B26<0,0,244*SIN(B26*PI()/180)) -> 0 | C32: 0 | D32: 0 | E32: 0 | F32: 0 | G32: 0 | H32: 0 | I32: 21.3718696 | J32: 46.66653449 | K32: 66.07581351 | L32: 78.27699637 | M32: 82.43859263 | N32: 78.27699637 | O32: 66.07581351 | P32: 46.66653449 | Q32: 21.3718696 | R32: 0 | S32: 0 | T32: 0 | U32: 0 | V32: 0 | W32: 0 | X32: 0 | Y32: 0 | Z32: 507.2210205
A33: andel,% | B33: =B32/$Z32 -> 0 | C33: 0 | D33: 0 | E33: 0 | F33: 0 | G33: 0 | H33: 0 | I33: 0.04213522061 | J33: 0.09200433853 | K33: 0.1302702586 | L33: 0.1543252215 | M33: 0.1625299215 | N33: 0.1543252215 | O33: 0.1302702586 | P33: 0.09200433853 | Q33: 0.04213522061 | R33: 0 | S33: 0 | T33: 0 | U33: 0 | V33: 0 | W33: 0 | X33: 0 | Y33: 0 | Z33: 1
A34: Global IDH + IdH fördelad | B34: =B33*Ort!$O8 -> 0 | C34: =C33*Ort!$O8 -> 0 | D34: =D33*Ort!$O8 -> 0 | E34: =E33*Ort!$O8 -> 0 | F34: =F33*Ort!$O8 -> 0 | G34: =G33*Ort!$O8 -> 0 | H34: =H33*Ort!$O8 -> 0 | I34: =I33*Ort!$O8 -> 0.925352226 | J34: =J33*Ort!$O8 -> 2.020552361 | K34: =K33*Ort!$O8 -> 2.860928981 | L34: =L33*Ort!$O8 -> 3.38921181 | M34: =M33*Ort!$O8 -> 3.569399245 | N34: =N33*Ort!$O8 -> 3.38921181 | O34: =O33*Ort!$O8 -> 2.860928981 | P34: =P33*Ort!$O8 -> 2.020552361 | Q34: =Q33*Ort!$O8 -> 0.925352226 | R34: =R33*Ort!$O8 -> 0 | S34: =S33*Ort!$O8 -> 0 | T34: =T33*Ort!$O8 -> 0 | U34: =U33*Ort!$O8 -> 0 | V34: =V33*Ort!$O8 -> 0 | W34: =W33*Ort!$O8 -> 0 | X34: =X33*Ort!$O8 -> 0 | Y34: =Y33*Ort!$O8 -> 0 | Z34: 21.96149
A35: Diffusstrål IdH | B35: =B34-B31 -> 0 | C35: 0 | D35: 0 | E35: 0 | F35: 0 | G35: 0 | H35: 0 | I35: 0.798518225 | J35: 1.405245951 | K35: 1.798809642 | L35: 2.033985154 | M35: 2.112853605 | N35: 2.033985154 | O35: 1.798809642 | P35: 1.405245951 | Q35: 0.798518225 | R35: 0 | S35: 0 | T35: 0 | U35: 0 | V35: 0 | W35: 0 | X35: 0 | Y35: 0 | Z35: 14.18597155
A37: Mars | B37: deklination | C37: 0
A38: Kl | B38: 1 | C38: 2 | D38: 3 | E38: 4 | F38: 5 | G38: 6 | H38: 7 | I38: 8 | J38: 9 | K38: 10 | L38: 11 | M38: 12 | N38: 13 | O38: 14 | P38: 15 | Q38: 16 | R38: 17 | S38: 18 | T38: 19 | U38: 20 | V38: 21 | W38: 22 | X38: 23 | Y38: 24
A39: solhöjd | B39: =ASIN(SIN($C$8*PI()/180)*SIN($C37*PI()/180)+COS($C$8*PI()/180)*COS($C37*PI()/180)*COS((B38+12)*15*PI()/180))*180/PI() -> -29.49675416 | C39: -26.19647681 | D39: -21.12740279 | E39: -14.76598101 | F39: -7.581208085 | G39: -5.367278923e-15 | H39: 7.581208085 | I39: 14.76598101 | J39: 21.12740279 | K39: 26.19647681 | L39: 29.49675416 | M39: 30.646735 | N39: 29.49675416 | O39: 26.19647681 | P39: 21.12740279 | Q39: 14.76598101 | R39: 7.581208085 | S39: 8.945464872e-15 | T39: -7.581208085 | U39: -14.76598101 | V39: -21.12740279 | W39: -26.19647681 | X39: -29.49675416 | Y39: -30.646735
A40: azimut | B40: =-(180+ASIN((SIN((B38*15-180)*PI()/180)*(COS($C37*PI()/180))/(COS(B39*PI()/180))))*180/PI()) -> -162.7007698 | C40: =-(180+ASIN((SIN((C38*15-180)*PI()/180)*(COS($C37*PI()/180))/(COS(C39*PI()/180))))*180/PI()) -> -146.1351206 | D40: =-(180+ASIN((SIN((D38*15-180)*PI()/180)*(COS($C37*PI()/180))/(COS(D39*PI()/180))))*180/PI()) -> -130.7062838 | E40: =-(180+ASIN((SIN((E38*15-180)*PI()/180)*(COS($C37*PI()/180))/(COS(E39*PI()/180))))*180/PI()) -> -116.4140389 | F40: =-(180+ASIN((SIN((F38*15-180)*PI()/180)*(COS($C37*PI()/180))/(COS(F39*PI()/180))))*180/PI()) -> -102.9812648 | G40: =(ASIN((SIN((G38*15-180)*PI()/180)*(COS($C37*PI()/180))/(COS(G39*PI()/180))))*180/PI()) -> -90 | H40: -77.01873518 | I40: -63.58596111 | J40: -49.29371618 | K40: -33.86487941 | L40: -17.29923017 | M40: 0 | N40: 17.29923017 | O40: 33.86487941 | P40: 49.29371618 | Q40: 63.58596111 | R40: 77.01873518 | S40: 90 | T40: =(180-ASIN((SIN((T38*15-180)*PI()/180)*(COS($C37*PI()/180))/(COS(T39*PI()/180))))*180/PI()) -> 102.9812648 | U40: 116.4140389 | V40: 130.7062838 | W40: 146.1351206 | X40: 162.7007698 | Y40: 180 | Z40: Summa | AB40: =ASIN((SIN((B38*15-180)))) -> -1.50441064
A41: Direktstr, IDN | B41: =IF(B39<0,0,1071*EXP(-0.129/SIN(B39*PI()/180))) -> 0 | C41: 0 | D41: 0 | E41: 0 | F41: 0 | G41: 0 | H41: 402.8508241 | I41: 645.6199369 | J41: 748.7874119 | K41: 799.614467 | L41: 824.1497449 | M41: 831.5401087 | N41: 824.1497449 | O41: 799.614467 | P41: 748.7874119 | Q41: 645.6199369 | R41: 402.8508241 | S41: 0 | T41: 0 | U41: 0 | V41: 0 | W41: 0 | X41: 0 | Y41: 0 | Z41: =SUM(B41:Y41) -> 7673.584878 | AB41: =(COS($C37*PI()/180))/(COS(B39*PI()/180))*180/PI() -> 65.8281936
A42: andel,% | B42: =B41/$Z41 -> 0 | C42: 0 | D42: 0 | E42: 0 | F42: 0 | G42: 0 | H42: 0.05249838641 | I42: 0.08413537442 | J42: 0.09757986962 | K42: 0.1042035085 | L42: 0.1074008769 | M42: 0.1083639683 | N42: 0.1074008769 | O42: 0.1042035085 | P42: 0.09757986962 | Q42: 0.08413537442 | R42: 0.05249838641 | S42: 0 | T42: 0 | U42: 0 | V42: 0 | W42: 0 | X42: 0 | Y42: 0 | Z42: 1
A43: Uppmätt IDN fördelad | B43: =B42*Ort!$I9 -> 0 | C43: =C42*Ort!$I9 -> 0 | D43: =D42*Ort!$I9 -> 0 | E43: =E42*Ort!$I9 -> 0 | F43: =F42*Ort!$I9 -> 0 | G43: =G42*Ort!$I9 -> 0 | H43: =H42*Ort!$I9 -> 4.925142421 | I43: =I42*Ort!$I9 -> 7.893170247 | J43: =J42*Ort!$I9 -> 9.154467178 | K43: =K42*Ort!$I9 -> 9.775864653 | L43: =L42*Ort!$I9 -> 10.07582615 | M43: =M42*Ort!$I9 -> 10.16617869 | N43: =N42*Ort!$I9 -> 10.07582615 | O43: =O42*Ort!$I9 -> 9.775864653 | P43: =P42*Ort!$I9 -> 9.154467178 | Q43: =Q42*Ort!$I9 -> 7.893170247 | R43: =R42*Ort!$I9 -> 4.925142421 | S43: =S42*Ort!$I9 -> 0 | T43: =T42*Ort!$I9 -> 0 | U43: =U42*Ort!$I9 -> 0 | V43: =V42*Ort!$I9 -> 0 | W43: =W42*Ort!$I9 -> 0 | X43: =X42*Ort!$I9 -> 0 | Y43: =Y42*Ort!$I9 -> 0 | Z43: 93.81512
A44: Direktstr, IDH | B44: =IF(B39<0,0,B43*SIN(B39*PI()/180)) -> 0 | C44: 0 | D44: 0 | E44: 0 | F44: 0 | G44: 0 | H44: 0.649780361 | I44: 2.011745467 | J44: 3.299663335 | K44: 4.315562083 | L44: 4.961077377 | M44: 5.182141842 | N44: 4.961077377 | O44: 4.315562083 | P44: 3.299663335 | Q44: 2.011745467 | R44: 0.649780361 | S44: 0 | T44: 0 | U44: 0 | V44: 0 | W44: 0 | X44: 0 | Y44: 0 | Z44: 35.65779909
A45: Global, IdH | B45: =IF(B39<0,0,244*SIN(B39*PI()/180)) -> 0 | C45: 0 | D45: 0 | E45: 0 | F45: 0 | G45: 0 | H45: 32.19123317 | I45: 62.188687 | J45: 87.94808458 | K45: 107.7139655 | L45: 120.1393178 | M45: 124.377374 | N45: 120.1393178 | O45: 107.7139655 | P45: 87.94808458 | Q45: 62.188687 | R45: 32.19123317 | S45: 3.80951869e-14 | T45: 0 | U45: 0 | V45: 0 | W45: 0 | X45: 0 | Y45: 0 | Z45: 944.7399501
A46: andel,% | B46: =B45/$Z45 -> 0 | C46: 0 | D46: 0 | E46: 0 | F46: 0 | G46: 0 | H46: 0.03407417371 | I46: 0.06582624879 | J46: 0.0930923738 | K46: 0.1140144074 | L46: 0.1271665475 | M46: 0.1316524976 | N46: 0.1271665475 | O46: 0.1140144074 | P46: 0.0930923738 | Q46: 0.06582624879 | R46: 0.03407417371 | S46: 4.03234635e-17 | T46: 0 | U46: 0 | V46: 0 | W46: 0 | X46: 0 | Y46: 0 | Z46: 1
A47: Global, IDH + IdH fördelad | B47: =B46*Ort!$O9 -> 0 | C47: =C46*Ort!$O9 -> 0 | D47: =D46*Ort!$O9 -> 0 | E47: =E46*Ort!$O9 -> 0 | F47: =F46*Ort!$O9 -> 0 | G47: =G46*Ort!$O9 -> 0 | H47: =H46*Ort!$O9 -> 2.318450735 | I47: =I46*Ort!$O9 -> 4.478902884 | J47: =J46*Ort!$O9 -> 6.334125203 | K47: =K46*Ort!$O9 -> 7.757687357 | L47: =L46*Ort!$O9 -> 8.652575938 | M47: =M46*Ort!$O9 -> 8.957805768 | N47: =N46*Ort!$O9 -> 8.652575938 | O47: =O46*Ort!$O9 -> 7.757687357 | P47: =P46*Ort!$O9 -> 6.334125203 | Q47: =Q46*Ort!$O9 -> 4.478902884 | R47: =R46*Ort!$O9 -> 2.318450735 | S47: =S46*Ort!$O9 -> 2.743660474e-15 | T47: =T46*Ort!$O9 -> 0 | U47: =U46*Ort!$O9 -> 0 | V47: =V46*Ort!$O9 -> 0 | W47: =W46*Ort!$O9 -> 0 | X47: =X46*Ort!$O9 -> 0 | Y47: =Y46*Ort!$O9 -> 0 | Z47: 68.04129 | AB47: =Z44+Z48 -> 68.04129
A48: Diffusstrål, IdH fördelad | B48: =B47-B44 -> 0 | C48: 0 | D48: 0 | E48: 0 | F48: 0 | G48: 0 | H48: 1.668670374 | I48: 2.467157417 | J48: 3.034461868 | K48: 3.442125274 | L48: 3.691498561 | M48: 3.775663926 | N48: 3.691498561 | O48: 3.442125274 | P48: 3.034461868 | Q48: 2.467157417 | R48: 1.668670374 | S48: 2.743660474e-15 | T48: 0 | U48: 0 | V48: 0 | W48: 0 | X48: 0 | Y48: 0 | Z48: 32.38349091
A50: April | B50: deklination | C50: 10.9
A51: Kl | B51: 1 | C51: 2 | D51: 3 | E51: 4 | F51: 5 | G51: 6 | H51: 7 | I51: 8 | J51: 9 | K51: 10 | L51: 11 | M51: 12 | N51: 13 | O51: 14 | P51: 15 | Q51: 16 | R51: 17 | S51: 18 | T51: 19 | U51: 20 | V51: 21 | W51: 22 | X51: 23 | Y51: 24
A52: solhöjd | B52: =ASIN(SIN($C$8*PI()/180)*SIN($C50*PI()/180)+COS($C$8*PI()/180)*COS($C50*PI()/180)*COS((B51+12)*15*PI()/180))*180/PI() -> -18.71175775 | C52: -15.7120267 | D52: -11.02610886 | E52: -5.024955316 | F52: 1.898714371 | G52: 9.362709527 | H52: 16.99180363 | I52: 24.39074243 | J52: 31.10606329 | K52: 36.59609557 | L52: 40.2538312 | M52: 41.546735 | N52: 40.2538312 | O52: 36.59609557 | P52: 31.10606329 | Q52: 24.39074243 | R52: 16.99180363 | S52: 9.362709527 | T52: 1.898714371 | U52: -5.024955316 | V52: -11.02610886 | W52: -15.7120267 | X52: -18.71175775 | Y52: -19.746735
A53: azimut | B53: =-(180+ASIN((SIN((B51*15-180)*PI()/180)*(COS($C50*PI()/180))/(COS(B52*PI()/180))))*180/PI()) -> -164.4349367 | C53: -149.3337107 | D53: -134.9755609 | E53: -121.385547 | F53: -108.3737854 | G53: -95.60625591 | H53: =(ASIN((SIN((H51*15-180)*PI()/180)*(COS($C50*PI()/180))/(COS(H52*PI()/180))))*180/PI()) -> -82.65507703 | I53: -69.02502046 | J53: -54.18933392 | K53: -37.70089446 | L53: -19.45156921 | M53: 0 | N53: 19.45156921 | O53: 37.70089446 | P53: 54.18933392 | Q53: 69.02502046 | R53: 82.65507703 | S53: =(180-ASIN((SIN((S51*15-180)*PI()/180)*(COS($C50*PI()/180))/(COS(S52*PI()/180))))*180/PI()) -> 95.60625591 | T53: 108.3737854 | U53: 121.385547 | V53: 134.9755609 | W53: 149.3337107 | X53: 164.4349367 | Y53: 180 | Z53: Summa
A54: Direktstr, IDN | B54: =IF(B52<0,0,1071*EXP(-0.129/SIN(B52*PI()/180))) -> 0 | C54: 0 | D54: 0 | E54: 0 | F54: 21.82202166 | G54: 484.6364042 | H54: 688.7803003 | I54: 783.6536035 | J54: 834.3475164 | K54: 862.6136402 | L54: 877.1795936 | M54: 881.6945007 | N54: 877.1795936 | O54: 862.6136402 | P54: 834.3475164 | Q54: 783.6536035 | R54: 688.7803003 | S54: 484.6364042 | T54: 21.82202166 | U54: 0 | V54: 0 | W54: 0 | X54: 0 | Y54: 0 | Z54: =SUM(B54:Y54) -> 9987.76066
A55: andel,% | B55: =B54/$Z54 -> 0 | C55: 0 | D55: 0 | E55: 0 | F55: 0.00218487631 | G55: 0.04852302941 | H55: 0.06896243549 | I55: 0.07846139192 | J55: 0.0835369954 | K55: 0.08636707161 | L55: 0.08782545191 | M55: 0.0882774959 | N55: 0.08782545191 | O55: 0.08636707161 | P55: 0.0835369954 | Q55: 0.07846139192 | R55: 0.06896243549 | S55: 0.04852302941 | T55: 0.00218487631 | U55: 0 | V55: 0 | W55: 0 | X55: 0 | Y55: 0 | Z55: 1
A56: Uppmätt IDN fördelad | B56: =B55*Ort!$I10 -> 0 | C56: =C55*Ort!$I10 -> 0 | D56: =D55*Ort!$I10 -> 0 | E56: =E55*Ort!$I10 -> 0 | F56: =F55*Ort!$I10 -> 0.2942210372 | G56: =G55*Ort!$I10 -> 6.534235359 | H56: =H55*Ort!$I10 -> 9.286658107 | I56: =I55*Ort!$I10 -> 10.5658119 | J56: =J55*Ort!$I10 -> 11.24930566 | K56: =K55*Ort!$I10 -> 11.63041096 | L56: =L55*Ort!$I10 -> 11.82680019 | M56: =M55*Ort!$I10 -> 11.88767359 | N56: =N55*Ort!$I10 -> 11.82680019 | O56: =O55*Ort!$I10 -> 11.63041096 | P56: =P55*Ort!$I10 -> 11.24930566 | Q56: =Q55*Ort!$I10 -> 10.5658119 | R56: =R55*Ort!$I10 -> 9.286658107 | S56: =S55*Ort!$I10 -> 6.534235359 | T56: =T55*Ort!$I10 -> 0.2942210372 | U56: =U55*Ort!$I10 -> 0 | V56: =V55*Ort!$I10 -> 0 | W56: =W55*Ort!$I10 -> 0 | X56: =X55*Ort!$I10 -> 0 | Y56: =Y55*Ort!$I10 -> 0 | Z56: 134.66256
A57: Direktstr, IDH | B57: =IF(B52<0,0,B56*SIN(B52*PI()/180)) -> 0 | C57: 0 | D57: 0 | E57: 0 | F57: 0.009748352733 | G57: 1.063014405 | H57: 2.713885593 | I57: 4.363228948 | J57: 5.81166061 | K57: 6.933704028 | L57: 7.642182768 | M57: 7.884270499 | N57: 7.642182768 | O57: 6.933704028 | P57: 5.81166061 | Q57: 4.363228948 | R57: 2.713885593 | S57: 1.063014405 | T57: 0.009748352733 | U57: 0 | V57: 0 | W57: 0 | X57: 0 | Y57: 0 | Z57: 64.95911991
A58: Global, IdH | B58: =IF(B52<0,0,244*SIN(B52*PI()/180)) -> 0 | C58: 0 | D58: 0 | E58: 0 | F58: 8.084391549 | G58: 39.69485343 | H58: 71.30531532 | I58: 100.7615765 | J58: 126.0562414 | K58: 145.4655204 | L58: 157.6667032 | M58: 161.8282995 | N58: 157.6667032 | O58: 145.4655204 | P58: 126.0562414 | Q58: 100.7615765 | R58: 71.30531532 | S58: 39.69485343 | T58: 8.084391549 | U58: 0 | V58: 0 | W58: 0 | X58: 0 | Y58: 0 | Z58: 1459.897503
A59: andel,% | B59: =B58/$Z58 -> 0 | C59: 0 | D59: 0 | E59: 0 | F59: 0.005537643247 | G59: 0.02719016462 | H59: 0.04884268599 | I59: 0.06901962382 | J59: 0.08634595312 | K59: 0.0996409132 | L59: 0.1079984745 | M59: 0.110849083 | N59: 0.1079984745 | O59: 0.0996409132 | P59: 0.08634595312 | Q59: 0.06901962382 | R59: 0.04884268599 | S59: 0.02719016462 | T59: 0.005537643247 | U59: 0 | V59: 0 | W59: 0 | X59: 0 | Y59: 0 | Z59: 1
A60: Global, IDH + IdH fördelad | B60: =B59*Ort!$O10 -> 0 | C60: =C59*Ort!$O10 -> 0 | D60: =D59*Ort!$O10 -> 0 | E60: =E59*Ort!$O10 -> 0 | F60: =F59*Ort!$O10 -> 0.6533503106 | G60: =G59*Ort!$O10 -> 3.2079897 | H60: =H59*Ort!$O10 -> 5.762629089 | I60: =I59*Ort!$O10 -> 8.143174026 | J60: =J59*Ort!$O10 -> 10.18739431 | K60: =K59*Ort!$O10 -> 11.7559797 | L60: =L59*Ort!$O10 -> 12.7420337 | M60: =M59*Ort!$O10 -> 13.07835835 | N60: =N59*Ort!$O10 -> 12.7420337 | O60: =O59*Ort!$O10 -> 11.7559797 | P60: =P59*Ort!$O10 -> 10.18739431 | Q60: =Q59*Ort!$O10 -> 8.143174026 | R60: =R59*Ort!$O10 -> 5.762629089 | S60: =S59*Ort!$O10 -> 3.2079897 | T60: =T59*Ort!$O10 -> 0.6533503106 | U60: =U59*Ort!$O10 -> 0 | V60: =V59*Ort!$O10 -> 0 | W60: =W59*Ort!$O10 -> 0 | X60: =X59*Ort!$O10 -> 0 | Y60: =Y59*Ort!$O10 -> 0 | Z60: 117.98346 | AB60: =Z57+Z61 -> 117.98346
A61: Diffusstrål, IdH fördelad | B61: =B60-B57 -> 0 | C61: 0 | D61: 0 | E61: 0 | F61: 0.6436019579 | G61: 2.144975295 | H61: 3.048743496 | I61: 3.779945078 | J61: 4.375733697 | K61: 4.822275669 | L61: 5.099850928 | M61: 5.194087853 | N61: 5.099850928 | O61: 4.822275669 | P61: 4.375733697 | Q61: 3.779945078 | R61: 3.048743496 | S61: 2.144975295 | T61: 0.6436019579 | U61: 0 | V61: 0 | W61: 0 | X61: 0 | Y61: 0 | Z61: 53.02434009
A63: Maj | B63: deklination | C63: 19.9
A64: Kl | B64: 1 | C64: 2 | D64: 3 | E64: 4 | F64: 5 | G64: 6 | H64: 7 | I64: 8 | J64: 9 | K64: 10 | L64: 11 | M64: 12 | N64: 13 | O64: 14 | P64: 15 | Q64: 16 | R64: 17 | S64: 18 | T64: 19 | U64: 20 | V64: 21 | W64: 22 | X64: 23 | Y64: 24
A65: solhöjd | B65: =ASIN(SIN($C$8*PI()/180)*SIN($C63*PI()/180)+COS($C$8*PI()/180)*COS($C63*PI()/180)*COS((B64+12)*15*PI()/180))*180/PI() -> -9.79573277 | C65: -7.022163423 | D65: -2.641278984 | E65: 3.04870028 | F65: 9.717133714 | G65: 17.02791296 | H65: 24.63845678 | I65: 32.17387331 | J65: 39.17992928 | K65: 45.06661224 | L65: 49.09630297 | M65: 50.546735 | N65: 49.09630297 | O65: 45.06661224 | P65: 39.17992928 | Q65: 32.17387331 | R65: 24.63845678 | S65: 17.02791296 | T65: 9.717133714 | U65: 3.04870028 | V65: -2.641278984 | W65: -7.022163423 | X65: -9.79573277 | Y65: -10.746735
A66: azimut | B66: =-(180+ASIN((SIN((B64*15-180)*PI()/180)*(COS($C63*PI()/180))/(COS(B65*PI()/180))))*180/PI()) -> -165.7020061 | C66: -151.725435 | D66: -138.2723021 | E66: -125.3663821 | F66: -112.8582268 | G66: -100.454874 | H66: =(ASIN((SIN((H64*15-180)*PI()/180)*(COS($C63*PI()/180))/(COS(H65*PI()/180))))*180/PI()) -> -87.73856665 | I66: -74.16458488 | J66: -59.06281508 | K66: -41.73286027 | L66: -21.81853719 | M66: 0 | N66: 21.81853719 | O66: 41.73286027 | P66: 59.06281508 | Q66: 74.16458488 | R66: 87.73856665 | S66: =(180-ASIN((SIN((S64*15-180)*PI()/180)*(COS($C63*PI()/180))/(COS(S65*PI()/180))))*180/PI()) -> 100.454874 | T66: 112.8582268 | U66: 125.3663821 | V66: 138.2723021 | W66: 151.725435 | X66: 165.7020061 | Y66: 180 | Z66: Summa
A67: Direktstr, IDN | B67: =IF(B65<0,0,1071*EXP(-0.129/SIN(B65*PI()/180))) -> 0 | C67: 0 | D67: 0 | E67: 94.71201599 | F67: 498.7266921 | G67: 689.4063072 | H67: 785.9668776 | I67: 840.5783471 | J67: 873.1923768 | K67: 892.5890185 | L67: 902.9530242 | M67: 906.2186446 | N67: 902.9530242 | O67: 892.5890185 | P67: 873.1923768 | Q67: 840.5783471 | R67: 785.9668776 | S67: 689.4063072 | T67: 498.7266921 | U67: 94.71201599 | V67: 0 | W67: 0 | X67: 0 | Y67: 0 | Z67: =SUM(B67:Y67) -> 12062.46796
A68: andel,% | B68: =B67/$Z67 -> 0 | C68: 0 | D68: 0 | E68: 0.007851794199 | F68: 0.04134532781 | G68: 0.05715300627 | H68: 0.06515804892 | I68: 0.06968543665 | J68: 0.07238919759 | K68: 0.07399721361 | L68: 0.07485640807 | M68: 0.07512713379 | N68: 0.07485640807 | O68: 0.07399721361 | P68: 0.07238919759 | Q68: 0.06968543665 | R68: 0.06515804892 | S68: 0.05715300627 | T68: 0.04134532781 | U68: 0.007851794199 | V68: 0 | W68: 0 | X68: 0 | Y68: 0 | Z68: 1
A69: Uppmätt IDN fördelad | B69: =B68*Ort!$I11 -> 0 | C69: =C68*Ort!$I11 -> 0 | D69: =D68*Ort!$I11 -> 0 | E69: =E68*Ort!$I11 -> 1.325939632 | F69: =F68*Ort!$I11 -> 6.982023131 | G69: =G68*Ort!$I11 -> 9.651480178 | H69: =H68*Ort!$I11 -> 11.00329901 | I69: =I68*Ort!$I11 -> 11.7678431 | J69: =J68*Ort!$I11 -> 12.22442967 | K69: =K68*Ort!$I11 -> 12.4959768 | L69: =L68*Ort!$I11 -> 12.64106975 | M69: =M68*Ort!$I11 -> 12.68678745 | N69: =N68*Ort!$I11 -> 12.64106975 | O69: =O68*Ort!$I11 -> 12.4959768 | P69: =P68*Ort!$I11 -> 12.22442967 | Q69: =Q68*Ort!$I11 -> 11.7678431 | R69: =R68*Ort!$I11 -> 11.00329901 | S69: =S68*Ort!$I11 -> 9.651480178 | T69: =T68*Ort!$I11 -> 6.982023131 | U69: =U68*Ort!$I11 -> 1.325939632 | V69: =V68*Ort!$I11 -> 0 | W69: =W68*Ort!$I11 -> 0 | X69: =X68*Ort!$I11 -> 0 | Y69: =Y68*Ort!$I11 -> 0 | Z69: 168.87091
A70: Direktstr, IDH | B70: =B69*SIN(B65*PI()/180) -> 0 | C70: 0 | D70: 0 | E70: 0.07051977126 | F70: 1.178454745 | G70: 2.826315867 | H70: 4.587176059 | I70: 6.266263001 | J70: 7.722878804 | K70: 8.846256706 | L70: 9.554262352 | M70: 9.796016185 | N70: 9.554262352 | O70: 8.846256706 | P70: 7.722878804 | Q70: 6.266263001 | R70: 4.587176059 | S70: 2.826315867 | T70: 1.178454745 | U70: 0.07051977126 | V70: 0 | W70: 0 | X70: 0 | Y70: 0 | Z70: 91.9002708
A71: Global, IdH | B71: =IF(B65<0,0,244*SIN(B65*PI()/180)) -> 0 | C71: 0 | D71: 0 | E71: 12.97707963 | F71: 41.18332931 | G71: 71.45236365 | H71: 101.721398 | I71: 129.9276477 | J71: 154.1489034 | K71: 172.7345266 | L71: 184.4179377 | M71: 188.4029317 | N71: 184.4179377 | O71: 172.7345266 | P71: 154.1489034 | Q71: 129.9276477 | R71: 101.721398 | S71: 71.45236365 | T71: 41.18332931 | U71: 12.97707963 | V71: 0 | W71: 0 | X71: 0 | Y71: 0 | Z71: 1925.529304
A72: andel,% | B72: =B71/$Z71 -> 0 | C72: 0 | D72: 0 | E72: 0.00673948696 | F72: 0.02138805638 | G72: 0.03710790769 | H72: 0.052827759 | I72: 0.06747632842 | J72: 0.08005534016 | K72: 0.08970755534 | L72: 0.09577519147 | M72: 0.09784474915 | N72: 0.09577519147 | O72: 0.08970755534 | P72: 0.08005534016 | Q72: 0.06747632842 | R72: 0.052827759 | S72: 0.03710790769 | T72: 0.02138805638 | U72: 0.00673948696 | V72: 0 | W72: 0 | X72: 0 | Y72: 0 | Z72: 1
A73: Global, IDH + IdH fördelad | B73: =B72*Ort!$O11 -> 0 | C73: =C72*Ort!$O11 -> 0 | D73: =D72*Ort!$O11 -> 0 | E73: =E72*Ort!$O11 -> 1.082470651 | F73: =F72*Ort!$O11 -> 3.435267914 | G73: =G72*Ort!$O11 -> 5.960130381 | H73: =H72*Ort!$O11 -> 8.484992849 | I73: =I72*Ort!$O11 -> 10.83779011 | J73: =J72*Ort!$O11 -> 12.85818292 | K73: =K72*Ort!$O11 -> 14.40848486 | L73: =L72*Ort!$O11 -> 15.38304539 | M73: =M72*Ort!$O11 -> 15.71544984 | N73: =N72*Ort!$O11 -> 15.38304539 | O73: =O72*Ort!$O11 -> 14.40848486 | P73: =P72*Ort!$O11 -> 12.85818292 | Q73: =Q72*Ort!$O11 -> 10.83779011 | R73: =R72*Ort!$O11 -> 8.484992849 | S73: =S72*Ort!$O11 -> 5.960130381 | T73: =T72*Ort!$O11 -> 3.435267914 | U73: =U72*Ort!$O11 -> 1.082470651 | V73: =V72*Ort!$O11 -> 0 | W73: =W72*Ort!$O11 -> 0 | X73: =X72*Ort!$O11 -> 0 | Y73: =Y72*Ort!$O11 -> 0 | Z73: 160.61618 | AB73: =Z70+Z74 -> 160.61618
A74: Diffusstrål, IdH fördelad | B74: =B73-B70 -> 0 | C74: 0 | D74: 0 | E74: 1.011950879 | F74: 2.256813168 | G74: 3.133814514 | H74: 3.89781679 | I74: 4.571527111 | J74: 5.13530412 | K74: 5.56222815 | L74: 5.82878304 | M74: 5.919433657 | N74: 5.82878304 | O74: 5.56222815 | P74: 5.13530412 | Q74: 4.571527111 | R74: 3.89781679 | S74: 3.133814514 | T74: 2.256813168 | U74: 1.011950879 | V74: 0 | W74: 0 | X74: 0 | Y74: 0 | Z74: 68.7159092
A76: Juni | B76: deklination | C76: 23.45
A77: Kl | B77: 1 | C77: 2 | D77: 3 | E77: 4 | F77: 5 | G77: 6 | H77: 7 | I77: 8 | J77: 9 | K77: 10 | L77: 11 | M77: 12 | N77: 13 | O77: 14 | P77: 15 | Q77: 16 | R77: 17 | S77: 18 | T77: 19 | U77: 20 | V77: 21 | W77: 22 | X77: 23 | Y77: 24
A78: solhöjd | B78: =ASIN(SIN($C$8*PI()/180)*SIN($C76*PI()/180)+COS($C$8*PI()/180)*COS($C76*PI()/180)*COS((B77+12)*15*PI()/180))*180/PI() -> -6.277395794 | C78: -3.590468323 | D78: 0.6699523568 | E78: 6.231421067 | F78: 12.78722036 | G78: 20.02107487 | H78: 27.60675669 | I78: 35.18280056 | J78: 42.30204554 | K78: 48.36186386 | L78: 52.56785109 | M78: 54.096735 | N78: 52.56785109 | O78: 48.36186386 | P78: 42.30204554 | Q78: 35.18280056 | R78: 27.60675669 | S78: 20.02107487 | T78: 12.78722036 | U78: 6.231421067 | V78: 0.6699523568 | W78: -3.590468323 | X78: -6.277395794 | Y78: -7.196735
A79: azimut | B79: =-(180+ASIN((SIN((B77*15-180)*PI()/180)*(COS($C76*PI()/180))/(COS(B78*PI()/180))))*180/PI()) -> -166.1798581 | C79: -152.6383148 | D79: -139.5526102 | E79: -126.9442703 | F79: -114.6758399 | G79: -102.4682838 | H79: =(ASIN((SIN((H77*15-180)*PI()/180)*(COS($C76*PI()/180))/(COS(H78*PI()/180))))*180/PI()) -> -89.90776725 | I79: -76.42902337 | J79: -61.29382282 | K79: -43.66007106 | L79: -22.99465525 | M79: 0 | N79: 22.99465525 | O79: 43.66007106 | P79: 61.29382282 | Q79: 76.42902337 | R79: 89.90776725 | S79: =(180-ASIN((SIN((S77*15-180)*PI()/180)*(COS($C76*PI()/180))/(COS(S78*PI()/180))))*180/PI()) -> 102.4682838 | T79: 114.6758399 | U79: 126.9442703 | V79: 139.5526102 | W79: 152.6383148 | X79: 166.1798581 | Y79: 180 | Z79: Summa
A80: Direktstr, IDN | B80: =IF(B78<0,0,1071*EXP(-0.129/SIN(B78*PI()/180))) -> 0 | C80: 0 | D80: 0.01731359424 | E80: 326.3256367 | F80: 597.9520518 | G80: 734.7703922 | H80: 810.7592726 | I80: 856.1644053 | J80: 884.1971918 | K80: 901.2111414 | L80: 910.409624 | M80: 913.3237594 | N80: 910.409624 | O80: 901.2111414 | P80: 884.1971918 | Q80: 856.1644053 | R80: 810.7592726 | S80: 734.7703922 | T80: 597.9520518 | U80: 326.3256367 | V80: 0.01731359424 | W80: 0 | X80: 0 | Y80: 0 | Z80: =SUM(B80:Y80) -> 12956.93782
A81: andel,% | B81: =B80/$Z80 -> 0 | C81: 0 | D81: 1.336241208e-06 | E81: 0.02518539807 | F81: 0.04614917971 | G81: 0.0567086454 | H81: 0.06257337065 | I81: 0.06607768111 | J81: 0.06824121596 | K81: 0.06955433097 | L81: 0.07026425818 | M81: 0.07048916744 | N81: 0.07026425818 | O81: 0.06955433097 | P81: 0.06824121596 | Q81: 0.06607768111 | R81: 0.06257337065 | S81: 0.0567086454 | T81: 0.04614917971 | U81: 0.02518539807 | V81: 1.336241208e-06 | W81: 0 | X81: 0 | Y81: 0 | Z81: 1
A82: Uppmätt IDN fördelad | B82: =B81*Ort!$I12 -> 0 | C82: =C81*Ort!$I12 -> 0 | D82: =D81*Ort!$I12 -> 0.0002492295767 | E82: =E81*Ort!$I12 -> 4.697464847 | F82: =F81*Ort!$I12 -> 8.607533174 | G82: =G81*Ort!$I12 -> 10.57703625 | H82: =H81*Ort!$I12 -> 11.67089788 | I82: =I81*Ort!$I12 -> 12.32450578 | J82: =J81*Ort!$I12 -> 12.72803837 | K82: =K81*Ort!$I12 -> 12.97295456 | L82: =L81*Ort!$I12 -> 13.10536692 | M82: =M81*Ort!$I12 -> 13.14731597 | N82: =N81*Ort!$I12 -> 13.10536692 | O82: =O81*Ort!$I12 -> 12.97295456 | P82: =P81*Ort!$I12 -> 12.72803837 | Q82: =Q81*Ort!$I12 -> 12.32450578 | R82: =R81*Ort!$I12 -> 11.67089788 | S82: =S81*Ort!$I12 -> 10.57703625 | T82: =T81*Ort!$I12 -> 8.607533174 | U82: =U81*Ort!$I12 -> 4.697464847 | V82: =V81*Ort!$I12 -> 0.0002492295767 | W82: =W81*Ort!$I12 -> 0 | X82: =X81*Ort!$I12 -> 0 | Y82: =Y81*Ort!$I12 -> 0 | Z82: 186.51541
A83: Direktstr, IDH | B83: =B82*SIN(B78*PI()/180) -> 0 | C83: 0 | D83: 2.914143745e-06 | E83: 0.5098841276 | F83: 1.905113824 | G83: 3.62121509 | H83: 5.408300366 | I83: 7.101219941 | J83: 8.566465187 | K83: 9.695415619 | L83: 10.40662713 | M83: 10.64943407 | N83: 10.40662713 | O83: 9.695415619 | P83: 8.566465187 | Q83: 7.101219941 | R83: 5.408300366 | S83: 3.62121509 | T83: 1.905113824 | U83: 0.5098841276 | V83: 2.914143745e-06 | W83: 0 | X83: 0 | Y83: 0 | Z83: 105.0779225
A84: Global, IdH | B84: =IF(B78<0,0,244*SIN(B78*PI()/180)) -> 0 | C84: 0 | D84: 2.852996355 | E84: 26.48486603 | F84: 54.00476113 | G84: 83.53724629 | H84: 113.0697315 | I84: 140.5896266 | J84: 164.2214962 | K84: 182.3548676 | L84: 193.7539814 | M84: 197.6420068 | N84: 193.7539814 | O84: 182.3548676 | P84: 164.2214962 | Q84: 140.5896266 | R84: 113.0697315 | S84: 83.53724629 | T84: 54.00476113 | U84: 26.48486603 | V84: 2.852996355 | W84: 0 | X84: 0 | Y84: 0 | Z84: 2119.381153
A85: andel,% | B85: =B84/$Z84 -> 0 | C85: 0 | D85: 0.00134614595 | E85: 0.01249650918 | F85: 0.02548138217 | G85: 0.03941586731 | H85: 0.05335035244 | I85: 0.06633522543 | J85: 0.07748558866 | K85: 0.08604156329 | L85: 0.09142007379 | M85: 0.09325458356 | N85: 0.09142007379 | O85: 0.08604156329 | P85: 0.07748558866 | Q85: 0.06633522543 | R85: 0.05335035244 | S85: 0.03941586731 | T85: 0.02548138217 | U85: 0.01249650918 | V85: 0.00134614595 | W85: 0 | X85: 0 | Y85: 0 | Z85: 1
A86: Global, IDH + IdH fördelad | B86: =B85*Ort!$O12 -> 0 | C86: =C85*Ort!$O12 -> 0 | D86: =D85*Ort!$O12 -> 0.2371193417 | E86: =E85*Ort!$O12 -> 2.201220478 | F86: =F85*Ort!$O12 -> 4.488464694 | G86: =G85*Ort!$O12 -> 6.942980078 | H86: =H85*Ort!$O12 -> 9.397495461 | I86: =I85*Ort!$O12 -> 11.68473968 | J86: =J85*Ort!$O12 -> 13.64884081 | K86: =K85*Ort!$O12 -> 15.15594862 | L86: =L85*Ort!$O12 -> 16.1033562 | M86: =M85*Ort!$O12 -> 16.42649928 | N86: =N85*Ort!$O12 -> 16.1033562 | O86: =O85*Ort!$O12 -> 15.15594862 | P86: =P85*Ort!$O12 -> 13.64884081 | Q86: =Q85*Ort!$O12 -> 11.68473968 | R86: =R85*Ort!$O12 -> 9.397495461 | S86: =S85*Ort!$O12 -> 6.942980078 | T86: =T85*Ort!$O12 -> 4.488464694 | U86: =U85*Ort!$O12 -> 2.201220478 | V86: =V85*Ort!$O12 -> 0.2371193417 | W86: =W85*Ort!$O12 -> 0 | X86: =X85*Ort!$O12 -> 0 | Y86: =Y85*Ort!$O12 -> 0 | Z86: 176.14683 | AB86: =Z83+Z87 -> 176.14683
A87: Diffusstrål, IdH fördelad | B87: =B86-B83 -> 0 | C87: 0 | D87: 0.2371164276 | E87: 1.69133635 | F87: 2.58335087 | G87: 3.321764987 | H87: 3.989195095 | I87: 4.583519736 | J87: 5.082375626 | K87: 5.460533003 | L87: 5.696729071 | M87: 5.777065212 | N87: 5.696729071 | O87: 5.460533003 | P87: 5.082375626 | Q87: 4.583519736 | R87: 3.989195095 | S87: 3.321764987 | T87: 2.58335087 | U87: 1.69133635 | V87: 0.2371164276 | W87: 0 | X87: 0 | Y87: 0 | Z87: 71.06890754
A89: Juli | B89: deklination | C89: 19.9
A90: Kl | B90: 1 | C90: 2 | D90: 3 | E90: 4 | F90: 5 | G90: 6 | H90: 7 | I90: 8 | J90: 9 | K90: 10 | L90: 11 | M90: 12 | N90: 13 | O90: 14 | P90: 15 | Q90: 16 | R90: 17 | S90: 18 | T90: 19 | U90: 20 | V90: 21 | W90: 22 | X90: 23 | Y90: 24
A91: solhöjd | B91: =ASIN(SIN($C$8*PI()/180)*SIN($C89*PI()/180)+COS($C$8*PI()/180)*COS($C89*PI()/180)*COS((B90+12)*15*PI()/180))*180/PI() -> -9.79573277 | C91: -7.022163423 | D91: -2.641278984 | E91: 3.04870028 | F91: 9.717133714 | G91: 17.02791296 | H91: 24.63845678 | I91: 32.17387331 | J91: 39.17992928 | K91: 45.06661224 | L91: 49.09630297 | M91: 50.546735 | N91: 49.09630297 | O91: 45.06661224 | P91: 39.17992928 | Q91: 32.17387331 | R91: 24.63845678 | S91: 17.02791296 | T91: 9.717133714 | U91: 3.04870028 | V91: -2.641278984 | W91: -7.022163423 | X91: -9.79573277 | Y91: -10.746735
A92: azimut | B92: =-(180+ASIN((SIN((B90*15-180)*PI()/180)*(COS($C89*PI()/180))/(COS(B91*PI()/180))))*180/PI()) -> -165.7020061 | C92: -151.725435 | D92: -138.2723021 | E92: -125.3663821 | F92: -112.8582268 | G92: -100.454874 | H92: =(ASIN((SIN((H90*15-180)*PI()/180)*(COS($C89*PI()/180))/(COS(H91*PI()/180))))*180/PI()) -> -87.73856665 | I92: -74.16458488 | J92: -59.06281508 | K92: -41.73286027 | L92: -21.81853719 | M92: 0 | N92: 21.81853719 | O92: 41.73286027 | P92: 59.06281508 | Q92: 74.16458488 | R92: 87.73856665 | S92: =(180-ASIN((SIN((S90*15-180)*PI()/180)*(COS($C89*PI()/180))/(COS(S91*PI()/180))))*180/PI()) -> 100.454874 | T92: 112.8582268 | U92: 125.3663821 | V92: 138.2723021 | W92: 151.725435 | X92: 165.7020061 | Y92: 180 | Z92: Summa
A93: Direktstr, IDN | C93: =IF(C91<0,0,1071*EXP(-0.129/SIN(C91*PI()/180))) -> 0 | D93: 0 | E93: 94.71201599 | F93: 498.7266921 | G93: 689.4063072 | H93: 785.9668776 | I93: 840.5783471 | J93: 873.1923768 | K93: 892.5890185 | L93: 902.9530242 | M93: 906.2186446 | N93: 902.9530242 | O93: 892.5890185 | P93: 873.1923768 | Q93: 840.5783471 | R93: 785.9668776 | S93: 689.4063072 | T93: 498.7266921 | U93: 94.71201599 | V93: 0 | W93: 0 | X93: 0 | Y93: 0 | Z93: =SUM(B93:Y93) -> 12062.46796
A94: andel,% | B94: =B93/$Z93 -> 0 | C94: 0 | D94: 0 | E94: 0.007851794199 | F94: 0.04134532781 | G94: 0.05715300627 | H94: 0.06515804892 | I94: 0.06968543665 | J94: 0.07238919759 | K94: 0.07399721361 | L94: 0.07485640807 | M94: 0.07512713379 | N94: 0.07485640807 | O94: 0.07399721361 | P94: 0.07238919759 | Q94: 0.06968543665 | R94: 0.06515804892 | S94: 0.05715300627 | T94: 0.04134532781 | U94: 0.007851794199 | V94: 0 | W94: 0 | X94: 0 | Y94: 0 | Z94: 1
A95: Uppmätt IDN fördelad | B95: =B94*Ort!$I13 -> 0 | C95: =C94*Ort!$I13 -> 0 | D95: =D94*Ort!$I13 -> 0 | E95: =E94*Ort!$I13 -> 1.436100618 | F95: =F94*Ort!$I13 -> 7.562099734 | G95: =G94*Ort!$I13 -> 10.45333914 | H95: =H94*Ort!$I13 -> 11.91746905 | I95: =I94*Ort!$I13 -> 12.74553256 | J95: =J94*Ort!$I13 -> 13.24005301 | K95: =K94*Ort!$I13 -> 13.53416067 | L95: =L94*Ort!$I13 -> 13.69130815 | M95: =M94*Ort!$I13 -> 13.74082414 | N95: =N94*Ort!$I13 -> 13.69130815 | O95: =O94*Ort!$I13 -> 13.53416067 | P95: =P94*Ort!$I13 -> 13.24005301 | Q95: =Q94*Ort!$I13 -> 12.74553256 | R95: =R94*Ort!$I13 -> 11.91746905 | S95: =S94*Ort!$I13 -> 10.45333914 | T95: =T94*Ort!$I13 -> 7.562099734 | U95: =U94*Ort!$I13 -> 1.436100618 | V95: =V94*Ort!$I13 -> 0 | W95: =W94*Ort!$I13 -> 0 | X95: =X94*Ort!$I13 -> 0 | Y95: =Y94*Ort!$I13 -> 0 | Z95: 182.90095
A96: Direktstr, IDH | B96: =B95*SIN(B91*PI()/180) -> 0 | C96: 0 | D96: 0 | E96: 0.07637865608 | F96: 1.276362474 | G96: 3.061130286 | H96: 4.968285295 | I96: 6.786873214 | J96: 8.36450677 | K96: 9.581216537 | L96: 10.34804432 | M96: 10.60988341 | N96: 10.34804432 | O96: 9.581216537 | P96: 8.36450677 | Q96: 6.786873214 | R96: 4.968285295 | S96: 3.061130286 | T96: 1.276362474 | U96: 0.07637865608 | V96: 0 | W96: 0 | X96: 0 | Y96: 0 | Z96: 99.53547851
A97: Global, IdH | B97: =IF(B91<0,0,244*SIN(B91*PI()/180)) -> 0 | C97: 0 | D97: 0 | E97: 12.97707963 | F97: 41.18332931 | G97: 71.45236365 | H97: 101.721398 | I97: 129.9276477 | J97: 154.1489034 | K97: 172.7345266 | L97: 184.4179377 | M97: 188.4029317 | N97: 184.4179377 | O97: 172.7345266 | P97: 154.1489034 | Q97: 129.9276477 | R97: 101.721398 | S97: 71.45236365 | T97: 41.18332931 | U97: 12.97707963 | V97: 0 | W97: 0 | X97: 0 | Y97: 0 | Z97: 1925.529304
A98: andel,% | B98: =B97/$Z97 -> 0 | C98: 0 | D98: 0 | E98: 0.00673948696 | F98: 0.02138805638 | G98: 0.03710790769 | H98: 0.052827759 | I98: 0.06747632842 | J98: 0.08005534016 | K98: 0.08970755534 | L98: 0.09577519147 | M98: 0.09784474915 | N98: 0.09577519147 | O98: 0.08970755534 | P98: 0.08005534016 | Q98: 0.06747632842 | R98: 0.052827759 | S98: 0.03710790769 | T98: 0.02138805638 | U98: 0.00673948696 | V98: 0 | W98: 0 | X98: 0 | Y98: 0 | Z98: 1
A99: Global, IDH + IdH fördelad | B99: =B98*Ort!$O13 -> 0 | C99: =C98*Ort!$O13 -> 0 | D99: =D98*Ort!$O13 -> 0 | E99: =E98*Ort!$O13 -> 1.143235146 | F99: =F98*Ort!$O13 -> 3.628106694 | G99: =G98*Ort!$O13 -> 6.294702327 | H99: =H98*Ort!$O13 -> 8.961297961 | I99: =I98*Ort!$O13 -> 11.44616951 | J99: =J98*Ort!$O13 -> 13.57997708 | K99: =K98*Ort!$O13 -> 15.21730522 | L99: =L98*Ort!$O13 -> 16.24657272 | M99: =M98*Ort!$O13 -> 16.59763669 | N99: =N98*Ort!$O13 -> 16.24657272 | O99: =O98*Ort!$O13 -> 15.21730522 | P99: =P98*Ort!$O13 -> 13.57997708 | Q99: =Q98*Ort!$O13 -> 11.44616951 | R99: =R98*Ort!$O13 -> 8.961297961 | S99: =S98*Ort!$O13 -> 6.294702327 | T99: =T98*Ort!$O13 -> 3.628106694 | U99: =U98*Ort!$O13 -> 1.143235146 | V99: =V98*Ort!$O13 -> 0 | W99: =W98*Ort!$O13 -> 0 | X99: =X98*Ort!$O13 -> 0 | Y99: =Y98*Ort!$O13 -> 0 | Z99: 169.63237 | AB99: =Z96+Z100 -> 169.63237
A100: Diffusstrål, IdH fördelad | B100: =B99-B96 -> 0 | C100: 0 | D100: 0 | E100: 1.06685649 | F100: 2.35174422 | G100: 3.233572041 | H100: 3.993012666 | I100: 4.659296295 | J100: 5.215470312 | K100: 5.636088683 | L100: 5.898528398 | M100: 5.987753281 | N100: 5.898528398 | O100: 5.636088683 | P100: 5.215470312 | Q100: 4.659296295 | R100: 3.993012666 | S100: 3.233572041 | T100: 2.35174422 | U100: 1.06685649 | V100: 0 | W100: 0 | X100: 0 | Y100: 0 | Z100: 70.09689149
A102: Augusti | B102: deklination | C102: 10.9
A103: Kl | B103: 1 | C103: 2 | D103: 3 | E103: 4 | F103: 5 | G103: 6 | H103: 7 | I103: 8 | J103: 9 | K103: 10 | L103: 11 | M103: 12 | N103: 13 | O103: 14 | P103: 15 | Q103: 16 | R103: 17 | S103: 18 | T103: 19 | U103: 20 | V103: 21 | W103: 22 | X103: 23 | Y103: 24
A104: solhöjd | B104: =ASIN(SIN($C$8*PI()/180)*SIN($C102*PI()/180)+COS($C$8*PI()/180)*COS($C102*PI()/180)*COS((B103+12)*15*PI()/180))*180/PI() -> -18.71175775 | C104: -15.7120267 | D104: -11.02610886 | E104: -5.024955316 | F104: 1.898714371 | G104: 9.362709527 | H104: 16.99180363 | I104: 24.39074243 | J104: 31.10606329 | K104: 36.59609557 | L104: 40.2538312 | M104: 41.546735 | N104: 40.2538312 | O104: 36.59609557 | P104: 31.10606329 | Q104: 24.39074243 | R104: 16.99180363 | S104: 9.362709527 | T104: 1.898714371 | U104: -5.024955316 | V104: -11.02610886 | W104: -15.7120267 | X104: -18.71175775 | Y104: -19.746735
A105: azimut | B105: =-(180+ASIN((SIN((B103*15-180)*PI()/180)*(COS($C102*PI()/180))/(COS(B104*PI()/180))))*180/PI()) -> -164.4349367 | C105: -149.3337107 | D105: -134.9755609 | E105: -121.385547 | F105: -108.3737854 | G105: -95.60625591 | H105: =(ASIN((SIN((H103*15-180)*PI()/180)*(COS($C102*PI()/180))/(COS(H104*PI()/180))))*180/PI()) -> -82.65507703 | I105: -69.02502046 | J105: -54.18933392 | K105: -37.70089446 | L105: -19.45156921 | M105: 0 | N105: 19.45156921 | O105: 37.70089446 | P105: 54.18933392 | Q105: 69.02502046 | R105: 82.65507703 | S105: =(180-ASIN((SIN((S103*15-180)*PI()/180)*(COS($C102*PI()/180))/(COS(S104*PI()/180))))*180/PI()) -> 95.60625591 | T105: 108.3737854 | U105: 121.385547 | V105: 134.9755609 | W105: 149.3337107 | X105: 164.4349367 | Y105: 180 | Z105: Summa
A106: Direktstr, IDN | B106: =IF(B104<0,0,1071*EXP(-0.129/SIN(B104*PI()/180))) -> 0 | C106: 0 | D106: 0 | E106: 0 | F106: 21.82202166 | G106: 484.6364042 | H106: 688.7803003 | I106: 783.6536035 | J106: 834.3475164 | K106: 862.6136402 | L106: 877.1795936 | M106: 881.6945007 | N106: 877.1795936 | O106: 862.6136402 | P106: 834.3475164 | Q106: 783.6536035 | R106: 688.7803003 | S106: 484.6364042 | T106: 21.82202166 | U106: 0 | V106: 0 | W106: 0 | X106: 0 | Y106: 0 | Z106: =SUM(B106:Y106) -> 9987.76066
A107: andel,% | B107: =B106/$Z106 -> 0 | C107: 0 | D107: 0 | E107: 0 | F107: 0.00218487631 | G107: 0.04852302941 | H107: 0.06896243549 | I107: 0.07846139192 | J107: 0.0835369954 | K107: 0.08636707161 | L107: 0.08782545191 | M107: 0.0882774959 | N107: 0.08782545191 | O107: 0.08636707161 | P107: 0.0835369954 | Q107: 0.07846139192 | R107: 0.06896243549 | S107: 0.04852302941 | T107: 0.00218487631 | U107: 0 | V107: 0 | W107: 0 | X107: 0 | Y107: 0 | Z107: 1
A108: Uppmätt IDN fördelad | B108: =B107*Ort!$I14 -> 0 | C108: =C107*Ort!$I14 -> 0 | D108: =D107*Ort!$I14 -> 0 | E108: =E107*Ort!$I14 -> 0 | F108: =F107*Ort!$I14 -> 0.3147590056 | G108: =G107*Ort!$I14 -> 6.990354746 | H108: =H107*Ort!$I14 -> 9.934909139 | I108: =I107*Ort!$I14 -> 11.30335369 | J108: =J107*Ort!$I14 -> 12.03455842 | K108: =K107*Ort!$I14 -> 12.44226662 | L108: =L107*Ort!$I14 -> 12.6523647 | M108: =M107*Ort!$I14 -> 12.71748735 | N108: =N107*Ort!$I14 -> 12.6523647 | O108: =O107*Ort!$I14 -> 12.44226662 | P108: =P107*Ort!$I14 -> 12.03455842 | Q108: =Q107*Ort!$I14 -> 11.30335369 | R108: =R107*Ort!$I14 -> 9.934909139 | S108: =S107*Ort!$I14 -> 6.990354746 | T108: =T107*Ort!$I14 -> 0.3147590056 | U108: =U107*Ort!$I14 -> 0 | V108: =V107*Ort!$I14 -> 0 | W108: =W107*Ort!$I14 -> 0 | X108: =X107*Ort!$I14 -> 0 | Y108: =Y107*Ort!$I14 -> 0 | Z108: 144.06262
A109: Direktstr, IDH | B109: =B108*SIN(B104*PI()/180) -> 0 | C109: 0 | D109: 0 | E109: 0 | F109: 0.01042883215 | G109: 1.137217652 | H109: 2.903327167 | I109: 4.667802201 | J109: 6.217340989 | K109: 7.417708149 | L109: 8.175641931 | M109: 8.434628488 | N109: 8.175641931 | O109: 7.417708149 | P109: 6.217340989 | Q109: 4.667802201 | R109: 2.903327167 | S109: 1.137217652 | T109: 0.01042883215 | U109: 0 | V109: 0 | W109: 0 | X109: 0 | Y109: 0 | Z109: 69.49356233
A110: Global, IdH | B110: =IF(B104<0,0,244*SIN(B104*PI()/180)) -> 0 | C110: 0 | D110: 0 | E110: 0 | F110: 8.084391549 | G110: 39.69485343 | H110: 71.30531532 | I110: 100.7615765 | J110: 126.0562414 | K110: 145.4655204 | L110: 157.6667032 | M110: 161.8282995 | N110: 157.6667032 | O110: 145.4655204 | P110: 126.0562414 | Q110: 100.7615765 | R110: 71.30531532 | S110: 39.69485343 | T110: 8.084391549 | U110: 0 | V110: 0 | W110: 0 | X110: 0 | Y110: 0 | Z110: 1459.897503
A111: andel,% | B111: =B110/$Z110 -> 0 | C111: 0 | D111: 0 | E111: 0 | F111: 0.005537643247 | G111: 0.02719016462 | H111: 0.04884268599 | I111: 0.06901962382 | J111: 0.08634595312 | K111: 0.0996409132 | L111: 0.1079984745 | M111: 0.110849083 | N111: 0.1079984745 | O111: 0.0996409132 | P111: 0.08634595312 | Q111: 0.06901962382 | R111: 0.04884268599 | S111: 0.02719016462 | T111: 0.005537643247 | U111: 0 | V111: 0 | W111: 0 | X111: 0 | Y111: 0 | Z111: 1
A112: Global, IDH + IdH fördelad | B112: =B111*Ort!$O14 -> 0 | C112: =C111*Ort!$O14 -> 0 | D112: =D111*Ort!$O14 -> 0 | E112: =E111*Ort!$O14 -> 0 | F112: =F111*Ort!$O14 -> 0.7309779904 | G112: =G111*Ort!$O14 -> 3.589146322 | H112: =H111*Ort!$O14 -> 6.447314653 | I112: =I111*Ort!$O14 -> 9.110703536 | J112: =J111*Ort!$O14 -> 11.39780742 | K112: =K111*Ort!$O14 -> 13.15276395 | L112: =L111*Ort!$O14 -> 14.25597575 | M112: =M111*Ort!$O14 -> 14.63226075 | N112: =N111*Ort!$O14 -> 14.25597575 | O112: =O111*Ort!$O14 -> 13.15276395 | P112: =P111*Ort!$O14 -> 11.39780742 | Q112: =Q111*Ort!$O14 -> 9.110703536 | R112: =R111*Ort!$O14 -> 6.447314653 | S112: =S111*Ort!$O14 -> 3.589146322 | T112: =T111*Ort!$O14 -> 0.7309779904 | U112: =U111*Ort!$O14 -> 0 | V112: =V111*Ort!$O14 -> 0 | W112: =W111*Ort!$O14 -> 0 | X112: =X111*Ort!$O14 -> 0 | Y112: =Y111*Ort!$O14 -> 0 | Z112: 132.00164 | AB112: =Z109+Z113 -> 132.00164
A113: Diffusstrål, IdH fördelad | B113: =B112-B109 -> 0 | C113: 0 | D113: 0 | E113: 0 | F113: 0.7205491583 | G113: 2.45192867 | H113: 3.543987486 | I113: 4.442901335 | J113: 5.18046643 | K113: 5.735055805 | L113: 6.08033382 | M113: 6.197632262 | N113: 6.08033382 | O113: 5.735055805 | P113: 5.18046643 | Q113: 4.442901335 | R113: 3.543987486 | S113: 2.45192867 | T113: 0.7205491583 | U113: 0 | V113: 0 | W113: 0 | X113: 0 | Y113: 0 | Z113: 62.50807767
A115: September | B115: deklination | C115: 0
A116: Kl | B116: 1 | C116: 2 | D116: 3 | E116: 4 | F116: 5 | G116: 6 | H116: 7 | I116: 8 | J116: 9 | K116: 10 | L116: 11 | M116: 12 | N116: 13 | O116: 14 | P116: 15 | Q116: 16 | R116: 17 | S116: 18 | T116: 19 | U116: 20 | V116: 21 | W116: 22 | X116: 23 | Y116: 24
A117: solhöjd | B117: =ASIN(SIN($C$8*PI()/180)*SIN($C115*PI()/180)+COS($C$8*PI()/180)*COS($C115*PI()/180)*COS((B116+12)*15*PI()/180))*180/PI() -> -29.49675416 | C117: -26.19647681 | D117: -21.12740279 | E117: -14.76598101 | F117: -7.581208085 | G117: -5.367278923e-15 | H117: 7.581208085 | I117: 14.76598101 | J117: 21.12740279 | K117: 26.19647681 | L117: 29.49675416 | M117: 30.646735 | N117: 29.49675416 | O117: 26.19647681 | P117: 21.12740279 | Q117: 14.76598101 | R117: 7.581208085 | S117: 8.945464872e-15 | T117: -7.581208085 | U117: -14.76598101 | V117: -21.12740279 | W117: -26.19647681 | X117: -29.49675416 | Y117: -30.646735
A118: azimut | B118: =-(180+ASIN((SIN((B116*15-180)*PI()/180)*(COS($C115*PI()/180))/(COS(B117*PI()/180))))*180/PI()) -> -162.7007698 | C118: -146.1351206 | D118: -130.7062838 | E118: -116.4140389 | F118: -102.9812648 | G118: -90 | H118: =(ASIN((SIN((H116*15-180)*PI()/180)*(COS($C115*PI()/180))/(COS(H117*PI()/180))))*180/PI()) -> -77.01873518 | I118: -63.58596111 | J118: -49.29371618 | K118: -33.86487941 | L118: -17.29923017 | M118: 0 | N118: 17.29923017 | O118: 33.86487941 | P118: 49.29371618 | Q118: 63.58596111 | R118: 77.01873518 | S118: =(180-ASIN((SIN((S116*15-180)*PI()/180)*(COS($C115*PI()/180))/(COS(S117*PI()/180))))*180/PI()) -> 90 | T118: 102.9812648 | U118: 116.4140389 | V118: 130.7062838 | W118: 146.1351206 | X118: 162.7007698 | Y118: 180 | Z118: Summa
A119: Direktstr, IDN | B119: =IF(B117<0,0,1071*EXP(-0.129/SIN(B117*PI()/180))) -> 0 | C119: 0 | D119: 0 | E119: 0 | F119: 0 | G119: 0 | H119: 402.8508241 | I119: 645.6199369 | J119: 748.7874119 | K119: 799.614467 | L119: 824.1497449 | M119: 831.5401087 | N119: 824.1497449 | O119: 799.614467 | P119: 748.7874119 | Q119: 645.6199369 | R119: 402.8508241 | S119: 0 | T119: 0 | U119: 0 | V119: 0 | W119: 0 | X119: 0 | Y119: 0 | Z119: =SUM(B119:Y119) -> 7673.584878
A120: andel,% | B120: =B119/$Z119 -> 0 | C120: 0 | D120: 0 | E120: 0 | F120: 0 | G120: 0 | H120: 0.05249838641 | I120: 0.08413537442 | J120: 0.09757986962 | K120: 0.1042035085 | L120: 0.1074008769 | M120: 0.1083639683 | N120: 0.1074008769 | O120: 0.1042035085 | P120: 0.09757986962 | Q120: 0.08413537442 | R120: 0.05249838641 | S120: 0 | T120: 0 | U120: 0 | V120: 0 | W120: 0 | X120: 0 | Y120: 0 | Z120: 1
A121: Uppmätt IDN fördelad | B121: =B120*Ort!$I15 -> 0 | C121: =C120*Ort!$I15 -> 0 | D121: =D120*Ort!$I15 -> 0 | E121: =E120*Ort!$I15 -> 0 | F121: =F120*Ort!$I15 -> 0 | G121: =G120*Ort!$I15 -> 0 | H121: =H120*Ort!$I15 -> 5.514403734 | I121: =I120*Ort!$I15 -> 8.83753682 | J121: =J120*Ort!$I15 -> 10.24973974 | K121: =K120*Ort!$I15 -> 10.94548339 | L121: =L120*Ort!$I15 -> 11.28133334 | M121: =M120*Ort!$I15 -> 11.38249597 | N121: =N120*Ort!$I15 -> 11.28133334 | O121: =O120*Ort!$I15 -> 10.94548339 | P121: =P120*Ort!$I15 -> 10.24973974 | Q121: =Q120*Ort!$I15 -> 8.83753682 | R121: =R120*Ort!$I15 -> 5.514403734 | S121: =S120*Ort!$I15 -> 0 | T121: =T120*Ort!$I15 -> 0 | U121: =U120*Ort!$I15 -> 0 | V121: =V120*Ort!$I15 -> 0 | W121: =W120*Ort!$I15 -> 0 | X121: =X120*Ort!$I15 -> 0 | Y121: =Y120*Ort!$I15 -> 0 | Z121: 105.03949
A122: Direktstr, IDH | B122: =B121*SIN(B117*PI()/180) -> 0 | C122: 0 | D122: 0 | E122: 0 | F122: 0 | G122: 0 | H122: 0.7275223624 | I122: 2.252437751 | J122: 3.694446629 | K122: 4.831891067 | L122: 5.554638075 | M122: 5.802151467 | N122: 5.554638075 | O122: 4.831891067 | P122: 3.694446629 | Q122: 2.252437751 | R122: 0.7275223624 | S122: 0 | T122: 0 | U122: 0 | V122: 0 | W122: 0 | X122: 0 | Y122: 0 | Z122: 39.92402324
A123: Global, IdH | B123: =IF(B117<0,0,244*SIN(B117*PI()/180)) -> 0 | C123: 0 | D123: 0 | E123: 0 | F123: 0 | G123: 0 | H123: 32.19123317 | I123: 62.188687 | J123: 87.94808458 | K123: 107.7139655 | L123: 120.1393178 | M123: 124.377374 | N123: 120.1393178 | O123: 107.7139655 | P123: 87.94808458 | Q123: 62.188687 | R123: 32.19123317 | S123: 3.80951869e-14 | T123: 0 | U123: 0 | V123: 0 | W123: 0 | X123: 0 | Y123: 0 | Z123: 944.7399501
A124: andel,% | B124: =B123/$Z123 -> 0 | C124: 0 | D124: 0 | E124: 0 | F124: 0 | G124: 0 | H124: 0.03407417371 | I124: 0.06582624879 | J124: 0.0930923738 | K124: 0.1140144074 | L124: 0.1271665475 | M124: 0.1316524976 | N124: 0.1271665475 | O124: 0.1140144074 | P124: 0.0930923738 | Q124: 0.06582624879 | R124: 0.03407417371 | S124: 4.03234635e-17 | T124: 0 | U124: 0 | V124: 0 | W124: 0 | X124: 0 | Y124: 0 | Z124: 1
A125: Global, IDH + IdH fördelad | B125: =B124*Ort!$O15 -> 0 | C125: =C124*Ort!$O15 -> 0 | D125: =D124*Ort!$O15 -> 0 | E125: =E124*Ort!$O15 -> 0 | F125: =F124*Ort!$O15 -> 0 | G125: =G124*Ort!$O15 -> 0 | H125: =H124*Ort!$O15 -> 2.818539664 | I125: =I124*Ort!$O15 -> 5.445000508 | J125: =J124*Ort!$O15 -> 7.700393565 | K125: =K124*Ort!$O15 -> 9.431017527 | L125: =L124*Ort!$O15 -> 10.51893323 | M125: =M124*Ort!$O15 -> 10.89000102 | N125: =N124*Ort!$O15 -> 10.51893323 | O125: =O124*Ort!$O15 -> 9.431017527 | P125: =P124*Ort!$O15 -> 7.700393565 | Q125: =Q124*Ort!$O15 -> 5.445000508 | R125: =R124*Ort!$O15 -> 2.818539664 | S125: =S124*Ort!$O15 -> 3.335466979e-15 | T125: =T124*Ort!$O15 -> 0 | U125: =U124*Ort!$O15 -> 0 | V125: =V124*Ort!$O15 -> 0 | W125: =W124*Ort!$O15 -> 0 | X125: =X124*Ort!$O15 -> 0 | Y125: =Y124*Ort!$O15 -> 0 | Z125: 82.71777 | AB125: =Z122+Z126 -> 82.71777
A126: Diffusstrål, IdH fördelad | B126: =B125-B122 -> 0 | C126: 0 | D126: 0 | E126: 0 | F126: 0 | G126: 0 | H126: 2.091017302 | I126: 3.192562757 | J126: 4.005946936 | K126: 4.599126459 | L126: 4.964295154 | M126: 5.087849548 | N126: 4.964295154 | O126: 4.599126459 | P126: 4.005946936 | Q126: 3.192562757 | R126: 2.091017302 | S126: 3.335466979e-15 | T126: 0 | U126: 0 | V126: 0 | W126: 0 | X126: 0 | Y126: 0 | Z126: 42.79374676
A128: Oktober | B128: deklination | C128: -10.9
A129: Kl | B129: 1 | C129: 2 | D129: 3 | E129: 4 | F129: 5 | G129: 6 | H129: 7 | I129: 8 | J129: 9 | K129: 10 | L129: 11 | M129: 12 | N129: 13 | O129: 14 | P129: 15 | Q129: 16 | R129: 17 | S129: 18 | T129: 19 | U129: 20 | V129: 21 | W129: 22 | X129: 23 | Y129: 24
A130: solhöjd | B130: =ASIN(SIN($C$8*PI()/180)*SIN($C128*PI()/180)+COS($C$8*PI()/180)*COS($C128*PI()/180)*COS((B129+12)*15*PI()/180))*180/PI() -> -40.2538312 | C130: -36.59609557 | D130: -31.10606329 | E130: -24.39074243 | F130: -16.99180363 | G130: -9.362709527 | H130: -1.898714371 | I130: 5.024955316 | J130: 11.02610886 | K130: 15.7120267 | L130: 18.71175775 | M130: 19.746735 | N130: 18.71175775 | O130: 15.7120267 | P130: 11.02610886 | Q130: 5.024955316 | R130: -1.898714371 | S130: -9.362709527 | T130: -16.99180363 | U130: -24.39074243 | V130: -31.10606329 | W130: -36.59609557 | X130: -40.2538312 | Y130: -41.546735
A131: azimut | B131: =-(180+ASIN((SIN((B129*15-180)*PI()/180)*(COS($C128*PI()/180))/(COS(B130*PI()/180))))*180/PI()) -> -160.5484308 | C131: =-(180+ASIN((SIN((C129*15-180)*PI()/180)*(COS($C128*PI()/180))/(COS(C130*PI()/180))))*180/PI()) -> -142.2991055 | D131: =-(180+ASIN((SIN((D129*15-180)*PI()/180)*(COS($C128*PI()/180))/(COS(D130*PI()/180))))*180/PI()) -> -125.8106661 | E131: =-(180+ASIN((SIN((E129*15-180)*PI()/180)*(COS($C128*PI()/180))/(COS(E130*PI()/180))))*180/PI()) -> -110.9749795 | F131: =-(180+ASIN((SIN((F129*15-180)*PI()/180)*(COS($C128*PI()/180))/(COS(F130*PI()/180))))*180/PI()) -> -97.34492297 | G131: =(ASIN((SIN((G129*15-180)*PI()/180)*(COS($C128*PI()/180))/(COS(G130*PI()/180))))*180/PI()) -> -84.39374409 | H131: -71.62621457 | I131: -58.61445303 | J131: -45.02443913 | K131: -30.66628929 | L131: -15.56506334 | M131: 0 | N131: 15.56506334 | O131: 30.66628929 | P131: 45.02443913 | Q131: 58.61445303 | R131: 71.62621457 | S131: 84.39374409 | T131: =(180-ASIN((SIN((T129*15-180)*PI()/180)*(COS($C128*PI()/180))/(COS(T130*PI()/180))))*180/PI()) -> 97.34492297 | U131: 110.9749795 | V131: 125.8106661 | W131: 142.2991055 | X131: 160.5484308 | Y131: 180 | Z131: Summa
A132: Direktstr, IDN | B132: =IF(B130<0,0,1071*EXP(-0.129/SIN(B130*PI()/180))) -> 0 | C132: 0 | D132: 0 | E132: 0 | F132: 0 | G132: 0 | H132: 0 | I132: 245.5672834 | J132: 545.5859996 | K132: 665.1324352 | L132: 716.3992318 | M132: 731.0900235 | N132: 716.3992318 | O132: 665.1324352 | P132: 545.5859996 | Q132: 245.5672834 | R132: 0 | S132: 0 | T132: 0 | U132: 0 | V132: 0 | W132: 0 | X132: 0 | Y132: 0 | Z132: =SUM(B132:Y132) -> 5076.459923
A133: andel,% | B133: =B132/$Z132 -> 0 | C133: 0 | D133: 0 | E133: 0 | F133: 0 | G133: 0 | H133: 0 | I133: 0.04837372639 | J133: 0.1074737135 | K133: 0.131022887 | L133: 0.1411218137 | M133: 0.1440157185 | N133: 0.1411218137 | O133: 0.131022887 | P133: 0.1074737135 | Q133: 0.04837372639 | R133: 0 | S133: 0 | T133: 0 | U133: 0 | V133: 0 | W133: 0 | X133: 0 | Y133: 0 | Z133: 1
A134: Uppmätt IDN fördelad | B134: =B133*Ort!$I16 -> 0 | C134: =C133*Ort!$I16 -> 0 | D134: =D133*Ort!$I16 -> 0 | E134: =E133*Ort!$I16 -> 0 | F134: =F133*Ort!$I16 -> 0 | G134: =G133*Ort!$I16 -> 0 | H134: =H133*Ort!$I16 -> 0 | I134: =I133*Ort!$I16 -> 2.838330331 | J134: =J133*Ort!$I16 -> 6.306024441 | K134: =K133*Ort!$I16 -> 7.687773139 | L134: =L133*Ort!$I16 -> 8.280328067 | M134: =M133*Ort!$I16 -> 8.450128046 | N134: =N133*Ort!$I16 -> 8.280328067 | O134: =O133*Ort!$I16 -> 7.687773139 | P134: =P133*Ort!$I16 -> 6.306024441 | Q134: =Q133*Ort!$I16 -> 2.838330331 | R134: =R133*Ort!$I16 -> 0 | S134: =S133*Ort!$I16 -> 0 | T134: =T133*Ort!$I16 -> 0 | U134: =U133*Ort!$I16 -> 0 | V134: =V133*Ort!$I16 -> 0 | W134: =W133*Ort!$I16 -> 0 | X134: =X133*Ort!$I16 -> 0 | Y134: =Y133*Ort!$I16 -> 0 | Z134: 58.67504
A135: Direktstr, IDH | B135: =B134*SIN(B130*PI()/180) -> 0 | C135: 0 | D135: 0 | E135: 0 | F135: 0 | G135: 0 | H135: 0 | I135: 0.2486083021 | J135: 1.206066832 | K135: 2.081868296 | L135: 2.656390205 | M135: 2.854986326 | N135: 2.656390205 | O135: 2.081868296 | P135: 1.206066832 | Q135: 0.2486083021 | R135: 0 | S135: 0 | T135: 0 | U135: 0 | V135: 0 | W135: 0 | X135: 0 | Y135: 0 | Z135: 15.2408536
A136: Global, IdH | B136: =IF(B130<0,0,244*SIN(B130*PI()/180)) -> 0 | C136: 0 | D136: 0 | E136: 0 | F136: 0 | G136: 0 | H136: 0 | I136: 21.3718696 | J136: 46.66653449 | K136: 66.07581351 | L136: 78.27699637 | M136: 82.43859263 | N136: 78.27699637 | O136: 66.07581351 | P136: 46.66653449 | Q136: 21.3718696 | R136: 0 | S136: 0 | T136: 0 | U136: 0 | V136: 0 | W136: 0 | X136: 0 | Y136: 0 | Z136: 507.2210205
A137: andel,% | B137: =B136/$Z136 -> 0 | C137: 0 | D137: 0 | E137: 0 | F137: 0 | G137: 0 | H137: 0 | I137: 0.04213522061 | J137: 0.09200433853 | K137: 0.1302702586 | L137: 0.1543252215 | M137: 0.1625299215 | N137: 0.1543252215 | O137: 0.1302702586 | P137: 0.09200433853 | Q137: 0.04213522061 | R137: 0 | S137: 0 | T137: 0 | U137: 0 | V137: 0 | W137: 0 | X137: 0 | Y137: 0 | Z137: 1
A138: Global, IDH + IdH fördelad | B138: =B137*Ort!$O16 -> 0 | C138: =C137*Ort!$O16 -> 0 | D138: =D137*Ort!$O16 -> 0 | E138: =E137*Ort!$O16 -> 0 | F138: =F137*Ort!$O16 -> 0 | G138: =G137*Ort!$O16 -> 0 | H138: =H137*Ort!$O16 -> 0 | I138: =I137*Ort!$O16 -> 1.634938414 | J138: =J137*Ort!$O16 -> 3.569968905 | K138: =K137*Ort!$O16 -> 5.054770022 | L138: =L137*Ort!$O16 -> 5.988155025 | M138: =M137*Ort!$O16 -> 6.306515267 | N138: =N137*Ort!$O16 -> 5.988155025 | O138: =O137*Ort!$O16 -> 5.054770022 | P138: =P137*Ort!$O16 -> 3.569968905 | Q138: =Q137*Ort!$O16 -> 1.634938414 | R138: =R137*Ort!$O16 -> 0 | S138: =S137*Ort!$O16 -> 0 | T138: =T137*Ort!$O16 -> 0 | U138: =U137*Ort!$O16 -> 0 | V138: =V137*Ort!$O16 -> 0 | W138: =W137*Ort!$O16 -> 0 | X138: =X137*Ort!$O16 -> 0 | Y138: =Y137*Ort!$O16 -> 0 | Z138: 38.80218 | AB138: =Z135+Z139 -> 38.80218
A139: Diffusstrål, IdH fördelad | B139: =B138-B135 -> 0 | C139: 0 | D139: 0 | E139: 0 | F139: 0 | G139: 0 | H139: 0 | I139: 1.386330112 | J139: 2.363902072 | K139: 2.972901726 | L139: 3.33176482 | M139: 3.451528941 | N139: 3.33176482 | O139: 2.972901726 | P139: 2.363902072 | Q139: 1.386330112 | R139: 0 | S139: 0 | T139: 0 | U139: 0 | V139: 0 | W139: 0 | X139: 0 | Y139: 0 | Z139: 23.5613264
A141: November | B141: deklination | C141: -19.9
A142: Kl | B142: 1 | C142: 2 | D142: 3 | E142: 4 | F142: 5 | G142: 6 | H142: 7 | I142: 8 | J142: 9 | K142: 10 | L142: 11 | M142: 12 | N142: 13 | O142: 14 | P142: 15 | Q142: 16 | R142: 17 | S142: 18 | T142: 19 | U142: 20 | V142: 21 | W142: 22 | X142: 23 | Y142: 24
A143: solhöjd | B143: =ASIN(SIN($C$8*PI()/180)*SIN($C141*PI()/180)+COS($C$8*PI()/180)*COS($C141*PI()/180)*COS((B142+12)*15*PI()/180))*180/PI() -> -49.09630297 | C143: -45.06661224 | D143: -39.17992928 | E143: -32.17387331 | F143: -24.63845678 | G143: -17.02791296 | H143: -9.717133714 | I143: -3.04870028 | J143: 2.641278984 | K143: 7.022163423 | L143: 9.79573277 | M143: 10.746735 | N143: 9.79573277 | O143: 7.022163423 | P143: 2.641278984 | Q143: -3.04870028 | R143: -9.717133714 | S143: -17.02791296 | T143: -24.63845678 | U143: -32.17387331 | V143: -39.17992928 | W143: -45.06661224 | X143: -49.09630297 | Y143: -50.546735
A144: azimut | B144: =-(180+ASIN((SIN((B142*15-180)*PI()/180)*(COS($C141*PI()/180))/(COS(B143*PI()/180))))*180/PI()) -> -158.1814628 | C144: =-(180+ASIN((SIN((C142*15-180)*PI()/180)*(COS($C141*PI()/180))/(COS(C143*PI()/180))))*180/PI()) -> -138.2671397 | D144: =-(180+ASIN((SIN((D142*15-180)*PI()/180)*(COS($C141*PI()/180))/(COS(D143*PI()/180))))*180/PI()) -> -120.9371849 | E144: =-(180+ASIN((SIN((E142*15-180)*PI()/180)*(COS($C141*PI()/180))/(COS(E143*PI()/180))))*180/PI()) -> -105.8354151 | F144: =-(180+ASIN((SIN((F142*15-180)*PI()/180)*(COS($C141*PI()/180))/(COS(F143*PI()/180))))*180/PI()) -> -92.26143335 | G144: =(ASIN((SIN((G142*15-180)*PI()/180)*(COS($C141*PI()/180))/(COS(G143*PI()/180))))*180/PI()) -> -79.54512602 | H144: -67.14177317 | I144: -54.63361791 | J144: -41.72769787 | K144: -28.27456505 | L144: -14.29799392 | M144: 0 | N144: 14.29799392 | O144: 28.27456505 | P144: 41.72769787 | Q144: 54.63361791 | R144: 67.14177317 | S144: 79.54512602 | T144: =(180-ASIN((SIN((T142*15-180)*PI()/180)*(COS($C141*PI()/180))/(COS(T143*PI()/180))))*180/PI()) -> 92.26143335 | U144: 105.8354151 | V144: 120.9371849 | W144: 138.2671397 | X144: 158.1814628 | Y144: 180 | Z144: Summa
A145: Direktstr, IDN | B145: =IF(B143<0,0,1071*EXP(-0.129/SIN(B143*PI()/180))) -> 0 | C145: 0 | D145: 0 | E145: 0 | F145: 0 | G145: 0 | H145: 0 | I145: 0 | J145: 65.17215108 | K145: 372.8445661 | L145: 501.7648567 | M145: 536.2178683 | N145: 501.7648567 | O145: 372.8445661 | P145: 65.17215108 | Q145: 0 | R145: 0 | S145: 0 | T145: 0 | U145: 0 | V145: 0 | W145: 0 | X145: 0 | Y145: 0 | Z145: =SUM(B145:Y145) -> 2415.781016
A146: andel,% | B146: =B145/$Z145 -> 0 | C146: 0 | D146: 0 | E146: 0 | F146: 0 | G146: 0 | H146: 0 | I146: 0 | J146: 0.02697767333 | K146: 0.1543370709 | L146: 0.2077029554 | M146: 0.2219646006 | N146: 0.2077029554 | O146: 0.1543370709 | P146: 0.02697767333 | Q146: 0 | R146: 0 | S146: 0 | T146: 0 | U146: 0 | V146: 0 | W146: 0 | X146: 0 | Y146: 0 | Z146: 1
A147: Uppmätt IDN fördelad | B147: =B146*Ort!$I17 -> 0 | C147: =C146*Ort!$I17 -> 0 | D147: =D146*Ort!$I17 -> 0 | E147: =E146*Ort!$I17 -> 0 | F147: =F146*Ort!$I17 -> 0 | G147: =G146*Ort!$I17 -> 0 | H147: =H146*Ort!$I17 -> 0 | I147: =I146*Ort!$I17 -> 0 | J147: =J146*Ort!$I17 -> 0.6772642374 | K147: =K146*Ort!$I17 -> 3.874573518 | L147: =L146*Ort!$I17 -> 5.214303769 | M147: =M146*Ort!$I17 -> 5.572336951 | N147: =N146*Ort!$I17 -> 5.214303769 | O147: =O146*Ort!$I17 -> 3.874573518 | P147: =P146*Ort!$I17 -> 0.6772642374 | Q147: =Q146*Ort!$I17 -> 0 | R147: =R146*Ort!$I17 -> 0 | S147: =S146*Ort!$I17 -> 0 | T147: =T146*Ort!$I17 -> 0 | U147: =U146*Ort!$I17 -> 0 | V147: =V146*Ort!$I17 -> 0 | W147: =W146*Ort!$I17 -> 0 | X147: =X146*Ort!$I17 -> 0 | Y147: =Y146*Ort!$I17 -> 0 | Z147: 25.10462
A148: Direktstr, IDH | B148: =B147*SIN(B143*PI()/180) -> 0 | C148: 0 | D148: 0 | E148: 0 | F148: 0 | G148: 0 | H148: 0 | I148: 0 | J148: 0.0312101571 | K148: 0.4736793043 | L148: 0.8871413506 | M148: 1.039062809 | N148: 0.8871413506 | O148: 0.4736793043 | P148: 0.0312101571 | Q148: 0 | R148: 0 | S148: 0 | T148: 0 | U148: 0 | V148: 0 | W148: 0 | X148: 0 | Y148: 0 | Z148: 3.823124433
A149: Global, IdH | B149: =IF(B143<0,0,244*SIN(B143*PI()/180)) -> 0 | C149: 0 | D149: 0 | E149: 0 | F149: 0 | G149: 0 | H149: 0 | I149: 0 | J149: 11.24417607 | K149: 29.82979926 | L149: 41.51321042 | M149: 45.49820439 | N149: 41.51321042 | O149: 29.82979926 | P149: 11.24417607 | Q149: 0 | R149: 0 | S149: 0 | T149: 0 | U149: 0 | V149: 0 | W149: 0 | X149: 0 | Y149: 0 | Z149: 210.6725759
A150: andel,% | B150: =B149/$Z149 -> 0 | C150: 0 | D150: 0 | E150: 0 | F150: 0 | G150: 0 | H150: 0 | I150: 0 | J150: 0.0533727564 | K150: 0.1415931767 | L150: 0.1970508513 | M150: 0.2159664313 | N150: 0.1970508513 | O150: 0.1415931767 | P150: 0.0533727564 | Q150: 0 | R150: 0 | S150: 0 | T150: 0 | U150: 0 | V150: 0 | W150: 0 | X150: 0 | Y150: 0 | Z150: 1
A151: Global, IDH + IdH fördelad | B151: =B150*Ort!$O17 -> 0 | C151: =C150*Ort!$O17 -> 0 | D151: =D150*Ort!$O17 -> 0 | E151: =E150*Ort!$O17 -> 0 | F151: =F150*Ort!$O17 -> 0 | G151: =G150*Ort!$O17 -> 0 | H151: =H150*Ort!$O17 -> 0 | I151: =I150*Ort!$O17 -> 0 | J151: =J150*Ort!$O17 -> 0.6462389357 | K151: =K150*Ort!$O17 -> 1.714414431 | L151: =L150*Ort!$O17 -> 2.385897619 | M151: =M150*Ort!$O17 -> 2.614928029 | N151: =N150*Ort!$O17 -> 2.385897619 | O151: =O150*Ort!$O17 -> 1.714414431 | P151: =P150*Ort!$O17 -> 0.6462389357 | Q151: =Q150*Ort!$O17 -> 0 | R151: =R150*Ort!$O17 -> 0 | S151: =S150*Ort!$O17 -> 0 | T151: =T150*Ort!$O17 -> 0 | U151: =U150*Ort!$O17 -> 0 | V151: =V150*Ort!$O17 -> 0 | W151: =W150*Ort!$O17 -> 0 | X151: =X150*Ort!$O17 -> 0 | Y151: =Y150*Ort!$O17 -> 0 | Z151: 12.10803 | AB151: =Z148+Z152 -> 12.10803
A152: Diffusstrål, IdH fördelad | B152: =B151-B148 -> 0 | C152: 0 | D152: 0 | E152: 0 | F152: 0 | G152: 0 | H152: 0 | I152: 0 | J152: 0.6150287786 | K152: 1.240735127 | L152: 1.498756268 | M152: 1.57586522 | N152: 1.498756268 | O152: 1.240735127 | P152: 0.6150287786 | Q152: 0 | R152: 0 | S152: 0 | T152: 0 | U152: 0 | V152: 0 | W152: 0 | X152: 0 | Y152: 0 | Z152: 8.284905567
A154: December | B154: deklination | C154: -23.45
A155: Kl | B155: 1 | C155: 2 | D155: 3 | E155: 4 | F155: 5 | G155: 6 | H155: 7 | I155: 8 | J155: 9 | K155: 10 | L155: 11 | M155: 12 | N155: 13 | O155: 14 | P155: 15 | Q155: 16 | R155: 17 | S155: 18 | T155: 19 | U155: 20 | V155: 21 | W155: 22 | X155: 23 | Y155: 24
A156: solhöjd | B156: =ASIN(SIN($C$8*PI()/180)*SIN($C154*PI()/180)+COS($C$8*PI()/180)*COS($C154*PI()/180)*COS((B155+12)*15*PI()/180))*180/PI() -> -52.56785109 | C156: -48.36186386 | D156: -42.30204554 | E156: -35.18280056 | F156: -27.60675669 | G156: -20.02107487 | H156: -12.78722036 | I156: -6.231421067 | J156: -0.6699523568 | K156: 3.590468323 | L156: 6.277395794 | M156: 7.196735 | N156: 6.277395794 | O156: 3.590468323 | P156: -0.6699523568 | Q156: -6.231421067 | R156: -12.78722036 | S156: -20.02107487 | T156: -27.60675669 | U156: -35.18280056 | V156: -42.30204554 | W156: -48.36186386 | X156: -52.56785109 | Y156: -54.096735
A157: azimut | B157: =-(180+ASIN((SIN((B155*15-180)*PI()/180)*(COS($C154*PI()/180))/(COS(B156*PI()/180))))*180/PI()) -> -157.0053448 | C157: =-(180+ASIN((SIN((C155*15-180)*PI()/180)*(COS($C154*PI()/180))/(COS(C156*PI()/180))))*180/PI()) -> -136.3399289 | D157: =-(180+ASIN((SIN((D155*15-180)*PI()/180)*(COS($C154*PI()/180))/(COS(D156*PI()/180))))*180/PI()) -> -118.7061772 | E157: =-(180+ASIN((SIN((E155*15-180)*PI()/180)*(COS($C154*PI()/180))/(COS(E156*PI()/180))))*180/PI()) -> -103.5709766 | F157: =-(180+ASIN((SIN((F155*15-180)*PI()/180)*(COS($C154*PI()/180))/(COS(F156*PI()/180))))*180/PI()) -> -90.09223275 | G157: =(ASIN((SIN((G155*15-180)*PI()/180)*(COS($C154*PI()/180))/(COS(G156*PI()/180))))*180/PI()) -> -77.53171624 | H157: -65.32416014 | I157: -53.0557297 | J157: -40.44738985 | K157: -27.3616852 | L157: -13.82014189 | M157: 0 | N157: 13.82014189 | O157: 27.3616852 | P157: 40.44738985 | Q157: 53.0557297 | R157: 65.32416014 | S157: 77.53171624 | T157: =(180-ASIN((SIN((T155*15-180)*PI()/180)*(COS($C154*PI()/180))/(COS(T156*PI()/180))))*180/PI()) -> 90.09223275 | U157: 103.5709766 | V157: 118.7061772 | W157: 136.3399289 | X157: 157.0053448 | Y157: 180 | Z157: Summa
A158: Direktstr, IDN | B158: =IF(B156<0,0,1071*EXP(-0.129/SIN(B156*PI()/180))) -> 0 | C158: 0 | D158: 0 | E158: 0 | F158: 0 | G158: 0 | H158: 0 | I158: 0 | J158: 0 | K158: 136.5172504 | L158: 329.1670411 | M158: 382.4612883 | N158: 329.1670411 | O158: 136.5172504 | P158: 0 | Q158: 0 | R158: 0 | S158: 0 | T158: 0 | U158: 0 | V158: 0 | W158: 0 | X158: 0 | Y158: 0 | Z158: =SUM(B158:Y158) -> 1313.829871
A159: andel,% | B159: =IF($Z158=0,0,B158/$Z158) -> 0 | C159: 0 | D159: 0 | E159: 0 | F159: 0 | G159: 0 | H159: 0 | I159: 0 | J159: 0 | K159: 0.10390786 | L159: 0.25054008 | M159: 0.2911041198 | N159: 0.25054008 | O159: 0.10390786 | P159: 0 | Q159: 0 | R159: 0 | S159: 0 | T159: 0 | U159: 0 | V159: 0 | W159: 0 | X159: 0 | Y159: 0 | Z159: 1
A160: Uppmätt IDN fördelad | B160: =B159*Ort!$I18 -> 0 | C160: =C159*Ort!$I18 -> 0 | D160: =D159*Ort!$I18 -> 0 | E160: =E159*Ort!$I18 -> 0 | F160: =F159*Ort!$I18 -> 0 | G160: =G159*Ort!$I18 -> 0 | H160: =H159*Ort!$I18 -> 0 | I160: =I159*Ort!$I18 -> 0 | J160: =J159*Ort!$I18 -> 0 | K160: =K159*Ort!$I18 -> 1.783265655 | L160: =L159*Ort!$I18 -> 4.299766348 | M160: =M159*Ort!$I18 -> 4.995925994 | N160: =N159*Ort!$I18 -> 4.299766348 | O160: =O159*Ort!$I18 -> 1.783265655 | P160: =P159*Ort!$I18 -> 0 | Q160: =Q159*Ort!$I18 -> 0 | R160: =R159*Ort!$I18 -> 0 | S160: =S159*Ort!$I18 -> 0 | T160: =T159*Ort!$I18 -> 0 | U160: =U159*Ort!$I18 -> 0 | V160: =V159*Ort!$I18 -> 0 | W160: =W159*Ort!$I18 -> 0 | X160: =X159*Ort!$I18 -> 0 | Y160: =Y159*Ort!$I18 -> 0 | Z160: 17.16199
A161: Direktstr, IDH | B161: =B160*SIN(B156*PI()/180) -> 0 | C161: 0 | D161: 0 | E161: 0 | F161: 0 | G161: 0 | H161: 0 | I161: 0 | J161: 0 | K161: 0.1116760982 | L161: 0.4701457712 | M161: 0.6258731105 | N161: 0.4701457712 | O161: 0.1116760982 | P161: 0 | Q161: 0 | R161: 0 | S161: 0 | T161: 0 | U161: 0 | V161: 0 | W161: 0 | X161: 0 | Y161: 0 | Z161: 1.789516849
A162: Global, IdH | B162: =IF(B156<0,0,244*SIN(B156*PI()/180)) -> 0 | C162: 0 | D162: 0 | E162: 0 | F162: 0 | G162: 0 | H162: 0 | I162: 0 | J162: 0 | K162: 15.28037502 | L162: 26.67948881 | M162: 30.56751424 | N162: 26.67948881 | O162: 15.28037502 | P162: 0 | Q162: 0 | R162: 0 | S162: 0 | T162: 0 | U162: 0 | V162: 0 | W162: 0 | X162: 0 | Y162: 0 | Z162: 114.4872419
A163: andel,% | B163: =IF($Z162=0,0,B162/$Z162) -> 0 | C163: 0 | D163: 0 | E163: 0 | F163: 0 | G163: 0 | H163: 0 | I163: 0 | J163: 0 | K163: 0.1334679285 | L163: 0.2330346016 | M163: 0.2669949396 | N163: 0.2330346016 | O163: 0.1334679285 | P163: 0 | Q163: 0 | R163: 0 | S163: 0 | T163: 0 | U163: 0 | V163: 0 | W163: 0 | X163: 0 | Y163: 0 | Z163: 1
A164: Global, IDH + IdH fördelad | B164: =B163*Ort!$O18 -> 0 | C164: =C163*Ort!$O18 -> 0 | D164: =D163*Ort!$O18 -> 0 | E164: =E163*Ort!$O18 -> 0 | F164: =F163*Ort!$O18 -> 0 | G164: =G163*Ort!$O18 -> 0 | H164: =H163*Ort!$O18 -> 0 | I164: =I163*Ort!$O18 -> 0 | J164: =J163*Ort!$O18 -> 0 | K164: =K163*Ort!$O18 -> 0.8267190349 | L164: =L163*Ort!$O18 -> 1.443448947 | M164: =M163*Ort!$O18 -> 1.653804035 | N164: =N163*Ort!$O18 -> 1.443448947 | O164: =O163*Ort!$O18 -> 0.8267190349 | P164: =P163*Ort!$O18 -> 0 | Q164: =Q163*Ort!$O18 -> 0 | R164: =R163*Ort!$O18 -> 0 | S164: =S163*Ort!$O18 -> 0 | T164: =T163*Ort!$O18 -> 0 | U164: =U163*Ort!$O18 -> 0 | V164: =V163*Ort!$O18 -> 0 | W164: =W163*Ort!$O18 -> 0 | X164: =X163*Ort!$O18 -> 0 | Y164: =Y163*Ort!$O18 -> 0 | Z164: 6.19414 | AB164: =Z161+Z165 -> 6.19414
A165: Diffusstrål, IdH fördelad | B165: =B164-B161 -> 0 | C165: 0 | D165: 0 | E165: 0 | F165: 0 | G165: 0 | H165: 0 | I165: 0 | J165: 0 | K165: 0.7150429367 | L165: 0.9733031762 | M165: 1.027930925 | N165: 0.9733031762 | O165: 0.7150429367 | P165: 0 | Q165: 0 | R165: 0 | S165: 0 | T165: 0 | U165: 0 | V165: 0 | W165: 0 | X165: 0 | Y165: 0 | Z165: 4.404623151
B167: Summa IDH | C167: =Z18+Z31+Z44+Z57+Z70+Z83+Z96+Z109+Z122+Z135+Z148+Z161 -> 538.009206
B168: Summa IdH | C168: =Z22+Z35+Z48+Z61+Z74+Z87+Z100+Z113+Z126+Z139+Z152+Z165 -> 457.417184
B169: Summa | C169: =SUM(C167:C168) -> 995.42639

Sheet Lutande yta
A1: SOLINSTRÅLNING MOT OLIKA YTOR | G1: PLATS | H1: =Ort!B1 -> Stockholm Bromma | K1: Latitud | L1: =Ort!C2 -> 59.353265 | M1: Longitud | N1: =Ort!C3 -> 17.947934
A2: Direktstrålning, IDN | B2: IDN*(sin(h*PI()/180)*cos(α*PI()/180)+cos(h*PI()/180)*sin(α*PI()/180)*cos ((a-β)*PI()/180)) | K2: h | L2: solhöjd | P2: Albedo (markreflektion)
A3: Diffusstrålning | B3: IdH*(2+cos(α*PI()/180))/3 (enl Koronakis 1986) | K3: a | L3: solazimut räknad från Norr medurs | P3: Torr ren snö | R3: 0,8-0,9
A4: Markreflektion | B4: r*(IDH + IdH)*(1-cos(α*PI()/180))/2 | K4: α | L4: ytans lutning mot horisontalplanet | P4: Smältande snö | R4: 0.6
A5: Globbalstrålning | B5: IDH + IdH | K5: β | L5: ytans azimut | P5: Barmark | R5: 0,5-0,2
F6: Välj markreflektion (albedo) | K6: r | L6: albedo = markens reflektionsfaktor | P6: Hav | R6: 0.1
A7: Välj lutning | B7: α | C7: 45 | D7: hor=0 | E7: r | F7: 0.2 | G7: sommar | H7: maj-sep | J7: SKUGGNINGAR | L7: Vänster | M7: Höger
A8: Välj orientering | B8: β | C8: 180 | D8: Öster=90 | E8: r | F8: 0.5 | G8: vinter | H8: nov-april | J8: Vertikal avskärmning | L8: 0 | M8: 0
J9: Horisontell avskärmning | L9: 0
J10: Horisontavskärmning | L10: 5
L11: 337,5-22,5 | M11: 22,5-67,5 | N11: 67,5-112,5 | O11: 112,5-157,5 | P11: 157,5-202,5 | Q11: 202,5-246,5 | R11: 247,5-292,5 | S11: 292,5-337,5
B12: N | C12: NO | D12: NO | E12: NO | F12: O | G12: O | H12: O | I12: SO | J12: SO | K12: SO | L12: S | M12: S | N12: S | O12: SV | P12: SV | Q12: SV | R12: V | S12: V | T12: V | U12: NV | V12: NV | W12: NV | X12: N | Y12: N
A13: Sammanställning | B13: jan | C13: feb | D13: mar | E13: apr | F13: maj | G13: jun | H13: jul | I13: aug | J13: sep | K13: okt | L13: nov | M13: dec | N13: Summa | Q13: Solen når ytan | U13: =Z162 -> 1196.835765 | W13: kWh/m2,år
B14: =Z27 -> 20.04180442 | C14: =Z39 -> 37.0388663 | D14: =Z51 -> 101.9730039 | E14: =Z63 -> 144.7378095 | F14: =Z75 -> 164.7338037 | G14: =Z87 -> 171.5425433 | H14: =Z99 -> 174.3878773 | I14: =Z111 -> 154.6830718 | J14: =Z123 -> 116.9155483 | K14: =Z135 -> 66.75433088 | L14: =Z147 -> 26.72402821 | M14: =Z159 -> 17.30307704 | N14: =SUM(B14:M14) -> 1196.835765 | Q14: Solen når inte ytan
A15: Andel | B15: =B14/$N14 -> 0.01674565969 | C15: =C14/$N14 -> 0.03094732577 | D15: 0.08520216972 | E15: 0.1209337269 | F15: 0.1376411104 | G15: 0.1433300611 | H15: 0.1457074416 | I15: 0.1292433568 | J15: 0.09768721135 | K15: 0.05577568189 | L15: 0.02232890176 | M15: 0.01445735292
A17: Januari | B17: deklination | D17: -19.9
A18: Kl | B18: ='Mot marken'!B12 -> 1 | C18: ='Mot marken'!C12 -> 2 | D18: ='Mot marken'!D12 -> 3 | E18: ='Mot marken'!E12 -> 4 | F18: ='Mot marken'!F12 -> 5 | G18: ='Mot marken'!G12 -> 6 | H18: ='Mot marken'!H12 -> 7 | I18: ='Mot marken'!I12 -> 8 | J18: ='Mot marken'!J12 -> 9 | K18: ='Mot marken'!K12 -> 10 | L18: ='Mot marken'!L12 -> 11 | M18: ='Mot marken'!M12 -> 12 | N18: ='Mot marken'!N12 -> 13 | O18: ='Mot marken'!O12 -> 14 | P18: ='Mot marken'!P12 -> 15 | Q18: ='Mot marken'!Q12 -> 16 | R18: ='Mot marken'!R12 -> 17 | S18: ='Mot marken'!S12 -> 18 | T18: ='Mot marken'!T12 -> 19 | U18: ='Mot marken'!U12 -> 20 | V18: ='Mot marken'!V12 -> 21 | W18: ='Mot marken'!W12 -> 22 | X18: ='Mot marken'!X12 -> 23 | Y18: ='Mot marken'!Y12 -> 24
A19: solhöjd | B19: =IF('Mot marken'!B13<0,0,'Mot marken'!B13) -> 0 | C19: =IF('Mot marken'!C13<0,0,'Mot marken'!C13) -> 0 | D19: =IF('Mot marken'!D13<0,0,'Mot marken'!D13) -> 0 | E19: =IF('Mot marken'!E13<0,0,'Mot marken'!E13) -> 0 | F19: =IF('Mot marken'!F13<0,0,'Mot marken'!F13) -> 0 | G19: =IF('Mot marken'!G13<0,0,'Mot marken'!G13) -> 0 | H19: =IF('Mot marken'!H13<0,0,'Mot marken'!H13) -> 0 | I19: =IF('Mot marken'!I13<0,0,'Mot marken'!I13) -> 0 | J19: =IF('Mot marken'!J13<0,0,'Mot marken'!J13) -> 2.641278984 | K19: =IF('Mot marken'!K13<0,0,'Mot marken'!K13) -> 7.022163423 | L19: =IF('Mot marken'!L13<0,0,'Mot marken'!L13) -> 9.79573277 | M19: =IF('Mot marken'!M13<0,0,'Mot marken'!M13) -> 10.746735 | N19: =IF('Mot marken'!N13<0,0,'Mot marken'!N13) -> 9.79573277 | O19: =IF('Mot marken'!O13<0,0,'Mot marken'!O13) -> 7.022163423 | P19: =IF('Mot marken'!P13<0,0,'Mot marken'!P13) -> 2.641278984 | Q19: =IF('Mot marken'!Q13<0,0,'Mot marken'!Q13) -> 0 | R19: =IF('Mot marken'!R13<0,0,'Mot marken'!R13) -> 0 | S19: =IF('Mot marken'!S13<0,0,'Mot marken'!S13) -> 0 | T19: =IF('Mot marken'!T13<0,0,'Mot marken'!T13) -> 0 | U19: =IF('Mot marken'!U13<0,0,'Mot marken'!U13) -> 0 | V19: =IF('Mot marken'!V13<0,0,'Mot marken'!V13) -> 0 | W19: =IF('Mot marken'!W13<0,0,'Mot marken'!W13) -> 0 | X19: =IF('Mot marken'!X13<0,0,'Mot marken'!X13) -> 0 | Y19: =IF('Mot marken'!Y13<0,0,'Mot marken'!Y13) -> 0
A20: azimut | B20: ='Mot marken'!B14 -> -158.1814628 | C20: ='Mot marken'!C14 -> -138.2671397 | D20: ='Mot marken'!D14 -> -120.9371849 | E20: ='Mot marken'!E14 -> -105.8354151 | F20: ='Mot marken'!F14 -> -92.26143335 | G20: ='Mot marken'!G14 -> -79.54512602 | H20: ='Mot marken'!H14 -> -67.14177317 | I20: ='Mot marken'!I14 -> -54.63361791 | J20: ='Mot marken'!J14 -> -41.72769787 | K20: ='Mot marken'!K14 -> -28.27456505 | L20: ='Mot marken'!L14 -> -14.29799392 | M20: ='Mot marken'!M14 -> 0 | N20: ='Mot marken'!N14 -> 14.29799392 | O20: ='Mot marken'!O14 -> 28.27456505 | P20: ='Mot marken'!P14 -> 41.72769787 | Q20: ='Mot marken'!Q14 -> 54.63361791 | R20: ='Mot marken'!R14 -> 67.14177317 | S20: ='Mot marken'!S14 -> 79.54512602 | T20: ='Mot marken'!T14 -> 92.26143335 | U20: ='Mot marken'!U14 -> 105.8354151 | V20: ='Mot marken'!V14 -> 120.9371849 | W20: ='Mot marken'!W14 -> 138.2671397 | X20: ='Mot marken'!X14 -> 158.1814628 | Y20: ='Mot marken'!Y14 -> 180 | Z20: Summor | AA20: % av året
A21: Uppmätt IDN förd | B21: ='Mot marken'!B17 -> 0 | C21: ='Mot marken'!C17 -> 0 | D21: ='Mot marken'!D17 -> 0 | E21: ='Mot marken'!E17 -> 0 | F21: ='Mot marken'!F17 -> 0 | G21: ='Mot marken'!G17 -> 0 | H21: ='Mot marken'!H17 -> 0 | I21: ='Mot marken'!I17 -> 0 | J21: ='Mot marken'!J17 -> 0.5016900323 | K21: ='Mot marken'!K17 -> 2.870127797 | L21: ='Mot marken'!L17 -> 3.862545934 | M21: ='Mot marken'!M17 -> 4.127762475 | N21: ='Mot marken'!N17 -> 3.862545934 | O21: ='Mot marken'!O17 -> 2.870127797 | P21: ='Mot marken'!P17 -> 0.5016900323 | Q21: ='Mot marken'!Q17 -> 0 | R21: ='Mot marken'!R17 -> 0 | S21: ='Mot marken'!S17 -> 0 | T21: ='Mot marken'!T17 -> 0 | U21: ='Mot marken'!U17 -> 0 | V21: ='Mot marken'!V17 -> 0 | W21: ='Mot marken'!W17 -> 0 | X21: ='Mot marken'!X17 -> 0 | Y21: ='Mot marken'!Y17 -> 0 | Z21: =SUM(B21:Y21) -> 18.59649
A22: Global IDH + IdH förd | B22: ='Mot marken'!B21 -> 0 | C22: ='Mot marken'!C21 -> 0 | D22: ='Mot marken'!D21 -> 0 | E22: ='Mot marken'!E21 -> 0 | F22: ='Mot marken'!F21 -> 0 | G22: ='Mot marken'!G21 -> 0 | H22: ='Mot marken'!H21 -> 0 | I22: ='Mot marken'!I21 -> 0 | J22: ='Mot marken'!J21 -> 0.4921507205 | K22: ='Mot marken'!K21 -> 1.305632098 | L22: ='Mot marken'!L21 -> 1.81700787 | M22: ='Mot marken'!M21 -> 1.991428623 | N22: ='Mot marken'!N21 -> 1.81700787 | O22: ='Mot marken'!O21 -> 1.305632098 | P22: ='Mot marken'!P21 -> 0.4921507205 | Q22: ='Mot marken'!Q21 -> 0 | R22: ='Mot marken'!R21 -> 0 | S22: ='Mot marken'!S21 -> 0 | T22: ='Mot marken'!T21 -> 0 | U22: ='Mot marken'!U21 -> 0 | V22: ='Mot marken'!V21 -> 0 | W22: ='Mot marken'!W21 -> 0 | X22: ='Mot marken'!X21 -> 0 | Y22: ='Mot marken'!Y21 -> 0 | Z22: =SUM(B22:Y22) -> 9.22101
A23: Diffusstrål IdH förd | B23: ='Mot marken'!B22 -> 0 | C23: ='Mot marken'!C22 -> 0 | D23: ='Mot marken'!D22 -> 0 | E23: ='Mot marken'!E22 -> 0 | F23: ='Mot marken'!F22 -> 0 | G23: ='Mot marken'!G22 -> 0 | H23: ='Mot marken'!H22 -> 0 | I23: ='Mot marken'!I22 -> 0 | J23: ='Mot marken'!J22 -> 0.4690314948 | K23: ='Mot marken'!K22 -> 0.9547495734 | L23: ='Mot marken'!L22 -> 1.159849337 | M23: ='Mot marken'!M22 -> 1.2217328 | N23: ='Mot marken'!N22 -> 1.159849337 | O23: ='Mot marken'!O22 -> 0.9547495734 | P23: ='Mot marken'!P22 -> 0.4690314948 | Q23: ='Mot marken'!Q22 -> 0 | R23: ='Mot marken'!R22 -> 0 | S23: ='Mot marken'!S22 -> 0 | T23: ='Mot marken'!T22 -> 0 | U23: ='Mot marken'!U22 -> 0 | V23: ='Mot marken'!V22 -> 0 | W23: ='Mot marken'!W22 -> 0 | X23: ='Mot marken'!X22 -> 0 | Y23: ='Mot marken'!Y22 -> 0 | Z23: =SUM(B23:Y23) -> 6.38899361
A24: Direkt mot ytan | B24: =IF(B19<$L10,0,IF(AND(B20>$L8,B20<$M8,B19<$L9),0,IF(SIN(B19*PI()/180)*(COS($C$7*PI()/180))+COS(B19*PI()/180)*SIN($C$7*PI()/180)*(COS((B20-($C$8-180))*PI()/180))<0,0,B21*(SIN(B19*PI()/180)*(COS($C$7*PI()/180))+COS(B19*PI()/180)*SIN($C$7*PI()/180)*(COS((B20-($C$8-180))*PI()/180)))))) -> 0 | C24: 0 | D24: 0 | E24: 0 | F24: 0 | G24: 0 | H24: 0 | I24: 0 | J24: 0 | K24: 2.022048567 | L24: =IF(L19<$L$10,0,IF(AND(L20>$L8,L20<$M8,L19<$L9),0,IF(SIN(L19*PI()/180)*(COS($C$7*PI()/180))+COS(L19*PI()/180)*SIN($C$7*PI()/180)*(COS((L20-($C$8-180))*PI()/180))<0,0,L21*(SIN(L19*PI()/180)*(COS($C$7*PI()/180))+COS(L19*PI()/180)*SIN($C$7*PI()/180)*(COS((L20-($C$8-180))*PI()/180)))))) -> 3.072725695 | M24: =IF(M19<$L10,0,IF(AND(M20>$L8,M20<$M8,M19<$L9),0,IF(SIN(M19*PI()/180)*(COS($C$7*PI()/180))+COS(M19*PI()/180)*SIN($C$7*PI()/180)*(COS((M20-($C$8-180))*PI()/180))<0,0,M21*(SIN(M19*PI()/180)*(COS($C$7*PI()/180))+COS(M19*PI()/180)*SIN($C$7*PI()/180)*(COS((M20-($C$8-180))*PI()/180)))))) -> 3.41183376 | N24: 3.072725695 | O24: 2.022048567 | P24: 0 | Q24: 0 | R24: 0 | S24: 0 | T24: 0 | U24: 0 | V24: 0 | W24: 0 | X24: 0 | Y24: 0 | Z24: =SUM(B24:Y24) -> 13.60138228
A25: Diffus mot ytan | B25: =(B23)*(2+(COS($C$7*PI()/180)))/3 -> 0 | C25: =(C23)*(2+(COS($C$7*PI()/180)))/3 -> 0 | D25: 0 | E25: 0 | F25: 0 | G25: 0 | H25: 0 | I25: 0 | J25: 0.4232394468 | K25: 0.8615363482 | L25: 1.046612002 | M25: 1.102453716 | N25: 1.046612002 | O25: 0.8615363482 | P25: 0.4232394468 | Q25: 0 | R25: 0 | S25: 0 | T25: 0 | U25: 0 | V25: 0 | W25: 0 | X25: 0 | Y25: 0 | Z25: =SUM(B25:Y25) -> 5.765229309
A26: Markrefl. mot ytan | B26: =$F$8*B22*(1-COS($C$7*PI()/180))/2 -> 0 | C26: =$F$8*C22*(1-COS($C$7*PI()/180))/2 -> 0 | D26: 0 | E26: 0 | F26: 0 | G26: 0 | H26: 0 | I26: 0 | J26: 0.03603690217 | K26: 0.09560269695 | L26: 0.1330473209 | M26: 0.1458189848 | N26: 0.1330473209 | O26: 0.09560269695 | P26: 0.03603690217 | Q26: 0 | R26: 0 | S26: 0 | T26: 0 | U26: 0 | V26: 0 | W26: 0 | X26: 0 | Y26: 0 | Z26: 0.6751928249
A27: Summa mot ytan | B27: =SUM(B24:B26) -> 0 | C27: =SUM(C24:C26) -> 0 | D27: 0 | E27: 0 | F27: 0 | G27: 0 | H27: 0 | I27: 0 | J27: 0.4592763489 | K27: 2.979187612 | L27: 4.252385018 | M27: 4.66010646 | N27: 4.252385018 | O27: 2.979187612 | P27: 0.4592763489 | Q27: 0 | R27: 0 | S27: 0 | T27: 0 | U27: 0 | V27: 0 | W27: 0 | X27: 0 | Y27: 0 | Z27: =SUM(B27:Y27) -> 20.04180442 | AA27: =Z27/Z$162 -> 0.01674565969
A29: Februari | B29: ='Mot marken'!B24 -> deklination | D29: ='Mot marken'!C24 -> -10.9
A30: Kl | B30: ='Mot marken'!B25 -> 1 | C30: ='Mot marken'!C25 -> 2 | D30: ='Mot marken'!D25 -> 3 | E30: ='Mot marken'!E25 -> 4 | F30: ='Mot marken'!F25 -> 5 | G30: ='Mot marken'!G25 -> 6 | H30: ='Mot marken'!H25 -> 7 | I30: ='Mot marken'!I25 -> 8 | J30: ='Mot marken'!J25 -> 9 | K30: ='Mot marken'!K25 -> 10 | L30: ='Mot marken'!L25 -> 11 | M30: ='Mot marken'!M25 -> 12 | N30: ='Mot marken'!N25 -> 13 | O30: ='Mot marken'!O25 -> 14 | P30: ='Mot marken'!P25 -> 15 | Q30: ='Mot marken'!Q25 -> 16 | R30: ='Mot marken'!R25 -> 17 | S30: ='Mot marken'!S25 -> 18 | T30: ='Mot marken'!T25 -> 19 | U30: ='Mot marken'!U25 -> 20 | V30: ='Mot marken'!V25 -> 21 | W30: ='Mot marken'!W25 -> 22 | X30: ='Mot marken'!X25 -> 23 | Y30: ='Mot marken'!Y25 -> 24
A31: solhöjd | B31: =IF('Mot marken'!B26<0,0,'Mot marken'!B26) -> 0 | C31: =IF('Mot marken'!C26<0,0,'Mot marken'!C26) -> 0 | D31: =IF('Mot marken'!D26<0,0,'Mot marken'!D26) -> 0 | E31: =IF('Mot marken'!E26<0,0,'Mot marken'!E26) -> 0 | F31: =IF('Mot marken'!F26<0,0,'Mot marken'!F26) -> 0 | G31: =IF('Mot marken'!G26<0,0,'Mot marken'!G26) -> 0 | H31: =IF('Mot marken'!H26<0,0,'Mot marken'!H26) -> 0 | I31: =IF('Mot marken'!I26<0,0,'Mot marken'!I26) -> 5.024955316 | J31: =IF('Mot marken'!J26<0,0,'Mot marken'!J26) -> 11.02610886 | K31: =IF('Mot marken'!K26<0,0,'Mot marken'!K26) -> 15.7120267 | L31: =IF('Mot marken'!L26<0,0,'Mot marken'!L26) -> 18.71175775 | M31: =IF('Mot marken'!M26<0,0,'Mot marken'!M26) -> 19.746735 | N31: =IF('Mot marken'!N26<0,0,'Mot marken'!N26) -> 18.71175775 | O31: =IF('Mot marken'!O26<0,0,'Mot marken'!O26) -> 15.7120267 | P31: =IF('Mot marken'!P26<0,0,'Mot marken'!P26) -> 11.02610886 | Q31: =IF('Mot marken'!Q26<0,0,'Mot marken'!Q26) -> 5.024955316 | R31: =IF('Mot marken'!R26<0,0,'Mot marken'!R26) -> 0 | S31: =IF('Mot marken'!S26<0,0,'Mot marken'!S26) -> 0 | T31: =IF('Mot marken'!T26<0,0,'Mot marken'!T26) -> 0 | U31: =IF('Mot marken'!U26<0,0,'Mot marken'!U26) -> 0 | V31: =IF('Mot marken'!V26<0,0,'Mot marken'!V26) -> 0 | W31: =IF('Mot marken'!W26<0,0,'Mot marken'!W26) -> 0 | X31: =IF('Mot marken'!X26<0,0,'Mot marken'!X26) -> 0 | Y31: =IF('Mot marken'!Y26<0,0,'Mot marken'!Y26) -> 0
A32: azimut | B32: ='Mot marken'!B27 -> -160.5484308 | C32: ='Mot marken'!C27 -> -142.2991055 | D32: ='Mot marken'!D27 -> -125.8106661 | E32: ='Mot marken'!E27 -> -110.9749795 | F32: ='Mot marken'!F27 -> -97.34492297 | G32: ='Mot marken'!G27 -> -84.39374409 | H32: ='Mot marken'!H27 -> -71.62621457 | I32: ='Mot marken'!I27 -> -58.61445303 | J32: ='Mot marken'!J27 -> -45.02443913 | K32: ='Mot marken'!K27 -> -30.66628929 | L32: ='Mot marken'!L27 -> -15.56506334 | M32: ='Mot marken'!M27 -> 0 | N32: ='Mot marken'!N27 -> 15.56506334 | O32: ='Mot marken'!O27 -> 30.66628929 | P32: ='Mot marken'!P27 -> 45.02443913 | Q32: ='Mot marken'!Q27 -> 58.61445303 | R32: ='Mot marken'!R27 -> 71.62621457 | S32: ='Mot marken'!S27 -> 84.39374409 | T32: ='Mot marken'!T27 -> 97.34492297 | U32: ='Mot marken'!U27 -> 110.9749795 | V32: ='Mot marken'!V27 -> 125.8106661 | W32: ='Mot marken'!W27 -> 142.2991055 | X32: ='Mot marken'!X27 -> 160.5484308 | Y32: ='Mot marken'!Y27 -> 180 | Z32: =Luleå!Z162 -> Summa
A33: Uppmätt IDN förd | B33: ='Mot marken'!B30 -> 0 | C33: ='Mot marken'!C30 -> 0 | D33: ='Mot marken'!D30 -> 0 | E33: ='Mot marken'!E30 -> 0 | F33: ='Mot marken'!F30 -> 0 | G33: ='Mot marken'!G30 -> 0 | H33: ='Mot marken'!H30 -> 0 | I33: ='Mot marken'!I30 -> 1.44804815 | J33: ='Mot marken'!J30 -> 3.217182625 | K33: ='Mot marken'!K30 -> 3.922117715 | L33: ='Mot marken'!L30 -> 4.224425046 | M33: ='Mot marken'!M30 -> 4.311052928 | N33: ='Mot marken'!N30 -> 4.224425046 | O33: ='Mot marken'!O30 -> 3.922117715 | P33: ='Mot marken'!P30 -> 3.217182625 | Q33: ='Mot marken'!Q30 -> 1.44804815 | R33: ='Mot marken'!R30 -> 0 | S33: ='Mot marken'!S30 -> 0 | T33: ='Mot marken'!T30 -> 0 | U33: ='Mot marken'!U30 -> 0 | V33: ='Mot marken'!V30 -> 0 | W33: ='Mot marken'!W30 -> 0 | X33: ='Mot marken'!X30 -> 0 | Y33: ='Mot marken'!Y30 -> 0 | Z33: =SUM(B33:Y33) -> 29.9346
A34: Global IDH + IdH förd | B34: ='Mot marken'!B34 -> 0 | C34: ='Mot marken'!C34 -> 0 | D34: ='Mot marken'!D34 -> 0 | E34: ='Mot marken'!E34 -> 0 | F34: ='Mot marken'!F34 -> 0 | G34: ='Mot marken'!G34 -> 0 | H34: ='Mot marken'!H34 -> 0 | I34: ='Mot marken'!I34 -> 0.925352226 | J34: ='Mot marken'!J34 -> 2.020552361 | K34: ='Mot marken'!K34 -> 2.860928981 | L34: ='Mot marken'!L34 -> 3.38921181 | M34: ='Mot marken'!M34 -> 3.569399245 | N34: ='Mot marken'!N34 -> 3.38921181 | O34: ='Mot marken'!O34 -> 2.860928981 | P34: ='Mot marken'!P34 -> 2.020552361 | Q34: ='Mot marken'!Q34 -> 0.925352226 | R34: ='Mot marken'!R34 -> 0 | S34: ='Mot marken'!S34 -> 0 | T34: ='Mot marken'!T34 -> 0 | U34: ='Mot marken'!U34 -> 0 | V34: ='Mot marken'!V34 -> 0 | W34: ='Mot marken'!W34 -> 0 | X34: ='Mot marken'!X34 -> 0 | Y34: ='Mot marken'!Y34 -> 0 | Z34: =SUM(B34:Y34) -> 21.96149
A35: Diffusstrål IdH | B35: ='Mot marken'!B35 -> 0 | C35: ='Mot marken'!C35 -> 0 | D35: ='Mot marken'!D35 -> 0 | E35: ='Mot marken'!E35 -> 0 | F35: ='Mot marken'!F35 -> 0 | G35: ='Mot marken'!G35 -> 0 | H35: ='Mot marken'!H35 -> 0 | I35: ='Mot marken'!I35 -> 0.798518225 | J35: ='Mot marken'!J35 -> 1.405245951 | K35: ='Mot marken'!K35 -> 1.798809642 | L35: ='Mot marken'!L35 -> 2.033985154 | M35: ='Mot marken'!M35 -> 2.112853605 | N35: ='Mot marken'!N35 -> 2.033985154 | O35: ='Mot marken'!O35 -> 1.798809642 | P35: ='Mot marken'!P35 -> 1.405245951 | Q35: ='Mot marken'!Q35 -> 0.798518225 | R35: ='Mot marken'!R35 -> 0 | S35: ='Mot marken'!S35 -> 0 | T35: ='Mot marken'!T35 -> 0 | U35: ='Mot marken'!U35 -> 0 | V35: ='Mot marken'!V35 -> 0 | W35: ='Mot marken'!W35 -> 0 | X35: ='Mot marken'!X35 -> 0 | Y35: ='Mot marken'!Y35 -> 0 | Z35: 14.18597155
A36: Direkt mot ytan | B36: =IF(B31<$L$10,0,IF(AND(B32>$L8,B32<$M8,B31<$L9),0,IF(SIN(B31*PI()/180)*(COS($C$7*PI()/180))+COS(B31*PI()/180)*SIN($C$7*PI()/180)*(COS((B32-($C$8-180))*PI()/180))<0,0,B33*(SIN(B31*PI()/180)*(COS($C$7*PI()/180))+COS(B31*PI()/180)*SIN($C$7*PI()/180)*(COS((B32-($C$8-180))*PI()/180)))))) -> 0 | C36: 0 | D36: 0 | E36: 0 | F36: 0 | G36: 0 | H36: 0 | I36: 0.6208898305 | J36: 2.013310654 | K36: 3.047406203 | L36: =IF(L31<$L$10,0,IF(AND(L32>$L8,L32<$M8,L31<$L9),0,IF(SIN(L31*PI()/180)*(COS($C$7*PI()/180))+COS(L31*PI()/180)*SIN($C$7*PI()/180)*(COS((L32-($C$8-180))*PI()/180))<0,0,L33*(SIN(L31*PI()/180)*(COS($C$7*PI()/180))+COS(L31*PI()/180)*SIN($C$7*PI()/180)*(COS((L32-($C$8-180))*PI()/180)))))) -> 3.683765459 | M36: =IF(M31<$L$10,0,IF(AND(M32>$L8,M32<$M8,M31<$L9),0,IF(SIN(M31*PI()/180)*(COS($C$7*PI()/180))+COS(M31*PI()/180)*SIN($C$7*PI()/180)*(COS((M32-($C$8-180))*PI()/180))<0,0,M33*(SIN(M31*PI()/180)*(COS($C$7*PI()/180))+COS(M31*PI()/180)*SIN($C$7*PI()/180)*(COS((M32-($C$8-180))*PI()/180)))))) -> 3.899049204 | N36: 3.683765459 | O36: 3.047406203 | P36: 2.013310654 | Q36: 0.6208898305 | R36: 0 | S36: 0 | T36: 0 | U36: 0 | V36: 0 | W36: 0 | X36: 0 | Y36: 0 | Z36: =SUM(B36:Y36) -> 22.6297935
A37: Diffus mot ytan | B37: =(B35)*(2+(COS($C$7*PI()/180)))/3 -> 0 | C37: =(C35)*(2+(COS($C$7*PI()/180)))/3 -> 0 | D37: 0 | E37: 0 | F37: 0 | G37: 0 | H37: 0 | I37: 0.720558034 | J37: 1.268050281 | K37: 1.623189927 | L37: 1.835405001 | M37: 1.90657344 | N37: 1.835405001 | O37: 1.623189927 | P37: 1.268050281 | Q37: 0.720558034 | R37: 0 | S37: 0 | T37: 0 | U37: 0 | V37: 0 | W37: 0 | X37: 0 | Y37: 0 | Z37: =SUM(B37:Y37) -> 12.80097993
A38: Markrefl. mot ytan | B38: =$F$8*B34*(1-COS($C$7*PI()/180))/2 -> 0 | C38: =$F$8*C34*(1-COS($C$7*PI()/180))/2 -> 0 | D38: 0 | E38: 0 | F38: 0 | G38: 0 | H38: 0 | I38: 0.067757348 | J38: 0.1479515212 | K38: 0.2094866745 | L38: 0.2481692891 | M38: 0.2613632085 | N38: 0.2481692891 | O38: 0.2094866745 | P38: 0.1479515212 | Q38: 0.067757348 | R38: 0 | S38: 0 | T38: 0 | U38: 0 | V38: 0 | W38: 0 | X38: 0 | Y38: 0 | Z38: 1.608092874
A39: Summa mot ytan | B39: =SUM(B36:B38) -> 0 | C39: =SUM(C36:C38) -> 0 | D39: 0 | E39: 0 | F39: 0 | G39: 0 | H39: 0 | I39: 1.409205212 | J39: 3.429312456 | K39: 4.880082805 | L39: 5.767339749 | M39: 6.066985852 | N39: 5.767339749 | O39: 4.880082805 | P39: 3.429312456 | Q39: 1.409205212 | R39: 0 | S39: 0 | T39: 0 | U39: 0 | V39: 0 | W39: 0 | X39: 0 | Y39: 0 | Z39: =SUM(B39:Y39) -> 37.0388663 | AA39: =Z39/Z$162 -> 0.03094732577
A41: Mars | B41: ='Mot marken'!B37 -> deklination | D41: ='Mot marken'!C37 -> 0
A42: Kl | B42: ='Mot marken'!B38 -> 1 | C42: ='Mot marken'!C38 -> 2 | D42: ='Mot marken'!D38 -> 3 | E42: ='Mot marken'!E38 -> 4 | F42: ='Mot marken'!F38 -> 5 | G42: ='Mot marken'!G38 -> 6 | H42: ='Mot marken'!H38 -> 7 | I42: ='Mot marken'!I38 -> 8 | J42: ='Mot marken'!J38 -> 9 | K42: ='Mot marken'!K38 -> 10 | L42: ='Mot marken'!L38 -> 11 | M42: ='Mot marken'!M38 -> 12 | N42: ='Mot marken'!N38 -> 13 | O42: ='Mot marken'!O38 -> 14 | P42: ='Mot marken'!P38 -> 15 | Q42: ='Mot marken'!Q38 -> 16 | R42: ='Mot marken'!R38 -> 17 | S42: ='Mot marken'!S38 -> 18 | T42: ='Mot marken'!T38 -> 19 | U42: ='Mot marken'!U38 -> 20 | V42: ='Mot marken'!V38 -> 21 | W42: ='Mot marken'!W38 -> 22 | X42: ='Mot marken'!X38 -> 23 | Y42: ='Mot marken'!Y38 -> 24
A43: solhöjd | B43: =IF('Mot marken'!B39<0,0,'Mot marken'!B39) -> 0 | C43: =IF('Mot marken'!C39<0,0,'Mot marken'!C39) -> 0 | D43: =IF('Mot marken'!D39<0,0,'Mot marken'!D39) -> 0 | E43: =IF('Mot marken'!E39<0,0,'Mot marken'!E39) -> 0 | F43: =IF('Mot marken'!F39<0,0,'Mot marken'!F39) -> 0 | G43: =IF('Mot marken'!G39<0,0,'Mot marken'!G39) -> 0 | H43: =IF('Mot marken'!H39<0,0,'Mot marken'!H39) -> 7.581208085 | I43: =IF('Mot marken'!I39<0,0,'Mot marken'!I39) -> 14.76598101 | J43: =IF('Mot marken'!J39<0,0,'Mot marken'!J39) -> 21.12740279 | K43: =IF('Mot marken'!K39<0,0,'Mot marken'!K39) -> 26.19647681 | L43: =IF('Mot marken'!L39<0,0,'Mot marken'!L39) -> 29.49675416 | M43: =IF('Mot marken'!M39<0,0,'Mot marken'!M39) -> 30.646735 | N43: =IF('Mot marken'!N39<0,0,'Mot marken'!N39) -> 29.49675416 | O43: =IF('Mot marken'!O39<0,0,'Mot marken'!O39) -> 26.19647681 | P43: =IF('Mot marken'!P39<0,0,'Mot marken'!P39) -> 21.12740279 | Q43: =IF('Mot marken'!Q39<0,0,'Mot marken'!Q39) -> 14.76598101 | R43: =IF('Mot marken'!R39<0,0,'Mot marken'!R39) -> 7.581208085 | S43: =IF('Mot marken'!S39<0,0,'Mot marken'!S39) -> 8.945464872e-15 | T43: =IF('Mot marken'!T39<0,0,'Mot marken'!T39) -> 0 | U43: =IF('Mot marken'!U39<0,0,'Mot marken'!U39) -> 0 | V43: =IF('Mot marken'!V39<0,0,'Mot marken'!V39) -> 0 | W43: =IF('Mot marken'!W39<0,0,'Mot marken'!W39) -> 0 | X43: =IF('Mot marken'!X39<0,0,'Mot marken'!X39) -> 0 | Y43: =IF('Mot marken'!Y39<0,0,'Mot marken'!Y39) -> 0
A44: azimut | B44: ='Mot marken'!B40 -> -162.7007698 | C44: ='Mot marken'!C40 -> -146.1351206 | D44: ='Mot marken'!D40 -> -130.7062838 | E44: ='Mot marken'!E40 -> -116.4140389 | F44: ='Mot marken'!F40 -> -102.9812648 | G44: ='Mot marken'!G40 -> -90 | H44: ='Mot marken'!H40 -> -77.01873518 | I44: ='Mot marken'!I40 -> -63.58596111 | J44: ='Mot marken'!J40 -> -49.29371618 | K44: ='Mot marken'!K40 -> -33.86487941 | L44: ='Mot marken'!L40 -> -17.29923017 | M44: ='Mot marken'!M40 -> 0 | N44: ='Mot marken'!N40 -> 17.29923017 | O44: ='Mot marken'!O40 -> 33.86487941 | P44: ='Mot marken'!P40 -> 49.29371618 | Q44: ='Mot marken'!Q40 -> 63.58596111 | R44: ='Mot marken'!R40 -> 77.01873518 | S44: ='Mot marken'!S40 -> 90 | T44: ='Mot marken'!T40 -> 102.9812648 | U44: ='Mot marken'!U40 -> 116.4140389 | V44: ='Mot marken'!V40 -> 130.7062838 | W44: ='Mot marken'!W40 -> 146.1351206 | X44: ='Mot marken'!X40 -> 162.7007698 | Y44: ='Mot marken'!Y40 -> 180 | Z44: Summa
A45: Uppmätt IDN förd | B45: ='Mot marken'!B43 -> 0 | C45: ='Mot marken'!C43 -> 0 | D45: ='Mot marken'!D43 -> 0 | E45: ='Mot marken'!E43 -> 0 | F45: ='Mot marken'!F43 -> 0 | G45: ='Mot marken'!G43 -> 0 | H45: ='Mot marken'!H43 -> 4.925142421 | I45: ='Mot marken'!I43 -> 7.893170247 | J45: ='Mot marken'!J43 -> 9.154467178 | K45: ='Mot marken'!K43 -> 9.775864653 | L45: ='Mot marken'!L43 -> 10.07582615 | M45: ='Mot marken'!M43 -> 10.16617869 | N45: ='Mot marken'!N43 -> 10.07582615 | O45: ='Mot marken'!O43 -> 9.775864653 | P45: ='Mot marken'!P43 -> 9.154467178 | Q45: ='Mot marken'!Q43 -> 7.893170247 | R45: ='Mot marken'!R43 -> 4.925142421 | S45: ='Mot marken'!S43 -> 0 | T45: ='Mot marken'!T43 -> 0 | U45: ='Mot marken'!U43 -> 0 | V45: ='Mot marken'!V43 -> 0 | W45: ='Mot marken'!W43 -> 0 | X45: ='Mot marken'!X43 -> 0 | Y45: ='Mot marken'!Y43 -> 0 | Z45: =SUM(B45:Y45) -> 93.81512
A46: Global IDH + IdH förd | B46: ='Mot marken'!B47 -> 0 | C46: ='Mot marken'!C47 -> 0 | D46: ='Mot marken'!D47 -> 0 | E46: ='Mot marken'!E47 -> 0 | F46: ='Mot marken'!F47 -> 0 | G46: ='Mot marken'!G47 -> 0 | H46: ='Mot marken'!H47 -> 2.318450735 | I46: ='Mot marken'!I47 -> 4.478902884 | J46: ='Mot marken'!J47 -> 6.334125203 | K46: ='Mot marken'!K47 -> 7.757687357 | L46: ='Mot marken'!L47 -> 8.652575938 | M46: ='Mot marken'!M47 -> 8.957805768 | N46: ='Mot marken'!N47 -> 8.652575938 | O46: ='Mot marken'!O47 -> 7.757687357 | P46: ='Mot marken'!P47 -> 6.334125203 | Q46: ='Mot marken'!Q47 -> 4.478902884 | R46: ='Mot marken'!R47 -> 2.318450735 | S46: ='Mot marken'!S47 -> 2.743660474e-15 | T46: ='Mot marken'!T47 -> 0 | U46: ='Mot marken'!U47 -> 0 | V46: ='Mot marken'!V47 -> 0 | W46: ='Mot marken'!W47 -> 0 | X46: ='Mot marken'!X47 -> 0 | Y46: ='Mot marken'!Y47 -> 0 | Z46: =SUM(B46:Y46) -> 68.04129 | AD46: =IF(AND(K68>$L8,K68<$M8,K67<$L9),0,"s") -> s
A47: Diffusstrål IdH | B47: ='Mot marken'!B48 -> 0 | C47: ='Mot marken'!C48 -> 0 | D47: ='Mot marken'!D48 -> 0 | E47: ='Mot marken'!E48 -> 0 | F47: ='Mot marken'!F48 -> 0 | G47: ='Mot marken'!G48 -> 0 | H47: ='Mot marken'!H48 -> 1.668670374 | I47: ='Mot marken'!I48 -> 2.467157417 | J47: ='Mot marken'!J48 -> 3.034461868 | K47: ='Mot marken'!K48 -> 3.442125274 | L47: ='Mot marken'!L48 -> 3.691498561 | M47: ='Mot marken'!M48 -> 3.775663926 | N47: ='Mot marken'!N48 -> 3.691498561 | O47: ='Mot marken'!O48 -> 3.442125274 | P47: ='Mot marken'!P48 -> 3.034461868 | Q47: ='Mot marken'!Q48 -> 2.467157417 | R47: ='Mot marken'!R48 -> 1.668670374 | S47: ='Mot marken'!S48 -> 2.743660474e-15 | T47: ='Mot marken'!T48 -> 0 | U47: ='Mot marken'!U48 -> 0 | V47: ='Mot marken'!V48 -> 0 | W47: ='Mot marken'!W48 -> 0 | X47: ='Mot marken'!X48 -> 0 | Y47: ='Mot marken'!Y48 -> 0 | Z47: 32.38349091
A48: Direkt mot ytan | B48: =IF(B43<$L$10,0,IF(AND(B44>$L8,B44<$M8,B43<$L9),0,IF(SIN(B43*PI()/180)*(COS($C$7*PI()/180))+COS(B43*PI()/180)*SIN($C$7*PI()/180)*(COS((B44-($C$8-180))*PI()/180))<0,0,B45*(SIN(B43*PI()/180)*(COS($C$7*PI()/180))+COS(B43*PI()/180)*SIN($C$7*PI()/180)*(COS((B44-($C$8-180))*PI()/180)))))) -> 0 | C48: 0 | D48: 0 | E48: 0 | F48: 0 | G48: 0 | H48: 1.234931133 | I48: 3.823395193 | J48: 6.271129792 | K48: 8.201882193 | L48: =IF(L43<$L$10,0,IF(AND(L44>$L8,L44<$M8,L43<$L9),0,IF(SIN(L43*PI()/180)*(COS($C$7*PI()/180))+COS(L43*PI()/180)*SIN($C$7*PI()/180)*(COS((L44-($C$8-180))*PI()/180))<0,0,L45*(SIN(L43*PI()/180)*(COS($C$7*PI()/180))+COS(L43*PI()/180)*SIN($C$7*PI()/180)*(COS((L44-($C$8-180))*PI()/180)))))) -> 9.428707412 | M48: =IF(M43<$L$10,0,IF(AND(M44>$L8,M44<$M8,M43<$L9),0,IF(SIN(M43*PI()/180)*(COS($C$7*PI()/180))+COS(M43*PI()/180)*SIN($C$7*PI()/180)*(COS((M44-($C$8-180))*PI()/180))<0,0,M45*(SIN(M43*PI()/180)*(COS($C$7*PI()/180))+COS(M43*PI()/180)*SIN($C$7*PI()/180)*(COS((M44-($C$8-180))*PI()/180)))))) -> 9.848848441 | N48: 9.428707412 | O48: 8.201882193 | P48: 6.271129792 | Q48: 3.823395193 | R48: 1.234931133 | S48: 0 | T48: 0 | U48: 0 | V48: 0 | W48: 0 | X48: 0 | Y48: 0 | Z48: =SUM(B48:Y48) -> 67.76893989
A49: Diffus mot ytan | B49: =(B47)*(2+(COS($C$7*PI()/180)))/3 -> 0 | C49: =(C47)*(2+(COS($C$7*PI()/180)))/3 -> 0 | D49: 0 | E49: 0 | F49: 0 | G49: 0 | H49: 1.505756295 | I49: 2.226286191 | J49: 2.7382041 | K49: 3.10606689 | L49: 3.331093595 | M49: 3.407041806 | N49: 3.331093595 | O49: 3.10606689 | P49: 2.7382041 | Q49: 2.226286191 | R49: 1.505756295 | S49: 2.475793958e-15 | T49: 0 | U49: 0 | V49: 0 | W49: 0 | X49: 0 | Y49: 0 | Z49: =SUM(B49:Y49) -> 29.22185595
A50: Markrefl. mot ytan | B50: =$F$8*B46*(1-COS($C$7*PI()/180))/2 -> 0 | C50: =$F$8*C46*(1-COS($C$7*PI()/180))/2 -> 0 | D50: 0 | E50: 0 | F50: 0 | G50: 0 | H50: 0.1697646246 | I50: 0.3279600706 | J50: 0.4638055798 | K50: 0.5680435051 | L50: 0.6335702044 | M50: 0.6559201412 | N50: 0.6335702044 | O50: 0.5680435051 | P50: 0.4638055798 | Q50: 0.3279600706 | R50: 0.1697646246 | S50: 2.008998869e-16 | T50: 0 | U50: 0 | V50: 0 | W50: 0 | X50: 0 | Y50: 0 | Z50: 4.98220811
A51: Summa mot ytan | B51: =SUM(B48:B50) -> 0 | C51: =SUM(C48:C50) -> 0 | D51: 0 | E51: 0 | F51: 0 | G51: 0 | H51: 2.910452052 | I51: 6.377641454 | J51: 9.473139472 | K51: 11.87599259 | L51: 13.39337121 | M51: 13.91181039 | N51: 13.39337121 | O51: 11.87599259 | P51: 9.473139472 | Q51: 6.377641454 | R51: 2.910452052 | S51: 2.676693845e-15 | T51: 0 | U51: 0 | V51: 0 | W51: 0 | X51: 0 | Y51: 0 | Z51: =SUM(B51:Y51) -> 101.9730039 | AA51: 0.08520216972
A53: April | B53: ='Mot marken'!B50 -> deklination | D53: ='Mot marken'!C50 -> 10.9
A54: Kl | B54: ='Mot marken'!B51 -> 1 | C54: ='Mot marken'!C51 -> 2 | D54: ='Mot marken'!D51 -> 3 | E54: ='Mot marken'!E51 -> 4 | F54: ='Mot marken'!F51 -> 5 | G54: ='Mot marken'!G51 -> 6 | H54: ='Mot marken'!H51 -> 7 | I54: ='Mot marken'!I51 -> 8 | J54: ='Mot marken'!J51 -> 9 | K54: ='Mot marken'!K51 -> 10 | L54: ='Mot marken'!L51 -> 11 | M54: ='Mot marken'!M51 -> 12 | N54: ='Mot marken'!N51 -> 13 | O54: ='Mot marken'!O51 -> 14 | P54: ='Mot marken'!P51 -> 15 | Q54: ='Mot marken'!Q51 -> 16 | R54: ='Mot marken'!R51 -> 17 | S54: ='Mot marken'!S51 -> 18 | T54: ='Mot marken'!T51 -> 19 | U54: ='Mot marken'!U51 -> 20 | V54: ='Mot marken'!V51 -> 21 | W54: ='Mot marken'!W51 -> 22 | X54: ='Mot marken'!X51 -> 23 | Y54: ='Mot marken'!Y51 -> 24
A55: solhöjd | B55: =IF('Mot marken'!B52<0,0,'Mot marken'!B52) -> 0 | C55: =IF('Mot marken'!C52<0,0,'Mot marken'!C52) -> 0 | D55: =IF('Mot marken'!D52<0,0,'Mot marken'!D52) -> 0 | E55: =IF('Mot marken'!E52<0,0,'Mot marken'!E52) -> 0 | F55: =IF('Mot marken'!F52<0,0,'Mot marken'!F52) -> 1.898714371 | G55: =IF('Mot marken'!G52<0,0,'Mot marken'!G52) -> 9.362709527 | H55: =IF('Mot marken'!H52<0,0,'Mot marken'!H52) -> 16.99180363 | I55: =IF('Mot marken'!I52<0,0,'Mot marken'!I52) -> 24.39074243 | J55: =IF('Mot marken'!J52<0,0,'Mot marken'!J52) -> 31.10606329 | K55: =IF('Mot marken'!K52<0,0,'Mot marken'!K52) -> 36.59609557 | L55: =IF('Mot marken'!L52<0,0,'Mot marken'!L52) -> 40.2538312 | M55: =IF('Mot marken'!M52<0,0,'Mot marken'!M52) -> 41.546735 | N55: =IF('Mot marken'!N52<0,0,'Mot marken'!N52) -> 40.2538312 | O55: =IF('Mot marken'!O52<0,0,'Mot marken'!O52) -> 36.59609557 | P55: =IF('Mot marken'!P52<0,0,'Mot marken'!P52) -> 31.10606329 | Q55: =IF('Mot marken'!Q52<0,0,'Mot marken'!Q52) -> 24.39074243 | R55: =IF('Mot marken'!R52<0,0,'Mot marken'!R52) -> 16.99180363 | S55: =IF('Mot marken'!S52<0,0,'Mot marken'!S52) -> 9.362709527 | T55: =IF('Mot marken'!T52<0,0,'Mot marken'!T52) -> 1.898714371 | U55: =IF('Mot marken'!U52<0,0,'Mot marken'!U52) -> 0 | V55: =IF('Mot marken'!V52<0,0,'Mot marken'!V52) -> 0 | W55: =IF('Mot marken'!W52<0,0,'Mot marken'!W52) -> 0 | X55: =IF('Mot marken'!X52<0,0,'Mot marken'!X52) -> 0 | Y55: =IF('Mot marken'!Y52<0,0,'Mot marken'!Y52) -> 0
A56: azimut | B56: ='Mot marken'!B53 -> -164.4349367 | C56: ='Mot marken'!C53 -> -149.3337107 | D56: ='Mot marken'!D53 -> -134.9755609 | E56: ='Mot marken'!E53 -> -121.385547 | F56: ='Mot marken'!F53 -> -108.3737854 | G56: ='Mot marken'!G53 -> -95.60625591 | H56: ='Mot marken'!H53 -> -82.65507703 | I56: ='Mot marken'!I53 -> -69.02502046 | J56: ='Mot marken'!J53 -> -54.18933392 | K56: ='Mot marken'!K53 -> -37.70089446 | L56: ='Mot marken'!L53 -> -19.45156921 | M56: ='Mot marken'!M53 -> 0 | N56: ='Mot marken'!N53 -> 19.45156921 | O56: ='Mot marken'!O53 -> 37.70089446 | P56: ='Mot marken'!P53 -> 54.18933392 | Q56: ='Mot marken'!Q53 -> 69.02502046 | R56: ='Mot marken'!R53 -> 82.65507703 | S56: ='Mot marken'!S53 -> 95.60625591 | T56: ='Mot marken'!T53 -> 108.3737854 | U56: ='Mot marken'!U53 -> 121.385547 | V56: ='Mot marken'!V53 -> 134.9755609 | W56: ='Mot marken'!W53 -> 149.3337107 | X56: ='Mot marken'!X53 -> 164.4349367 | Y56: ='Mot marken'!Y53 -> 180 | Z56: Summa
A57: Uppmätt IDN förd | B57: ='Mot marken'!B56 -> 0 | C57: ='Mot marken'!C56 -> 0 | D57: ='Mot marken'!D56 -> 0 | E57: ='Mot marken'!E56 -> 0 | F57: ='Mot marken'!F56 -> 0.2942210372 | G57: ='Mot marken'!G56 -> 6.534235359 | H57: ='Mot marken'!H56 -> 9.286658107 | I57: ='Mot marken'!I56 -> 10.5658119 | J57: ='Mot marken'!J56 -> 11.24930566 | K57: ='Mot marken'!K56 -> 11.63041096 | L57: ='Mot marken'!L56 -> 11.82680019 | M57: ='Mot marken'!M56 -> 11.88767359 | N57: ='Mot marken'!N56 -> 11.82680019 | O57: ='Mot marken'!O56 -> 11.63041096 | P57: ='Mot marken'!P56 -> 11.24930566 | Q57: ='Mot marken'!Q56 -> 10.5658119 | R57: ='Mot marken'!R56 -> 9.286658107 | S57: ='Mot marken'!S56 -> 6.534235359 | T57: ='Mot marken'!T56 -> 0.2942210372 | U57: ='Mot marken'!U56 -> 0 | V57: ='Mot marken'!V56 -> 0 | W57: ='Mot marken'!W56 -> 0 | X57: ='Mot marken'!X56 -> 0 | Y57: ='Mot marken'!Y56 -> 0 | Z57: =SUM(B57:Y57) -> 134.66256
A58: Global IDH + IdH förd | B58: ='Mot marken'!B60 -> 0 | C58: ='Mot marken'!C60 -> 0 | D58: ='Mot marken'!D60 -> 0 | E58: ='Mot marken'!E60 -> 0 | F58: ='Mot marken'!F60 -> 0.6533503106 | G58: ='Mot marken'!G60 -> 3.2079897 | H58: ='Mot marken'!H60 -> 5.762629089 | I58: ='Mot marken'!I60 -> 8.143174026 | J58: ='Mot marken'!J60 -> 10.18739431 | K58: ='Mot marken'!K60 -> 11.7559797 | L58: ='Mot marken'!L60 -> 12.7420337 | M58: ='Mot marken'!M60 -> 13.07835835 | N58: ='Mot marken'!N60 -> 12.7420337 | O58: ='Mot marken'!O60 -> 11.7559797 | P58: ='Mot marken'!P60 -> 10.18739431 | Q58: ='Mot marken'!Q60 -> 8.143174026 | R58: ='Mot marken'!R60 -> 5.762629089 | S58: ='Mot marken'!S60 -> 3.2079897 | T58: ='Mot marken'!T60 -> 0.6533503106 | U58: ='Mot marken'!U60 -> 0 | V58: ='Mot marken'!V60 -> 0 | W58: ='Mot marken'!W60 -> 0 | X58: ='Mot marken'!X60 -> 0 | Y58: ='Mot marken'!Y60 -> 0 | Z58: 117.98346
A59: Diffusstrål IdH | B59: ='Mot marken'!B61 -> 0 | C59: ='Mot marken'!C61 -> 0 | D59: ='Mot marken'!D61 -> 0 | E59: ='Mot marken'!E61 -> 0 | F59: ='Mot marken'!F61 -> 0.6436019579 | G59: ='Mot marken'!G61 -> 2.144975295 | H59: ='Mot marken'!H61 -> 3.048743496 | I59: ='Mot marken'!I61 -> 3.779945078 | J59: ='Mot marken'!J61 -> 4.375733697 | K59: ='Mot marken'!K61 -> 4.822275669 | L59: ='Mot marken'!L61 -> 5.099850928 | M59: ='Mot marken'!M61 -> 5.194087853 | N59: ='Mot marken'!N61 -> 5.099850928 | O59: ='Mot marken'!O61 -> 4.822275669 | P59: ='Mot marken'!P61 -> 4.375733697 | Q59: ='Mot marken'!Q61 -> 3.779945078 | R59: ='Mot marken'!R61 -> 3.048743496 | S59: ='Mot marken'!S61 -> 2.144975295 | T59: ='Mot marken'!T61 -> 0.6436019579 | U59: ='Mot marken'!U61 -> 0 | V59: ='Mot marken'!V61 -> 0 | W59: ='Mot marken'!W61 -> 0 | X59: ='Mot marken'!X61 -> 0 | Y59: ='Mot marken'!Y61 -> 0 | Z59: =SUM(B59:Y59) -> 53.02434009
A60: Direkt mot ytan | B60: =IF(B55<$L$10,0,IF(AND(B56>$L8,B56<$M8,B55<$L9),0,IF(SIN(B55*PI()/180)*(COS($C$7*PI()/180))+COS(B55*PI()/180)*SIN($C$7*PI()/180)*(COS((B56-($C$8-180))*PI()/180))<0,0,B57*(SIN(B55*PI()/180)*(COS($C$7*PI()/180))+COS(B55*PI()/180)*SIN($C$7*PI()/180)*(COS((B56-($C$8-180))*PI()/180)))))) -> 0 | C60: 0 | D60: 0 | E60: 0 | F60: 0 | G60: 0.3063034771 | H60: 2.721856571 | I60: 5.520958845 | J60: 8.094468621 | K60: 10.12698516 | L60: =IF(L55<$L$10,0,IF(AND(L56>$L8,L56<$M8,L55<$L9),0,IF(SIN(L55*PI()/180)*(COS($C$7*PI()/180))+COS(L55*PI()/180)*SIN($C$7*PI()/180)*(COS((L56-($C$8-180))*PI()/180))<0,0,L57*(SIN(L55*PI()/180)*(COS($C$7*PI()/180))+COS(L55*PI()/180)*SIN($C$7*PI()/180)*(COS((L56-($C$8-180))*PI()/180)))))) -> 11.42195987 | M60: =IF(M55<$L$10,0,IF(AND(M56>$L8,M56<$M8,M55<$L9),0,IF(SIN(M55*PI()/180)*(COS($C$7*PI()/180))+COS(M55*PI()/180)*SIN($C$7*PI()/180)*(COS((M56-($C$8-180))*PI()/180))<0,0,M57*(SIN(M55*PI()/180)*(COS($C$7*PI()/180))+COS(M55*PI()/180)*SIN($C$7*PI()/180)*(COS((M56-($C$8-180))*PI()/180)))))) -> 11.86608869 | N60: 11.42195987 | O60: 10.12698516 | P60: 8.094468621 | Q60: 5.520958845 | R60: 2.721856571 | S60: 0.3063034771 | T60: 0 | U60: 0 | V60: 0 | W60: 0 | X60: 0 | Y60: 0 | Z60: =SUM(B60:Y60) -> 88.25115379
A61: Diffus mot ytan | B61: =(B59)*(2+(COS($C$7*PI()/180)))/3 -> 0 | C61: =(C59)*(2+(COS($C$7*PI()/180)))/3 -> 0 | D61: 0 | E61: 0 | F61: 0.5807664082 | G61: 1.935559055 | H61: 2.751091398 | I61: 3.410904984 | J61: 3.948526121 | K61: 4.351471721 | L61: 4.60194701 | M61: 4.686983483 | N61: 4.60194701 | O61: 4.351471721 | P61: 3.948526121 | Q61: 3.410904984 | R61: 2.751091398 | S61: 1.935559055 | T61: 0.5807664082 | U61: 0 | V61: 0 | W61: 0 | X61: 0 | Y61: 0 | Z61: =SUM(B61:Y61) -> 47.84751688
A62: Markrefl. mot ytan | B62: =$F$8*B58*(1-COS($C$7*PI()/180))/2 -> 0 | C62: =$F$8*C58*(1-COS($C$7*PI()/180))/2 -> 0 | D62: 0 | E62: 0 | F62: 0.04784046887 | G62: 0.2348996073 | H62: 0.4219587457 | I62: 0.5962701129 | J62: 0.7459546774 | K62: 0.8608116834 | L62: 0.9330138158 | M62: 0.9576406186 | N62: 0.9330138158 | O62: 0.8608116834 | P62: 0.7459546774 | Q62: 0.5962701129 | R62: 0.4219587457 | S62: 0.2348996073 | T62: 0.04784046887 | U62: 0 | V62: 0 | W62: 0 | X62: 0 | Y62: 0 | Z62: 8.639138842
A63: Summa mot ytan | B63: =SUM(B60:B62) -> 0 | C63: =SUM(C60:C62) -> 0 | D63: 0 | E63: 0 | F63: 0.628606877 | G63: 2.47676214 | H63: 5.894906715 | I63: 9.528133942 | J63: 12.78894942 | K63: 15.33926856 | L63: 16.9569207 | M63: 17.51071279 | N63: 16.9569207 | O63: 15.33926856 | P63: 12.78894942 | Q63: 9.528133942 | R63: 5.894906715 | S63: 2.47676214 | T63: 0.628606877 | U63: 0 | V63: 0 | W63: 0 | X63: 0 | Y63: 0 | Z63: =SUM(B63:Y63) -> 144.7378095 | AA63: 0.1209337269
A65: Maj | B65: ='Mot marken'!B63 -> deklination | D65: ='Mot marken'!C63 -> 19.9
A66: Kl | B66: ='Mot marken'!B64 -> 1 | C66: =IF(Luleå!C199<0,0,Luleå!C199) -> 2 | D66: =IF(Luleå!D199<0,0,Luleå!D199) -> 3 | E66: =IF(Luleå!E199<0,0,Luleå!E199) -> 4 | F66: =IF(Luleå!F199<0,0,Luleå!F199) -> 5 | G66: =IF(Luleå!G199<0,0,Luleå!G199) -> 6 | H66: =IF(Luleå!H199<0,0,Luleå!H199) -> 7 | I66: =IF(Luleå!I199<0,0,Luleå!I199) -> 8 | J66: =IF(Luleå!J199<0,0,Luleå!J199) -> 9 | K66: =IF(Luleå!K199<0,0,Luleå!K199) -> 10 | L66: =IF(Luleå!L199<0,0,Luleå!L199) -> 11 | M66: =IF(Luleå!M199<0,0,Luleå!M199) -> 12 | N66: =IF(Luleå!N199<0,0,Luleå!N199) -> 13 | O66: =IF(Luleå!O199<0,0,Luleå!O199) -> 14 | P66: =IF(Luleå!P199<0,0,Luleå!P199) -> 15 | Q66: =IF(Luleå!Q199<0,0,Luleå!Q199) -> 16 | R66: =IF(Luleå!R199<0,0,Luleå!R199) -> 17 | S66: =IF(Luleå!S199<0,0,Luleå!S199) -> 18 | T66: =IF(Luleå!T199<0,0,Luleå!T199) -> 19 | U66: =IF(Luleå!U199<0,0,Luleå!U199) -> 20 | V66: =IF(Luleå!V199<0,0,Luleå!V199) -> 21 | W66: =IF(Luleå!W199<0,0,Luleå!W199) -> 22 | X66: =IF(Luleå!X199<0,0,Luleå!X199) -> 23 | Y66: =IF(Luleå!Y199<0,0,Luleå!Y199) -> 24
A67: solhöjd | B67: =IF('Mot marken'!B65<0,0,'Mot marken'!B65) -> 0 | C67: =IF('Mot marken'!C65<0,0,'Mot marken'!C65) -> 0 | D67: =IF('Mot marken'!D65<0,0,'Mot marken'!D65) -> 0 | E67: =IF('Mot marken'!E65<0,0,'Mot marken'!E65) -> 3.04870028 | F67: =IF('Mot marken'!F65<0,0,'Mot marken'!F65) -> 9.717133714 | G67: =IF('Mot marken'!G65<0,0,'Mot marken'!G65) -> 17.02791296 | H67: =IF('Mot marken'!H65<0,0,'Mot marken'!H65) -> 24.63845678 | I67: =IF('Mot marken'!I65<0,0,'Mot marken'!I65) -> 32.17387331 | J67: =IF('Mot marken'!J65<0,0,'Mot marken'!J65) -> 39.17992928 | K67: =IF('Mot marken'!K65<0,0,'Mot marken'!K65) -> 45.06661224 | L67: =IF('Mot marken'!L65<0,0,'Mot marken'!L65) -> 49.09630297 | M67: =IF('Mot marken'!M65<0,0,'Mot marken'!M65) -> 50.546735 | N67: =IF('Mot marken'!N65<0,0,'Mot marken'!N65) -> 49.09630297 | O67: =IF('Mot marken'!O65<0,0,'Mot marken'!O65) -> 45.06661224 | P67: =IF('Mot marken'!P65<0,0,'Mot marken'!P65) -> 39.17992928 | Q67: =IF('Mot marken'!Q65<0,0,'Mot marken'!Q65) -> 32.17387331 | R67: =IF('Mot marken'!R65<0,0,'Mot marken'!R65) -> 24.63845678 | S67: =IF('Mot marken'!S65<0,0,'Mot marken'!S65) -> 17.02791296 | T67: =IF('Mot marken'!T65<0,0,'Mot marken'!T65) -> 9.717133714 | U67: =IF('Mot marken'!U65<0,0,'Mot marken'!U65) -> 3.04870028 | V67: =IF('Mot marken'!V65<0,0,'Mot marken'!V65) -> 0 | W67: =IF('Mot marken'!W65<0,0,'Mot marken'!W65) -> 0 | X67: =IF('Mot marken'!X65<0,0,'Mot marken'!X65) -> 0 | Y67: =IF('Mot marken'!Y65<0,0,'Mot marken'!Y65) -> 0
A68: azimut | B68: ='Mot marken'!B66 -> -165.7020061 | C68: ='Mot marken'!C66 -> -151.725435 | D68: ='Mot marken'!D66 -> -138.2723021 | E68: ='Mot marken'!E66 -> -125.3663821 | F68: ='Mot marken'!F66 -> -112.8582268 | G68: ='Mot marken'!G66 -> -100.454874 | H68: ='Mot marken'!H66 -> -87.73856665 | I68: ='Mot marken'!I66 -> -74.16458488 | J68: ='Mot marken'!J66 -> -59.06281508 | K68: ='Mot marken'!K66 -> -41.73286027 | L68: ='Mot marken'!L66 -> -21.81853719 | M68: ='Mot marken'!M66 -> 0 | N68: ='Mot marken'!N66 -> 21.81853719 | O68: ='Mot marken'!O66 -> 41.73286027 | P68: ='Mot marken'!P66 -> 59.06281508 | Q68: ='Mot marken'!Q66 -> 74.16458488 | R68: ='Mot marken'!R66 -> 87.73856665 | S68: ='Mot marken'!S66 -> 100.454874 | T68: ='Mot marken'!T66 -> 112.8582268 | U68: ='Mot marken'!U66 -> 125.3663821 | V68: ='Mot marken'!V66 -> 138.2723021 | W68: ='Mot marken'!W66 -> 151.725435 | X68: ='Mot marken'!X66 -> 165.7020061 | Y68: ='Mot marken'!Y66 -> 180 | Z68: Summa
A69: Uppmätt IDN förd | B69: ='Mot marken'!B69 -> 0 | C69: ='Mot marken'!C69 -> 0 | D69: ='Mot marken'!D69 -> 0 | E69: ='Mot marken'!E69 -> 1.325939632 | F69: ='Mot marken'!F69 -> 6.982023131 | G69: ='Mot marken'!G69 -> 9.651480178 | H69: ='Mot marken'!H69 -> 11.00329901 | I69: ='Mot marken'!I69 -> 11.7678431 | J69: ='Mot marken'!J69 -> 12.22442967 | K69: ='Mot marken'!K69 -> 12.4959768 | L69: ='Mot marken'!L69 -> 12.64106975 | M69: ='Mot marken'!M69 -> 12.68678745 | N69: ='Mot marken'!N69 -> 12.64106975 | O69: ='Mot marken'!O69 -> 12.4959768 | P69: ='Mot marken'!P69 -> 12.22442967 | Q69: ='Mot marken'!Q69 -> 11.7678431 | R69: ='Mot marken'!R69 -> 11.00329901 | S69: ='Mot marken'!S69 -> 9.651480178 | T69: ='Mot marken'!T69 -> 6.982023131 | U69: ='Mot marken'!U69 -> 1.325939632 | V69: ='Mot marken'!V69 -> 0 | W69: ='Mot marken'!W69 -> 0 | X69: ='Mot marken'!X69 -> 0 | Y69: ='Mot marken'!Y69 -> 0 | Z69: =SUM(B69:Y69) -> 168.87091
A70: Global IDH + IdH förd | B70: ='Mot marken'!B73 -> 0 | C70: ='Mot marken'!C73 -> 0 | D70: ='Mot marken'!D73 -> 0 | E70: ='Mot marken'!E73 -> 1.082470651 | F70: ='Mot marken'!F73 -> 3.435267914 | G70: ='Mot marken'!G73 -> 5.960130381 | H70: ='Mot marken'!H73 -> 8.484992849 | I70: ='Mot marken'!I73 -> 10.83779011 | J70: ='Mot marken'!J73 -> 12.85818292 | K70: ='Mot marken'!K73 -> 14.40848486 | L70: ='Mot marken'!L73 -> 15.38304539 | M70: ='Mot marken'!M73 -> 15.71544984 | N70: ='Mot marken'!N73 -> 15.38304539 | O70: ='Mot marken'!O73 -> 14.40848486 | P70: ='Mot marken'!P73 -> 12.85818292 | Q70: ='Mot marken'!Q73 -> 10.83779011 | R70: ='Mot marken'!R73 -> 8.484992849 | S70: ='Mot marken'!S73 -> 5.960130381 | T70: ='Mot marken'!T73 -> 3.435267914 | U70: ='Mot marken'!U73 -> 1.082470651 | V70: ='Mot marken'!V73 -> 0 | W70: ='Mot marken'!W73 -> 0 | X70: ='Mot marken'!X73 -> 0 | Y70: ='Mot marken'!Y73 -> 0 | Z70: =SUM(B70:Y70) -> 160.61618
A71: Diffusstrål IdH | B71: ='Mot marken'!B74 -> 0 | C71: ='Mot marken'!C74 -> 0 | D71: ='Mot marken'!D74 -> 0 | E71: ='Mot marken'!E74 -> 1.011950879 | F71: ='Mot marken'!F74 -> 2.256813168 | G71: ='Mot marken'!G74 -> 3.133814514 | H71: ='Mot marken'!H74 -> 3.89781679 | I71: ='Mot marken'!I74 -> 4.571527111 | J71: ='Mot marken'!J74 -> 5.13530412 | K71: ='Mot marken'!K74 -> 5.56222815 | L71: ='Mot marken'!L74 -> 5.82878304 | M71: ='Mot marken'!M74 -> 5.919433657 | N71: ='Mot marken'!N74 -> 5.82878304 | O71: ='Mot marken'!O74 -> 5.56222815 | P71: ='Mot marken'!P74 -> 5.13530412 | Q71: ='Mot marken'!Q74 -> 4.571527111 | R71: ='Mot marken'!R74 -> 3.89781679 | S71: ='Mot marken'!S74 -> 3.133814514 | T71: ='Mot marken'!T74 -> 2.256813168 | U71: ='Mot marken'!U74 -> 1.011950879 | V71: ='Mot marken'!V74 -> 0 | W71: ='Mot marken'!W74 -> 0 | X71: ='Mot marken'!X74 -> 0 | Y71: ='Mot marken'!Y74 -> 0 | Z71: =SUM(B71:Y71) -> 68.7159092
A72: Direkt mot ytan | B72: =IF(B67<$L$10,0,IF(AND(B68>$L8,B68<$M8,B69<$L9),0,IF(SIN(B67*PI()/180)*(COS($C$7*PI()/180))+COS(B67*PI()/180)*SIN($C$7*PI()/180)*(COS((B68-($C$8-180))*PI()/180))<0,0,B69*(SIN(B67*PI()/180)*(COS($C$7*PI()/180))+COS(B67*PI()/180)*SIN($C$7*PI()/180)*(COS((B68-($C$8-180))*PI()/180)))))) -> 0 | C72: 0 | D72: 0 | E72: 0 | F72: 0 | G72: 0.8143919528 | H72: 3.522684467 | I72: 6.352856527 | J72: 8.905621924 | K72: 10.91242638 | L72: =IF(L67<$L$10,0,IF(AND(L68>$L8,L68<$M8,L69<$L9),0,IF(SIN(L67*PI()/180)*(COS($C$7*PI()/180))+COS(L67*PI()/180)*SIN($C$7*PI()/180)*(COS((L68-($C$8-180))*PI()/180))<0,0,L69*(SIN(L67*PI()/180)*(COS($C$7*PI()/180))+COS(L67*PI()/180)*SIN($C$7*PI()/180)*(COS((L68-($C$8-180))*PI()/180)))))) -> 12.18950848 | M72: =IF(M67<$L$10,0,IF(AND(M68>$L8,M68<$M8,M69<$L9),0,IF(SIN(M67*PI()/180)*(COS($C$7*PI()/180))+COS(M67*PI()/180)*SIN($C$7*PI()/180)*(COS((M68-($C$8-180))*PI()/180))<0,0,M69*(SIN(M67*PI()/180)*(COS($C$7*PI()/180))+COS(M67*PI()/180)*SIN($C$7*PI()/180)*(COS((M68-($C$8-180))*PI()/180)))))) -> 12.62738395 | N72: 12.18950848 | O72: 10.91242638 | P72: 8.905621924 | Q72: 6.352856527 | R72: 3.522684467 | S72: 0.8143919528 | T72: 0 | U72: 0 | V72: 0 | W72: 0 | X72: 0 | Y72: 0 | Z72: =SUM(B72:Y72) -> 98.02236342 | AB72: Maj
A73: Diffus mot ytan | B73: =(B71)*(2+(COS($C$7*PI()/180)))/3 -> 0 | C73: =(C71)*(2+(COS($C$7*PI()/180)))/3 -> 0 | D73: 0 | E73: 0.9131530293 | F73: 2.036478077 | G73: 2.827856841 | H73: 3.517268755 | I73: 4.125204014 | J73: 4.633938869 | K73: 5.019181848 | L73: 5.259712698 | M73: 5.341512998 | N73: 5.259712698 | O73: 5.019181848 | P73: 4.633938869 | Q73: 4.125204014 | R73: 3.517268755 | S73: 2.827856841 | T73: 2.036478077 | U73: 0.9131530293 | V73: 0 | W73: 0 | X73: 0 | Y73: 0 | Z73: =SUM(B73:Y73) -> 62.00710126
A74: Markrefl. mot ytan | B74: =$F$7*B70*(1-COS($C$7*PI()/180))/2 -> 0 | C74: =$F$7*C70*(1-COS($C$7*PI()/180))/2 -> 0 | D74: 0 | E74: 0.03170483132 | F74: 0.1006166677 | G74: 0.1745681772 | H74: 0.2485196867 | I74: 0.3174315231 | J74: 0.3766074585 | K74: 0.4220147508 | L74: 0.450558968 | M74: 0.4602948689 | N74: 0.450558968 | O74: 0.4220147508 | P74: 0.3766074585 | Q74: 0.3174315231 | R74: 0.2485196867 | S74: 0.1745681772 | T74: 0.1006166677 | U74: 0.03170483132 | V74: 0 | W74: 0 | X74: 0 | Y74: 0 | Z74: 4.704338995
A75: Summa mot ytan | B75: =SUM(B72:B74) -> 0 | C75: =SUM(C72:C74) -> 0 | D75: 0 | E75: 0.9448578606 | F75: 2.137094745 | G75: 3.816816971 | H75: 7.288472909 | I75: 10.79549206 | J75: 13.91616825 | K75: 16.35362298 | L75: 17.89978014 | M75: 18.42919182 | N75: 17.89978014 | O75: 16.35362298 | P75: 13.91616825 | Q75: 10.79549206 | R75: 7.288472909 | S75: 3.816816971 | T75: 2.137094745 | U75: 0.9448578606 | V75: 0 | W75: 0 | X75: 0 | Y75: 0 | Z75: =SUM(B75:Y75) -> 164.7338037 | AA75: 0.1376411104
X76: =SIN(C79*PI()/180)/(ABS(COS(($C$8-180)))*(PI()/180)-SIN($C$7*PI()/180<0)) -> 0
A77: Juni | B77: ='Mot marken'!B76 -> deklination | D77: ='Mot marken'!C76 -> 23.45
A78: Kl | B78: ='Mot marken'!B77 -> 1 | C78: ='Mot marken'!C77 -> 2 | D78: ='Mot marken'!D77 -> 3 | E78: ='Mot marken'!E77 -> 4 | F78: ='Mot marken'!F77 -> 5 | G78: ='Mot marken'!G77 -> 6 | H78: ='Mot marken'!H77 -> 7 | I78: ='Mot marken'!I77 -> 8 | J78: ='Mot marken'!J77 -> 9 | K78: ='Mot marken'!K77 -> 10 | L78: ='Mot marken'!L77 -> 11 | M78: ='Mot marken'!M77 -> 12 | N78: ='Mot marken'!N77 -> 13 | O78: ='Mot marken'!O77 -> 14 | P78: ='Mot marken'!P77 -> 15 | Q78: ='Mot marken'!Q77 -> 16 | R78: ='Mot marken'!R77 -> 17 | S78: ='Mot marken'!S77 -> 18 | T78: ='Mot marken'!T77 -> 19 | U78: ='Mot marken'!U77 -> 20 | V78: ='Mot marken'!V77 -> 21 | W78: ='Mot marken'!W77 -> 22 | X78: ='Mot marken'!X77 -> 23 | Y78: ='Mot marken'!Y77 -> 24
A79: solhöjd | B79: =IF('Mot marken'!B78<0,0,'Mot marken'!B78) -> 0 | C79: =IF('Mot marken'!C78<0,0,'Mot marken'!C78) -> 0 | D79: =IF('Mot marken'!D78<0,0,'Mot marken'!D78) -> 0.6699523568 | E79: =IF('Mot marken'!E78<0,0,'Mot marken'!E78) -> 6.231421067 | F79: =IF('Mot marken'!F78<0,0,'Mot marken'!F78) -> 12.78722036 | G79: =IF('Mot marken'!G78<0,0,'Mot marken'!G78) -> 20.02107487 | H79: =IF('Mot marken'!H78<0,0,'Mot marken'!H78) -> 27.60675669 | I79: =IF('Mot marken'!I78<0,0,'Mot marken'!I78) -> 35.18280056 | J79: =IF('Mot marken'!J78<0,0,'Mot marken'!J78) -> 42.30204554 | K79: =IF('Mot marken'!K78<0,0,'Mot marken'!K78) -> 48.36186386 | L79: =IF('Mot marken'!L78<0,0,'Mot marken'!L78) -> 52.56785109 | M79: =IF('Mot marken'!M78<0,0,'Mot marken'!M78) -> 54.096735 | N79: =IF('Mot marken'!N78<0,0,'Mot marken'!N78) -> 52.56785109 | O79: =IF('Mot marken'!O78<0,0,'Mot marken'!O78) -> 48.36186386 | P79: =IF('Mot marken'!P78<0,0,'Mot marken'!P78) -> 42.30204554 | Q79: =IF('Mot marken'!Q78<0,0,'Mot marken'!Q78) -> 35.18280056 | R79: =IF('Mot marken'!R78<0,0,'Mot marken'!R78) -> 27.60675669 | S79: =IF('Mot marken'!S78<0,0,'Mot marken'!S78) -> 20.02107487 | T79: =IF('Mot marken'!T78<0,0,'Mot marken'!T78) -> 12.78722036 | U79: =IF('Mot marken'!U78<0,0,'Mot marken'!U78) -> 6.231421067 | V79: =IF('Mot marken'!V78<0,0,'Mot marken'!V78) -> 0.6699523568 | W79: =IF('Mot marken'!W78<0,0,'Mot marken'!W78) -> 0 | X79: =IF('Mot marken'!X78<0,0,'Mot marken'!X78) -> 0 | Y79: =IF('Mot marken'!Y78<0,0,'Mot marken'!Y78) -> 0
A80: azimut | B80: ='Mot marken'!B79 -> -166.1798581 | C80: ='Mot marken'!C79 -> -152.6383148 | D80: ='Mot marken'!D79 -> -139.5526102 | E80: ='Mot marken'!E79 -> -126.9442703 | F80: ='Mot marken'!F79 -> -114.6758399 | G80: ='Mot marken'!G79 -> -102.4682838 | H80: ='Mot marken'!H79 -> -89.90776725 | I80: ='Mot marken'!I79 -> -76.42902337 | J80: ='Mot marken'!J79 -> -61.29382282 | K80: ='Mot marken'!K79 -> -43.66007106 | L80: ='Mot marken'!L79 -> -22.99465525 | M80: ='Mot marken'!M79 -> 0 | N80: ='Mot marken'!N79 -> 22.99465525 | O80: ='Mot marken'!O79 -> 43.66007106 | P80: ='Mot marken'!P79 -> 61.29382282 | Q80: ='Mot marken'!Q79 -> 76.42902337 | R80: ='Mot marken'!R79 -> 89.90776725 | S80: ='Mot marken'!S79 -> 102.4682838 | T80: ='Mot marken'!T79 -> 114.6758399 | U80: ='Mot marken'!U79 -> 126.9442703 | V80: ='Mot marken'!V79 -> 139.5526102 | W80: ='Mot marken'!W79 -> 152.6383148 | X80: ='Mot marken'!X79 -> 166.1798581 | Y80: ='Mot marken'!Y79 -> 180 | Z80: Summa
A81: Uppmätt IDN förd | B81: ='Mot marken'!B82 -> 0 | C81: ='Mot marken'!C82 -> 0 | D81: ='Mot marken'!D82 -> 0.0002492295767 | E81: ='Mot marken'!E82 -> 4.697464847 | F81: ='Mot marken'!F82 -> 8.607533174 | G81: ='Mot marken'!G82 -> 10.57703625 | H81: ='Mot marken'!H82 -> 11.67089788 | I81: ='Mot marken'!I82 -> 12.32450578 | J81: ='Mot marken'!J82 -> 12.72803837 | K81: ='Mot marken'!K82 -> 12.97295456 | L81: ='Mot marken'!L82 -> 13.10536692 | M81: ='Mot marken'!M82 -> 13.14731597 | N81: ='Mot marken'!N82 -> 13.10536692 | O81: ='Mot marken'!O82 -> 12.97295456 | P81: ='Mot marken'!P82 -> 12.72803837 | Q81: ='Mot marken'!Q82 -> 12.32450578 | R81: ='Mot marken'!R82 -> 11.67089788 | S81: ='Mot marken'!S82 -> 10.57703625 | T81: ='Mot marken'!T82 -> 8.607533174 | U81: ='Mot marken'!U82 -> 4.697464847 | V81: ='Mot marken'!V82 -> 0.0002492295767 | W81: ='Mot marken'!W82 -> 0 | X81: ='Mot marken'!X82 -> 0 | Y81: ='Mot marken'!Y82 -> 0 | Z81: =SUM(B81:Y81) -> 186.51541
A82: Global IDH + IdH förd | B82: ='Mot marken'!B86 -> 0 | C82: ='Mot marken'!C86 -> 0 | D82: ='Mot marken'!D86 -> 0.2371193417 | E82: ='Mot marken'!E86 -> 2.201220478 | F82: ='Mot marken'!F86 -> 4.488464694 | G82: ='Mot marken'!G86 -> 6.942980078 | H82: ='Mot marken'!H86 -> 9.397495461 | I82: ='Mot marken'!I86 -> 11.68473968 | J82: ='Mot marken'!J86 -> 13.64884081 | K82: ='Mot marken'!K86 -> 15.15594862 | L82: ='Mot marken'!L86 -> 16.1033562 | M82: ='Mot marken'!M86 -> 16.42649928 | N82: ='Mot marken'!N86 -> 16.1033562 | O82: ='Mot marken'!O86 -> 15.15594862 | P82: ='Mot marken'!P86 -> 13.64884081 | Q82: ='Mot marken'!Q86 -> 11.68473968 | R82: ='Mot marken'!R86 -> 9.397495461 | S82: ='Mot marken'!S86 -> 6.942980078 | T82: ='Mot marken'!T86 -> 4.488464694 | U82: ='Mot marken'!U86 -> 2.201220478 | V82: ='Mot marken'!V86 -> 0.2371193417 | W82: ='Mot marken'!W86 -> 0 | X82: ='Mot marken'!X86 -> 0 | Y82: ='Mot marken'!Y86 -> 0 | Z82: 176.14683
A83: Diffusstrål IdH | B83: ='Mot marken'!B87 -> 0 | C83: ='Mot marken'!C87 -> 0 | D83: ='Mot marken'!D87 -> 0.2371164276 | E83: ='Mot marken'!E87 -> 1.69133635 | F83: ='Mot marken'!F87 -> 2.58335087 | G83: ='Mot marken'!G87 -> 3.321764987 | H83: ='Mot marken'!H87 -> 3.989195095 | I83: ='Mot marken'!I87 -> 4.583519736 | J83: ='Mot marken'!J87 -> 5.082375626 | K83: ='Mot marken'!K87 -> 5.460533003 | L83: ='Mot marken'!L87 -> 5.696729071 | M83: ='Mot marken'!M87 -> 5.777065212 | N83: ='Mot marken'!N87 -> 5.696729071 | O83: ='Mot marken'!O87 -> 5.460533003 | P83: ='Mot marken'!P87 -> 5.082375626 | Q83: ='Mot marken'!Q87 -> 4.583519736 | R83: ='Mot marken'!R87 -> 3.989195095 | S83: ='Mot marken'!S87 -> 3.321764987 | T83: ='Mot marken'!T87 -> 2.58335087 | U83: ='Mot marken'!U87 -> 1.69133635 | V83: ='Mot marken'!V87 -> 0.2371164276 | W83: ='Mot marken'!W87 -> 0 | X83: ='Mot marken'!X87 -> 0 | Y83: ='Mot marken'!Y87 -> 0 | Z83: =SUM(B83:Y83) -> 71.06890754
A84: Direkt mot ytan | B84: =IF(B79<$L$10,0,IF(AND(B80>$L8,B80<$M8,B79<$L9),0,IF(SIN(B79*PI()/180)*(COS($C$7*PI()/180))+COS(B79*PI()/180)*SIN($C$7*PI()/180)*(COS((B80-($C$8-180))*PI()/180))<0,0,B81*(SIN(B79*PI()/180)*(COS($C$7*PI()/180))+COS(B79*PI()/180)*SIN($C$7*PI()/180)*(COS((B80-($C$8-180))*PI()/180)))))) -> 0 | C84: 0 | D84: 0 | E84: 0 | F84: 0 | G84: 1.04343908 | H84: 3.836018083 | I84: 6.692663783 | J84: 9.254654537 | K84: 11.26506537 | L84: =IF(L79<$L$10,0,IF(AND(L80>$L8,L80<$M8,L79<$L9),0,IF(SIN(L79*PI()/180)*(COS($C$7*PI()/180))+COS(L79*PI()/180)*SIN($C$7*PI()/180)*(COS((L80-($C$8-180))*PI()/180))<0,0,L81*(SIN(L79*PI()/180)*(COS($C$7*PI()/180))+COS(L79*PI()/180)*SIN($C$7*PI()/180)*(COS((L80-($C$8-180))*PI()/180)))))) -> 12.5436534 | M84: =IF(M79<$L$10,0,IF(AND(M80>$L8,M80<$M8,M79<$L9),0,IF(SIN(M79*PI()/180)*(COS($C$7*PI()/180))+COS(M79*PI()/180)*SIN($C$7*PI()/180)*(COS((M80-($C$8-180))*PI()/180))<0,0,M81*(SIN(M79*PI()/180)*(COS($C$7*PI()/180))+COS(M79*PI()/180)*SIN($C$7*PI()/180)*(COS((M80-($C$8-180))*PI()/180)))))) -> 12.98195978 | N84: 12.5436534 | O84: 11.26506537 | P84: 9.254654537 | Q84: 6.692663783 | R84: 3.836018083 | S84: 1.04343908 | T84: 0 | U84: 0 | V84: 0 | W84: 0 | X84: 0 | Y84: 0 | Z84: =SUM(B84:Y84) -> 102.2529483 | AB84: Juni
A85: Diffus mot ytan | B85: =(B83)*(2+(COS($C$7*PI()/180)))/3 -> 0 | C85: =(C83)*(2+(COS($C$7*PI()/180)))/3 -> 0 | D85: 0.2139664964 | E85: 1.526209367 | F85: 2.331135553 | G85: 2.997457507 | H85: 3.599725698 | I85: 4.136025787 | J85: 4.58617784 | K85: 4.927415307 | L85: 5.140551299 | M85: 5.213044137 | N85: 5.140551299 | O85: 4.927415307 | P85: 4.58617784 | Q85: 4.136025787 | R85: 3.599725698 | S85: 2.997457507 | T85: 2.331135553 | U85: 1.526209367 | V85: 0.2139664964 | W85: 0 | X85: 0 | Y85: 0 | Z85: =SUM(B85:Y85) -> 64.13037385
A86: Markrefl. mot ytan | B86: =$F$7*B82*(1-COS($C$7*PI()/180))/2 -> 0 | C86: =$F$7*C82*(1-COS($C$7*PI()/180))/2 -> 0 | D86: 0.006945064725 | E86: 0.0644722551 | F86: 0.1314640872 | G86: 0.2033551783 | H86: 0.2752462694 | I86: 0.3422381015 | J86: 0.3997652919 | K86: 0.4439074576 | L86: 0.471656383 | M86: 0.4811210247 | N86: 0.471656383 | O86: 0.4439074576 | P86: 0.3997652919 | Q86: 0.3422381015 | R86: 0.2752462694 | S86: 0.2033551783 | T86: 0.1314640872 | U86: 0.0644722551 | V86: 0.006945064725 | W86: 0 | X86: 0 | Y86: 0 | Z86: 5.159221202
A87: Summa mot ytan | B87: =SUM(B84:B86) -> 0 | C87: =SUM(C84:C86) -> 0 | D87: 0.2209115611 | E87: 1.590681623 | F87: 2.46259964 | G87: 4.244251766 | H87: 7.71099005 | I87: 11.17092767 | J87: 14.24059767 | K87: 16.63638813 | L87: 18.15586108 | M87: 18.67612494 | N87: 18.15586108 | O87: 16.63638813 | P87: 14.24059767 | Q87: 11.17092767 | R87: 7.71099005 | S87: 4.244251766 | T87: 2.46259964 | U87: 1.590681623 | V87: 0.2209115611 | W87: 0 | X87: 0 | Y87: 0 | Z87: =SUM(B87:Y87) -> 171.5425433 | AA87: 0.1433300611
A89: Juli | B89: ='Mot marken'!B89 -> deklination | D89: ='Mot marken'!C89 -> 19.9
A90: Kl | B90: ='Mot marken'!B90 -> 1 | C90: ='Mot marken'!C90 -> 2 | D90: ='Mot marken'!D90 -> 3 | E90: ='Mot marken'!E90 -> 4 | F90: ='Mot marken'!F90 -> 5 | G90: ='Mot marken'!G90 -> 6 | H90: ='Mot marken'!H90 -> 7 | I90: ='Mot marken'!I90 -> 8 | J90: ='Mot marken'!J90 -> 9 | K90: ='Mot marken'!K90 -> 10 | L90: ='Mot marken'!L90 -> 11 | M90: ='Mot marken'!M90 -> 12 | N90: ='Mot marken'!N90 -> 13 | O90: ='Mot marken'!O90 -> 14 | P90: ='Mot marken'!P90 -> 15 | Q90: ='Mot marken'!Q90 -> 16 | R90: ='Mot marken'!R90 -> 17 | S90: ='Mot marken'!S90 -> 18 | T90: ='Mot marken'!T90 -> 19 | U90: ='Mot marken'!U90 -> 20 | V90: ='Mot marken'!V90 -> 21 | W90: ='Mot marken'!W90 -> 22 | X90: ='Mot marken'!X90 -> 23 | Y90: ='Mot marken'!Y90 -> 24
A91: solhöjd | B91: =IF('Mot marken'!B91<0,0,'Mot marken'!B91) -> 0 | C91: =IF('Mot marken'!C91<0,0,'Mot marken'!C91) -> 0 | D91: =IF('Mot marken'!D91<0,0,'Mot marken'!D91) -> 0 | E91: =IF('Mot marken'!E91<0,0,'Mot marken'!E91) -> 3.04870028 | F91: =IF('Mot marken'!F91<0,0,'Mot marken'!F91) -> 9.717133714 | G91: =IF('Mot marken'!G91<0,0,'Mot marken'!G91) -> 17.02791296 | H91: =IF('Mot marken'!H91<0,0,'Mot marken'!H91) -> 24.63845678 | I91: =IF('Mot marken'!I91<0,0,'Mot marken'!I91) -> 32.17387331 | J91: =IF('Mot marken'!J91<0,0,'Mot marken'!J91) -> 39.17992928 | K91: =IF('Mot marken'!K91<0,0,'Mot marken'!K91) -> 45.06661224 | L91: =IF('Mot marken'!L91<0,0,'Mot marken'!L91) -> 49.09630297 | M91: =IF('Mot marken'!M91<0,0,'Mot marken'!M91) -> 50.546735 | N91: =IF('Mot marken'!N91<0,0,'Mot marken'!N91) -> 49.09630297 | O91: =IF('Mot marken'!O91<0,0,'Mot marken'!O91) -> 45.06661224 | P91: =IF('Mot marken'!P91<0,0,'Mot marken'!P91) -> 39.17992928 | Q91: =IF('Mot marken'!Q91<0,0,'Mot marken'!Q91) -> 32.17387331 | R91: =IF('Mot marken'!R91<0,0,'Mot marken'!R91) -> 24.63845678 | S91: =IF('Mot marken'!S91<0,0,'Mot marken'!S91) -> 17.02791296 | T91: =IF('Mot marken'!T91<0,0,'Mot marken'!T91) -> 9.717133714 | U91: =IF('Mot marken'!U91<0,0,'Mot marken'!U91) -> 3.04870028 | V91: =IF('Mot marken'!V91<0,0,'Mot marken'!V91) -> 0 | W91: =IF('Mot marken'!W91<0,0,'Mot marken'!W91) -> 0 | X91: =IF('Mot marken'!X91<0,0,'Mot marken'!X91) -> 0 | Y91: =IF('Mot marken'!Y91<0,0,'Mot marken'!Y91) -> 0
A92: azimut | B92: ='Mot marken'!B92 -> -165.7020061 | C92: ='Mot marken'!C92 -> -151.725435 | D92: ='Mot marken'!D92 -> -138.2723021 | E92: ='Mot marken'!E92 -> -125.3663821 | F92: ='Mot marken'!F92 -> -112.8582268 | G92: ='Mot marken'!G92 -> -100.454874 | H92: ='Mot marken'!H92 -> -87.73856665 | I92: ='Mot marken'!I92 -> -74.16458488 | J92: ='Mot marken'!J92 -> -59.06281508 | K92: ='Mot marken'!K92 -> -41.73286027 | L92: ='Mot marken'!L92 -> -21.81853719 | M92: ='Mot marken'!M92 -> 0 | N92: ='Mot marken'!N92 -> 21.81853719 | O92: ='Mot marken'!O92 -> 41.73286027 | P92: ='Mot marken'!P92 -> 59.06281508 | Q92: ='Mot marken'!Q92 -> 74.16458488 | R92: ='Mot marken'!R92 -> 87.73856665 | S92: ='Mot marken'!S92 -> 100.454874 | T92: ='Mot marken'!T92 -> 112.8582268 | U92: ='Mot marken'!U92 -> 125.3663821 | V92: ='Mot marken'!V92 -> 138.2723021 | W92: ='Mot marken'!W92 -> 151.725435 | X92: ='Mot marken'!X92 -> 165.7020061 | Y92: ='Mot marken'!Y92 -> 180 | Z92: Summa
A93: Uppmätt IDN förd | B93: ='Mot marken'!B95 -> 0 | C93: ='Mot marken'!C95 -> 0 | D93: ='Mot marken'!D95 -> 0 | E93: ='Mot marken'!E95 -> 1.436100618 | F93: ='Mot marken'!F95 -> 7.562099734 | G93: ='Mot marken'!G95 -> 10.45333914 | H93: ='Mot marken'!H95 -> 11.91746905 | I93: ='Mot marken'!I95 -> 12.74553256 | J93: ='Mot marken'!J95 -> 13.24005301 | K93: ='Mot marken'!K95 -> 13.53416067 | L93: ='Mot marken'!L95 -> 13.69130815 | M93: ='Mot marken'!M95 -> 13.74082414 | N93: ='Mot marken'!N95 -> 13.69130815 | O93: ='Mot marken'!O95 -> 13.53416067 | P93: ='Mot marken'!P95 -> 13.24005301 | Q93: ='Mot marken'!Q95 -> 12.74553256 | R93: ='Mot marken'!R95 -> 11.91746905 | S93: ='Mot marken'!S95 -> 10.45333914 | T93: ='Mot marken'!T95 -> 7.562099734 | U93: ='Mot marken'!U95 -> 1.436100618 | V93: ='Mot marken'!V95 -> 0 | W93: ='Mot marken'!W95 -> 0 | X93: ='Mot marken'!X95 -> 0 | Y93: ='Mot marken'!Y95 -> 0 | Z93: =SUM(B93:Y93) -> 182.90095
A94: Global IDH + IdH förd | B94: ='Mot marken'!B99 -> 0 | C94: ='Mot marken'!C99 -> 0 | D94: ='Mot marken'!D99 -> 0 | E94: ='Mot marken'!E99 -> 1.143235146 | F94: ='Mot marken'!F99 -> 3.628106694 | G94: ='Mot marken'!G99 -> 6.294702327 | H94: ='Mot marken'!H99 -> 8.961297961 | I94: ='Mot marken'!I99 -> 11.44616951 | J94: ='Mot marken'!J99 -> 13.57997708 | K94: ='Mot marken'!K99 -> 15.21730522 | L94: ='Mot marken'!L99 -> 16.24657272 | M94: ='Mot marken'!M99 -> 16.59763669 | N94: ='Mot marken'!N99 -> 16.24657272 | O94: ='Mot marken'!O99 -> 15.21730522 | P94: ='Mot marken'!P99 -> 13.57997708 | Q94: ='Mot marken'!Q99 -> 11.44616951 | R94: ='Mot marken'!R99 -> 8.961297961 | S94: ='Mot marken'!S99 -> 6.294702327 | T94: ='Mot marken'!T99 -> 3.628106694 | U94: ='Mot marken'!U99 -> 1.143235146 | V94: ='Mot marken'!V99 -> 0 | W94: ='Mot marken'!W99 -> 0 | X94: ='Mot marken'!X99 -> 0 | Y94: ='Mot marken'!Y99 -> 0 | Z94: =SUM(B94:Y94) -> 169.63237
A95: Diffusstrål IdH | B95: ='Mot marken'!B100 -> 0 | C95: ='Mot marken'!C100 -> 0 | D95: ='Mot marken'!D100 -> 0 | E95: ='Mot marken'!E100 -> 1.06685649 | F95: ='Mot marken'!F100 -> 2.35174422 | G95: ='Mot marken'!G100 -> 3.233572041 | H95: ='Mot marken'!H100 -> 3.993012666 | I95: ='Mot marken'!I100 -> 4.659296295 | J95: ='Mot marken'!J100 -> 5.215470312 | K95: ='Mot marken'!K100 -> 5.636088683 | L95: ='Mot marken'!L100 -> 5.898528398 | M95: ='Mot marken'!M100 -> 5.987753281 | N95: ='Mot marken'!N100 -> 5.898528398 | O95: ='Mot marken'!O100 -> 5.636088683 | P95: ='Mot marken'!P100 -> 5.215470312 | Q95: ='Mot marken'!Q100 -> 4.659296295 | R95: ='Mot marken'!R100 -> 3.993012666 | S95: ='Mot marken'!S100 -> 3.233572041 | T95: ='Mot marken'!T100 -> 2.35174422 | U95: ='Mot marken'!U100 -> 1.06685649 | V95: ='Mot marken'!V100 -> 0 | W95: ='Mot marken'!W100 -> 0 | X95: ='Mot marken'!X100 -> 0 | Y95: ='Mot marken'!Y100 -> 0 | Z95: =SUM(B95:Y95) -> 70.09689149
A96: Direkt mot ytan | B96: =IF(B91<$L$10,0,IF(AND(B92>$L8,B92<$M8,B91<$L9),0,IF(SIN(B91*PI()/180)*(COS($C$7*PI()/180))+COS(B91*PI()/180)*SIN($C$7*PI()/180)*(COS((B92-($C$8-180))*PI()/180))<0,0,B93*(SIN(B91*PI()/180)*(COS($C$7*PI()/180))+COS(B91*PI()/180)*SIN($C$7*PI()/180)*(COS((B92-($C$8-180))*PI()/180)))))) -> 0 | C96: 0 | D96: 0 | E96: 0 | F96: 0 | G96: 0.8820528168 | H96: 3.815354199 | I96: 6.880661056 | J96: 9.645513903 | K96: 11.81904659 | L96: =IF(L91<$L$10,0,IF(AND(L92>$L8,L92<$M8,L91<$L9),0,IF(SIN(L91*PI()/180)*(COS($C$7*PI()/180))+COS(L91*PI()/180)*SIN($C$7*PI()/180)*(COS((L92-($C$8-180))*PI()/180))<0,0,L93*(SIN(L91*PI()/180)*(COS($C$7*PI()/180))+COS(L91*PI()/180)*SIN($C$7*PI()/180)*(COS((L92-($C$8-180))*PI()/180)))))) -> 13.20223051 | M96: =IF(M91<$L$10,0,IF(AND(M92>$L8,M92<$M8,M91<$L9),0,IF(SIN(M91*PI()/180)*(COS($C$7*PI()/180))+COS(M91*PI()/180)*SIN($C$7*PI()/180)*(COS((M92-($C$8-180))*PI()/180))<0,0,M93*(SIN(M91*PI()/180)*(COS($C$7*PI()/180))+COS(M91*PI()/180)*SIN($C$7*PI()/180)*(COS((M92-($C$8-180))*PI()/180)))))) -> 13.67648531 | N96: 13.20223051 | O96: 11.81904659 | P96: 9.645513903 | Q96: 6.880661056 | R96: 3.815354199 | S96: 0.8820528168 | T96: 0 | U96: 0 | V96: 0 | W96: 0 | X96: 0 | Y96: 0 | Z96: =SUM(B96:Y96) -> 106.1662035 | AB96: Juli
A97: Diffus mot ytan | B97: =(B95)*(2+(COS($C$7*PI()/180)))/3 -> 0 | C97: =(C95)*(2+(COS($C$7*PI()/180)))/3 -> 0 | D97: 0 | E97: 0.9626981458 | F97: 2.122140908 | G97: 2.917874934 | H97: 3.603170555 | I97: 4.204404198 | J97: 4.706278349 | K97: 5.085831297 | L97: 5.322648741 | M97: 5.403162503 | N97: 5.322648741 | O97: 5.085831297 | P97: 4.706278349 | Q97: 4.204404198 | R97: 3.603170555 | S97: 2.917874934 | T97: 2.122140908 | U97: 0.9626981458 | V97: 0 | W97: 0 | X97: 0 | Y97: 0 | Z97: =SUM(B97:Y97) -> 63.25325676
A98: Markrefl. mot ytan | B98: =$F$7*B94*(1-COS($C$7*PI()/180))/2 -> 0 | C98: =$F$7*C94*(1-COS($C$7*PI()/180))/2 -> 0 | D98: 0 | E98: 0.03348458217 | F98: 0.1062647848 | G98: 0.1843675626 | H98: 0.2624703405 | I98: 0.3352505431 | J98: 0.3977483199 | K98: 0.4457045507 | L98: 0.4758510977 | M98: 0.4861335235 | N98: 0.4758510977 | O98: 0.4457045507 | P98: 0.3977483199 | Q98: 0.3352505431 | R98: 0.2624703405 | S98: 0.1843675626 | T98: 0.1062647848 | U98: 0.03348458217 | V98: 0 | W98: 0 | X98: 0 | Y98: 0 | Z98: 4.968417086
A99: Summa mot ytan | B99: =SUM(B96:B98) -> 0 | C99: =SUM(C96:C98) -> 0 | D99: 0 | E99: 0.996182728 | F99: 2.228405693 | G99: 3.984295313 | H99: 7.680995095 | I99: 11.4203158 | J99: 14.74954057 | K99: 17.35058244 | L99: 19.00073035 | M99: 19.56578134 | N99: 19.00073035 | O99: 17.35058244 | P99: 14.74954057 | Q99: 11.4203158 | R99: 7.680995095 | S99: 3.984295313 | T99: 2.228405693 | U99: 0.996182728 | V99: 0 | W99: 0 | X99: 0 | Y99: 0 | Z99: =SUM(B99:Y99) -> 174.3878773 | AA99: =Z99/Z$162 -> 0.1457074416
A101: Augusti | B101: deklination | D101: 10.9
A102: Kl | B102: ='Mot marken'!B103 -> 1 | C102: ='Mot marken'!C103 -> 2 | D102: ='Mot marken'!D103 -> 3 | E102: ='Mot marken'!E103 -> 4 | F102: ='Mot marken'!F103 -> 5 | G102: ='Mot marken'!G103 -> 6 | H102: ='Mot marken'!H103 -> 7 | I102: ='Mot marken'!I103 -> 8 | J102: ='Mot marken'!J103 -> 9 | K102: ='Mot marken'!K103 -> 10 | L102: ='Mot marken'!L103 -> 11 | M102: ='Mot marken'!M103 -> 12 | N102: ='Mot marken'!N103 -> 13 | O102: ='Mot marken'!O103 -> 14 | P102: ='Mot marken'!P103 -> 15 | Q102: ='Mot marken'!Q103 -> 16 | R102: ='Mot marken'!R103 -> 17 | S102: ='Mot marken'!S103 -> 18 | T102: ='Mot marken'!T103 -> 19 | U102: ='Mot marken'!U103 -> 20 | V102: ='Mot marken'!V103 -> 21 | W102: ='Mot marken'!W103 -> 22 | X102: ='Mot marken'!X103 -> 23 | Y102: ='Mot marken'!Y103 -> 24
A103: solhöjd | B103: =IF('Mot marken'!B104<0,0,'Mot marken'!B104) -> 0 | C103: =IF('Mot marken'!C104<0,0,'Mot marken'!C104) -> 0 | D103: =IF('Mot marken'!D104<0,0,'Mot marken'!D104) -> 0 | E103: =IF('Mot marken'!E104<0,0,'Mot marken'!E104) -> 0 | F103: =IF('Mot marken'!F104<0,0,'Mot marken'!F104) -> 1.898714371 | G103: =IF('Mot marken'!G104<0,0,'Mot marken'!G104) -> 9.362709527 | H103: =IF('Mot marken'!H104<0,0,'Mot marken'!H104) -> 16.99180363 | I103: =IF('Mot marken'!I104<0,0,'Mot marken'!I104) -> 24.39074243 | J103: =IF('Mot marken'!J104<0,0,'Mot marken'!J104) -> 31.10606329 | K103: =IF('Mot marken'!K104<0,0,'Mot marken'!K104) -> 36.59609557 | L103: =IF('Mot marken'!L104<0,0,'Mot marken'!L104) -> 40.2538312 | M103: =IF('Mot marken'!M104<0,0,'Mot marken'!M104) -> 41.546735 | N103: =IF('Mot marken'!N104<0,0,'Mot marken'!N104) -> 40.2538312 | O103: =IF('Mot marken'!O104<0,0,'Mot marken'!O104) -> 36.59609557 | P103: =IF('Mot marken'!P104<0,0,'Mot marken'!P104) -> 31.10606329 | Q103: =IF('Mot marken'!Q104<0,0,'Mot marken'!Q104) -> 24.39074243 | R103: =IF('Mot marken'!R104<0,0,'Mot marken'!R104) -> 16.99180363 | S103: =IF('Mot marken'!S104<0,0,'Mot marken'!S104) -> 9.362709527 | T103: =IF('Mot marken'!T104<0,0,'Mot marken'!T104) -> 1.898714371 | U103: =IF('Mot marken'!U104<0,0,'Mot marken'!U104) -> 0 | V103: =IF('Mot marken'!V104<0,0,'Mot marken'!V104) -> 0 | W103: =IF('Mot marken'!W104<0,0,'Mot marken'!W104) -> 0 | X103: =IF('Mot marken'!X104<0,0,'Mot marken'!X104) -> 0 | Y103: =IF('Mot marken'!Y104<0,0,'Mot marken'!Y104) -> 0
A104: azimut | B104: ='Mot marken'!B105 -> -164.4349367 | C104: ='Mot marken'!C105 -> -149.3337107 | D104: ='Mot marken'!D105 -> -134.9755609 | E104: ='Mot marken'!E105 -> -121.385547 | F104: ='Mot marken'!F105 -> -108.3737854 | G104: ='Mot marken'!G105 -> -95.60625591 | H104: ='Mot marken'!H105 -> -82.65507703 | I104: ='Mot marken'!I105 -> -69.02502046 | J104: ='Mot marken'!J105 -> -54.18933392 | K104: ='Mot marken'!K105 -> -37.70089446 | L104: ='Mot marken'!L105 -> -19.45156921 | M104: ='Mot marken'!M105 -> 0 | N104: ='Mot marken'!N105 -> 19.45156921 | O104: ='Mot marken'!O105 -> 37.70089446 | P104: ='Mot marken'!P105 -> 54.18933392 | Q104: ='Mot marken'!Q105 -> 69.02502046 | R104: ='Mot marken'!R105 -> 82.65507703 | S104: ='Mot marken'!S105 -> 95.60625591 | T104: ='Mot marken'!T105 -> 108.3737854 | U104: ='Mot marken'!U105 -> 121.385547 | V104: ='Mot marken'!V105 -> 134.9755609 | W104: ='Mot marken'!W105 -> 149.3337107 | X104: ='Mot marken'!X105 -> 164.4349367 | Y104: ='Mot marken'!Y105 -> 180 | Z104: Summa
A105: Uppmätt IDN förd | B105: ='Mot marken'!B108 -> 0 | C105: ='Mot marken'!C108 -> 0 | D105: ='Mot marken'!D108 -> 0 | E105: ='Mot marken'!E108 -> 0 | F105: ='Mot marken'!F108 -> 0.3147590056 | G105: ='Mot marken'!G108 -> 6.990354746 | H105: ='Mot marken'!H108 -> 9.934909139 | I105: ='Mot marken'!I108 -> 11.30335369 | J105: ='Mot marken'!J108 -> 12.03455842 | K105: ='Mot marken'!K108 -> 12.44226662 | L105: ='Mot marken'!L108 -> 12.6523647 | M105: ='Mot marken'!M108 -> 12.71748735 | N105: ='Mot marken'!N108 -> 12.6523647 | O105: ='Mot marken'!O108 -> 12.44226662 | P105: ='Mot marken'!P108 -> 12.03455842 | Q105: ='Mot marken'!Q108 -> 11.30335369 | R105: ='Mot marken'!R108 -> 9.934909139 | S105: ='Mot marken'!S108 -> 6.990354746 | T105: ='Mot marken'!T108 -> 0.3147590056 | U105: ='Mot marken'!U108 -> 0 | V105: ='Mot marken'!V108 -> 0 | W105: ='Mot marken'!W108 -> 0 | X105: ='Mot marken'!X108 -> 0 | Y105: ='Mot marken'!Y108 -> 0 | Z105: =SUM(B105:Y105) -> 144.06262
A106: Global IDH + IdH förd | B106: ='Mot marken'!B112 -> 0 | C106: ='Mot marken'!C112 -> 0 | D106: ='Mot marken'!D112 -> 0 | E106: ='Mot marken'!E112 -> 0 | F106: ='Mot marken'!F112 -> 0.7309779904 | G106: ='Mot marken'!G112 -> 3.589146322 | H106: ='Mot marken'!H112 -> 6.447314653 | I106: ='Mot marken'!I112 -> 9.110703536 | J106: ='Mot marken'!J112 -> 11.39780742 | K106: ='Mot marken'!K112 -> 13.15276395 | L106: ='Mot marken'!L112 -> 14.25597575 | M106: ='Mot marken'!M112 -> 14.63226075 | N106: ='Mot marken'!N112 -> 14.25597575 | O106: ='Mot marken'!O112 -> 13.15276395 | P106: ='Mot marken'!P112 -> 11.39780742 | Q106: ='Mot marken'!Q112 -> 9.110703536 | R106: ='Mot marken'!R112 -> 6.447314653 | S106: ='Mot marken'!S112 -> 3.589146322 | T106: ='Mot marken'!T112 -> 0.7309779904 | U106: ='Mot marken'!U112 -> 0 | V106: ='Mot marken'!V112 -> 0 | W106: ='Mot marken'!W112 -> 0 | X106: ='Mot marken'!X112 -> 0 | Y106: ='Mot marken'!Y112 -> 0 | Z106: =SUM(B106:Y106) -> 132.00164
A107: Diffusstrål IdH | B107: ='Mot marken'!B113 -> 0 | C107: ='Mot marken'!C113 -> 0 | D107: ='Mot marken'!D113 -> 0 | E107: ='Mot marken'!E113 -> 0 | F107: ='Mot marken'!F113 -> 0.7205491583 | G107: ='Mot marken'!G113 -> 2.45192867 | H107: ='Mot marken'!H113 -> 3.543987486 | I107: ='Mot marken'!I113 -> 4.442901335 | J107: ='Mot marken'!J113 -> 5.18046643 | K107: ='Mot marken'!K113 -> 5.735055805 | L107: ='Mot marken'!L113 -> 6.08033382 | M107: ='Mot marken'!M113 -> 6.197632262 | N107: ='Mot marken'!N113 -> 6.08033382 | O107: ='Mot marken'!O113 -> 5.735055805 | P107: ='Mot marken'!P113 -> 5.18046643 | Q107: ='Mot marken'!Q113 -> 4.442901335 | R107: ='Mot marken'!R113 -> 3.543987486 | S107: ='Mot marken'!S113 -> 2.45192867 | T107: ='Mot marken'!T113 -> 0.7205491583 | U107: ='Mot marken'!U113 -> 0 | V107: ='Mot marken'!V113 -> 0 | W107: ='Mot marken'!W113 -> 0 | X107: ='Mot marken'!X113 -> 0 | Y107: ='Mot marken'!Y113 -> 0 | Z107: 62.50807767
A108: Direkt mot ytan | B108: =IF(B103<$L$10,0,IF(AND(B104>$L8,B104<$M8,B103<$L9),0,IF(SIN(B103*PI()/180)*(COS($C$7*PI()/180))+COS(B103*PI()/180)*SIN($C$7*PI()/180)*(COS((B104-($C$8-180))*PI()/180))<0,0,B105*(SIN(B103*PI()/180)*(COS($C$7*PI()/180))+COS(B103*PI()/180)*SIN($C$7*PI()/180)*(COS((B104-($C$8-180))*PI()/180)))))) -> 0 | C108: 0 | D108: 0 | E108: 0 | F108: 0 | G108: 0.3276848548 | H108: 2.911854557 | I108: 5.906346917 | J108: 8.659499396 | K108: 10.83389485 | L108: =IF(L103<$L$10,0,IF(AND(L104>$L8,L104<$M8,L103<$L9),0,IF(SIN(L103*PI()/180)*(COS($C$7*PI()/180))+COS(L103*PI()/180)*SIN($C$7*PI()/180)*(COS((L104-($C$8-180))*PI()/180))<0,0,L105*(SIN(L103*PI()/180)*(COS($C$7*PI()/180))+COS(L103*PI()/180)*SIN($C$7*PI()/180)*(COS((L104-($C$8-180))*PI()/180)))))) -> 12.21926469 | M108: =IF(M103<$L$10,0,IF(AND(M104>$L8,M104<$M8,M103<$L9),0,IF(SIN(M103*PI()/180)*(COS($C$7*PI()/180))+COS(M103*PI()/180)*SIN($C$7*PI()/180)*(COS((M104-($C$8-180))*PI()/180))<0,0,M105*(SIN(M103*PI()/180)*(COS($C$7*PI()/180))+COS(M103*PI()/180)*SIN($C$7*PI()/180)*(COS((M104-($C$8-180))*PI()/180)))))) -> 12.69439573 | N108: 12.21926469 | O108: 10.83389485 | P108: 8.659499396 | Q108: 5.906346917 | R108: 2.911854557 | S108: 0.3276848548 | T108: 0 | U108: 0 | V108: 0 | W108: 0 | X108: 0 | Y108: 0 | Z108: =SUM(B108:Y108) -> 94.41148625 | AB108: Aug
A109: Diffus mot ytan | B109: =(B107)*(2+(COS($C$7*PI()/180)))/3 -> 0 | C109: =(C107)*(2+(COS($C$7*PI()/180)))/3 -> 0 | D109: 0 | E109: 0 | F109: 0.6502011708 | G109: 2.212544243 | H109: 3.197984185 | I109: 4.009136111 | J109: 4.674691934 | K109: 5.175136153 | L109: 5.486704305 | M109: 5.592550774 | N109: 5.486704305 | O109: 5.175136153 | P109: 4.674691934 | Q109: 4.009136111 | R109: 3.197984185 | S109: 2.212544243 | T109: 0.6502011708 | U109: 0 | V109: 0 | W109: 0 | X109: 0 | Y109: 0 | Z109: =SUM(B109:Y109) -> 56.40534698
A110: Markrefl. mot ytan | B110: =$F$7*B106*(1-COS($C$7*PI()/180))/2 -> 0 | C110: =$F$7*C106*(1-COS($C$7*PI()/180))/2 -> 0 | D110: 0 | E110: 0 | F110: 0.02140984965 | G110: 0.1051236619 | H110: 0.1888374741 | I110: 0.2668463284 | J110: 0.3338340503 | K110: 0.3852355371 | L110: 0.4175478625 | M110: 0.428568995 | N110: 0.4175478625 | O110: 0.3852355371 | P110: 0.3338340503 | Q110: 0.2668463284 | R110: 0.1888374741 | S110: 0.1051236619 | T110: 0.02140984965 | U110: 0 | V110: =$F$7*V106*(1-COS($C$7*PI()/180))/2 -> 0 | W110: 0 | X110: 0 | Y110: 0 | Z110: 3.866238523
A111: Summa mot ytan | B111: =SUM(B108:B110) -> 0 | C111: =SUM(C108:C110) -> 0 | D111: 0 | E111: 0 | F111: 0.6716110205 | G111: 2.64535276 | H111: 6.298676216 | I111: 10.18232936 | J111: 13.66802538 | K111: 16.39426654 | L111: 18.12351686 | M111: 18.7155155 | N111: 18.12351686 | O111: 16.39426654 | P111: 13.66802538 | Q111: 10.18232936 | R111: 6.298676216 | S111: 2.64535276 | T111: 0.6716110205 | U111: 0 | V111: 0 | W111: 0 | X111: 0 | Y111: 0 | Z111: =SUM(B111:Y111) -> 154.6830718 | AA111: 0.1292433568
A113: September | B113: deklination | D113: 0
A114: Kl | B114: ='Mot marken'!B116 -> 1 | C114: ='Mot marken'!C116 -> 2 | D114: ='Mot marken'!D116 -> 3 | E114: ='Mot marken'!E116 -> 4 | F114: ='Mot marken'!F116 -> 5 | G114: ='Mot marken'!G116 -> 6 | H114: ='Mot marken'!H116 -> 7 | I114: ='Mot marken'!I116 -> 8 | J114: ='Mot marken'!J116 -> 9 | K114: ='Mot marken'!K116 -> 10 | L114: ='Mot marken'!L116 -> 11 | M114: ='Mot marken'!M116 -> 12 | N114: ='Mot marken'!N116 -> 13 | O114: ='Mot marken'!O116 -> 14 | P114: ='Mot marken'!P116 -> 15 | Q114: ='Mot marken'!Q116 -> 16 | R114: ='Mot marken'!R116 -> 17 | S114: ='Mot marken'!S116 -> 18 | T114: ='Mot marken'!T116 -> 19 | U114: ='Mot marken'!U116 -> 20 | V114: ='Mot marken'!V116 -> 21 | W114: ='Mot marken'!W116 -> 22 | X114: ='Mot marken'!X116 -> 23 | Y114: ='Mot marken'!Y116 -> 24
A115: solhöjd | B115: =IF('Mot marken'!B117<0,0,'Mot marken'!B117) -> 0 | C115: =IF('Mot marken'!C117<0,0,'Mot marken'!C117) -> 0 | D115: =IF('Mot marken'!D117<0,0,'Mot marken'!D117) -> 0 | E115: =IF('Mot marken'!E117<0,0,'Mot marken'!E117) -> 0 | F115: =IF('Mot marken'!F117<0,0,'Mot marken'!F117) -> 0 | G115: =IF('Mot marken'!G117<0,0,'Mot marken'!G117) -> 0 | H115: =IF('Mot marken'!H117<0,0,'Mot marken'!H117) -> 7.581208085 | I115: =IF('Mot marken'!I117<0,0,'Mot marken'!I117) -> 14.76598101 | J115: =IF('Mot marken'!J117<0,0,'Mot marken'!J117) -> 21.12740279 | K115: =IF('Mot marken'!K117<0,0,'Mot marken'!K117) -> 26.19647681 | L115: =IF('Mot marken'!L117<0,0,'Mot marken'!L117) -> 29.49675416 | M115: =IF('Mot marken'!M117<0,0,'Mot marken'!M117) -> 30.646735 | N115: =IF('Mot marken'!N117<0,0,'Mot marken'!N117) -> 29.49675416 | O115: =IF('Mot marken'!O117<0,0,'Mot marken'!O117) -> 26.19647681 | P115: =IF('Mot marken'!P117<0,0,'Mot marken'!P117) -> 21.12740279 | Q115: =IF('Mot marken'!Q117<0,0,'Mot marken'!Q117) -> 14.76598101 | R115: =IF('Mot marken'!R117<0,0,'Mot marken'!R117) -> 7.581208085 | S115: =IF('Mot marken'!S117<0,0,'Mot marken'!S117) -> 8.945464872e-15 | T115: =IF('Mot marken'!T117<0,0,'Mot marken'!T117) -> 0 | U115: =IF('Mot marken'!U117<0,0,'Mot marken'!U117) -> 0 | V115: =IF('Mot marken'!V117<0,0,'Mot marken'!V117) -> 0 | W115: =IF('Mot marken'!W117<0,0,'Mot marken'!W117) -> 0 | X115: =IF('Mot marken'!X117<0,0,'Mot marken'!X117) -> 0 | Y115: =IF('Mot marken'!Y117<0,0,'Mot marken'!Y117) -> 0
A116: azimut | B116: ='Mot marken'!B118 -> -162.7007698 | C116: ='Mot marken'!C118 -> -146.1351206 | D116: ='Mot marken'!D118 -> -130.7062838 | E116: ='Mot marken'!E118 -> -116.4140389 | F116: ='Mot marken'!F118 -> -102.9812648 | G116: ='Mot marken'!G118 -> -90 | H116: ='Mot marken'!H118 -> -77.01873518 | I116: ='Mot marken'!I118 -> -63.58596111 | J116: ='Mot marken'!J118 -> -49.29371618 | K116: ='Mot marken'!K118 -> -33.86487941 | L116: ='Mot marken'!L118 -> -17.29923017 | M116: ='Mot marken'!M118 -> 0 | N116: ='Mot marken'!N118 -> 17.29923017 | O116: ='Mot marken'!O118 -> 33.86487941 | P116: ='Mot marken'!P118 -> 49.29371618 | Q116: ='Mot marken'!Q118 -> 63.58596111 | R116: ='Mot marken'!R118 -> 77.01873518 | S116: ='Mot marken'!S118 -> 90 | T116: ='Mot marken'!T118 -> 102.9812648 | U116: ='Mot marken'!U118 -> 116.4140389 | V116: ='Mot marken'!V118 -> 130.7062838 | W116: ='Mot marken'!W118 -> 146.1351206 | X116: ='Mot marken'!X118 -> 162.7007698 | Y116: ='Mot marken'!Y118 -> 180 | Z116: Summa
A117: Uppmätt IDN förd | B117: ='Mot marken'!B121 -> 0 | C117: ='Mot marken'!C121 -> 0 | D117: ='Mot marken'!D121 -> 0 | E117: ='Mot marken'!E121 -> 0 | F117: ='Mot marken'!F121 -> 0 | G117: ='Mot marken'!G121 -> 0 | H117: ='Mot marken'!H121 -> 5.514403734 | I117: ='Mot marken'!I121 -> 8.83753682 | J117: ='Mot marken'!J121 -> 10.24973974 | K117: ='Mot marken'!K121 -> 10.94548339 | L117: ='Mot marken'!L121 -> 11.28133334 | M117: ='Mot marken'!M121 -> 11.38249597 | N117: ='Mot marken'!N121 -> 11.28133334 | O117: ='Mot marken'!O121 -> 10.94548339 | P117: ='Mot marken'!P121 -> 10.24973974 | Q117: ='Mot marken'!Q121 -> 8.83753682 | R117: ='Mot marken'!R121 -> 5.514403734 | S117: ='Mot marken'!S121 -> 0 | T117: ='Mot marken'!T121 -> 0 | U117: ='Mot marken'!U121 -> 0 | V117: ='Mot marken'!V121 -> 0 | W117: ='Mot marken'!W121 -> 0 | X117: ='Mot marken'!X121 -> 0 | Y117: ='Mot marken'!Y121 -> 0 | Z117: =SUM(B117:Y117) -> 105.03949
A118: Global IDH + IdH förd | B118: ='Mot marken'!B125 -> 0 | C118: ='Mot marken'!C125 -> 0 | D118: ='Mot marken'!D125 -> 0 | E118: ='Mot marken'!E125 -> 0 | F118: ='Mot marken'!F125 -> 0 | G118: ='Mot marken'!G125 -> 0 | H118: ='Mot marken'!H125 -> 2.818539664 | I118: ='Mot marken'!I125 -> 5.445000508 | J118: ='Mot marken'!J125 -> 7.700393565 | K118: ='Mot marken'!K125 -> 9.431017527 | L118: ='Mot marken'!L125 -> 10.51893323 | M118: ='Mot marken'!M125 -> 10.89000102 | N118: ='Mot marken'!N125 -> 10.51893323 | O118: ='Mot marken'!O125 -> 9.431017527 | P118: ='Mot marken'!P125 -> 7.700393565 | Q118: ='Mot marken'!Q125 -> 5.445000508 | R118: ='Mot marken'!R125 -> 2.818539664 | S118: ='Mot marken'!S125 -> 3.335466979e-15 | T118: ='Mot marken'!T125 -> 0 | U118: ='Mot marken'!U125 -> 0 | V118: ='Mot marken'!V125 -> 0 | W118: ='Mot marken'!W125 -> 0 | X118: ='Mot marken'!X125 -> 0 | Y118: ='Mot marken'!Y125 -> 0 | Z118: =SUM(B118:Y118) -> 82.71777
A119: Diffusstrål IdH | B119: ='Mot marken'!B126 -> 0 | C119: ='Mot marken'!C126 -> 0 | D119: ='Mot marken'!D126 -> 0 | E119: ='Mot marken'!E126 -> 0 | F119: ='Mot marken'!F126 -> 0 | G119: ='Mot marken'!G126 -> 0 | H119: ='Mot marken'!H126 -> 2.091017302 | I119: ='Mot marken'!I126 -> 3.192562757 | J119: ='Mot marken'!J126 -> 4.005946936 | K119: ='Mot marken'!K126 -> 4.599126459 | L119: ='Mot marken'!L126 -> 4.964295154 | M119: ='Mot marken'!M126 -> 5.087849548 | N119: ='Mot marken'!N126 -> 4.964295154 | O119: ='Mot marken'!O126 -> 4.599126459 | P119: ='Mot marken'!P126 -> 4.005946936 | Q119: ='Mot marken'!Q126 -> 3.192562757 | R119: ='Mot marken'!R126 -> 2.091017302 | S119: ='Mot marken'!S126 -> 3.335466979e-15 | T119: ='Mot marken'!T126 -> 0 | U119: ='Mot marken'!U126 -> 0 | V119: ='Mot marken'!V126 -> 0 | W119: ='Mot marken'!W126 -> 0 | X119: ='Mot marken'!X126 -> 0 | Y119: ='Mot marken'!Y126 -> 0 | Z119: 42.79374676
A120: Direkt mot ytan | B120: =IF(B115<$L$10,0,IF(AND(B116>$L8,B116<$M8,B115<$L9),0,IF(SIN(B115*PI()/180)*(COS($C$7*PI()/180))+COS(B115*PI()/180)*SIN($C$7*PI()/180)*(COS((B116-($C$8-180))*PI()/180))<0,0,B117*(SIN(B115*PI()/180)*(COS($C$7*PI()/180))+COS(B115*PI()/180)*SIN($C$7*PI()/180)*(COS((B116-($C$8-180))*PI()/180)))))) -> 0 | C120: 0 | D120: 0 | E120: 0 | F120: 0 | G120: 0 | H120: 1.382682625 | I120: 4.280839604 | J120: 7.021429755 | K120: 9.183184146 | L120: =IF(L115<$L$10,0,IF(AND(L116>$L8,L116<$M8,L115<$L9),0,IF(SIN(L115*PI()/180)*(COS($C$7*PI()/180))+COS(L115*PI()/180)*SIN($C$7*PI()/180)*(COS((L116-($C$8-180))*PI()/180))<0,0,L117*(SIN(L115*PI()/180)*(COS($C$7*PI()/180))+COS(L115*PI()/180)*SIN($C$7*PI()/180)*(COS((L116-($C$8-180))*PI()/180)))))) -> 10.55679104 | M120: =IF(M115<$L$10,0,IF(AND(M116>$L8,M116<$M8,M115<$L9),0,IF(SIN(M115*PI()/180)*(COS($C$7*PI()/180))+COS(M115*PI()/180)*SIN($C$7*PI()/180)*(COS((M116-($C$8-180))*PI()/180))<0,0,M117*(SIN(M115*PI()/180)*(COS($C$7*PI()/180))+COS(M115*PI()/180)*SIN($C$7*PI()/180)*(COS((M116-($C$8-180))*PI()/180)))))) -> 11.02719921 | N120: 10.55679104 | O120: 9.183184146 | P120: 7.021429755 | Q120: 4.280839604 | R120: 1.382682625 | S120: 0 | T120: 0 | U120: 0 | V120: 0 | W120: 0 | X120: 0 | Y120: 0 | Z120: =SUM(B120:Y120) -> 75.87705354 | AB120: Sep
A121: Diffus mot ytan | B121: =(B119)*(2+(COS($C$7*PI()/180)))/3 -> 0 | C121: =(C119)*(2+(COS($C$7*PI()/180)))/3 -> 0 | D121: 0 | E121: 0 | F121: 0 | G121: 0 | H121: 1.886869039 | I121: 2.88086943 | J121: 3.614842038 | K121: 4.150108809 | L121: 4.479625692 | M121: 4.591117338 | N121: 4.479625692 | O121: 4.150108809 | P121: 3.614842038 | Q121: 2.88086943 | R121: 1.886869039 | S121: 3.00982176e-15 | T121: 0 | U121: 0 | V121: 0 | W121: 0 | X121: 0 | Y121: 0 | Z121: 38.61574735
A122: Markrefl. mot ytan | B122: =$F$7*B118*(1-COS($C$7*PI()/180))/2 -> 0 | C122: =$F$7*C118*(1-COS($C$7*PI()/180))/2 -> 0 | D122: 0 | E122: 0 | F122: 0 | G122: 0 | H122: 0.08255311545 | I122: 0.1594803725 | J122: 0.2255393057 | K122: 0.276228108 | L122: 0.3080924212 | M122: 0.318960745 | N122: 0.3080924212 | O122: 0.276228108 | P122: 0.2255393057 | Q122: 0.1594803725 | R122: 0.08255311545 | S122: 9.769356599e-17 | T122: 0 | U122: 0 | V122: 0 | W122: 0 | X122: 0 | Y122: 0 | Z122: 2.422747391
A123: Summa mot ytan | B123: =SUM(B120:B122) -> 0 | C123: =SUM(C120:C122) -> 0 | D123: 0 | E123: 0 | F123: 0 | G123: 0 | H123: 3.352104779 | I123: 7.321189406 | J123: 10.8618111 | K123: 13.60952106 | L123: 15.34450915 | M123: 15.93727729 | N123: 15.34450915 | O123: 13.60952106 | P123: 10.8618111 | Q123: 7.321189406 | R123: 3.352104779 | S123: 3.107515326e-15 | T123: 0 | U123: 0 | V123: 0 | W123: 0 | X123: 0 | Y123: 0 | Z123: 116.9155483 | AA123: 0.09768721135
A125: Oktober | B125: deklination | D125: -10.9
A126: Kl | B126: ='Mot marken'!B129 -> 1 | C126: ='Mot marken'!C129 -> 2 | D126: ='Mot marken'!D129 -> 3 | E126: ='Mot marken'!E129 -> 4 | F126: ='Mot marken'!F129 -> 5 | G126: ='Mot marken'!G129 -> 6 | H126: ='Mot marken'!H129 -> 7 | I126: ='Mot marken'!I129 -> 8 | J126: ='Mot marken'!J129 -> 9 | K126: ='Mot marken'!K129 -> 10 | L126: ='Mot marken'!L129 -> 11 | M126: ='Mot marken'!M129 -> 12 | N126: ='Mot marken'!N129 -> 13 | O126: ='Mot marken'!O129 -> 14 | P126: ='Mot marken'!P129 -> 15 | Q126: ='Mot marken'!Q129 -> 16 | R126: ='Mot marken'!R129 -> 17 | S126: ='Mot marken'!S129 -> 18 | T126: ='Mot marken'!T129 -> 19 | U126: ='Mot marken'!U129 -> 20 | V126: ='Mot marken'!V129 -> 21 | W126: ='Mot marken'!W129 -> 22 | X126: ='Mot marken'!X129 -> 23 | Y126: ='Mot marken'!Y129 -> 24
A127: solhöjd | B127: =IF('Mot marken'!B130<0,0,'Mot marken'!B130) -> 0 | C127: =IF('Mot marken'!C130<0,0,'Mot marken'!C130) -> 0 | D127: =IF('Mot marken'!D130<0,0,'Mot marken'!D130) -> 0 | E127: =IF('Mot marken'!E130<0,0,'Mot marken'!E130) -> 0 | F127: =IF('Mot marken'!F130<0,0,'Mot marken'!F130) -> 0 | G127: =IF('Mot marken'!G130<0,0,'Mot marken'!G130) -> 0 | H127: =IF('Mot marken'!H130<0,0,'Mot marken'!H130) -> 0 | I127: =IF('Mot marken'!I130<0,0,'Mot marken'!I130) -> 5.024955316 | J127: =IF('Mot marken'!J130<0,0,'Mot marken'!J130) -> 11.02610886 | K127: =IF('Mot marken'!K130<0,0,'Mot marken'!K130) -> 15.7120267 | L127: =IF('Mot marken'!L130<0,0,'Mot marken'!L130) -> 18.71175775 | M127: =IF('Mot marken'!M130<0,0,'Mot marken'!M130) -> 19.746735 | N127: =IF('Mot marken'!N130<0,0,'Mot marken'!N130) -> 18.71175775 | O127: =IF('Mot marken'!O130<0,0,'Mot marken'!O130) -> 15.7120267 | P127: =IF('Mot marken'!P130<0,0,'Mot marken'!P130) -> 11.02610886 | Q127: =IF('Mot marken'!Q130<0,0,'Mot marken'!Q130) -> 5.024955316 | R127: =IF('Mot marken'!R130<0,0,'Mot marken'!R130) -> 0 | S127: =IF('Mot marken'!S130<0,0,'Mot marken'!S130) -> 0 | T127: =IF('Mot marken'!T130<0,0,'Mot marken'!T130) -> 0 | U127: =IF('Mot marken'!U130<0,0,'Mot marken'!U130) -> 0 | V127: =IF('Mot marken'!V130<0,0,'Mot marken'!V130) -> 0 | W127: =IF('Mot marken'!W130<0,0,'Mot marken'!W130) -> 0 | X127: =IF('Mot marken'!X130<0,0,'Mot marken'!X130) -> 0 | Y127: =IF('Mot marken'!Y130<0,0,'Mot marken'!Y130) -> 0
A128: azimut | B128: ='Mot marken'!B131 -> -160.5484308 | C128: ='Mot marken'!C131 -> -142.2991055 | D128: ='Mot marken'!D131 -> -125.8106661 | E128: ='Mot marken'!E131 -> -110.9749795 | F128: ='Mot marken'!F131 -> -97.34492297 | G128: ='Mot marken'!G131 -> -84.39374409 | H128: ='Mot marken'!H131 -> -71.62621457 | I128: ='Mot marken'!I131 -> -58.61445303 | J128: ='Mot marken'!J131 -> -45.02443913 | K128: ='Mot marken'!K131 -> -30.66628929 | L128: ='Mot marken'!L131 -> -15.56506334 | M128: ='Mot marken'!M131 -> 0 | N128: ='Mot marken'!N131 -> 15.56506334 | O128: ='Mot marken'!O131 -> 30.66628929 | P128: ='Mot marken'!P131 -> 45.02443913 | Q128: ='Mot marken'!Q131 -> 58.61445303 | R128: ='Mot marken'!R131 -> 71.62621457 | S128: ='Mot marken'!S131 -> 84.39374409 | T128: ='Mot marken'!T131 -> 97.34492297 | U128: ='Mot marken'!U131 -> 110.9749795 | V128: ='Mot marken'!V131 -> 125.8106661 | W128: ='Mot marken'!W131 -> 142.2991055 | X128: ='Mot marken'!X131 -> 160.5484308 | Y128: ='Mot marken'!Y131 -> 180 | Z128: Summa
A129: Uppmätt IDN förd | B129: ='Mot marken'!B134 -> 0 | C129: ='Mot marken'!C134 -> 0 | D129: ='Mot marken'!D134 -> 0 | E129: ='Mot marken'!E134 -> 0 | F129: ='Mot marken'!F134 -> 0 | G129: ='Mot marken'!G134 -> 0 | H129: ='Mot marken'!H134 -> 0 | I129: ='Mot marken'!I134 -> 2.838330331 | J129: ='Mot marken'!J134 -> 6.306024441 | K129: ='Mot marken'!K134 -> 7.687773139 | L129: ='Mot marken'!L134 -> 8.280328067 | M129: ='Mot marken'!M134 -> 8.450128046 | N129: ='Mot marken'!N134 -> 8.280328067 | O129: ='Mot marken'!O134 -> 7.687773139 | P129: ='Mot marken'!P134 -> 6.306024441 | Q129: ='Mot marken'!Q134 -> 2.838330331 | R129: ='Mot marken'!R134 -> 0 | S129: ='Mot marken'!S134 -> 0 | T129: ='Mot marken'!T134 -> 0 | U129: ='Mot marken'!U134 -> 0 | V129: ='Mot marken'!V134 -> 0 | W129: ='Mot marken'!W134 -> 0 | X129: ='Mot marken'!X134 -> 0 | Y129: ='Mot marken'!Y134 -> 0 | Z129: =SUM(B129:Y129) -> 58.67504
A130: Global IDH + IdH förd | B130: ='Mot marken'!B138 -> 0 | C130: ='Mot marken'!C138 -> 0 | D130: ='Mot marken'!D138 -> 0 | E130: ='Mot marken'!E138 -> 0 | F130: ='Mot marken'!F138 -> 0 | G130: ='Mot marken'!G138 -> 0 | H130: ='Mot marken'!H138 -> 0 | I130: ='Mot marken'!I138 -> 1.634938414 | J130: ='Mot marken'!J138 -> 3.569968905 | K130: ='Mot marken'!K138 -> 5.054770022 | L130: ='Mot marken'!L138 -> 5.988155025 | M130: ='Mot marken'!M138 -> 6.306515267 | N130: ='Mot marken'!N138 -> 5.988155025 | O130: ='Mot marken'!O138 -> 5.054770022 | P130: ='Mot marken'!P138 -> 3.569968905 | Q130: ='Mot marken'!Q138 -> 1.634938414 | R130: ='Mot marken'!R138 -> 0 | S130: ='Mot marken'!S138 -> 0 | T130: ='Mot marken'!T138 -> 0 | U130: ='Mot marken'!U138 -> 0 | V130: ='Mot marken'!V138 -> 0 | W130: ='Mot marken'!W138 -> 0 | X130: ='Mot marken'!X138 -> 0 | Y130: ='Mot marken'!Y138 -> 0 | Z130: 38.80218
A131: Diffusstrål IdH | B131: ='Mot marken'!B139 -> 0 | C131: ='Mot marken'!C139 -> 0 | D131: ='Mot marken'!D139 -> 0 | E131: ='Mot marken'!E139 -> 0 | F131: ='Mot marken'!F139 -> 0 | G131: ='Mot marken'!G139 -> 0 | H131: ='Mot marken'!H139 -> 0 | I131: ='Mot marken'!I139 -> 1.386330112 | J131: ='Mot marken'!J139 -> 2.363902072 | K131: ='Mot marken'!K139 -> 2.972901726 | L131: ='Mot marken'!L139 -> 3.33176482 | M131: ='Mot marken'!M139 -> 3.451528941 | N131: ='Mot marken'!N139 -> 3.33176482 | O131: ='Mot marken'!O139 -> 2.972901726 | P131: ='Mot marken'!P139 -> 2.363902072 | Q131: ='Mot marken'!Q139 -> 1.386330112 | R131: ='Mot marken'!R139 -> 0 | S131: ='Mot marken'!S139 -> 0 | T131: ='Mot marken'!T139 -> 0 | U131: ='Mot marken'!U139 -> 0 | V131: ='Mot marken'!V139 -> 0 | W131: ='Mot marken'!W139 -> 0 | X131: ='Mot marken'!X139 -> 0 | Y131: ='Mot marken'!Y139 -> 0 | Z131: 23.5613264
A132: Direkt mot ytan | B132: =IF(B127<$L$10,0,IF(AND(B128>$L8,B128<$M8,B127<$L9),0,IF(SIN(B127*PI()/180)*(COS($C$7*PI()/180))+COS(B127*PI()/180)*SIN($C$7*PI()/180)*(COS((B128-($C$8-180))*PI()/180))<0,0,B129*(SIN(B127*PI()/180)*(COS($C$7*PI()/180))+COS(B127*PI()/180)*SIN($C$7*PI()/180)*(COS((B128-($C$8-180))*PI()/180)))))) -> 0 | C132: 0 | D132: 0 | E132: 0 | F132: 0 | G132: 0 | H132: 0 | I132: 1.217010938 | J132: 3.946305718 | K132: 5.973244368 | L132: =IF(L127<$L$10,0,IF(AND(L128>$L8,L128<$M8,L127<$L9),0,IF(SIN(L127*PI()/180)*(COS($C$7*PI()/180))+COS(L127*PI()/180)*SIN($C$7*PI()/180)*(COS((L128-($C$8-180))*PI()/180))<0,0,L129*(SIN(L127*PI()/180)*(COS($C$7*PI()/180))+COS(L127*PI()/180)*SIN($C$7*PI()/180)*(COS((L128-($C$8-180))*PI()/180)))))) -> 7.220577046 | M132: =IF(M127<$L$10,0,IF(AND(M128>$L8,M128<$M8,M127<$L9),0,IF(SIN(M127*PI()/180)*(COS($C$7*PI()/180))+COS(M127*PI()/180)*SIN($C$7*PI()/180)*(COS((M128-($C$8-180))*PI()/180))<0,0,M129*(SIN(M127*PI()/180)*(COS($C$7*PI()/180))+COS(M127*PI()/180)*SIN($C$7*PI()/180)*(COS((M128-($C$8-180))*PI()/180)))))) -> 7.642556372 | N132: 7.220577046 | O132: 5.973244368 | P132: 3.946305718 | Q132: 1.217010938 | R132: 0 | S132: 0 | T132: 0 | U132: 0 | V132: 0 | W132: 0 | X132: 0 | Y132: 0 | Z132: =SUM(B132:Y132) -> 44.35683251 | AB132: Okt
A133: Diffus mot ytan | B133: =(B131)*(2+(COS($C$7*PI()/180)))/3 -> 0 | C133: =(C131)*(2+(COS($C$7*PI()/180)))/3 -> 0 | D133: 0 | E133: 0 | F133: 0 | G133: 0 | H133: 0 | I133: 1.250981216 | J133: 2.133111777 | K133: 2.682654141 | L133: 3.006481046 | M133: 3.114552467 | N133: 3.006481046 | O133: 2.682654141 | P133: 2.133111777 | Q133: 1.250981216 | R133: 0 | S133: 0 | T133: 0 | U133: 0 | V133: 0 | W133: 0 | X133: 0 | Y133: 0 | Z133: 21.26100883
A134: Markrefl. mot ytan | B134: =$F$7*B130*(1-COS($C$7*PI()/180))/2 -> 0 | C134: =$F$7*C130*(1-COS($C$7*PI()/180))/2 -> 0 | D134: 0 | E134: 0 | F134: 0 | G134: 0 | H134: 0 | I134: 0.04788623747 | J134: 0.1045619684 | K134: 0.1480507862 | L134: 0.175389 | M134: 0.1847135556 | N134: 0.175389 | O134: 0.1480507862 | P134: 0.1045619684 | Q134: 0.04788623747 | R134: 0 | S134: 0 | T134: 0 | U134: 0 | V134: 0 | W134: 0 | X134: 0 | Y134: 0 | Z134: 1.13648954
A135: Summa mot ytan | B135: =SUM(B132:B134) -> 0 | C135: =SUM(C132:C134) -> 0 | D135: 0 | E135: 0 | F135: 0 | G135: 0 | H135: 0 | I135: 2.515878392 | J135: 6.183979463 | K135: 8.803949295 | L135: 10.40244709 | M135: 10.9418224 | N135: 10.40244709 | O135: 8.803949295 | P135: 6.183979463 | Q135: 2.515878392 | R135: 0 | S135: 0 | T135: 0 | U135: 0 | V135: 0 | W135: 0 | X135: 0 | Y135: 0 | Z135: 66.75433088 | AA135: 0.05577568189
A137: November | B137: deklination | D137: -19.9
A138: Kl | B138: ='Mot marken'!B142 -> 1 | C138: ='Mot marken'!C142 -> 2 | D138: ='Mot marken'!D142 -> 3 | E138: ='Mot marken'!E142 -> 4 | F138: ='Mot marken'!F142 -> 5 | G138: ='Mot marken'!G142 -> 6 | H138: ='Mot marken'!H142 -> 7 | I138: ='Mot marken'!I142 -> 8 | J138: ='Mot marken'!J142 -> 9 | K138: ='Mot marken'!K142 -> 10 | L138: ='Mot marken'!L142 -> 11 | M138: ='Mot marken'!M142 -> 12 | N138: ='Mot marken'!N142 -> 13 | O138: ='Mot marken'!O142 -> 14 | P138: ='Mot marken'!P142 -> 15 | Q138: ='Mot marken'!Q142 -> 16 | R138: ='Mot marken'!R142 -> 17 | S138: ='Mot marken'!S142 -> 18 | T138: ='Mot marken'!T142 -> 19 | U138: ='Mot marken'!U142 -> 20 | V138: ='Mot marken'!V142 -> 21 | W138: ='Mot marken'!W142 -> 22 | X138: ='Mot marken'!X142 -> 23 | Y138: ='Mot marken'!Y142 -> 24
A139: solhöjd | B139: =IF('Mot marken'!B143<0,0,'Mot marken'!B143) -> 0 | C139: =IF('Mot marken'!C143<0,0,'Mot marken'!C143) -> 0 | D139: =IF('Mot marken'!D143<0,0,'Mot marken'!D143) -> 0 | E139: =IF('Mot marken'!E143<0,0,'Mot marken'!E143) -> 0 | F139: =IF('Mot marken'!F143<0,0,'Mot marken'!F143) -> 0 | G139: =IF('Mot marken'!G143<0,0,'Mot marken'!G143) -> 0 | H139: =IF('Mot marken'!H143<0,0,'Mot marken'!H143) -> 0 | I139: =IF('Mot marken'!I143<0,0,'Mot marken'!I143) -> 0 | J139: =IF('Mot marken'!J143<0,0,'Mot marken'!J143) -> 2.641278984 | K139: =IF('Mot marken'!K143<0,0,'Mot marken'!K143) -> 7.022163423 | L139: =IF('Mot marken'!L143<0,0,'Mot marken'!L143) -> 9.79573277 | M139: =IF('Mot marken'!M143<0,0,'Mot marken'!M143) -> 10.746735 | N139: =IF('Mot marken'!N143<0,0,'Mot marken'!N143) -> 9.79573277 | O139: =IF('Mot marken'!O143<0,0,'Mot marken'!O143) -> 7.022163423 | P139: =IF('Mot marken'!P143<0,0,'Mot marken'!P143) -> 2.641278984 | Q139: =IF('Mot marken'!Q143<0,0,'Mot marken'!Q143) -> 0 | R139: =IF('Mot marken'!R143<0,0,'Mot marken'!R143) -> 0 | S139: =IF('Mot marken'!S143<0,0,'Mot marken'!S143) -> 0 | T139: =IF('Mot marken'!T143<0,0,'Mot marken'!T143) -> 0 | U139: =IF('Mot marken'!U143<0,0,'Mot marken'!U143) -> 0 | V139: =IF('Mot marken'!V143<0,0,'Mot marken'!V143) -> 0 | W139: =IF('Mot marken'!W143<0,0,'Mot marken'!W143) -> 0 | X139: =IF('Mot marken'!X143<0,0,'Mot marken'!X143) -> 0 | Y139: =IF('Mot marken'!Y143<0,0,'Mot marken'!Y143) -> 0
A140: azimut | B140: ='Mot marken'!B144 -> -158.1814628 | C140: ='Mot marken'!C144 -> -138.2671397 | D140: ='Mot marken'!D144 -> -120.9371849 | E140: ='Mot marken'!E144 -> -105.8354151 | F140: ='Mot marken'!F144 -> -92.26143335 | G140: ='Mot marken'!G144 -> -79.54512602 | H140: ='Mot marken'!H144 -> -67.14177317 | I140: ='Mot marken'!I144 -> -54.63361791 | J140: ='Mot marken'!J144 -> -41.72769787 | K140: ='Mot marken'!K144 -> -28.27456505 | L140: ='Mot marken'!L144 -> -14.29799392 | M140: ='Mot marken'!M144 -> 0 | N140: ='Mot marken'!N144 -> 14.29799392 | O140: ='Mot marken'!O144 -> 28.27456505 | P140: ='Mot marken'!P144 -> 41.72769787 | Q140: ='Mot marken'!Q144 -> 54.63361791 | R140: ='Mot marken'!R144 -> 67.14177317 | S140: ='Mot marken'!S144 -> 79.54512602 | T140: ='Mot marken'!T144 -> 92.26143335 | U140: ='Mot marken'!U144 -> 105.8354151 | V140: ='Mot marken'!V144 -> 120.9371849 | W140: ='Mot marken'!W144 -> 138.2671397 | X140: ='Mot marken'!X144 -> 158.1814628 | Y140: ='Mot marken'!Y144 -> 180 | Z140: Summa
A141: Uppmätt IDN förd | B141: ='Mot marken'!B147 -> 0 | C141: ='Mot marken'!C147 -> 0 | D141: ='Mot marken'!D147 -> 0 | E141: ='Mot marken'!E147 -> 0 | F141: ='Mot marken'!F147 -> 0 | G141: ='Mot marken'!G147 -> 0 | H141: ='Mot marken'!H147 -> 0 | I141: ='Mot marken'!I147 -> 0 | J141: ='Mot marken'!J147 -> 0.6772642374 | K141: ='Mot marken'!K147 -> 3.874573518 | L141: ='Mot marken'!L147 -> 5.214303769 | M141: ='Mot marken'!M147 -> 5.572336951 | N141: ='Mot marken'!N147 -> 5.214303769 | O141: ='Mot marken'!O147 -> 3.874573518 | P141: ='Mot marken'!P147 -> 0.6772642374 | Q141: ='Mot marken'!Q147 -> 0 | R141: ='Mot marken'!R147 -> 0 | S141: ='Mot marken'!S147 -> 0 | T141: ='Mot marken'!T147 -> 0 | U141: ='Mot marken'!U147 -> 0 | V141: ='Mot marken'!V147 -> 0 | W141: ='Mot marken'!W147 -> 0 | X141: ='Mot marken'!X147 -> 0 | Y141: ='Mot marken'!Y147 -> 0 | Z141: =SUM(B141:Y141) -> 25.10462
A142: Global IDH + IdH förd | B142: ='Mot marken'!B151 -> 0 | C142: ='Mot marken'!C151 -> 0 | D142: ='Mot marken'!D151 -> 0 | E142: ='Mot marken'!E151 -> 0 | F142: ='Mot marken'!F151 -> 0 | G142: ='Mot marken'!G151 -> 0 | H142: ='Mot marken'!H151 -> 0 | I142: ='Mot marken'!I151 -> 0 | J142: ='Mot marken'!J151 -> 0.6462389357 | K142: ='Mot marken'!K151 -> 1.714414431 | L142: ='Mot marken'!L151 -> 2.385897619 | M142: ='Mot marken'!M151 -> 2.614928029 | N142: ='Mot marken'!N151 -> 2.385897619 | O142: ='Mot marken'!O151 -> 1.714414431 | P142: ='Mot marken'!P151 -> 0.6462389357 | Q142: ='Mot marken'!Q151 -> 0 | R142: ='Mot marken'!R151 -> 0 | S142: ='Mot marken'!S151 -> 0 | T142: ='Mot marken'!T151 -> 0 | U142: ='Mot marken'!U151 -> 0 | V142: ='Mot marken'!V151 -> 0 | W142: ='Mot marken'!W151 -> 0 | X142: ='Mot marken'!X151 -> 0 | Y142: ='Mot marken'!Y151 -> 0 | Z142: 12.10803
A143: Diffusstrål IdH | B143: ='Mot marken'!B152 -> 0 | C143: ='Mot marken'!C152 -> 0 | D143: ='Mot marken'!D152 -> 0 | E143: ='Mot marken'!E152 -> 0 | F143: ='Mot marken'!F152 -> 0 | G143: ='Mot marken'!G152 -> 0 | H143: ='Mot marken'!H152 -> 0 | I143: ='Mot marken'!I152 -> 0 | J143: ='Mot marken'!J152 -> 0.6150287786 | K143: ='Mot marken'!K152 -> 1.240735127 | L143: ='Mot marken'!L152 -> 1.498756268 | M143: ='Mot marken'!M152 -> 1.57586522 | N143: ='Mot marken'!N152 -> 1.498756268 | O143: ='Mot marken'!O152 -> 1.240735127 | P143: ='Mot marken'!P152 -> 0.6150287786 | Q143: ='Mot marken'!Q152 -> 0 | R143: ='Mot marken'!R152 -> 0 | S143: ='Mot marken'!S152 -> 0 | T143: ='Mot marken'!T152 -> 0 | U143: ='Mot marken'!U152 -> 0 | V143: ='Mot marken'!V152 -> 0 | W143: ='Mot marken'!W152 -> 0 | X143: ='Mot marken'!X152 -> 0 | Y143: ='Mot marken'!Y152 -> 0 | Z143: 8.284905567
A144: Direkt mot ytan | B144: =IF(B139<$L$10,0,IF(AND(B140>$L8,B140<$M8,B139<$L9),0,IF(SIN(B139*PI()/180)*(COS($C$7*PI()/180))+COS(B139*PI()/180)*SIN($C$7*PI()/180)*(COS((B140-($C$8-180))*PI()/180))<0,0,B141*(SIN(B139*PI()/180)*(COS($C$7*PI()/180))+COS(B139*PI()/180)*SIN($C$7*PI()/180)*(COS((B140-($C$8-180))*PI()/180)))))) -> 0 | C144: 0 | D144: 0 | E144: 0 | F144: 0 | G144: 0 | H144: 0 | I144: 0 | J144: 0 | K144: 2.729695814 | L144: =IF(L139<$L$10,0,IF(AND(L140>$L8,L140<$M8,L139<$L9),0,IF(SIN(L139*PI()/180)*(COS($C$7*PI()/180))+COS(L139*PI()/180)*SIN($C$7*PI()/180)*(COS((L140-($C$8-180))*PI()/180))<0,0,L141*(SIN(L139*PI()/180)*(COS($C$7*PI()/180))+COS(L139*PI()/180)*SIN($C$7*PI()/180)*(COS((L140-($C$8-180))*PI()/180)))))) -> 4.148073692 | M144: =IF(M139<$L$10,0,IF(AND(M140>$L8,M140<$M8,M139<$L9),0,IF(SIN(M139*PI()/180)*(COS($C$7*PI()/180))+COS(M139*PI()/180)*SIN($C$7*PI()/180)*(COS((M140-($C$8-180))*PI()/180))<0,0,M141*(SIN(M139*PI()/180)*(COS($C$7*PI()/180))+COS(M139*PI()/180)*SIN($C$7*PI()/180)*(COS((M140-($C$8-180))*PI()/180)))))) -> 4.605857882 | N144: 4.148073692 | O144: 2.729695814 | P144: 0 | Q144: 0 | R144: 0 | S144: 0 | T144: 0 | U144: 0 | V144: 0 | W144: 0 | X144: 0 | Y144: 0 | Z144: =SUM(B144:Y144) -> 18.36139689 | AB144: Nov
A145: Diffus mot ytan | B145: =(B143)*(2+(COS($C$7*PI()/180)))/3 -> 0 | C145: =(C143)*(2+(COS($C$7*PI()/180)))/3 -> 0 | D145: 0 | E145: 0 | F145: 0 | G145: 0 | H145: 0 | I145: 0 | J145: 0.554982859 | K145: 1.119600825 | L145: 1.352431086 | M145: 1.422011808 | N145: 1.352431086 | O145: 1.119600825 | P145: 0.554982859 | Q145: 0 | R145: 0 | S145: 0 | T145: 0 | U145: 0 | V145: 0 | W145: 0 | X145: 0 | Y145: 0 | Z145: =SUM(B145:Y145) -> 7.476041347
A146: Markrefl. mot ytan | B146: =$F$8*B142*(1-COS($C$7*PI()/180))/2 -> 0 | C146: =$F$8*C142*(1-COS($C$7*PI()/180))/2 -> 0 | D146: 0 | E146: 0 | F146: 0 | G146: 0 | H146: 0 | I146: 0 | J146: 0.0473197505 | K146: 0.1255350903 | L146: 0.1747033083 | M146: 0.1914736719 | N146: 0.1747033083 | O146: 0.1255350903 | P146: 0.0473197505 | Q146: 0 | R146: 0 | S146: 0 | T146: 0 | U146: 0 | V146: 0 | W146: 0 | X146: 0 | Y146: 0 | Z146: 0.88658997
A147: Summa mot ytan | B147: =SUM(B144:B146) -> 0 | C147: =SUM(C144:C146) -> 0 | D147: 0 | E147: 0 | F147: 0 | G147: 0 | H147: 0 | I147: 0 | J147: 0.6023026095 | K147: 3.974831729 | L147: 5.675208086 | M147: 6.219343361 | N147: 5.675208086 | O147: 3.974831729 | P147: 0.6023026095 | Q147: 0 | R147: 0 | S147: 0 | T147: 0 | U147: 0 | V147: 0 | W147: 0 | X147: 0 | Y147: 0 | Z147: =SUM(B147:Y147) -> 26.72402821 | AA147: 0.02232890176
A149: December | B149: deklination | D149: -23.45
A150: Kl | B150: ='Mot marken'!B155 -> 1 | C150: ='Mot marken'!C155 -> 2 | D150: ='Mot marken'!D155 -> 3 | E150: ='Mot marken'!E155 -> 4 | F150: ='Mot marken'!F155 -> 5 | G150: ='Mot marken'!G155 -> 6 | H150: ='Mot marken'!H155 -> 7 | I150: ='Mot marken'!I155 -> 8 | J150: ='Mot marken'!J155 -> 9 | K150: ='Mot marken'!K155 -> 10 | L150: ='Mot marken'!L155 -> 11 | M150: ='Mot marken'!M155 -> 12 | N150: ='Mot marken'!N155 -> 13 | O150: ='Mot marken'!O155 -> 14 | P150: ='Mot marken'!P155 -> 15 | Q150: ='Mot marken'!Q155 -> 16 | R150: ='Mot marken'!R155 -> 17 | S150: ='Mot marken'!S155 -> 18 | T150: ='Mot marken'!T155 -> 19 | U150: ='Mot marken'!U155 -> 20 | V150: ='Mot marken'!V155 -> 21 | W150: ='Mot marken'!W155 -> 22 | X150: ='Mot marken'!X155 -> 23 | Y150: ='Mot marken'!Y155 -> 24
A151: solhöjd | B151: =IF('Mot marken'!B156<0,0,'Mot marken'!B156) -> 0 | C151: =IF('Mot marken'!C156<0,0,'Mot marken'!C156) -> 0 | D151: =IF('Mot marken'!D156<0,0,'Mot marken'!D156) -> 0 | E151: =IF('Mot marken'!E156<0,0,'Mot marken'!E156) -> 0 | F151: =IF('Mot marken'!F156<0,0,'Mot marken'!F156) -> 0 | G151: =IF('Mot marken'!G156<0,0,'Mot marken'!G156) -> 0 | H151: =IF('Mot marken'!H156<0,0,'Mot marken'!H156) -> 0 | I151: =IF('Mot marken'!I156<0,0,'Mot marken'!I156) -> 0 | J151: =IF('Mot marken'!J156<0,0,'Mot marken'!J156) -> 0 | K151: =IF('Mot marken'!K156<0,0,'Mot marken'!K156) -> 3.590468323 | L151: =IF('Mot marken'!L156<0,0,'Mot marken'!L156) -> 6.277395794 | M151: =IF('Mot marken'!M156<0,0,'Mot marken'!M156) -> 7.196735 | N151: =IF('Mot marken'!N156<0,0,'Mot marken'!N156) -> 6.277395794 | O151: =IF('Mot marken'!O156<0,0,'Mot marken'!O156) -> 3.590468323 | P151: =IF('Mot marken'!P156<0,0,'Mot marken'!P156) -> 0 | Q151: =IF('Mot marken'!Q156<0,0,'Mot marken'!Q156) -> 0 | R151: =IF('Mot marken'!R156<0,0,'Mot marken'!R156) -> 0 | S151: =IF('Mot marken'!S156<0,0,'Mot marken'!S156) -> 0 | T151: =IF('Mot marken'!T156<0,0,'Mot marken'!T156) -> 0 | U151: =IF('Mot marken'!U156<0,0,'Mot marken'!U156) -> 0 | V151: =IF('Mot marken'!V156<0,0,'Mot marken'!V156) -> 0 | W151: =IF('Mot marken'!W156<0,0,'Mot marken'!W156) -> 0 | X151: =IF('Mot marken'!X156<0,0,'Mot marken'!X156) -> 0 | Y151: =IF('Mot marken'!Y156<0,0,'Mot marken'!Y156) -> 0
A152: azimut | B152: ='Mot marken'!B157 -> -157.0053448 | C152: ='Mot marken'!C157 -> -136.3399289 | D152: ='Mot marken'!D157 -> -118.7061772 | E152: ='Mot marken'!E157 -> -103.5709766 | F152: ='Mot marken'!F157 -> -90.09223275 | G152: ='Mot marken'!G157 -> -77.53171624 | H152: ='Mot marken'!H157 -> -65.32416014 | I152: ='Mot marken'!I157 -> -53.0557297 | J152: ='Mot marken'!J157 -> -40.44738985 | K152: ='Mot marken'!K157 -> -27.3616852 | L152: ='Mot marken'!L157 -> -13.82014189 | M152: ='Mot marken'!M157 -> 0 | N152: ='Mot marken'!N157 -> 13.82014189 | O152: ='Mot marken'!O157 -> 27.3616852 | P152: ='Mot marken'!P157 -> 40.44738985 | Q152: ='Mot marken'!Q157 -> 53.0557297 | R152: ='Mot marken'!R157 -> 65.32416014 | S152: ='Mot marken'!S157 -> 77.53171624 | T152: ='Mot marken'!T157 -> 90.09223275 | U152: ='Mot marken'!U157 -> 103.5709766 | V152: ='Mot marken'!V157 -> 118.7061772 | W152: ='Mot marken'!W157 -> 136.3399289 | X152: ='Mot marken'!X157 -> 157.0053448 | Y152: ='Mot marken'!Y157 -> 180 | Z152: Summa
A153: Uppmätt IDN förd | B153: ='Mot marken'!B160 -> 0 | C153: ='Mot marken'!C160 -> 0 | D153: ='Mot marken'!D160 -> 0 | E153: ='Mot marken'!E160 -> 0 | F153: ='Mot marken'!F160 -> 0 | G153: ='Mot marken'!G160 -> 0 | H153: ='Mot marken'!H160 -> 0 | I153: ='Mot marken'!I160 -> 0 | J153: ='Mot marken'!J160 -> 0 | K153: ='Mot marken'!K160 -> 1.783265655 | L153: ='Mot marken'!L160 -> 4.299766348 | M153: ='Mot marken'!M160 -> 4.995925994 | N153: ='Mot marken'!N160 -> 4.299766348 | O153: ='Mot marken'!O160 -> 1.783265655 | P153: ='Mot marken'!P160 -> 0 | Q153: ='Mot marken'!Q160 -> 0 | R153: ='Mot marken'!R160 -> 0 | S153: ='Mot marken'!S160 -> 0 | T153: ='Mot marken'!T160 -> 0 | U153: ='Mot marken'!U160 -> 0 | V153: ='Mot marken'!V160 -> 0 | W153: ='Mot marken'!W160 -> 0 | X153: ='Mot marken'!X160 -> 0 | Y153: ='Mot marken'!Y160 -> 0 | Z153: =SUM(B153:Y153) -> 17.16199
A154: Global IDH + IdH förd | B154: ='Mot marken'!B164 -> 0 | C154: ='Mot marken'!C164 -> 0 | D154: ='Mot marken'!D164 -> 0 | E154: ='Mot marken'!E164 -> 0 | F154: ='Mot marken'!F164 -> 0 | G154: ='Mot marken'!G164 -> 0 | H154: ='Mot marken'!H164 -> 0 | I154: ='Mot marken'!I164 -> 0 | J154: ='Mot marken'!J164 -> 0 | K154: ='Mot marken'!K164 -> 0.8267190349 | L154: ='Mot marken'!L164 -> 1.443448947 | M154: ='Mot marken'!M164 -> 1.653804035 | N154: ='Mot marken'!N164 -> 1.443448947 | O154: ='Mot marken'!O164 -> 0.8267190349 | P154: ='Mot marken'!P164 -> 0 | Q154: ='Mot marken'!Q164 -> 0 | R154: ='Mot marken'!R164 -> 0 | S154: ='Mot marken'!S164 -> 0 | T154: ='Mot marken'!T164 -> 0 | U154: ='Mot marken'!U164 -> 0 | V154: ='Mot marken'!V164 -> 0 | W154: ='Mot marken'!W164 -> 0 | X154: ='Mot marken'!X164 -> 0 | Y154: ='Mot marken'!Y164 -> 0 | Z154: 6.19414
A155: Diffusstrål IdH | B155: ='Mot marken'!B165 -> 0 | C155: ='Mot marken'!C165 -> 0 | D155: ='Mot marken'!D165 -> 0 | E155: ='Mot marken'!E165 -> 0 | F155: ='Mot marken'!F165 -> 0 | G155: ='Mot marken'!G165 -> 0 | H155: ='Mot marken'!H165 -> 0 | I155: ='Mot marken'!I165 -> 0 | J155: ='Mot marken'!J165 -> 0 | K155: ='Mot marken'!K165 -> 0.7150429367 | L155: ='Mot marken'!L165 -> 0.9733031762 | M155: ='Mot marken'!M165 -> 1.027930925 | N155: ='Mot marken'!N165 -> 0.9733031762 | O155: ='Mot marken'!O165 -> 0.7150429367 | P155: ='Mot marken'!P165 -> 0 | Q155: ='Mot marken'!Q165 -> 0 | R155: ='Mot marken'!R165 -> 0 | S155: ='Mot marken'!S165 -> 0 | T155: ='Mot marken'!T165 -> 0 | U155: ='Mot marken'!U165 -> 0 | V155: ='Mot marken'!V165 -> 0 | W155: ='Mot marken'!W165 -> 0 | X155: ='Mot marken'!X165 -> 0 | Y155: ='Mot marken'!Y165 -> 0 | Z155: 4.404623151
A156: Direkt mot ytan | B156: =IF(AND(B151>$L8,B152<$M8,B151<$L9),0,IF(SIN(B151*PI()/180)*(COS($C$7*PI()/180))+COS(B151*PI()/180)*SIN($C$7*PI()/180)*(COS((B152-($C$8-180))*PI()/180))<0,0,B153*(SIN(B151*PI()/180)*(COS($C$7*PI()/180))+COS(B151*PI()/180)*SIN($C$7*PI()/180)*(COS((B152-($C$8-180))*PI()/180))))) -> 0 | C156: 0 | D156: 0 | E156: 0 | F156: 0 | G156: 0 | H156: 0 | I156: 0 | J156: 0 | K156: 1.196655582 | L156: =IF(AND(L151>$L8,L152<$M8,L151<$L9),0,IF(SIN(L151*PI()/180)*(COS($C$7*PI()/180))+COS(L151*PI()/180)*SIN($C$7*PI()/180)*(COS((L152-($C$8-180))*PI()/180))<0,0,L153*(SIN(L151*PI()/180)*(COS($C$7*PI()/180))+COS(L151*PI()/180)*SIN($C$7*PI()/180)*(COS((L152-($C$8-180))*PI()/180))))) -> 3.26711697 | M156: =IF(AND(M151>$L8,M152<$M8,M151<$L9),0,IF(SIN(M151*PI()/180)*(COS($C$7*PI()/180))+COS(M151*PI()/180)*SIN($C$7*PI()/180)*(COS((M152-($C$8-180))*PI()/180))<0,0,M153*(SIN(M151*PI()/180)*(COS($C$7*PI()/180))+COS(M151*PI()/180)*SIN($C$7*PI()/180)*(COS((M152-($C$8-180))*PI()/180))))) -> 3.947381469 | N156: 3.26711697 | O156: 1.196655582 | P156: 0 | Q156: 0 | R156: 0 | S156: 0 | T156: 0 | U156: 0 | V156: 0 | W156: 0 | X156: 0 | Y156: 0 | Z156: =SUM(B156:Y156) -> 12.87492657 | AB156: Dec
A157: Diffus mot ytan | B157: =(B155)*(2+(COS($C$7*PI()/180)))/3 -> 0 | C157: =(C155)*(2+(COS($C$7*PI()/180)))/3 -> 0 | D157: 0 | E157: 0 | F157: 0 | G157: 0 | H157: 0 | I157: 0 | J157: 0 | K157: 0.6452325276 | L157: 0.8782785428 | M157: 0.9275729258 | N157: 0.8782785428 | O157: 0.6452325276 | P157: 0 | Q157: 0 | R157: 0 | S157: 0 | T157: 0 | U157: 0 | V157: 0 | W157: 0 | X157: 0 | Y157: 0 | Z157: =SUM(B157:Y157) -> 3.974595067
A158: Markrefl. mot ytan | B158: =$F$8*B154*(1-COS($C$7*PI()/180))/2 -> 0 | C158: =$F$8*C154*(1-COS($C$7*PI()/180))/2 -> 0 | D158: 0 | E158: 0 | F158: 0 | G158: 0 | H158: 0 | I158: 0 | J158: 0 | K158: 0.0605350998 | L158: 0.1056941021 | M158: 0.1210969968 | N158: 0.1056941021 | O158: 0.0605350998 | P158: 0 | Q158: 0 | R158: 0 | S158: 0 | T158: 0 | U158: 0 | V158: 0 | W158: 0 | X158: 0 | Y158: 0 | Z158: =SUM(B158:Y158) -> 0.4535554006
A159: Summa mot ytan | B159: =SUM(B156:B158) -> 0 | C159: =SUM(C156:C158) -> 0 | D159: 0 | E159: 0 | F159: 0 | G159: 0 | H159: 0 | I159: 0 | J159: 0 | K159: 1.902423209 | L159: 4.251089615 | M159: 4.996051391 | N159: 4.251089615 | O159: 1.902423209 | P159: 0 | Q159: 0 | R159: 0 | S159: 0 | T159: 0 | U159: 0 | V159: 0 | W159: 0 | X159: 0 | Y159: 0 | Z159: 17.30307704 | AA159: =Z159/Z$162 -> 0.01445735292
Z160: Summa | AA160: =SUM(AA26:AA159) -> 1
A162: OM($L$9>B14;0;OM(ABS(B15-$C$8)>90;OM(B14>$C$7;B16;0);B16)*(SIN(B14*PI()/180)*COS($C$7*PI()/180)+COS(B14*PI()/180)*SIN($C$7*PI()/180)*COS(ABS(B15-$C$8)*PI()/180))) | Q162: tidigare | Y162: Summa året | Z162: =Z27+Z39+Z51+Z63+Z75+Z87+Z99+Z111+Z123+Z135+Z147+Z159 -> 1196.835765 | AA162: kWh/m2
A163: OM($L$9>B16;0;OM(ABS((B17-180)-($C$8-180))>90;0;B18))*(SIN(B16*PI()/180))*(SIN(B16*PI()/180)*ABS(COS($C$7*PI()/180))+COS(B16*PI()/180)*SIN($C$7*PI()/180)*ABS(COS((B17-$C$8)*PI()/180))) | X163: Diffusstr. fr himlen | Z163: =Z25+Z37+Z49+Z61+Z73+Z85+Z97+Z109+Z121+Z133+Z145+Z157 -> 412.7590535 | AA163: kWh/m3
A165: (B18)*(1+COS($C$7*PI()/180))/2
A166: (B20)*(1+(COS($C$7*PI()/180)))/2
G167: om(sin(b16*PI()/180)/(COS($C$8*PI()/180)>sin($c$7-90);b18;om(abs(b17-$c$8))<90;b18;0))
A168: Summa IDH | B168: =Z24+Z36+Z48+Z60+Z72+Z84+Z96+Z108+Z120+Z132+Z144+Z156 -> 744.5744804 | G168: =IF(SIN(B19*PI()/180)/(COS($C$8*PI()/180))>SIN($C$7-90),B21,IF(ABS(B20-$C$8)<90,B21,0)) -> 0
A169: Summa IdH | B169: =Z25+Z37+Z49+Z61+Z73+Z85+Z97+Z109+Z121+Z133+Z145+Z157 -> 412.7590535 | G169: =SIN(B19*PI()/180)/(COS($C$8*PI()/180)) -> 0
A170: Summa | B170: =SUM(B168:B169) -> 1157.333534 | G170: =IF(ABS(B20-$C$8)<90,B21,0) -> 0

Sheet Diffus stråln
A1: Diffus himmelsstrålning mot lutan yta - jämförelse mellan isotrop och anisotrop fördelning enligt Koronakis
A3: Isotrop | B3: Id (α,β) = Id*(1+(COS(α*PI()/180)))/2
A4: Anisotrop | B4: Id (α,β) = Id*(2+(COS(α*PI()/180)))/3 (Koronakis)
A5: Id = diffusstrålning mot horisontalplanet
B6: Ytans lutning,α | C6: Isotrop | D6: Anisotrop
B7: 0 | C7: =(1+(COS(B7*PI()/180)))/2 -> 1 | D7: =(2+(COS(B7*PI()/180)))/3 -> 1
B8: 5 | C8: =(1+(COS(B8*PI()/180)))/2 -> 0.998097349 | D8: =(2+(COS(B8*PI()/180)))/3 -> 0.998731566
B9: 10 | C9: 0.9924038765 | D9: 0.9949359177
B10: 15 | C10: 0.9829629131 | D10: 0.9886419421
B11: 20 | C11: 0.9698463104 | D11: 0.9798975403
B12: 25 | C12: 0.9531538935 | D12: 0.9687692623
B13: 30 | C13: 0.9330127019 | D13: 0.9553418013
B14: 35 | C14: 0.9095760221 | D14: 0.9397173481
B15: 40 | C15: 0.8830222216 | D15: 0.9220148144
B16: 45 | C16: 0.8535533906 | D16: 0.9023689271
B17: 50 | C17: 0.8213938048 | D17: 0.8809292032
B18: 55 | C18: 0.7867882182 | D18: 0.8578588121
B19: 60 | C19: 0.75 | D19: 0.8333333333
B20: 65 | C20: 0.7113091309 | D20: 0.8075394206
B21: 70 | C21: 0.6710100717 | D21: 0.7806733811
B22: 75 | C22: 0.6294095226 | D22: 0.7529396817
B23: 80 | C23: 0.5868240888 | D23: 0.7245493926
B24: 85 | C24: 0.5435778714 | D24: 0.6957185809
B25: 90 | C25: 0.5 | D25: 0.6666666667

Sheet Sparade orter
A1: Inmatning för sparade värden
A2: Plats
D3: SMHI nr | F3: Latitud | H3: Longitud
A4: Markrefl s/v | B4: 0.2 | C4: 0.8 | D4: jan | E4: feb | F4: mar | G4: apr | H4: maj | I4: jun | J4: jul | K4: aug | L4: sep | M4: okt | N4: nov | O4: dec | P4: Medel
A5: Utetemperatur | P5: =AVERAGE(D5:O5) -> 
A6: Orientering | B6: Hor avsk | C6: Lutning | P6: Orient | Q6: Summa
A7: =IF(P7=0,"Norr","") -> Norr | B7: 0 | C7: 90 | P7: 0 | Q7: =SUM(D7:O7) -> 0
A8: =IF(P8=90,"Öster","") -> Öster | B8: 0 | C8: 90 | P8: 90 | Q8: =SUM(D8:O8) -> 0
A9: =IF(P9=180,"Söder","") -> Söder | B9: 0 | C9: 90 | P9: 180 | Q9: 0
A10: =IF(P10=270,"Väster","") -> Väster | B10: 0 | C10: 90 | P10: 270 | Q10: 0
A11: Horisontell yta | C11: 0 | Q11: 0
A12: Modell | B12: 0 | C12: 90 | P12: 90 | Q12: =SUM(D12:O12) -> 0
A14: Plats
A15: Malmö Jägerso | D15: SMHI nr | E15: 5235 | F15: Latitud | G15: 55.575361 | H15: Longitud | I15: 13.064718
A16: Markrefl s/v | B16: 0.2 | C16: 0.3 | D16: jan | E16: feb | F16: mar | G16: apr | H16: maj | I16: jun | J16: jul | K16: aug | L16: sep | M16: okt | N16: nov | O16: dec | P16: Medel
A17: Utetemperatur | D17: -0.7 | E17: -0.6 | F17: 2 | G17: 6 | H17: 11.3 | I17: 15.3 | J17: 16.5 | K17: 16.4 | L17: 13 | M17: 9.1 | N17: 4.5 | O17: 1.3 | P17: 7.8
A18: Orientering | B18: Hor avsk | C18: Lutning | P18: Orient | Q18: Summa
A19: =IF(P19=0,"Norr","") -> Norr | B19: 5 | C19: 90 | D19: 8.885999268 | E19: 15.43664247 | F19: 36.04603079 | G19: 56.91164562 | H19: 70.57419692 | I19: 75.36581893 | J19: 71.87307838 | K19: 58.03608793 | L19: 40.04544892 | M19: 24.62898539 | N19: 11.42488413 | O19: 6.610042614 | P19: 0 | Q19: =SUM(D19:O19) -> 475.8388614
A20: =IF(P20=90,"Öster","") -> Öster | B20: 5 | C20: 90 | D20: 11.76769327 | E20: 20.88455505 | F20: 56.55931395 | G20: 90.57873953 | H20: 106.2345988 | I20: 108.6413068 | J20: 108.3575864 | K20: 82.73197739 | L20: 63.00574964 | M20: 36.75987719 | N20: 15.15908302 | O20: 8.262523916 | P20: 90 | Q20: =SUM(D20:O20) -> 708.9430049
A21: =IF(P21=180,"Söder","") -> Söder | B21: 5 | C21: 90 | D21: 24.27281158 | E21: 34.19770218 | F21: 81.65926378 | G21: 104.7227051 | H21: 102.9170569 | I21: 100.7761026 | J21: 104.9632508 | K21: 93.10702818 | L21: 91.09985782 | M21: 66.40432263 | N21: 31.36364839 | O21: 18.89857988 | P21: 180 | Q21: 854.3823298
A22: =IF(P22=270,"Väster","") -> Väster | B22: 5 | C22: 90 | D22: 11.76769327 | E22: 20.88455505 | F22: 56.55931395 | G22: 90.57873953 | H22: 106.2345988 | I22: 108.6413068 | J22: 108.3594848 | K22: 82.73197739 | L22: 63.00574964 | M22: 36.75987719 | N22: 15.15908302 | O22: 8.262523916 | P22: 270 | Q22: 708.9449033
A23: Horisontell yta | B23: 5 | C23: 0 | D23: 13.67336 | E23: 24.88731 | F23: 69.65706 | G23: 116.5354216 | H23: 151.4166617 | I23: 158.6893459 | J23: 154.4832551 | K23: 112.3046738 | L23: 82.65923 | M23: 46.32144 | N23: 17.60833 | O23: 9.805219118 | Q23: =SUM(D23:O23) -> 958.0413071
A25: Plats
A26: Kalmar | D26: SMHI nr | E26: 6642 | F26: Latitud | G26: 56.678284 | H26: Longitud | I26: 16.289122 | N26: KALMAR FLYGPLATS | P26: 6283560 | Q26: 1529660
A27: Markrefl s/v | B27: 0.2 | C27: 0.4 | D27: jan | E27: feb | F27: mar | G27: apr | H27: maj | I27: jun | J27: jul | K27: aug | L27: sep | M27: okt | N27: nov | O27: dec | P27: Medel
A28: Utetemperatur | D28: -1.9 | E28: -1.9 | F28: 0.7 | G28: 4.3 | H28: 9.8 | I28: 14.7 | J28: 16.4 | K28: 15.7 | L28: 12 | M28: 8 | N28: 3.3 | O28: -0.1 | P28: =AVERAGE(D28:O28) -> 6.75
A29: Orientering | B29: Hor avsk | C29: Lutning | P29: Orient | Q29: Summa
A30: =IF(P30=0,"Norr","") -> Norr | B30: 5 | C30: 90 | D30: 9.161413243 | E30: 16.93083675 | F30: 41.26512797 | G30: 64.29146469 | H30: 73.76641228 | I30: 79.97566766 | J30: 76.8208826 | K30: 61.20397839 | L30: 41.48536503 | M30: 24.45860154 | N30: 12.14600611 | O30: 6.274742894 | P30: 0 | Q30: =SUM(D30:O30) -> 507.7804992
A31: =IF(P31=90,"Öster","") -> Öster | B31: 5 | C31: 90 | D31: 11.11525092 | E31: 23.00812795 | F31: 64.82959507 | G31: 101.9433884 | H31: 115.9416562 | I31: 120.240236 | J31: 118.3594623 | K31: 92.03040446 | L31: 67.84786777 | M31: 37.10002806 | N31: 14.89005137 | O31: 7.788819754 | P31: 90 | Q31: =SUM(D31:O31) -> 775.0948882
A32: =IF(P32=180,"Söder","") -> Söder | B32: 5 | C32: 90 | D32: 22.59118947 | E32: 38.32341386 | F32: 94.56021275 | G32: 118.852892 | H32: 113.3267756 | I32: 111.8486569 | J32: 115.7802981 | K32: 105.8745727 | L32: 101.1086874 | M32: 68.95748804 | N32: 31.00730366 | O32: 17.88478285 | P32: 180 | Q32: 940.1162733
A33: =IF(P33=270,"Väster","") -> Väster | B33: 5 | C33: 90 | D33: 11.11525092 | E33: 23.00812795 | F33: 64.82959507 | G33: 101.9433884 | H33: 115.9416562 | I33: 120.240236 | J33: 118.4445617 | K33: 92.03040446 | L33: 67.84786777 | M33: 37.10002806 | N33: 14.89005137 | O33: 7.788819754 | P33: 270 | Q33: 775.1799877
A34: Horisontell yta | B34: 5 | C34: 0 | D34: 12.76679879 | E34: 25.62224 | F34: 74.56534 | G34: 122.6584255 | H34: 165.3541183 | I34: 176.5080877 | J34: 168.317567 | K34: 124.6963579 | L34: 88.19618 | M34: 46.21486 | N34: 17.09868185 | O34: 8.597832782 | Q34: 1030.59649
A36: Plats
A37: Göteborg Liseberg | D37: SMHI nr | E37: 7142 | F37: Latitud | G37: 57,699635° | H37: Longitud | I37: 11.997374 | L37: GÖTEBORG | M37: A/GÖTEBORG | N37: SOL | O37: 6403580 | P37: 1273020
A38: Markrefl s/v | B38: 0.2 | C38: 0.4 | D38: jan | E38: feb | F38: mar | G38: apr | H38: maj | I38: jun | J38: jul | K38: aug | L38: sep | M38: okt | N38: nov | O38: dec | P38: Medel
A39: Utetemperatur | D39: -1.1 | E39: -1.2 | F39: 1.6 | G39: 5.8 | H39: 11.6 | I39: 15.6 | J39: 17 | K39: 16.2 | L39: 12.7 | M39: 8.9 | N39: 4.2 | O39: 0.8 | P39: =AVERAGE(D39:O39) -> 7.675
A40: Orientering | B40: Hor avsk | C40: Lutning | P40: Orient | Q40: Summa
A41: =IF(P41=0,"Norr","") -> Norr | B41: 5 | C41: 90 | D41: 9.017200846 | E41: 17.16778098 | F41: 39.27962898 | G41: 60.98191273 | H41: 72.38890456 | I41: 80.95221922 | J41: 74.84331814 | K41: 58.40707091 | L41: 40.05360396 | M41: 22.65616843 | N41: 11.57615253 | O41: 6.394644907 | P41: 0 | Q41: =SUM(D41:O41) -> 493.7186062
A42: =IF(P42=90,"Öster","") -> Öster | B42: 5 | C42: 90 | D42: 11.8174038 | E42: 24.30550985 | F42: 65.29668707 | G42: 98.44583011 | H42: 110.6828769 | I42: 114.0857443 | J42: 111.7342504 | K42: 87.63516039 | L42: 65.88196143 | M42: 35.49574334 | N42: 14.68758142 | O42: 8.752863197 | P42: 90 | Q42: =SUM(D42:O42) -> 748.8216121
A43: =IF(P43=180,"Söder","") -> Söder | B43: 5 | C43: 90 | D43: 28.54119105 | E43: 42.85483443 | F43: 99.04012238 | G43: 116.2533246 | H43: 109.3955519 | I43: 105.4335078 | J43: 110.4867762 | K43: 101.5279692 | L43: 99.38065704 | M43: 68.86286144 | N43: 33.27011836 | O43: 25.21649394 | P43: 180 | Q43: 940.2634085
A44: =IF(P44=270,"Väster","") -> Väster | B44: 5 | C44: 90 | D44: 11.8174038 | E44: 24.30550985 | F44: 65.29668707 | G44: 98.44583011 | H44: 110.6828769 | I44: 114.0857443 | J44: 112.0401367 | K44: 87.63516039 | L44: 65.88196143 | M44: 35.49574334 | N44: 14.68758142 | O44: 8.752863197 | P44: 270 | Q44: 749.1274985
A45: Horisontell yta | B45: 5 | C45: 0 | D45: 13.34451429 | E45: 26.74223 | F45: 74.38384 | G45: 117.7625578 | H45: 156.2945052 | I45: 162.33977 | J45: 157.3103954 | K45: 117.985751 | L45: 84.85734 | M45: 43.65003 | N45: 16.62392014 | O45: 9.334129145 | Q45: 980.628983
A47: Plats
A48: Jönköping | D48: SMHI nr | E48: 7447 | F48: Latitud | G48: 57.766268 | H48: Longitud | I48: 14.180394 | N48: JÖNKÖPING | P48: 6405780 | Q48: 1403300
A49: Markrefl s/v | B49: 0.2 | C49: 0.5 | D49: jan | E49: feb | F49: mar | G49: apr | H49: maj | I49: jun | J49: jul | K49: aug | L49: sep | M49: okt | N49: nov | O49: dec | P49: Medel
A50: Utetemperatur | D50: -2.6 | E50: -2.7 | F50: 0.3 | G50: 4.7 | H50: 10 | I50: 14.5 | J50: 15.9 | K50: 15 | L50: 11.3 | M50: 7.5 | N50: 2.8 | O50: -0.7 | P50: =AVERAGE(D50:O50) -> 6.333333333
A51: Orientering | B51: Hor avsk | C51: Lutning | P51: Orient | Q51: Summa
A52: =IF(P52=0,"Norr","") -> Norr | B52: 5 | C52: 90 | D52: 8.663732688 | E52: 15.92453878 | F52: 42.17591183 | G52: 66.32133128 | H52: 71.64931762 | I52: 80.27754755 | J52: 72.7604055 | K52: 56.80124719 | L52: 37.65782591 | M52: 20.88893376 | N52: 10.28001445 | O52: 5.644935937 | P52: 0 | Q52: =SUM(D52:O52) -> 489.0457425
A53: =IF(P53=90,"Öster","") -> Öster | B53: 5 | C53: 90 | D53: 10.75622034 | E53: 22.55059688 | F53: 67.17112865 | G53: 105.0241793 | H53: 107.9751182 | I53: 111.6901707 | J53: 106.826099 | K53: 82.15558747 | L53: 59.24942428 | M53: 31.35015142 | N53: 12.62858469 | O53: 6.362957998 | P53: 90 | Q53: =SUM(D53:O53) -> 723.7402189
A54: =IF(P54=180,"Söder","") -> Söder | B54: 5 | C54: 90 | D54: 23.26818924 | E54: 39.80629299 | F54: 99.64689641 | G54: 123.4859634 | H54: 106.8207568 | I54: 103.5143797 | J54: 105.7367505 | K54: 94.24995205 | L54: 87.30294104 | M54: 58.59343695 | N54: 26.67179193 | O54: 14.77658539 | P54: 180 | Q54: 883.8739364
A55: =IF(P55=270,"Väster","") -> Väster | B55: 5 | C55: 90 | D55: 10.75622034 | E55: 22.55059688 | F55: 67.17112865 | G55: 105.0241793 | H55: 107.9751182 | I55: 111.6901707 | J55: 107.1273136 | K55: 82.15558747 | L55: 59.24942428 | M55: 31.35015142 | N55: 12.62858469 | O55: 6.362957998 | P55: 270 | Q55: 724.0414336
A56: Horisontell yta | B56: 5 | C56: 0 | D56: 11.5121247 | E56: 23.44531 | F56: 72.36549 | G56: 118.5921575 | H56: 152.0939505 | I56: 158.45182 | J56: 149.9749955 | K56: 110.3089286 | L56: 76.3398 | M56: 38.71057 | N56: 13.52754331 | O56: 7.044479619 | Q56: 932.3671697
A58: Plats
A59: Stockholm Bromma | D59: SMHI nr | E59: 9720 | F59: Latitud | G59: 59.353265 | H59: Longitud | I59: 17.947934 | N59: STOCKHOLM-BROMMA | P59: 6583350 | Q59: 1621880
A60: Markrefl s/v | B60: 0.2 | C60: 0.4 | D60: jan | E60: feb | F60: mar | G60: apr | H60: maj | I60: jun | J60: jul | K60: aug | L60: sep | M60: okt | N60: nov | O60: dec | P60: Medel
A61: Utetemperatur | D61: -3.5 | E61: -3.7 | F61: -0.5 | G61: 4.3 | H61: 10.4 | I61: 15.2 | J61: 16.8 | K61: 15.8 | L61: 11.4 | M61: 7 | N61: 2 | O61: -1.8 | P61: =AVERAGE(D61:O61) -> 6.116666667
A62: Orientering | B62: Hor avsk | C62: Lutning | P62: Orient | Q62: Summa
A63: =IF(P63=0,"Norr","") -> Norr | B63: 5 | C63: 90 | D63: 7.083706532 | E63: 14.78357604 | F63: 36.78206812 | G63: 59.90178907 | H63: 71.9890401 | I63: 80.90119292 | J63: 73.87181011 | K63: 56.34332429 | L63: 38.4787228 | M63: 20.71379306 | N63: 8.975278924 | O63: 4.76893196 | P63: 0 | Q63: =SUM(D63:O63) -> 474.5932339
A64: =IF(P64=90,"Öster","") -> Öster | B64: 5 | C64: 90 | D64: 9.556741784 | E64: 21.78807652 | F64: 63.00333661 | G64: 101.1512965 | H64: 111.1735563 | I64: 118.0536098 | J64: 114.654025 | K64: 90.08844767 | L64: 64.88913552 | M64: 33.11421456 | N64: 12.10176623 | O64: 5.775094228 | P64: 90 | Q64: =SUM(D64:O64) -> 745.3493006
A65: =IF(P65=180,"Söder","") -> Söder | B65: 5 | C65: 90 | D65: 24.85277375 | E65: 41.03489728 | F65: 98.51631316 | G65: 122.4557086 | H65: 111.6245711 | I65: 109.2434178 | J65: 115.1318718 | K65: 107.5170198 | L65: 100.658281 | M65: 67.18783488 | N65: 31.43948079 | O65: 17.83402092 | P65: 180 | Q65: 947.4961909
A66: =IF(P66=270,"Väster","") -> Väster | B66: 5 | C66: 90 | D66: 9.556741784 | E66: 21.78807652 | F66: 63.00333661 | G66: 101.1512965 | H66: 111.1735563 | I66: 118.0536098 | J66: 115.6874382 | K66: 90.08844767 | L66: 64.88913552 | M66: 33.11421456 | N66: 12.10176623 | O66: 5.775094228 | P66: 270 | Q66: 746.3827139
A67: Horisontell yta | B67: 5 | C67: 0 | D67: 10.47679228 | E67: 23.53868 | F67: 70.57741 | G67: 119.790138 | H67: 155.7156406 | I67: 167.4197648 | J67: 160.9598453 | K67: 120.3544842 | L67: 82.22562 | M67: 39.98761 | N67: 13.26797455 | O67: 6.639112391 | Q67: 970.9530722
A69: Plats
A70: Gävle | D70: SMHI nr | E70: 10740 | F70: Latitud | G70: 60.653112 | H70: Longitud | I70: 17.165952 | O70: GÄVLE | P70: 6726980 | Q70: 1574430
A71: Markrefl s/v | B71: 0.2 | C71: 0.5 | D71: jan | E71: feb | F71: mar | G71: apr | H71: maj | I71: jun | J71: jul | K71: aug | L71: sep | M71: okt | N71: nov | O71: dec | P71: Medel
A72: Utetemperatur | D72: -4.8 | E72: -4.5 | F72: -1 | G72: 3.4 | H72: 9.3 | I72: 14.6 | J72: 16.3 | K72: 14.9 | L72: 10.6 | M72: 6 | N72: 0.6 | O72: -3.3 | P72: =AVERAGE(D72:O72) -> 5.175
A73: Orientering | B73: Hor avsk | C73: Lutning | P73: Orient | Q73: Summa
A74: =IF(P74=0,"Norr","") -> Norr | B74: 5 | C74: 90 | D74: 6.253322111 | E74: 14.5454313 | F74: 37.67426998 | G74: 63.01975626 | H74: 69.22174145 | I74: 80.03716466 | J74: 72.95417083 | K74: 54.71253513 | L74: 35.59462393 | M74: 17.84743647 | N74: 8.062097148 | O74: 4.165943072 | P74: 0 | Q74: =SUM(D74:O74) -> 464.0884923
A75: =IF(P75=90,"Öster","") -> Öster | B75: 5 | C75: 90 | D75: 9.087899815 | E75: 20.48456822 | F75: 65.76044054 | G75: 104.4355445 | H75: 107.643022 | I75: 115.6223551 | J75: 112.8729528 | K75: 88.69791264 | L75: 60.3191801 | M75: 27.87491754 | N75: 11.30195715 | O75: 5.443479618 | P75: 90 | Q75: =SUM(D75:O75) -> 729.5442301
A76: =IF(P76=180,"Söder","") -> Söder | B76: 5 | C76: 90 | D76: 27.3326765 | E76: 40.74660901 | F76: 105.0759692 | G76: 127.1171703 | H76: 109.4169352 | I76: 108.2785184 | J76: 114.7697845 | K76: 107.3102256 | L76: 94.92906025 | M76: 62.08480915 | N76: 32.15533578 | O76: 21.24584951 | P76: 180 | Q76: 950.4629434
A77: =IF(P77=270,"Väster","") -> Väster | B77: 5 | C77: 90 | D77: 9.087899815 | E77: 20.48456822 | F77: 65.76044054 | G77: 104.4355445 | H77: 107.643022 | I77: 115.6223551 | J77: 114.517875 | K77: 88.69791264 | L77: 60.3191801 | M77: 27.87491754 | N77: 11.30195715 | O77: 5.443479618 | P77: 270 | Q77: 731.1891522
A78: Horisontell yta | B78: 5 | C78: 0 | D78: 9.073184254 | E78: 21.64920411 | F78: 68.66039 | G78: 115.6941605 | H78: 149.7429103 | I78: 162.4232134 | J78: 157.3455687 | K78: 117.4321017 | L78: 75.43717 | M78: 35.01877661 | N78: 11.36829099 | O78: 5.703551376 | Q78: 929.5485222
A80: Plats
A81: Ljusdal | D81: SMHI nr | E81: 11650 | F81: Latitud | G81: 61.832438 | H81: Longitud | I81: 16.130011 | O81: LJUSDAL | P81: 6857670 | Q81: 1517120
A82: Markrefl s/v | B82: 0.2 | C82: 0.5 | D82: jan | E82: feb | F82: mar | G82: apr | H82: maj | I82: jun | J82: jul | K82: aug | L82: sep | M82: okt | N82: nov | O82: dec | P82: Medel
A83: Utetemperatur | D83: -9.1 | E83: -7.8 | F83: -2.8 | G83: 2.5 | H83: 8.8 | I83: 14 | J83: 15.4 | K83: 13.7 | L83: 9.1 | M83: 4.3 | N83: -2.3 | O83: -7.2 | P83: =AVERAGE(D83:O83) -> 3.216666667
A84: Orientering | B84: Hor avsk | C84: Lutning | P84: Orient | Q84: Summa
A85: =IF(P85=0,"Norr","") -> Norr | B85: 5 | C85: 90 | D85: 5.173578198 | E85: 12.69228482 | F85: 35.61355328 | G85: 60.51551934 | H85: 65.81116103 | I85: 78.66956821 | J85: 71.76376664 | K85: 51.55930444 | L85: 34.47067446 | M85: 17.05501959 | N85: 7.238816594 | O85: 3.393886761 | P85: 0 | Q85: =SUM(D85:O85) -> 443.9571334
A86: =IF(P86=90,"Öster","") -> Öster | B86: 5 | C86: 90 | D86: 6.338328142 | E86: 18.52552991 | F86: 62.06529129 | G86: 97.21728643 | H86: 98.91097252 | I86: 108.8937142 | J86: 106.660094 | K86: 81.04068319 | L86: 58.87323863 | M86: 27.02811237 | N86: 8.610687272 | O86: 3.393886761 | P86: 90 | Q86: =SUM(D86:O86) -> 677.5578247
A87: =IF(P87=180,"Söder","") -> Söder | B87: 5 | C87: 90 | D87: 19.63880099 | E87: 38.82982915 | F87: 100.1949023 | G87: 118.321675 | H87: 101.4572628 | I87: 103.5240109 | J87: 109.4502075 | K87: 97.99317681 | L87: 94.04900964 | M87: 61.74235065 | N87: 24.27630615 | O87: 3.393886761 | P87: 180 | Q87: 872.8714186
A88: =IF(P88=270,"Väster","") -> Väster | B88: 5 | C88: 90 | D88: 6.338328142 | E88: 18.52552991 | F88: 62.06529129 | G88: 97.21728643 | H88: 98.91097252 | I88: 108.8937142 | J88: 108.6040485 | K88: 81.04068319 | L88: 58.87323863 | M88: 27.02811237 | N88: 8.610687272 | O88: 3.393886761 | P88: 270 | Q88: 679.5017792
A89: Horisontell yta | B89: 5 | C89: 0 | D89: 6.965874104 | E89: 19.21438812 | F89: 64.00108 | G89: 106.6737224 | H89: 136.1494018 | I89: 150.9512942 | J89: 147.1267104 | K89: 106.3117894 | L89: 72.7028 | M89: 33.26577413 | N89: 9.453939821 | O89: 3.350110142 | Q89: 856.1668845
A91: Plats
A92: Östersund | D92: SMHI nr | E92: 13410 | F92: Latitud | G92: 63.172637 | H92: Longitud | I92: 14.675607 | N92: ÖSTERSUND | P92: 7007500 | Q92: 1443110
A93: Markrefl s/v | B93: 0.2 | C93: 0.6 | D93: jan | E93: feb | F93: mar | G93: apr | H93: maj | I93: jun | J93: jul | K93: aug | L93: sep | M93: okt | N93: nov | O93: dec | P93: Medel
A94: Utetemperatur | D94: -8.9 | E94: -7.6 | F94: -3.5 | G94: 1.3 | H94: 7.6 | I94: 12.5 | J94: 13.9 | K94: 12.7 | L94: 8.2 | M94: 3.8 | N94: -2.4 | O94: -6.3 | P94: =AVERAGE(D94:O94) -> 2.608333333
A95: Orientering | B95: Hor avsk | C95: Lutning | P95: Orient | Q95: Summa
A96: =IF(P96=0,"Norr","") -> Norr | B96: 5 | C96: 90 | D96: 4.26942639 | E96: 14.011106 | F96: 38.90651372 | G96: 66.89840558 | H96: 68.43032353 | I96: 77.72718679 | J96: 71.0179771 | K96: 50.06271859 | L96: 33.85772162 | M96: 16.36377485 | N96: 6.601321333 | O96: 2.591995543 | P96: 0 | Q96: =SUM(D96:O96) -> 450.738471
A97: =IF(P97=90,"Öster","") -> Öster | B97: 5 | C97: 90 | D97: 4.962494084 | E97: 18.18791226 | F97: 57.29963775 | G97: 93.57976171 | H97: 92.02466445 | I97: 101.1869432 | J97: 96.17772994 | K97: 71.16813652 | L97: 51.36899376 | M97: 23.84827506 | N97: 7.624062404 | O97: 2.591995543 | P97: 90 | Q97: =SUM(D97:O97) -> 620.0206066
A98: =IF(P98=180,"Söder","") -> Söder | B98: 5 | C98: 90 | D98: 13.03118042 | E98: 33.10133402 | F98: 84.69599933 | G98: 109.7226094 | H98: 93.06831068 | I98: 97.7988972 | J98: 97.29061889 | K98: 83.93741053 | L98: 77.45184638 | M98: 50.57192501 | N98: 19.53080251 | O98: 2.591995543 | P98: 180 | Q98: 762.7929299
A99: =IF(P99=270,"Väster","") -> Väster | B99: 5 | C99: 90 | D99: 4.962494084 | E99: 18.18791226 | F99: 57.29963775 | G99: 93.57976171 | H99: 92.02466445 | I99: 101.1869432 | J99: 96.17772994 | K99: 71.16813652 | L99: 51.36899376 | M99: 23.84827506 | N99: 7.624062404 | O99: 2.591995543 | P99: 270 | Q99: 620.0206066
A100: Horisontell yta | B100: 5 | D100: 5.057421708 | E100: 17.89813599 | F100: 56.21873 | G100: 96.47486944 | H100: 122.71938 | I100: 138.0847009 | J100: 128.31471 | K100: 92.51724044 | L100: 63.33365 | M100: 29.06006286 | N100: 7.774525381 | O100: 2.525339315 | Q100: 759.9787661
A102: Plats
A103: Luleå | D103: SMHI nr | E103: 16298 | F103: Latitud | G103: 65.618831 | H103: Longitud | I103: 22.126276 | N103: Luleå | O103: 7294340 | P103: 1790910
A104: Markrefl s/v | B104: 0.2 | C104: 0.8 | D104: jan | E104: feb | F104: mar | G104: apr | H104: maj | I104: jun | J104: jul | K104: aug | L104: sep | M104: okt | N104: nov | O104: dec | P104: Medel
A105: Utetemperatur | D105: -12.2 | E105: -11 | F105: -6 | G105: 0.3 | H105: 6.6 | I105: 13 | J105: 15.4 | K105: 13.3 | L105: 8 | M105: 2.6 | N105: -4.5 | O105: -9.7 | P105: =AVERAGE(D105:O105) -> 1.316666667
A106: Orientering | B106: Hor avsk | C106: Lutning | P106: Orient | Q106: Summa
A107: =IF(P107=0,"Norr","") -> Norr | B107: 5 | C107: 90 | D107: 2.574578708 | E107: 13.26114542 | F107: 43.73863588 | G107: 75.19469202 | H107: 73.99951819 | I107: 87.1770771 | J107: 78.1625784 | K107: 53.29525734 | L107: 31.44610997 | M107: 13.06976747 | N107: 4.797580688 | O107: 1.703837441 | P107: 0 | Q107: =SUM(D107:O107) -> 478.4207786
A108: =IF(P108=90,"Öster","") -> Öster | B108: 5 | C108: 90 | D108: 2.574578708 | E108: 18.75728717 | F108: 67.55561592 | G108: 109.9670561 | H108: 115.2383324 | I108: 119.2612392 | J108: 118.3590123 | K108: 88.00909379 | L108: 50.77442135 | M108: 20.33203525 | N108: 4.797580688 | O108: 1.703837441 | P108: 90 | Q108: =SUM(D108:O108) -> 717.3300902
A109: =IF(P109=180,"Söder","") -> Söder | B109: 5 | C109: 90 | D109: 2.574578708 | E109: 39.57170591 | F109: 105.181466 | G109: 132.7991334 | H109: 118.6531113 | I109: 114.2279935 | J109: 121.687477 | K109: 110.802741 | L109: 81.30911322 | M109: 47.83494359 | N109: 4.797580688 | O109: 1.703837441 | P109: 180 | Q109: 881.1436818
A110: =IF(P110=270,"Väster","") -> Väster | B110: 5 | C110: 90 | D110: 2.574578708 | E110: 18.75728717 | F110: 67.55561592 | G110: 109.9670561 | H110: 115.2383324 | I110: 119.2612392 | J110: 118.3590123 | K110: 88.00909379 | L110: 50.77442135 | M110: 20.33203525 | N110: 4.797580688 | O110: 1.703837441 | P110: 270 | Q110: 717.3300902
A111: Horisontell yta | B111: 5 | C111: 0 | D111: 2.180272063 | E111: 15.98336978 | F111: 58.40957 | G111: 101.0093663 | H111: 151.7520801 | I111: 160.3064454 | J111: 155.7861032 | K111: 111.9985459 | L111: 60.66806 | M111: 23.579849 | N111: 4.154221032 | O111: 1.558814162 | Q111: 847.386697
A113: Plats
A114: Kiruna | D114: SMHI nr | E114: 18094 | F114: Latitud | G114: 67.825542 | H114: Longitud | I114: 20.334382 | N114: KIRUNA FLYGPLATS | P114: 7532780 | Q114: 1690720
A115: Markrefl s/v | B115: 0.2 | C115: 0.8 | D115: jan | E115: feb | F115: mar | G115: apr | H115: maj | I115: jun | J115: jul | K115: aug | L115: sep | M115: okt | N115: nov | O115: dec | P115: Medel
A116: Utetemperatur | D116: -13.9 | E116: -12.5 | F116: -8.7 | G116: -3.2 | H116: 3.4 | I116: 9.6 | J116: 12 | K116: 9.8 | L116: 4.6 | M116: -1.4 | N116: -8.1 | O116: -11.9 | P116: =AVERAGE(D116:O116) -> -1.691666667
A117: Orientering | B117: Hor avsk | C117: Lutning | P117: Orient | Q117: Summa
A118: =IF(P118=0,"Norr","") -> Norr | B118: 5 | C118: 90 | D118: 1.546342436 | E118: 10.86383317 | F118: 38.57942529 | G118: 71.74049125 | H118: 68.43908009 | I118: 80.31718671 | J118: 73.23460334 | K118: 49.75058561 | L118: 28.08054795 | M118: 11.82590399 | N118: 3.314619359 | O118: 1.131823341 | P118: 0 | Q118: =SUM(D118:O118) -> 438.8244425
A119: =IF(P119=90,"Öster","") -> Öster | B119: 5 | C119: 90 | D119: 1.546342436 | E119: 13.70571487 | F119: 56.60797075 | G119: 98.23171492 | H119: 94.44336448 | I119: 96.82157781 | J119: 98.41631682 | K119: 72.55371877 | L119: 42.91390546 | M119: 15.69729752 | N119: 3.314619359 | O119: 1.131823341 | P119: 90 | Q119: =SUM(D119:O119) -> 595.3843665
A120: =IF(P120=180,"Söder","") -> Söder | B120: 5 | C120: 90 | D120: 1.546342436 | E120: 29.51502014 | F120: 86.63773639 | G120: 116.760288 | H120: 97.52481514 | I120: 94.74831018 | J120: 101.4002946 | K120: 88.50275626 | L120: 67.62151432 | M120: 37.23374715 | N120: 3.314619359 | O120: 1.131823341 | P120: 180 | Q120: 725.9372673
A121: =IF(P121=270,"Väster","") -> Väster | B121: 5 | C121: 90 | D121: 1.546342436 | E121: 13.70571487 | F121: 56.60797075 | G121: 98.23171492 | H121: 94.44336448 | I121: 96.82157781 | J121: 98.41631682 | K121: 72.55371877 | L121: 42.91390546 | M121: 15.69729752 | N121: 3.314619359 | O121: 1.131823341 | P121: 270 | Q121: 595.3843665
A122: Horisontell yta | B122: 5 | C122: 0 | D122: 1.375503654 | E122: 12.23282892 | F122: 48.41024 | G122: 89.31386423 | H122: 122.3456954 | I122: 127.4939037 | J122: 127.5544193 | K122: 91.41127701 | L122: 50.64055 | M122: 19.48874446 | N122: 2.962781038 | O122: 1.097735011 | Q122: 694.3275427

Sheet Indata
A1: Gävle | G1: Göteborg Liseberg | M1: Jönköping | S1: Kalmar flygplats | Y1: Kiruna flygplats | AE1: Ljusdal | AK1: Luleå | AQ1: Malmö Jägerso | AW1: Stockholm Bromma | BC1: Östersund
A2: Latitud | B2: 60.653112 | G2: Latitud | H2: 57.699635 | K2: 13027.4 | M2: Latitud | N2: 57.766268 | S2: Latitud | T2: 56.678284 | Y2: Latitud | Z2: 67.825542 | AE2: Latitud | AF2: 61.832438 | AK2: Latitud | AL2: 65.618831 | AQ2: Latitud | AR2: 55.575361 | AW2: Lat | AX2: 59.353265 | BC2: Latitud | BD2: 63.172637
A3: Longitud | B3: 17.165952 | G3: Longitud | H3: 11.9977374 | M3: Longitud | N3: 14.180394 | S3: Longitud | T3: 16.289122 | Y3: Longitud | Z3: 20.334382 | AE3: Longitud | AF3: 16.130011 | AK3: Longitud | AL3: 22.126276 | AQ3: Longitud | AR3: 13.064718 | AW3: Long | AX3: 17.947934 | BC3: Longitud | BD3: 14.675607
A4: SMHI nr | B4: 10740 | G4: SMHI nr | H4: 7142 | M4: SMHI nr | N4: 7447 | S4: SMHI nr | T4: 6642 | Y4: SMHI nr | Z4: 18094 | AE4: SMHI nr | AF4: 11650 | AK4: SMHI nr | AL4: 16298 | AQ4: SMHI nr | AR4: 5235 | AW4: SMHI nr | AX4: 9720 | BC4: SMHI nr | BD4: 13410
A5: Direktstrålning | D5: Globalstrålning | G5: Direktstrålning | J5: Globalstrålning | M5: Direktstrålning | P5: Globalstrålning | S5: Direktstrålning | V5: Globalstrålning | Y5: Direktstrålning | AB5: Globalstrålning | AE5: Direktstrålning | AH5: Globalstrålning | AK5: Direktstrålning | AN5: Globalstrålning | AQ5: Direktstrålning | AT5: Globalstrålning | AW5: Direktstrålning | AZ5: Globalstrålning | BC5: Direktstrålning | BF5: Globalstrålning
A6: 2006 01 31 23 | B6: 18698.1 | D6: 2006 01 31 23 | E6: 8618.7 | G6: 2006 01 31 23 | H6: 25607 | J6: 2006 01 31 23 | K6: 13027.4 | M6: 2006 01 31 23 | N6: 25521.9 | P6: 2006 01 31 23 | Q6: 13587.3 | S6: 2006 01 31 23 | T6: 17065.3 | V6: 2006 01 31 23 | W6: 12539.7 | Y6: 2006 01 31 23 | Z6: 3817.9 | AB6: 2006 01 31 23 | AC6: 1207 | AE6: 2006 01 31 23 | AF6: 21340.7 | AH6: 2006 01 31 23 | AI6: 7408.5 | AK6: 2006 01 31 23 | AL6: 11976.7 | AN6: 2006 01 31 23 | AO6: 2754.2 | AQ6: 2006 01 31 23 | AR6: 19915.2 | AT6: 2006 01 31 23 | AU6: 14123.6 | AW6: 2006 01 31 23 | AX6: 18975.8 | AZ6: 2006 01 31 23 | BA6: 10386.9 | BC6: 2006 01 31 23 | BD6: 13219 | BF6: 2006 01 31 23 | BG6: 5258.1
A7: 2006 02 28 23 | B7: 33519.7 | D7: 2006 02 28 23 | E7: 21319.1 | G7: 2006 02 28 23 | H7: 35341.4 | J7: 2006 02 28 23 | K7: 24289.4 | M7: 2006 02 28 23 | N7: 38149.3 | P7: 2006 02 28 23 | Q7: 25182.5 | S7: 2006 02 28 23 | T7: 40967.5 | V7: 2006 02 28 23 | W7: 26226.5 | Y7: 2006 02 28 23 | Z7: 27220.5 | AB7: 2006 02 28 23 | AC7: 13778.1 | AE7: 2006 02 28 23 | AF7: 42369 | AH7: 2006 02 28 23 | AI7: 21684.9 | AK7: 2006 02 28 23 | AL7: 45434.6 | AN7: 2006 02 28 23 | AO7: 17645.3 | AQ7: 2006 02 28 23 | AR7: 34507 | AT7: 2006 02 28 23 | AU7: 27840.2 | AW7: 2006 02 28 23 | AX7: 29310.2 | AZ7: 2006 02 28 23 | BA7: 22437.2 | BC7: 2006 02 28 23 | BD7: 32486.6 | BF7: 2006 02 28 23 | BG7: 19391.1
A8: 2006 03 31 23 | B8: 92291.3 | D8: 2006 03 31 23 | E8: 62200.6 | G8: 2006 03 31 23 | H8: 96136.7 | J8: 2006 03 31 23 | K8: 73269.9 | M8: 2006 03 31 23 | N8: 75690.2 | P8: 2006 03 31 23 | Q8: 65613.1 | S8: 2006 03 31 23 | T8: 66182.4 | V8: 2006 03 31 23 | W8: 67535.1 | Y8: 2006 03 31 23 | Z8: 74241.8 | AB8: 2006 03 31 23 | AC8: 51339.6 | AE8: 2006 03 31 23 | AF8: 97577.4 | AH8: 2006 03 31 23 | AI8: 61245.7 | AK8: 2006 03 31 23 | AL8: 110500.7 | AN8: 2006 03 31 23 | AO8: 62865.7 | AQ8: 2006 03 31 23 | AR8: 78275.1 | AT8: 2006 03 31 23 | AU8: 73904.1 | AW8: 2006 03 31 23 | AX8: 85283.7 | AZ8: 2006 03 31 23 | BA8: 67249.7 | BC8: 2006 03 31 23 | BD8: 99622 | BF8: 2006 03 31 23 | BG8: 61437.1
A9: 2006 04 30 23 | B9: 117748.7 | D9: 2006 04 30 23 | E9: 102243.9 | G9: 2006 04 30 23 | H9: 72937.5 | J9: 2006 04 30 23 | K9: 91077.5 | M9: 2006 04 30 23 | N9: 71619.1 | P9: 2006 04 30 23 | Q9: 91029.7 | S9: 2006 04 30 23 | T9: 89004.8 | V9: 2006 04 30 23 | W9: 103471 | Y9: 2006 04 30 23 | Z9: 87212.9 | AB9: 2006 04 30 23 | AC9: 85096.1 | AE9: 2006 04 30 23 | AF9: 104834.8 | AH9: 2006 04 30 23 | AI9: 96209.8 | AK9: 2006 04 30 23 | AL9: 89813.4 | AN9: 2006 04 30 23 | AO9: 84821 | AQ9: 2006 04 30 23 | AR9: 65409.1 | AT9: 2006 04 30 23 | AU9: 95578.9 | AW9: 2006 04 30 23 | AX9: 115860.5 | AZ9: 2006 04 30 23 | BA9: 109405.7 | BC9: 2006 04 30 23 | BD9: 90640.5 | BF9: 2006 04 30 23 | BG9: 95746.5
A10: 2006 05 31 23 | B10: 161905.5 | D10: 2006 05 31 23 | E10: 149017.2 | G10: 2006 05 31 23 | H10: 158148 | J10: 2006 05 31 23 | K10: 157039.6 | M10: 2006 05 31 23 | N10: 142178.9 | P10: 2006 05 31 23 | Q10: 148725 | S10: 2006 05 31 23 | T10: 164887.5 | V10: 2006 05 31 23 | W10: 165269.8 | Y10: 2006 05 31 23 | Z10: 118649.2 | AB10: 2006 05 31 23 | AC10: 126932.9 | AE10: 2006 05 31 23 | AF10: 150176 | AH10: 2006 05 31 23 | AI10: 139632 | AK10: 2006 05 31 23 | AL10: 165541.9 | AN10: 2006 05 31 23 | AO10: 153780.4 | AQ10: 2006 05 31 23 | AR10: 156460.1 | AT10: 2006 05 31 23 | AU10: 158854 | AW10: 2006 05 31 23 | AX10: 166018.9 | AZ10: 2006 05 31 23 | BA10: 159499.3 | BC10: 2006 05 31 23 | BD10: 157591.4 | BF10: 2006 05 31 23 | BG10: 148324.2
A11: 2006 06 30 23 | B11: 186428.8 | D11: 2006 06 30 23 | E11: 175390.8 | G11: 2006 06 30 23 | H11: 163412.9 | J11: 2006 06 30 23 | K11: 168001.7 | M11: 2006 06 30 23 | N11: 198221.7 | P11: 2006 06 30 23 | Q11: 183379.1 | S11: 2006 06 30 23 | T11: 186094 | V11: 2006 06 30 23 | W11: 181928.5 | Y11: 2006 06 30 23 | Z11: 142826.5 | AB11: 2006 06 30 23 | AC11: 151050.1 | AE11: 2006 06 30 23 | AF11: 162587.7 | AH11: 2006 06 30 23 | AI11: 163772 | AK11: 2006 06 30 23 | AL11: 205503 | AN11: 2006 06 30 23 | AO11: 182720.8 | AQ11: 2006 06 30 23 | AR11: 164156 | AT11: 2006 06 30 23 | AU11: 172565.9 | AW11: 2006 06 30 23 | AX11: 223001.7 | AZ11: 2006 06 30 23 | BA11: 192116 | BC11: 2006 06 30 23 | BD11: 148532.7 | BF11: 2006 06 30 23 | BG11: 155492.2
A12: 2006 07 31 23 | B12: 195101.8 | D12: 2006 07 31 23 | E12: 172922.8 | G12: 2006 07 31 23 | H12: 213956.5 | J12: 2006 07 31 23 | K12: 179788.9 | M12: 2006 07 31 23 | N12: 223719.6 | P12: 2006 07 31 23 | Q12: 186724.9 | S12: 2006 07 31 23 | T12: 229126.4 | V12: 2006 07 31 23 | W12: 194971.2 | Y12: 2006 07 31 23 | Z12: 212109.8 | AB12: 2006 07 31 23 | AC12: 169478.8 | AE12: 2006 07 31 23 | AF12: 186990.5 | AH12: 2006 07 31 23 | AI12: 163613.2 | AK12: 2006 07 31 23 | AL12: 239349.7 | AN12: 2006 07 31 23 | AO12: 189055.5 | AQ12: 2006 07 31 23 | AR12: 216430.2 | AT12: 2006 07 31 23 | AU12: 192416.7 | AW12: 2006 07 31 23 | AX12: 246615.9 | AZ12: 2006 07 31 23 | BA12: 198293.3 | BC12: 2006 07 31 23 | BD12: 174313.3 | BF12: 2006 07 31 23 | BG12: 160520.2
A13: 2006 08 31 23 | B13: 134605 | D13: 2006 08 31 23 | E13: 122114 | G13: 2006 08 31 23 | H13: 95568.7 | J13: 2006 08 31 23 | K13: 111736.7 | M13: 2006 08 31 23 | N13: 105511.8 | P13: 2006 08 31 23 | Q13: 112185.8 | S13: 2006 08 31 23 | T13: 101531.5 | V13: 2006 08 31 23 | W13: 113230.5 | Y13: 2006 08 31 23 | Z13: 173342.1 | AB13: 2006 08 31 23 | AC13: 123414.8 | AE13: 2006 08 31 23 | AF13: 121749.3 | AH13: 2006 08 31 23 | AI13: 110760.6 | AK13: 2006 08 31 23 | AL13: 199657.2 | AN13: 2006 08 31 23 | AO13: 142248.1 | AQ13: 2006 08 31 23 | AR13: 68223.2 | AT13: 2006 08 31 23 | AU13: 103084.1 | AW13: 2006 08 31 23 | AX13: 157487 | AZ13: 2006 08 31 23 | BA13: 133792.1 | BC13: 2006 08 31 23 | BD13: 142846.6 | BF13: 2006 08 31 23 | BG13: 124478.8
A14: 2006 09 30 23 | B14: 102105.9 | D14: 2006 09 30 23 | E14: 76471.4 | G14: 2006 09 30 23 | H14: 138073.8 | J14: 2006 09 30 23 | K14: 95479 | M14: 2006 09 30 23 | N14: 131424.3 | P14: 2006 09 30 23 | Q14: 93363.8 | S14: 2006 09 30 23 | T14: 147571.5 | V14: 2006 09 30 23 | W14: 102069 | Y14: 2006 09 30 23 | Z14: 74217.4 | AB14: 2006 09 30 23 | AC14: 50138.1 | AE14: 2006 09 30 23 | AF14: 82789.5 | AH14: 2006 09 30 23 | AI14: 65727.4 | AK14: 2006 09 30 23 | AL14: 64928.4 | AN14: 2006 09 30 23 | AO14: 54764 | AQ14: 2006 09 30 23 | AR14: 126041.6 | AT14: 2006 09 30 23 | AU14: 97159 | AW14: 2006 09 30 23 | AX14: 126836.4 | AZ14: 2006 09 30 23 | BA14: 86163.4 | BC14: 2006 09 30 23 | BD14: 80526.4 | BF14: 2006 09 30 23 | BG14: 66363
A15: 2006 10 31 23 | B15: 36375.4 | D15: 2006 10 31 23 | E15: 28525.3 | G15: 2006 10 31 23 | H15: 40468.9 | J15: 2006 10 31 23 | K15: 36634.1 | M15: 2006 10 31 23 | N15: 25333.6 | P15: 2006 10 31 23 | Q15: 30845.5 | S15: 2006 10 31 23 | T15: 47916.9 | V15: 2006 10 31 23 | W15: 40556.1 | Y15: 2006 10 31 23 | Z15: 33137.7 | AB15: 2006 10 31 23 | AC15: 17138.3 | AE15: 2006 10 31 23 | AF15: 34576.1 | AH15: 2006 10 31 23 | AI15: 25394.7 | AK15: 2006 10 31 23 | AL15: 33229.1 | AN15: 2006 10 31 23 | AO15: 20216.2 | AQ15: 2006 10 31 23 | AR15: 36801.8 | AT15: 2006 10 31 23 | AU15: 41409.1 | AW15: 2006 10 31 23 | AX15: 38526.3 | AZ15: 2006 10 31 23 | BA15: 31337.4 | BC15: 2006 10 31 23 | BD15: 24166.7 | BF15: 2006 10 31 23 | BG15: 20060.8
A16: 2006 11 30 23 | B16: 37072.8 | D16: 2006 11 30 23 | E16: 12680 | G16: 2006 11 30 23 | H16: 28037.7 | J16: 2006 11 30 23 | K16: 16410.2 | M16: 2006 11 30 23 | N16: 26890.7 | P16: 2006 11 30 23 | Q16: 16236.7 | S16: 2006 11 30 23 | T16: 30137.7 | V16: 2006 11 30 23 | W16: 17873.6 | Y16: 2006 11 30 23 | Z16: 13657.6 | AB16: 2006 11 30 23 | AC16: 2841.7 | AE16: 2006 11 30 23 | AF16: 36639.5 | AH16: 2006 11 30 23 | AI16: 11576.5 | AK16: 2006 11 30 23 | AL16: 13348.3 | AN16: 2006 11 30 23 | AO16: 4339.4 | AQ16: 2006 11 30 23 | AR16: 27756.4 | AT16: 2006 11 30 23 | AU16: 18076.6 | AW16: 2006 11 30 23 | AX16: 39080.6 | AZ16: 2006 11 30 23 | BA16: 14773.5 | BC16: 2006 11 30 23 | BD16: 24369.8 | BF16: 2006 11 30 23 | BG16: 8626.5
A17: 2006 12 31 23 | B17: 24952.3 | D17: 2006 12 31 23 | E17: 6136.9 | G17: 2006 12 31 23 | H17: 16764.4 | J17: 2006 12 31 23 | K17: 7921 | M17: 2006 12 31 23 | N17: 20288 | P17: 2006 12 31 23 | Q17: 8177.4 | S17: 2006 12 31 23 | T17: 32570.3 | V17: 2006 12 31 23 | W17: 11220.3 | Y17: 2006 12 31 23 | Z17: 559.8 | AB17: 2006 12 31 23 | AC17: 80.7 | AE17: 2006 12 31 23 | AF17: 16420.8 | AH17: 2006 12 31 23 | AI17: 4052 | AK17: 2006 12 31 23 | AL17: 7847.7 | AN17: 2006 12 31 23 | AO17: 841.5 | AQ17: 2006 12 31 23 | AR17: 14343.3 | AT17: 2006 12 31 23 | AU17: 9628.4 | AW17: 2006 12 31 23 | AX17: 25657 | AZ17: 2006 12 31 23 | BA17: 7941.5 | BC17: 2006 12 31 23 | BD17: 8339.1 | BF17: 2006 12 31 23 | BG17: 2231.3
A18: 2007 01 31 23 | B18: 33108 | D18: 2007 01 31 23 | E18: 10321.7 | G18: 2007 01 31 23 | H18: 31871.2 | J18: 2007 01 31 23 | K18: 13591.7 | M18: 2007 01 31 23 | N18: 24209.8 | P18: 2007 01 31 23 | Q18: 11807.4 | S18: 2007 01 31 23 | T18: 31808.6 | V18: 2007 01 31 23 | W18: 14543.9 | Y18: 2007 01 31 23 | Z18: 14933.3 | AB18: 2007 01 31 23 | AC18: 1773.1 | AE18: 2007 01 31 23 | AF18: 24951.9 | AH18: 2007 01 31 23 | AI18: 7628.7 | AK18: 2007 01 31 23 | AL18: 21247.7 | AN18: 2007 01 31 23 | AO18: 3559.1 | AQ18: 2007 01 31 23 | AR18: 17774.7 | AT18: 2007 01 31 23 | AU18: 13200.9 | AW18: 2007 01 31 23 | AX18: 28575.6 | AZ18: 2007 01 31 23 | BA18: 11470.2 | BC18: 2007 01 31 23 | BD18: 21469.1 | BF18: 2007 01 31 23 | BG18: 5654.3
A19: 2007 02 28 23 | B19: 17190.2 | D19: 2007 02 28 23 | E19: 15824.6 | G19: 2007 02 28 23 | H19: 30242.5 | J19: 2007 02 28 23 | K19: 22073.4 | M19: 2007 02 28 23 | N19: 16176.9 | P19: 2007 02 28 23 | Q19: 17778.9 | S19: 2007 02 28 23 | T19: 18634.9 | V19: 2007 02 28 23 | W19: 18915.4 | Y19: 2007 02 28 23 | Z19: 29184.8 | AB19: 2007 02 28 23 | AC19: 11380.5 | AE19: 2007 02 28 23 | AF19: 17538.6 | AH19: 2007 02 28 23 | AI19: 13821.6 | AK19: 2007 02 28 23 | AL19: 31199.5 | AN19: 2007 02 28 23 | AO19: 14146.9 | AQ19: 2007 02 28 23 | AR19: 15517.2 | AT19: 2007 02 28 23 | AU19: 21426 | AW19: 2007 02 28 23 | AX19: 19235 | AZ19: 2007 02 28 23 | BA19: 18116.1 | BC19: 2007 02 28 23 | BD19: 26660.8 | BF19: 2007 02 28 23 | BG19: 17067.3
A20: 2007 03 31 23 | B20: 93726.9 | D20: 2007 03 31 23 | E20: 62879.3 | G20: 2007 03 31 23 | H20: 109785.8 | J20: 2007 03 31 23 | K20: 75832.7 | M20: 2007 03 31 23 | N20: 98716.9 | P20: 2007 03 31 23 | Q20: 70597.3 | S20: 2007 03 31 23 | T20: 127848.6 | V20: 2007 03 31 23 | W20: 81078.1 | Y20: 2007 03 31 23 | Z20: 117807.1 | AB20: 2007 03 31 23 | AC20: 58137.5 | AE20: 2007 03 31 23 | AF20: 108706.1 | AH20: 2007 03 31 23 | AI20: 67635.9 | AK20: 2007 03 31 23 | AL20: 110028.7 | AN20: 2007 03 31 23 | AO20: 57092.5 | AQ20: 2007 03 31 23 | AR20: 110830.9 | AT20: 2007 03 31 23 | AU20: 83593 | AW20: 2007 03 31 23 | AX20: 94179.2 | AZ20: 2007 03 31 23 | BA20: 65166 | BC20: 2007 03 31 23 | BD20: 95197.5 | BF20: 2007 03 31 23 | BG20: 61315.6
A21: 2007 04 30 23 | B21: 158774.9 | D21: 2007 04 30 23 | E21: 122439.4 | G21: 2007 04 30 23 | H21: 184133.9 | J21: 2007 04 30 23 | K21: 137321.7 | M21: 2007 04 30 23 | N21: 201477 | P21: 2007 04 30 23 | Q21: 141744.5 | S21: 2007 04 30 23 | T21: 195807 | V21: 2007 04 30 23 | W21: 145576.3 | Y21: 2007 04 30 23 | Z21: 126755.8 | AB21: 2007 04 30 23 | AC21: 102857.4 | AE21: 2007 04 30 23 | AF21: 133696.5 | AH21: 2007 04 30 23 | AI21: 110562.8 | AK21: 2007 04 30 23 | AL21: 136943.5 | AN21: 2007 04 30 23 | AO21: 111826.1 | AQ21: 2007 04 30 23 | AR21: 145215.3 | AT21: 2007 04 30 23 | AU21: 134489.5 | AW21: 2007 04 30 23 | AX21: 180654.8 | AZ21: 2007 04 30 23 | BA21: 134188.7 | BC21: 2007 04 30 23 | BD21: 102510.2 | BF21: 2007 04 30 23 | BG21: 97592.3
